Workbook

Sheet Filtro
A1: Mes | B1: (Todas)
A2: Comuna/Hospital | B2: (Todas)
A4: Etiquetas de fila | B4: Suma de Col01 | C4: Suma de Col02 | D4: Suma de Col03 | E4: Suma de Col04 | F4: Suma de Col05 | G4: Suma de Col06 | H4: Suma de Col07 | I4: Suma de Col08 | J4: Suma de Col09 | K4: Suma de Col10 | L4: Suma de Col11 | M4: Suma de Col12 | N4: Suma de Col13 | O4: Suma de Col14 | P4: Suma de Col15 | Q4: Suma de Col16 | R4: Suma de Col17 | S4: Suma de Col18 | T4: Suma de Col19 | U4: Suma de Col20 | V4: Suma de Col21 | W4: Suma de Col22 | X4: Suma de Col23 | Y4: Suma de Col24 | Z4: Suma de Col25 | AA4: Suma de Col26 | AB4: Suma de Col27 | AC4: Suma de Col28 | AD4: Suma de Col29 | AE4: Suma de Col30 | AF4: Suma de Col31 | AG4: Suma de Col32 | AH4: Suma de Col33 | AI4: Suma de Col34 | AJ4: Suma de Col35 | AK4: Suma de Col36 | AL4: Suma de Col37 | AM4: Suma de Col38 | AN4: Suma de Col39 | AO4: Suma de Col40 | AP4: Suma de Col41 | AQ4: Suma de col42 | AR4: Suma de col43 | AS4: Suma de col44 | AT4: Suma de col45 | AU4: Suma de col46 | AV4: Suma de col47 | AW4: Suma de col48 | AX4: Cuenta de col49 | AY4: Cuenta de col50
A5: 01010101 | B5: 22 | D5: 0 | E5: 0 | F5: 3 | G5: 13 | H5: 1 | I5: 3 | J5: 2 | K5: 0 | L5: 0 | T5: 22 | U5: 22
A6: 01010103 | B6: 1814 | D6: 2 | E6: 87 | F6: 354 | G6: 508 | H6: 432 | I6: 279 | J6: 119 | K6: 32 | L6: 1 | T6: 1809 | U6: 1795
A7: 01010201 | B7: 505 | D7: 3 | E7: 66 | F7: 126 | G7: 141 | H7: 96 | I7: 56 | J7: 15 | K7: 1 | L7: 0 | M7: 1 | T7: 505 | U7: 504 | V7: 211
A8: 01010203 | B8: 44158 | D8: 109 | E8: 4309 | F8: 10736 | G8: 12885 | H8: 9522 | I8: 5144 | J8: 1365 | K8: 84 | L8: 3 | M8: 1 | T8: 44094 | U8: 43412 | V8: 14985
A9: 01010401 | B9: 454 | D9: 18 | E9: 86 | F9: 104 | G9: 96 | H9: 64 | I9: 32 | J9: 22 | K9: 22 | L9: 7 | M9: 1 | N9: 2 | O9: 0 | P9: 0 | Q9: 0 | R9: 0 | S9: 9 | T9: 451 | U9: 451
A10: 01010403 | B10: 92946 | D10: 1281 | E10: 14004 | F10: 17667 | G10: 17328 | H10: 14518 | I10: 10743 | J10: 8859 | K10: 6323 | L10: 2026 | M10: 166 | N10: 28 | O10: 8 | P10: 3 | Q10: 1 | R10: 1 | S10: 436 | T10: 91899 | U10: 91544
A11: 01010601 | B11: 229 | D11: 0 | E11: 9 | F11: 18 | G11: 24 | H11: 21 | I11: 20 | J11: 23 | K11: 33 | L11: 25 | M11: 30 | N11: 12 | O11: 7 | P11: 7 | Q11: 0 | R11: 0 | T11: 231 | U11: 231
A12: 01010603 | B12: 38992 | D12: 366 | E12: 881 | F12: 2307 | G12: 3578 | H12: 3687 | I12: 3944 | J12: 4395 | K12: 4750 | L12: 5369 | M12: 4349 | N12: 2970 | O12: 1526 | P12: 578 | Q12: 203 | R12: 89 | T12: 38455 | U12: 38139 | V12: 0 | W12: 0 | X12: 0 | Y12: 0 | Z12: 0
A13: 01010901 | B13: 12 | K13: 3 | L13: 5 | M13: 2 | N13: 2 | T13: 25 | U13: 25
A14: 01010903 | B14: 2783 | K14: 873 | L14: 1028 | M14: 572 | N14: 310 | T14: 2776 | U14: 2765
A15: 01030100 | B15: 3435 | C15: 2900 | D15: 19 | E15: 27 | F15: 27 | G15: 136 | H15: 2980 | I15: 1436 | J15: 284 | K15: 8 | L15: 1252 | M15: 634 | N15: 560 | O15: 74 | P15: 116 | Q15: 3545 | R15: 1993 | S15: 49 | T15: 390
A16: 01030100A | B16: 82 | C16: 33 | D16: 49 | AE16: 8 | AF16: 5 | AG16: 6 | AH16: 11 | AI16: 3 | AJ16: 11 | AK16: 16 | AL16: 22 | AM16: 81
A17: 01030200 | B17: 85 | C17: 54 | D17: 0 | E17: 0 | F17: 0 | G17: 4 | H17: 68 | I17: 59 | J17: 6 | K17: 0 | L17: 3 | M17: 4 | N17: 4 | O17: 0 | P17: 1 | Q17: 44 | R17: 29 | S17: 1 | T17: 10
A18: 01030200B | B18: 1706 | C18: 666 | D18: 1040 | AE18: 166 | AF18: 285 | AG18: 168 | AH18: 287 | AI18: 172 | AJ18: 255 | AK18: 160 | AL18: 213 | AM18: 1684
A19: 01030300 | B19: 2178 | C19: 1334 | D19: 0 | E19: 0 | F19: 0 | G19: 33 | H19: 1831 | I19: 53 | J19: 1758 | K19: 20 | L19: 0 | M19: 1 | N19: 1 | O19: 0 | P19: 28 | Q19: 1101 | R19: 398 | S19: 11 | T19: 139
A20: 01030300C | B20: 60 | C20: 24 | D20: 36 | AE20: 6 | AF20: 3 | AG20: 5 | AH20: 12 | AI20: 6 | AJ20: 9 | AK20: 7 | AL20: 12 | AM20: 59
A21: 01030400 | B21: 553 | C21: 548 | H21: 213 | I21: 0 | J21: 146 | K21: 67 | L21: 0 | M21: 2 | N21: 2 | O21: 0
A22: 01030400D | B22: 583 | C22: 239 | D22: 344 | AE22: 32 | AF22: 43 | AG22: 30 | AH22: 58 | AI22: 57 | AJ22: 73 | AK22: 120 | AL22: 170 | AM22: 575
A23: 01030500 | B23: 459 | C23: 168 | D23: 291 | E23: 3036 | F23: 1114 | G23: 1922
A24: 01030600 | B24: 2272 | C24: 1006 | D24: 1266 | E24: 811 | F24: 322 | G24: 489
A25: 01030700 | B25: 7356 | C25: 3633 | D25: 3723 | E25: 2650 | F25: 1163 | G25: 1487
A26: 01030800 | B26: 314 | C26: 136 | D26: 178 | E26: 907 | F26: 479 | G26: 428
A27: 01031000 | B27: 1836 | D27: 915 | E27: 921
A28: 01031100 | B28: 2760 | D28: 1331 | E28: 1429
A29: 01031200 | B29: 2903 | D29: 1407 | E29: 1496
A30: 01031300 | B30: 2864 | D30: 1361 | E30: 1503
A31: 01031400 | B31: 3010 | D31: 1473 | E31: 1537
A32: 01031500 | B32: 1 | C32: 144 | D32: 74 | E32: 70
A33: 01031600 | B33: 3 | C33: 14 | D33: 7 | E33: 7
A34: 01031700 | B34: 3 | C34: 31 | D34: 14 | E34: 17
A35: 01031800 | B35: 3 | C35: 70 | D35: 40 | E35: 30
A36: 01031900 | B36: 3 | C36: 96 | D36: 50 | E36: 46
A37: 01060100 | B37: 7694 | C37: 7 | D37: 33 | E37: 52 | F37: 105 | G37: 345 | H37: 1365 | I37: 5182 | J37: 605 | K37: 7774 | L37: 312
A38: 01060101 | B38: 153 | C38: 2 | D38: 16 | E38: 7 | F38: 3 | G38: 6 | H38: 19 | I38: 89 | J38: 11
A39: 01070000 | B39: 976 | C39: 2 | D39: 559 | E39: 415
A40: 01080000 | B40: 3 | C40: 0 | D40: 1 | E40: 2
A41: 01080001 | B41: 17 | D41: 0 | E41: 1 | F41: 7 | G41: 4 | H41: 4 | I41: 1 | J41: 0 | K41: 0 | L41: 0 | M41: 0 | T41: 17 | U41: 17
A42: 01080002 | B42: 1081 | D42: 3 | E42: 89 | F42: 232 | G42: 307 | H42: 225 | I42: 156 | J42: 62 | K42: 5 | L42: 2 | M42: 0 | T42: 1070 | U42: 1062
A43: 01080003 | B43: 48 | C43: 2 | D43: 11 | E43: 19 | F43: 14 | G43: 0 | H43: 0 | I43: 1 | J43: 1
A44: 01080004 | B44: 417 | C44: 4 | D44: 103 | E44: 99 | F44: 178 | G44: 2 | H44: 8 | I44: 5 | J44: 18
A45: 01080008 | B45: 7294 | C45: 32 | D45: 749 | E45: 1762 | F45: 2129 | G45: 1524 | H45: 849 | I45: 236 | J45: 13 | K45: 0 | L45: 0 | M45: 98 | N45: 109 | O45: 700
A46: 01080009 | B46: 6278 | C46: 21 | D46: 609 | E46: 1482 | F46: 1861 | G46: 1355 | H46: 742 | I46: 198 | J46: 10 | K46: 0 | L46: 0 | M46: 46 | N46: 64 | O46: 488
A47: 01080010 | B47: 2630 | C47: 31 | D47: 593 | E47: 933 | F47: 660 | G47: 290 | H47: 100 | I47: 21 | J47: 1 | K47: 0 | L47: 1 | M47: 24 | N47: 29 | O47: 295
A48: 01080011 | B48: 836 | C48: 2 | D48: 34 | E48: 149 | F48: 196 | G48: 180 | H48: 140 | I48: 87 | J48: 41 | K48: 6 | L48: 1 | M48: 13
A49: 01080013 | B49: 969 | C49: 56 | D49: 260 | E49: 141 | F49: 167 | G49: 128 | H49: 67 | I49: 77 | J49: 49 | K49: 22 | L49: 2 | M49: 62
A50: 01080014 | B50: 609 | C50: 40 | D50: 351 | E50: 59 | F50: 65 | G50: 43 | H50: 19 | I50: 13 | J50: 12 | K50: 6 | L50: 10 | M50: 99
A51: 01080016 | B51: 467
A52: 01080017 | B52: 92 | C52: 0 | D52: 0 | E52: 11
A53: 01080018 | B53: 527 | C53: 0 | D53: 1 | E53: 40
A54: 01080019 | B54: 870 | C54: 0 | D54: 5 | E54: 69
A55: 01080020 | B55: 9759
A56: 01080021 | B56: 4670 | C56: 300 | D56: 1521 | E56: 936 | F56: 756 | G56: 578 | H56: 297 | I56: 195 | J56: 80 | K56: 7 | L56: 0 | M56: 538
A57: 01080022 | B57: 1641 | C57: 5 | D57: 147 | E57: 272 | F57: 393 | G57: 273 | H57: 201 | I57: 167 | J57: 154 | K57: 29 | L57: 0 | M57: 32
A58: 01080023 | B58: 2345 | C58: 80 | D58: 713 | E58: 566 | F58: 421 | G58: 283 | H58: 168 | I58: 88 | J58: 21 | K58: 5 | L58: 0 | M58: 189
A59: 01080024 | B59: 692 | C59: 30 | D59: 199 | E59: 159 | F59: 151 | G59: 91 | H59: 37 | I59: 19 | J59: 6 | K59: 0 | L59: 0 | M59: 25
A60: 01080030 | B60: 11 | D60: 0 | E60: 0 | F60: 3 | G60: 4 | H60: 2 | I60: 2 | J60: 0 | K60: 0 | L60: 0 | M60: 0 | T60: 23 | U60: 23 | W60: 12 | X60: 16 | Y60: 6 | Z60: 0
A61: 01080040 | B61: 1719 | D61: 3 | E61: 144 | F61: 402 | G61: 501 | H61: 383 | I61: 221 | J61: 61 | K61: 4 | L61: 0 | M61: 0 | T61: 1714 | U61: 1680 | W61: 632 | X61: 1300 | Y61: 204 | Z61: 27
A62: 01080090 | B62: 881
A63: 01090010 | B63: 1138 | C63: 742
A64: 01090020 | B64: 8264 | C64: 4809
A65: 01090030 | B65: 46 | C65: 42
A66: 01090040 | B66: 51 | C66: 0 | D66: 0 | E66: 2
A67: 01090050 | B67: 3958 | C67: 27 | D67: 611 | E67: 1073 | F67: 1042 | G67: 669 | H67: 410 | I67: 120 | J67: 6 | K67: 0 | L67: 0 | M67: 47 | N67: 50 | O67: 330
A68: 01090060 | B68: 4143 | C68: 74 | D68: 646 | E68: 986 | F68: 974 | G68: 685 | H68: 405 | I68: 219 | J68: 123 | K68: 31 | L68: 0 | M68: 170
A69: 01110106 | B69: 35 | D69: 0 | E69: 4 | F69: 10 | G69: 5 | H69: 7 | I69: 9 | J69: 0 | K69: 0 | L69: 0 | M69: 0 | T69: 35 | U69: 35 | W69: 21 | X69: 29 | Y69: 6 | Z69: 0
A70: 01110107 | B70: 3908 | D70: 10 | E70: 355 | F70: 902 | G70: 1148 | H70: 868 | I70: 484 | J70: 133 | K70: 8 | L70: 0 | M70: 0 | T70: 3865 | U70: 3784 | W70: 2050 | X70: 3299 | Y70: 285 | Z70: 30
A71: 01200010 | B71: 332 | C71: 113 | D71: 219 | E71: 1 | F71: 0 | G71: 1 | H71: 1 | I71: 1 | J71: 1 | K71: 5 | L71: 5 | M71: 15 | N71: 6 | O71: 3 | P71: 5 | Q71: 5 | R71: 7 | S71: 11 | T71: 7 | U71: 3 | V71: 14 | W71: 3 | X71: 9 | Y71: 5 | Z71: 6 | AA71: 10 | AB71: 28 | AC71: 11 | AD71: 29 | AE71: 5 | AF71: 26 | AG71: 11 | AH71: 38 | AI71: 10 | AJ71: 15 | AK71: 13 | AL71: 22 | AM71: 327
A72: 01200020 | B72: 5 | C72: 2 | D72: 3 | E72: 2 | F72: 0 | G72: 0 | H72: 0 | I72: 0 | J72: 1 | K72: 0 | L72: 0 | M72: 0 | N72: 0 | O72: 0 | P72: 0 | Q72: 0 | R72: 0 | S72: 0 | T72: 0 | U72: 0 | V72: 0 | W72: 0 | X72: 0 | Y72: 0 | Z72: 0 | AA72: 0 | AB72: 1 | AC72: 0 | AD72: 0 | AE72: 0 | AF72: 0 | AG72: 0 | AH72: 1 | AI72: 0 | AJ72: 0 | AK72: 0 | AL72: 0 | AM72: 5
A73: 01200030 | B73: 423 | C73: 76 | D73: 347 | E73: 1 | F73: 6 | G73: 1 | H73: 1 | I73: 0 | J73: 6 | K73: 14 | L73: 39 | M73: 6 | N73: 64 | O73: 16 | P73: 49 | Q73: 11 | R73: 36 | S73: 4 | T73: 35 | U73: 2 | V73: 25 | W73: 4 | X73: 21 | Y73: 4 | Z73: 16 | AA73: 3 | AB73: 14 | AC73: 2 | AD73: 10 | AE73: 2 | AF73: 11 | AG73: 2 | AH73: 6 | AI73: 0 | AJ73: 5 | AK73: 4 | AL73: 3 | AM73: 416
A74: 01200031 | B74: 68 | C74: 37 | D74: 31 | E74: 19 | F74: 22 | G74: 11 | H74: 4 | I74: 4 | J74: 2 | K74: 2 | L74: 2 | M74: 1 | N74: 1 | AM74: 62
A75: 01200032 | B75: 97 | C75: 55 | D75: 42 | E75: 45 | F75: 34 | G75: 10 | H75: 5 | I75: 0 | J75: 2 | K75: 0 | L75: 0 | M75: 0 | N75: 1 | AM75: 80
A76: 01200033 | B76: 5 | C76: 4 | D76: 1 | E76: 3 | F76: 1 | G76: 1 | H76: 0 | I76: 0 | J76: 0 | K76: 0 | L76: 0 | M76: 0 | N76: 0 | AM76: 4
A77: 01200034 | B77: 52 | C77: 29 | D77: 23 | E77: 16 | F77: 14 | G77: 6 | H77: 2 | I77: 7 | J77: 4 | K77: 0 | L77: 2 | M77: 0 | N77: 1 | AM77: 52
A78: 01200035 | B78: 12 | C78: 8 | D78: 4 | E78: 2 | F78: 4 | G78: 6 | AM78: 12
A79: 02010101 | B79: 23908 | C79: 10830 | D79: 13042 | E79: 325 | F79: 5363 | G79: 522 | H79: 4908 | I79: 536 | J79: 136 | K79: 78 | L79: 174 | M79: 145 | N79: 126 | O79: 361 | P79: 326 | Q79: 424 | R79: 1598 | S79: 2439 | T79: 668 | U79: 243 | V79: 276 | W79: 270 | X79: 303 | Y79: 288 | Z79: 437 | AA79: 512 | AB79: 528 | AC79: 634 | AD79: 646 | AE79: 565 | AF79: 510 | AG79: 567 | AH79: 22072 | AI79: 2640 | AJ79: 49 | AK79: 285
A80: 02010103 | B80: 26010 | C80: 4402 | D80: 21259 | E80: 4372 | S80: 3117 | T80: 4691 | U80: 2146 | V80: 2619 | W80: 2278 | X80: 1815 | Y80: 1488 | Z80: 1308 | AA80: 948 | AB80: 523 | AC80: 383 | AD80: 188 | AE80: 85 | AF80: 23 | AG80: 26 | AH80: 23948 | AI80: 1806 | AK80: 329
A81: 02010105 | B81: 645 | C81: 321 | D81: 321 | M81: 88 | N81: 17 | O81: 244 | P81: 151 | Q81: 108 | R81: 37 | AH81: 637 | AJ81: 58 | AK81: 7
A82: 02010201 | B82: 115747 | C82: 55597 | D82: 59899 | E82: 56 | F82: 225 | G82: 5795 | H82: 294 | I82: 5553 | J82: 426 | K82: 5577 | L82: 7133 | M82: 6974 | N82: 7244 | O82: 13766 | P82: 6469 | Q82: 6721 | R82: 17906 | S82: 6244 | T82: 3965 | U82: 633 | V82: 663 | W82: 613 | X82: 615 | Y82: 750 | Z82: 966 | AA82: 1116 | AB82: 1215 | AC82: 1296 | AD82: 3431 | AE82: 3458 | AF82: 2992 | AG82: 3651 | AH82: 110315 | AI82: 4748 | AJ82: 4289 | AK82: 1034
A83: 02010320 | B83: 14877 | C83: 7334 | D83: 7543 | E83: 46 | F83: 44 | G83: 2765 | H83: 2511 | I83: 366 | J83: 395 | K83: 2480 | L83: 2670 | M83: 1590 | N83: 1838 | O83: 87 | P83: 85 | Q83: 58
A84: 02010321 | B84: 1084 | C84: 705 | D84: 379 | E84: 5 | F84: 5 | G84: 103 | H84: 87 | I84: 26 | J84: 19 | K84: 311 | L84: 180 | M84: 254 | N84: 88 | O84: 6 | P84: 0 | Q84: 3
A85: 02010322 | B85: 232 | C85: 145 | D85: 87 | E85: 1 | F85: 0 | G85: 8 | H85: 10 | I85: 8 | J85: 4 | K85: 59 | L85: 50 | M85: 68 | N85: 22 | O85: 1 | P85: 1 | Q85: 1
A86: 02010420 | B86: 569 | C86: 345 | D86: 224 | E86: 0 | F86: 0 | G86: 57 | H86: 41 | I86: 17 | J86: 15 | K86: 193 | L86: 136 | M86: 72 | N86: 31 | O86: 6 | P86: 1 | Q86: 1
A87: 02010421 | B87: 145 | C87: 108 | D87: 37 | E87: 2 | F87: 0 | G87: 7 | H87: 6 | I87: 8 | J87: 5 | K87: 32 | L87: 11 | M87: 57 | N87: 14 | O87: 2 | P87: 1 | Q87: 0
A88: 02010422 | B88: 62 | C88: 49 | D88: 13 | E88: 0 | F88: 0 | G88: 0 | H88: 0 | I88: 5 | J88: 2 | K88: 18 | L88: 8 | M88: 24 | N88: 3 | O88: 2 | P88: 0 | Q88: 0
A89: 02021707 | B89: 7448 | C89: 38 | D89: 18959 | E89: 452 | F89: 203 | G89: 1
A90: 02021730 | B90: 15422 | C90: 7828 | D90: 7594 | E90: 77 | F90: 75 | G90: 15 | H90: 13 | I90: 34 | J90: 30 | K90: 43 | L90: 41 | M90: 2641 | N90: 2455 | O90: 77 | P90: 57 | Q90: 16 | R90: 23 | S90: 63 | T90: 62 | U90: 2591 | V90: 2565 | W90: 2271 | X90: 2273
A91: 02021740 | B91: 18449 | C91: 9568 | D91: 8881 | E91: 64 | F91: 59 | G91: 3105 | H91: 2809 | I91: 472 | J91: 482 | K91: 3342 | L91: 3221 | M91: 2470 | N91: 2211 | O91: 115 | P91: 99 | Q91: 69
A92: 02021760 | B92: 4503 | C92: 2305 | D92: 2198 | E92: 1872 | F92: 1806 | G92: 433 | H92: 392
A93: 02021790 | B93: 1002 | C93: 603 | D93: 399 | E93: 60 | F93: 50 | G93: 110 | H93: 91 | I93: 35 | J93: 17 | K93: 145 | L93: 104 | M93: 245 | N93: 130 | O93: 8 | P93: 7
A94: 02021810 | B94: 1036 | C94: 662 | D94: 374 | E94: 10 | F94: 9 | G94: 91 | H94: 86 | I94: 28 | J94: 19 | K94: 285 | L94: 169 | M94: 244 | N94: 91 | O94: 4 | P94: 0
A95: 02021820 | B95: 224 | C95: 146 | D95: 78 | E95: 1 | F95: 0 | G95: 8 | H95: 8 | I95: 9 | J95: 4 | K95: 61 | L95: 42 | M95: 64 | N95: 22 | O95: 3 | P95: 2
A96: 02021830 | B96: 6914 | C96: 1770 | D96: 1839
A97: 02200010 | B97: 19767 | C97: 8444 | D97: 11323 | E97: 53 | F97: 62 | G97: 1176 | H97: 1310 | I97: 1154 | J97: 1476 | K97: 1055 | L97: 1601 | M97: 1001 | N97: 1429 | O97: 799 | P97: 1248 | Q97: 851 | R97: 1176 | S97: 668 | T97: 985 | U97: 535 | V97: 683 | W97: 356 | X97: 454 | Y97: 307 | Z97: 414 | AA97: 231 | AB97: 260 | AC97: 156 | AD97: 135 | AE97: 102 | AF97: 90
A98: 02200020 | B98: 16800 | C98: 7609 | D98: 9191 | E98: 10 | F98: 5 | G98: 352 | H98: 203 | I98: 371 | J98: 261 | K98: 315 | L98: 323 | M98: 429 | N98: 376 | O98: 397 | P98: 500 | Q98: 481 | R98: 610 | S98: 548 | T98: 657 | U98: 516 | V98: 519 | W98: 467 | X98: 406 | Y98: 959 | Z98: 1351 | AA98: 1044 | AB98: 1352 | AC98: 819 | AD98: 1145 | AE98: 901 | AF98: 1483
A99: 02200030 | B99: 8322 | C99: 3281 | D99: 5041 | E99: 3 | F99: 4 | G99: 164 | H99: 219 | I99: 170 | J99: 270 | K99: 121 | L99: 309 | M99: 199 | N99: 344 | O99: 193 | P99: 339 | Q99: 236 | R99: 423 | S99: 275 | T99: 432 | U99: 232 | V99: 331 | W99: 177 | X99: 208 | Y99: 431 | Z99: 634 | AA99: 388 | AB99: 555 | AC99: 389 | AD99: 475 | AE99: 303 | AF99: 498
A100: 02200040 | B100: 8489 | C100: 3026 | D100: 5463 | E100: 5 | F100: 7 | G100: 80 | H100: 163 | I100: 221 | J100: 275 | K100: 209 | L100: 295 | M100: 262 | N100: 369 | O100: 297 | P100: 460 | Q100: 292 | R100: 608 | S100: 328 | T100: 643 | U100: 249 | V100: 543 | W100: 222 | X100: 352 | Y100: 209 | Z100: 530 | AA100: 245 | AB100: 463 | AC100: 229 | AD100: 374 | AE100: 178 | AF100: 381
A101: 03010501 | B101: 139810 | C101: 47892 | D101: 91918 | K101: 107 | L101: 198 | M101: 127 | N101: 385 | O101: 197 | P101: 641 | Q101: 390 | R101: 1076 | S101: 625 | T101: 1809 | U101: 1130 | V101: 3214 | W101: 1985 | X101: 5379 | Y101: 3496 | Z101: 9102 | AA101: 5120 | AB101: 11370 | AC101: 6398 | AD101: 12649 | AE101: 7259 | AF101: 12649 | AG101: 7210 | AH101: 11627 | AI101: 6628 | AJ101: 9979 | AK101: 7227 | AL101: 11854 | AM101: 137433
A102: 03010502 | B102: 59464 | C102: 21040 | D102: 38424 | K102: 21 | L102: 36 | M102: 53 | N102: 124 | O102: 123 | P102: 274 | Q102: 220 | R102: 501 | S102: 313 | T102: 741 | U102: 501 | V102: 1326 | W102: 802 | X102: 2155 | Y102: 1443 | Z102: 3703 | AA102: 2092 | AB102: 4526 | AC102: 2667 | AD102: 5008 | AE102: 3365 | AF102: 5721 | AG102: 3314 | AH102: 5035 | AI102: 3011 | AJ102: 4239 | AK102: 3115 | AL102: 5035 | AM102: 58591
A103: 03010504 | B103: 49844 | C103: 16109 | D103: 33735 | K103: 48 | L103: 85 | M103: 52 | N103: 148 | O103: 91 | P103: 275 | Q103: 141 | R103: 433 | S103: 233 | T103: 759 | U103: 454 | V103: 1413 | W103: 706 | X103: 2305 | Y103: 1224 | Z103: 3602 | AA103: 1642 | AB103: 4286 | AC103: 2134 | AD103: 4753 | AE103: 2445 | AF103: 4643 | AG103: 2457 | AH103: 4159 | AI103: 2210 | AJ103: 3211 | AK103: 2275 | AL103: 3666 | AM103: 49569
A104: 03010505 | B104: 4078 | C104: 1495 | D104: 2583 | K104: 6 | L104: 1 | M104: 6 | N104: 4 | O104: 29 | P104: 16 | Q104: 30 | R104: 51 | S104: 13 | T104: 25 | U104: 54 | V104: 98 | W104: 50 | X104: 156 | Y104: 100 | Z104: 349 | AA104: 156 | AB104: 232 | AC104: 183 | AD104: 266 | AE104: 217 | AF104: 342 | AG104: 229 | AH104: 322 | AI104: 163 | AJ104: 296 | AK104: 259 | AL104: 425 | AM104: 4044
A105: 03020101 | B105: 26139 | C105: 11157 | D105: 14982 | E105: 1051 | F105: 966 | G105: 3058 | H105: 3130 | I105: 2535 | J105: 2561 | K105: 1246 | L105: 1100 | M105: 562 | N105: 750 | O105: 239 | P105: 509 | Q105: 214 | R105: 603 | S105: 200 | T105: 539 | U105: 176 | V105: 497 | W105: 165 | X105: 554 | Y105: 179 | Z105: 548 | AA105: 238 | AB105: 604 | AC105: 231 | AD105: 614 | AE105: 197 | AF105: 559 | AG105: 235 | AH105: 473 | AI105: 223 | AJ105: 338 | AK105: 184 | AL105: 314 | AM105: 224 | AN105: 323 | AO105: 25313 | AP105: 156 | AQ105: 108 | AR105: 108 | AS105: 628
A106: 03020201 | B106: 2518 | C106: 1346 | D106: 1172 | E106: 388 | F106: 282 | G106: 691 | H106: 604 | I106: 267 | J106: 286 | AO106: 2336 | AP106: 34 | AQ106: 7 | AR106: 10 | AS106: 331
A107: 03020301 | B107: 2595 | C107: 1028 | D107: 1567 | E107: 68 | F107: 41 | G107: 137 | H107: 155 | I107: 85 | J107: 82 | K107: 50 | L107: 30 | M107: 14 | N107: 29 | O107: 7 | P107: 19 | Q107: 10 | R107: 32 | S107: 15 | T107: 36 | U107: 4 | V107: 25 | W107: 22 | X107: 45 | Y107: 22 | Z107: 49 | AA107: 22 | AB107: 67 | AC107: 38 | AD107: 105 | AE107: 62 | AF107: 114 | AG107: 74 | AH107: 144 | AI107: 69 | AJ107: 132 | AK107: 125 | AL107: 169 | AM107: 204 | AN107: 292 | AO107: 2527 | AP107: 17 | AQ107: 6 | AR107: 3 | AS107: 101
A108: 03020401 | B108: 9255 | C108: 3680 | D108: 5575 | E108: 231 | F108: 208 | G108: 718 | H108: 731 | I108: 623 | J108: 587 | K108: 333 | L108: 257 | M108: 147 | N108: 218 | O108: 82 | P108: 179 | Q108: 80 | R108: 232 | S108: 87 | T108: 254 | U108: 86 | V108: 241 | W108: 70 | X108: 232 | Y108: 84 | Z108: 268 | AA108: 116 | AB108: 305 | AC108: 123 | AD108: 370 | AE108: 145 | AF108: 364 | AG108: 181 | AH108: 341 | AI108: 179 | AJ108: 295 | AK108: 149 | AL108: 235 | AM108: 246 | AN108: 258 | AO108: 8908 | AP108: 41 | AQ108: 33 | AR108: 32 | AS108: 67
A109: 03020402 | B109: 2253 | C109: 758 | D109: 1495 | I109: 215 | J109: 148 | K109: 115 | L109: 109 | M109: 56 | N109: 93 | O109: 35 | P109: 75 | Q109: 28 | R109: 73 | S109: 23 | T109: 63 | U109: 26 | V109: 66 | W109: 24 | X109: 64 | Y109: 17 | Z109: 85 | AA109: 27 | AB109: 86 | AC109: 37 | AD109: 130 | AE109: 28 | AF109: 109 | AG109: 37 | AH109: 142 | AI109: 42 | AJ109: 90 | AK109: 23 | AL109: 78 | AM109: 25 | AN109: 84 | AO109: 2199 | AP109: 2 | AQ109: 11 | AR109: 3 | AS109: 27
A110: 03020403 | B110: 1247 | C110: 581 | D110: 666 | U110: 3 | V110: 8 | W110: 11 | X110: 23 | Y110: 13 | Z110: 25 | AA110: 14 | AB110: 40 | AC110: 52 | AD110: 72 | AE110: 53 | AF110: 95 | AG110: 79 | AH110: 94 | AI110: 105 | AJ110: 72 | AK110: 105 | AL110: 105 | AM110: 146 | AN110: 132 | AO110: 1241 | AP110: 8 | AQ110: 2 | AR110: 0 | AS110: 29
A111: 03020501 | B111: 419119 | C111: 153512 | D111: 265672 | E111: 5093 | F111: 4846 | G111: 12123 | H111: 11968 | I111: 13593 | J111: 13418 | K111: 10396 | L111: 9938 | M111: 8535 | N111: 12949 | O111: 6088 | P111: 11460 | Q111: 5644 | R111: 12749 | S111: 5563 | T111: 13441 | U111: 5412 | V111: 14368 | W111: 6057 | X111: 15605 | Y111: 6948 | Z111: 18283 | AA111: 9032 | AB111: 22093 | AC111: 9934 | AD111: 21572 | AE111: 10282 | AF111: 20111 | AG111: 10705 | AH111: 18915 | AI111: 9759 | AJ111: 15800 | AK111: 8656 | AL111: 13189 | AM111: 9692 | AN111: 15050 | AO111: 409814 | AP111: 2171 | AQ111: 3464 | AR111: 1144 | AS111: 728
A112: 03020604 | B112: 36271 | C112: 13742 | D112: 22532 | E112: 4286 | F112: 3962 | G112: 3975 | H112: 3926 | I112: 1267 | J112: 1357 | K112: 584 | L112: 695 | M112: 271 | N112: 1180 | O112: 102 | P112: 1536 | Q112: 128 | R112: 1765 | S112: 104 | T112: 1342 | U112: 110 | V112: 1011 | W112: 120 | X112: 590 | Y112: 165 | Z112: 546 | AA112: 262 | AB112: 705 | AC112: 285 | AD112: 676 | AE112: 318 | AF112: 642 | AG112: 430 | AH112: 683 | AI112: 482 | AJ112: 657 | AK112: 389 | AL112: 516 | AM112: 464 | AN112: 743 | AO112: 34867 | AP112: 283 | AQ112: 194 | AR112: 19 | AS112: 210
A113: 03020702 | B113: 32669 | C113: 14330 | D113: 18339 | E113: 435 | F113: 378 | G113: 757 | H113: 707 | I113: 493 | J113: 542 | K113: 192 | L113: 220 | M113: 272 | N113: 369 | O113: 173 | P113: 358 | Q113: 188 | R113: 466 | S113: 219 | T113: 560 | U113: 324 | V113: 703 | W113: 395 | X113: 853 | Y113: 477 | Z113: 993 | AA113: 887 | AB113: 1445 | AC113: 1065 | AD113: 1578 | AE113: 1729 | AF113: 1998 | AG113: 1915 | AH113: 2293 | AI113: 1721 | AJ113: 1568 | AK113: 1674 | AL113: 1516 | AM113: 1414 | AN113: 1792 | AO113: 31772 | AP113: 560 | AQ113: 305 | AR113: 0 | AS113: 87
A114: 03020806 | B114: 71460 | C114: 23561 | D114: 47899 | E114: 1702 | F114: 1720 | G114: 1230 | H114: 1116 | I114: 1214 | J114: 1085 | K114: 982 | L114: 1204 | M114: 994 | N114: 2441 | O114: 1108 | P114: 4506 | Q114: 1505 | R114: 5294 | S114: 1411 | T114: 4669 | U114: 1326 | V114: 3788 | W114: 1267 | X114: 3095 | Y114: 1525 | Z114: 3165 | AA114: 1746 | AB114: 3444 | AC114: 1590 | AD114: 3076 | AE114: 1657 | AF114: 2531 | AG114: 1165 | AH114: 1985 | AI114: 1007 | AJ114: 1402 | AK114: 889 | AL114: 1214 | AM114: 1243 | AN114: 2164 | AO114: 64745 | AP114: 584 | AQ114: 1668 | AR114: 151 | AS114: 921
A115: 03020908 | B115: 15846 | C115: 5496 | D115: 10350 | E115: 84 | F115: 55 | G115: 540 | H115: 434 | I115: 1101 | J115: 834 | K115: 891 | L115: 884 | M115: 593 | N115: 981 | O115: 235 | P115: 716 | Q115: 221 | R115: 792 | S115: 205 | T115: 757 | U115: 219 | V115: 655 | W115: 145 | X115: 567 | Y115: 158 | Z115: 624 | AA115: 200 | AB115: 632 | AC115: 176 | AD115: 534 | AE115: 140 | AF115: 446 | AG115: 156 | AH115: 521 | AI115: 126 | AJ115: 324 | AK115: 109 | AL115: 261 | AM115: 197 | AN115: 333 | AO115: 14792 | AP115: 38 | AQ115: 29 | AR115: 122 | AS115: 370
A116: 03021106 | B116: 6768 | C116: 2843 | D116: 3925 | E116: 15 | F116: 11 | G116: 10 | H116: 29 | I116: 33 | J116: 43 | K116: 55 | L116: 83 | M116: 62 | N116: 153 | O116: 114 | P116: 246 | Q116: 193 | R116: 346 | S116: 287 | T116: 433 | U116: 381 | V116: 504 | W116: 442 | X116: 546 | Y116: 425 | Z116: 492 | AA116: 339 | AB116: 391 | AC116: 251 | AD116: 282 | AE116: 236 | AF116: 363
A117: 03021107 | B117: 3476 | C117: 1524 | D117: 1952 | E117: 7 | F117: 3 | G117: 6 | H117: 15 | I117: 10 | J117: 30 | K117: 28 | L117: 55 | M117: 41 | N117: 95 | O117: 69 | P117: 131 | Q117: 119 | R117: 176 | S117: 176 | T117: 251 | U117: 242 | V117: 284 | W117: 238 | X117: 261 | Y117: 216 | Z117: 247 | AA117: 182 | AB117: 184 | AC117: 101 | AD117: 106 | AE117: 89 | AF117: 114
A118: 03021108 | B118: 3680 | C118: 1437 | D118: 2243 | E118: 15 | F118: 15 | G118: 14 | H118: 17 | I118: 25 | J118: 50 | K118: 41 | L118: 52 | M118: 63 | N118: 112 | O118: 109 | P118: 173 | Q118: 125 | R118: 215 | S118: 172 | T118: 308 | U118: 175 | V118: 356 | W118: 211 | X118: 284 | Y118: 183 | Z118: 259 | AA118: 134 | AB118: 181 | AC118: 99 | AD118: 115 | AE118: 71 | AF118: 106
A119: 03030101 | B119: 1760 | C119: 820 | D119: 940
A120: 03030102 | B120: 73403 | C120: 28434 | D120: 44969
A121: 03030103 | B121: 4229 | C121: 324 | D121: 3905
A122: 03030104 | B122: 5130 | C122: 1965 | D122: 3165
A123: 03030110 | B123: 16704 | C123: 6848 | D123: 9856
A124: 03030120 | B124: 39204 | C124: 15765 | D124: 23439 | E124: 91 | F124: 151 | G124: 1146 | H124: 1516 | I124: 1352 | J124: 1970 | K124: 1333 | L124: 2064 | M124: 1297 | N124: 1942 | O124: 1177 | P124: 1950 | Q124: 1278 | R124: 2163 | S124: 1187 | T124: 1885 | U124: 1034 | V124: 1334 | W124: 762 | X124: 904 | Y124: 1378 | Z124: 2143 | AA124: 1413 | AB124: 1970 | AC124: 1172 | AD124: 1613 | AE124: 1145 | AF124: 1834
A125: 03030130 | B125: 30461 | C125: 9177 | D125: 21284 | E125: 71 | F125: 100 | G125: 625 | H125: 1353 | I125: 699 | J125: 1832 | K125: 805 | L125: 1942 | M125: 895 | N125: 1757 | O125: 765 | P125: 1785 | Q125: 713 | R125: 1844 | S125: 722 | T125: 1633 | U125: 597 | V125: 1111 | W125: 464 | X125: 762 | Y125: 911 | Z125: 2454 | AA125: 811 | AB125: 1968 | AC125: 592 | AD125: 1420 | AE125: 507 | AF125: 1323
A126: 03030140 | B126: 32405 | C126: 9134 | D126: 23271 | E126: 204 | F126: 168 | G126: 194 | H126: 158 | I126: 194 | J126: 206 | K126: 201 | L126: 353 | M126: 169 | N126: 486 | O126: 160 | P126: 657 | Q126: 191 | R126: 805 | S126: 207 | T126: 996 | U126: 262 | V126: 1324 | W126: 305 | X126: 1584 | Y126: 541 | Z126: 2265 | AA126: 812 | AB126: 2754 | AC126: 978 | AD126: 2742 | AE126: 1187 | AF126: 2601 | AG126: 1114 | AH126: 2265 | AI126: 1081 | AJ126: 1812 | AK126: 1334 | AL126: 2095 | AM126: 31398
A127: 03030150 | B127: 3506 | C127: 1321 | D127: 2185 | E127: 8 | F127: 15 | G127: 5 | H127: 14 | I127: 8 | J127: 7 | K127: 26 | L127: 16 | M127: 6 | N127: 28 | O127: 14 | P127: 35 | Q127: 9 | R127: 50 | S127: 16 | T127: 56 | U127: 18 | V127: 87 | W127: 50 | X127: 115 | Y127: 57 | Z127: 140 | AA127: 78 | AB127: 197 | AC127: 89 | AD127: 253 | AE127: 246 | AF127: 394 | AG127: 180 | AH127: 282 | AI127: 309 | AJ127: 201 | AK127: 202 | AL127: 295 | AM127: 3425
A128: 03030160 | B128: 4297 | C128: 1204 | D128: 3093 | E128: 371 | F128: 354 | G128: 61 | H128: 75 | I128: 69 | J128: 87 | K128: 52 | L128: 184 | M128: 35 | N128: 195 | O128: 19 | P128: 212 | Q128: 34 | R128: 229 | S128: 34 | T128: 208 | U128: 33 | V128: 210 | W128: 37 | X128: 214 | Y128: 57 | Z128: 233 | AA128: 71 | AB128: 223 | AC128: 68 | AD128: 195 | AE128: 87 | AF128: 156 | AG128: 51 | AH128: 135 | AI128: 64 | AJ128: 88 | AK128: 61 | AL128: 95 | AM128: 4084
A129: 03030170 | B129: 127 | C129: 7 | D129: 120 | E129: 2 | F129: 0 | G129: 0 | H129: 0 | I129: 0 | J129: 1 | K129: 0 | L129: 3 | M129: 0 | N129: 12 | O129: 0 | P129: 16 | Q129: 1 | R129: 15 | S129: 0 | T129: 11 | U129: 0 | V129: 12 | W129: 0 | X129: 12 | Y129: 1 | Z129: 10 | AA129: 0 | AB129: 7 | AC129: 0 | AD129: 7 | AE129: 1 | AF129: 9 | AG129: 1 | AH129: 4 | AI129: 0 | AJ129: 1 | AK129: 1 | AL129: 0 | AM129: 127
A130: 03030180 | B130: 1479 | C130: 736 | D130: 743 | E130: 8 | F130: 18 | G130: 2 | H130: 2 | I130: 10 | J130: 13 | K130: 13 | L130: 4 | M130: 4 | N130: 10 | O130: 15 | P130: 19 | Q130: 14 | R130: 39 | S130: 16 | T130: 28 | U130: 13 | V130: 77 | W130: 65 | X130: 33 | Y130: 17 | Z130: 63 | AA130: 30 | AB130: 82 | AC130: 22 | AD130: 62 | AE130: 31 | AF130: 21 | AG130: 84 | AH130: 36 | AI130: 115 | AJ130: 80 | AK130: 277 | AL130: 156 | AM130: 1479
A131: 03030190 | B131: 513 | C131: 285 | D131: 228 | E131: 6 | F131: 10 | G131: 7 | H131: 4 | I131: 9 | J131: 7 | K131: 7 | L131: 8 | M131: 13 | N131: 15 | O131: 12 | P131: 23 | Q131: 21 | R131: 20 | S131: 19 | T131: 10 | U131: 24 | V131: 21 | W131: 23 | X131: 5 | Y131: 15 | Z131: 21 | AA131: 26 | AB131: 10 | AC131: 30 | AD131: 39 | AE131: 14 | AF131: 8 | AG131: 22 | AH131: 4 | AI131: 14 | AJ131: 12 | AK131: 23 | AL131: 11 | AM131: 506
A132: 03030200 | B132: 195 | C132: 122 | D132: 73 | E132: 2 | F132: 0 | G132: 3 | H132: 6 | I132: 14 | J132: 20 | K132: 4 | L132: 3 | M132: 5 | N132: 5 | O132: 1 | P132: 4 | Q132: 10 | R132: 7 | S132: 8 | T132: 5 | U132: 8 | V132: 5 | W132: 13 | X132: 1 | Y132: 6 | Z132: 2 | AA132: 16 | AB132: 1 | AC132: 17 | AD132: 3 | AE132: 2 | AF132: 4 | AG132: 3 | AH132: 1 | AI132: 6 | AJ132: 2 | AK132: 4 | AL132: 4 | AM132: 190
A133: 03030250 | B133: 12512 | C133: 7965 | D133: 4547 | E133: 585 | F133: 547 | G133: 5529 | H133: 2754 | I133: 1231 | J133: 498 | K133: 159 | L133: 130 | M133: 59 | N133: 40 | O133: 12 | P133: 2 | Q133: 6 | R133: 15 | S133: 1 | T133: 18 | U133: 3 | V133: 40 | W133: 0 | X133: 19 | Y133: 10 | Z133: 17 | AA133: 20 | AB133: 36 | AC133: 38 | AD133: 64 | AE133: 62 | AF133: 69 | AG133: 42 | AH133: 54 | AI133: 57 | AJ133: 56 | AK133: 60 | AL133: 84 | AM133: 91 | AN133: 104 | AO133: 11920 | AP133: 4 | AQ133: 3 | AR133: 6 | AS133: 93
A134: 03030270 | B134: 196 | C134: 82 | D134: 114 | E134: 0 | F134: 0 | G134: 33 | H134: 16 | I134: 6 | J134: 0 | K134: 0 | L134: 0 | M134: 0 | N134: 0 | O134: 0 | P134: 0 | Q134: 0 | R134: 0 | S134: 0 | T134: 2 | U134: 0 | V134: 2 | W134: 3 | X134: 6 | Y134: 3 | Z134: 3 | AA134: 0 | AB134: 5 | AC134: 3 | AD134: 15 | AE134: 2 | AF134: 5 | AG134: 13 | AH134: 14 | AI134: 2 | AJ134: 7 | AK134: 5 | AL134: 14 | AM134: 12 | AN134: 25 | AO134: 191 | AP134: 0 | AQ134: 0 | AR134: 0 | AS134: 0
A135: 03030280 | B135: 93 | C135: 33 | D135: 60 | E135: 0 | F135: 1 | G135: 1 | H135: 5 | I135: 0 | J135: 0 | K135: 2 | L135: 0 | M135: 0 | N135: 0 | O135: 1 | P135: 4 | Q135: 0 | R135: 7 | S135: 5 | T135: 5 | U135: 0 | V135: 3 | W135: 8 | X135: 1 | Y135: 0 | Z135: 5 | AA135: 1 | AB135: 4 | AC135: 0 | AD135: 7 | AE135: 4 | AF135: 5 | AG135: 3 | AH135: 6 | AI135: 3 | AJ135: 3 | AK135: 2 | AL135: 3 | AM135: 3 | AN135: 1 | AO135: 74 | AP135: 0 | AQ135: 5 | AR135: 0 | AS135: 0
A136: 03030290 | B136: 66591
A137: 03030330 | B137: 35260 | C137: 14975 | D137: 20285 | E137: 170 | F137: 241 | G137: 1852 | H137: 1947 | I137: 1298 | J137: 1880 | K137: 956 | L137: 1537 | M137: 683 | N137: 1189 | O137: 607 | P137: 1064 | Q137: 548 | R137: 1011 | S137: 582 | T137: 858 | U137: 495 | V137: 724 | W137: 419 | X137: 512 | Y137: 1673 | Z137: 2218 | AA137: 1842 | AB137: 2282 | AC137: 1702 | AD137: 1989 | AE137: 2148 | AF137: 2833
A138: 03030340 | B138: 5384 | C138: 2169 | D138: 3215 | E138: 33 | F138: 23 | G138: 78 | H138: 133 | I138: 44 | J138: 82 | K138: 18 | L138: 59 | M138: 20 | N138: 48 | O138: 19 | P138: 44 | Q138: 19 | R138: 53 | S138: 25 | T138: 28 | U138: 13 | V138: 33 | W138: 21 | X138: 34 | Y138: 302 | Z138: 418 | AA138: 389 | AB138: 474 | AC138: 420 | AD138: 546 | AE138: 768 | AF138: 1240
A139: 03030350 | B139: 9016 | C139: 3728 | D139: 5288
A140: 03030360 | B140: 10880 | C140: 4559 | D140: 6321 | E140: 29 | F140: 25 | G140: 26 | H140: 62 | I140: 55 | J140: 102 | K140: 108 | L140: 172 | M140: 137 | N140: 308 | O140: 245 | P140: 460 | Q140: 368 | R140: 633 | S140: 494 | T140: 775 | U140: 639 | V140: 863 | W140: 685 | X140: 824 | Y140: 640 | Z140: 763 | AA140: 489 | AB140: 554 | AC140: 336 | AD140: 378 | AE140: 308 | AF140: 402
A141: 03040210 | B141: 719 | D141: 772 | L141: 9 | N141: 87 | P141: 184 | R141: 192 | T141: 143 | V141: 91 | X141: 27 | Z141: 10 | AB141: 5 | AD141: 13 | AF141: 11 | AO141: 754 | AP141: 0 | AQ141: 4 | AR141: 0 | AS141: 0
A142: 03040220 | B142: 1428 | D142: 1541 | F142: 0 | H142: 2 | J142: 11 | L142: 30 | N142: 141 | P142: 211 | R142: 211 | T142: 179 | V142: 154 | X142: 168 | Z142: 144 | AB142: 99 | AD142: 69 | AF142: 42 | AH142: 20 | AJ142: 21 | AL142: 23 | AN142: 16 | AO142: 1484 | AP142: 0 | AQ142: 7 | AR142: 0 | AS142: 0
A143: 03050400 | B143: 7597 | C143: 3379 | D143: 4218 | E143: 1881 | F143: 2303 | G143: 1498 | H143: 1915
A144: 03050500 | B144: 833 | C144: 478 | D144: 355 | E144: 237 | F144: 207 | G144: 241 | H144: 148
A145: 03050600 | B145: 4331 | C145: 1782 | D145: 2549 | E145: 1195 | F145: 1539 | G145: 587 | H145: 1010
A146: 03050700 | B146: 2889 | C146: 1374 | D146: 1515 | E146: 1086 | F146: 896 | G146: 288 | H146: 619
A147: 03050710 | B147: 377 | C147: 189 | D147: 188 | E147: 152 | F147: 120 | G147: 37 | H147: 68
A148: 03051000A | B148: 6 | C148: 5 | D148: 1 | E148: 0 | F148: 0 | G148: 0 | H148: 0 | I148: 0 | J148: 0 | K148: 0 | L148: 0 | M148: 1 | N148: 0 | O148: 0 | P148: 0 | Q148: 1 | R148: 0 | S148: 2 | T148: 1 | U148: 0 | V148: 0 | W148: 1 | X148: 0 | Y148: 0 | Z148: 0
A149: 03051100 | B149: 179 | C149: 96 | D149: 83 | E149: 1 | F149: 0 | G149: 0 | H149: 0 | I149: 1 | J149: 0 | K149: 2 | L149: 0 | M149: 2 | N149: 1 | O149: 1 | P149: 1 | Q149: 3 | R149: 7 | S149: 60 | T149: 59 | U149: 9 | V149: 7 | W149: 14 | X149: 6 | Y149: 3 | Z149: 2
A150: 03051200 | B150: 166 | C150: 77 | D150: 89 | E150: 0 | F150: 0 | G150: 0 | H150: 0 | I150: 0 | J150: 0 | K150: 0 | L150: 0 | M150: 0 | N150: 0 | O150: 0 | P150: 1 | Q150: 1 | R150: 1 | S150: 45 | T150: 58 | U150: 10 | V150: 2 | W150: 19 | X150: 23 | Y150: 2 | Z150: 4
A151: 03051300 | B151: 130 | C151: 60 | D151: 70 | E151: 0 | F151: 0 | G151: 1 | H151: 0 | I151: 0 | J151: 0 | K151: 0 | L151: 1 | M151: 0 | N151: 0 | O151: 1 | P151: 1 | Q151: 1 | R151: 0 | S151: 34 | T151: 34 | U151: 7 | V151: 8 | W151: 8 | X151: 11 | Y151: 8 | Z151: 15
A152: 03051400 | B152: 19 | C152: 8 | D152: 11 | E152: 0 | F152: 0 | G152: 0 | H152: 0 | I152: 3 | J152: 1 | K152: 1 | L152: 0 | M152: 0 | N152: 0 | O152: 0 | P152: 0 | Q152: 0 | R152: 0 | S152: 2 | T152: 3 | U152: 1 | V152: 1 | W152: 1 | X152: 2 | Y152: 0 | Z152: 4
A153: 03051500 | B153: 1 | C153: 0 | D153: 1 | T153: 1
A154: 03051600 | B154: 21 | C154: 10 | D154: 11 | E154: 0 | F154: 0 | G154: 0 | H154: 0 | I154: 0 | J154: 0 | K154: 0 | L154: 0 | M154: 0 | N154: 0 | O154: 0 | P154: 0 | Q154: 1 | R154: 0 | S154: 8 | T154: 10 | U154: 1 | V154: 0 | W154: 0 | X154: 1 | Y154: 0 | Z154: 0
A155: 03051700 | B155: 21 | C155: 14 | D155: 7 | E155: 0 | F155: 0 | G155: 0 | H155: 0 | I155: 0 | J155: 0 | K155: 1 | L155: 0 | M155: 0 | N155: 0 | O155: 0 | P155: 1 | Q155: 0 | R155: 0 | S155: 7 | T155: 5 | U155: 2 | V155: 1 | W155: 3 | X155: 0 | Y155: 1 | Z155: 0
A156: 03051800 | B156: 16 | C156: 9 | D156: 7 | O156: 1 | P156: 1 | S156: 2 | T156: 6 | U156: 2 | W156: 3 | Y156: 1
A157: 03052100 | B157: 15 | C157: 7 | D157: 8 | O157: 1 | Q157: 1 | R157: 1 | T157: 6 | U157: 1 | V157: 1 | W157: 4
A158: 03052200 | B158: 12 | C158: 8 | D158: 4 | E158: 0 | F158: 0 | G158: 0 | H158: 0 | I158: 0 | J158: 0 | K158: 0 | L158: 0 | M158: 1 | N158: 0 | O158: 0 | P158: 0 | Q158: 0 | R158: 0 | S158: 5 | T158: 3 | U158: 1 | V158: 1 | W158: 1 | X158: 0 | Y158: 0 | Z158: 0
A159: 03052300 | B159: 11 | C159: 6 | D159: 5 | I159: 1 | L159: 1 | O159: 1 | S159: 2 | T159: 3 | U159: 1 | V159: 1 | Y159: 1
A160: 03052500 | B160: 2 | C160: 2 | D160: 0 | E160: 0 | F160: 0 | G160: 0 | H160: 0 | I160: 0 | J160: 0 | K160: 0 | L160: 0 | M160: 0 | N160: 0 | O160: 1 | P160: 0 | Q160: 0 | R160: 0 | S160: 1 | T160: 0 | U160: 0 | V160: 0 | W160: 0 | X160: 0 | Y160: 0 | Z160: 0
A161: 03052600 | B161: 22 | C161: 14 | D161: 8 | E161: 0 | F161: 0 | G161: 0 | H161: 0 | I161: 1 | J161: 0 | K161: 1 | L161: 0 | M161: 1 | N161: 1 | O161: 1 | P161: 0 | Q161: 2 | R161: 0 | S161: 7 | T161: 5 | U161: 0 | V161: 0 | W161: 0 | X161: 2 | Y161: 1 | Z161: 0
A162: 03052700 | B162: 29 | C162: 19 | D162: 10 | J162: 1 | K162: 2 | L162: 2 | M162: 1 | Q162: 2 | S162: 10 | T162: 6 | U162: 1 | W162: 2 | Y162: 1 | Z162: 1
A163: 03052800 | B163: 74 | C163: 34 | D163: 40 | E163: 0 | F163: 2 | G163: 0 | H163: 0 | I163: 4 | J163: 3 | K163: 3 | L163: 2 | M163: 3 | N163: 2 | O163: 2 | P163: 0 | Q163: 0 | R163: 0 | S163: 12 | T163: 12 | U163: 2 | V163: 0 | W163: 1 | X163: 2 | Y163: 7 | Z163: 17
A164: 03052900 | B164: 8 | C164: 3 | D164: 5 | K164: 1 | S164: 1 | W164: 1 | Z164: 5
A165: 03053100 | B165: 17 | C165: 9 | D165: 8 | E165: 1 | F165: 0 | G165: 0 | H165: 0 | I165: 0 | J165: 1 | K165: 0 | L165: 0 | M165: 0 | N165: 1 | O165: 2 | P165: 1 | Q165: 2 | R165: 2 | S165: 4 | T165: 3 | U165: 0 | V165: 0 | W165: 0 | X165: 0 | Y165: 0 | Z165: 0
A166: 03053200 | B166: 19 | C166: 11 | D166: 8 | E166: 0 | F166: 0 | G166: 0 | H166: 0 | I166: 0 | J166: 1 | K166: 0 | L166: 1 | M166: 0 | N166: 3 | O166: 3 | P166: 1 | Q166: 1 | R166: 0 | S166: 6 | T166: 2 | U166: 0 | V166: 0 | W166: 1 | X166: 0 | Y166: 0 | Z166: 0
A167: 03053300 | B167: 33 | C167: 17 | D167: 16 | E167: 1 | F167: 0 | G167: 0 | H167: 0 | I167: 2 | J167: 1 | K167: 3 | L167: 1 | M167: 3 | N167: 1 | O167: 2 | P167: 4 | Q167: 0 | R167: 2 | S167: 3 | T167: 4 | U167: 1 | V167: 0 | W167: 2 | X167: 3 | Y167: 0 | Z167: 0
A168: 03053400 | B168: 11 | C168: 5 | D168: 6 | I168: 1 | J168: 1 | K168: 2 | T168: 2 | U168: 1 | X168: 1 | Y168: 1 | Z168: 2
A169: 03053600 | B169: 11 | C169: 6 | D169: 5 | E169: 0 | F169: 0 | G169: 0 | H169: 0 | I169: 0 | J169: 0 | K169: 0 | L169: 0 | M169: 0 | N169: 0 | O169: 0 | P169: 0 | Q169: 0 | R169: 0 | S169: 5 | T169: 2 | U169: 1 | V169: 1 | W169: 0 | X169: 2 | Y169: 0 | Z169: 0
A170: 03053700 | B170: 37 | C170: 23 | D170: 14 | E170: 0 | F170: 0 | G170: 0 | H170: 0 | I170: 0 | J170: 0 | K170: 0 | L170: 1 | M170: 0 | N170: 1 | O170: 1 | P170: 0 | Q170: 1 | R170: 0 | S170: 14 | T170: 6 | U170: 2 | V170: 2 | W170: 4 | X170: 4 | Y170: 1 | Z170: 0
A171: 03053800 | B171: 156 | C171: 65 | D171: 91 | E171: 0 | F171: 0 | G171: 1 | H171: 0 | I171: 3 | J171: 4 | K171: 8 | L171: 5 | M171: 4 | N171: 0 | O171: 2 | P171: 1 | Q171: 3 | R171: 0 | S171: 25 | T171: 51 | U171: 4 | V171: 5 | W171: 7 | X171: 11 | Y171: 8 | Z171: 14
A172: 03053900 | B172: 39 | C172: 18 | D172: 21 | E172: 0 | F172: 1 | G172: 0 | H172: 0 | I172: 0 | J172: 0 | K172: 5 | L172: 0 | M172: 0 | N172: 0 | O172: 1 | P172: 2 | Q172: 0 | R172: 2 | S172: 5 | T172: 1 | U172: 1 | V172: 3 | W172: 2 | X172: 5 | Y172: 4 | Z172: 7
A173: 03500020 | B173: 14171 | C173: 7107 | D173: 7064 | E173: 57 | F173: 52 | G173: 15 | H173: 13 | I173: 34 | J173: 29 | K173: 41 | L173: 39 | M173: 2547 | N173: 2378 | O173: 76 | P173: 52 | Q173: 16 | R173: 21 | S173: 61 | T173: 55 | U173: 2393 | V173: 2408 | W173: 1867 | X173: 2017
A174: 03500030 | B174: 1299 | C174: 747 | D174: 552 | E174: 20 | F174: 23 | G174: 0 | H174: 0 | I174: 0 | J174: 1 | K174: 3 | L174: 2 | M174: 103 | N174: 82 | O174: 1 | P174: 6 | Q174: 0 | R174: 2 | S174: 3 | T174: 7 | U174: 205 | V174: 164 | W174: 412 | X174: 265
A175: 03500040 | B175: 3759 | C175: 1921 | D175: 1838 | E175: 1538 | F175: 1496 | G175: 383 | H175: 342
A176: 03500050 | B176: 691 | C176: 352 | D176: 339 | E176: 307 | F176: 293 | G176: 45 | H176: 46
A177: 03500060 | B177: 53 | C177: 32 | D177: 21 | E177: 27 | F177: 17 | G177: 5 | H177: 4
A178: 03500120 | B178: 488
A179: 03500130 | B179: 643
A180: 03500140 | B180: 454
A181: 03500150 | B181: 45
A182: 03500160 | B182: 6540 | D182: 624
A183: 03500170 | B183: 114 | D183: 8
A184: 03500200 | B184: 5224 | C184: 692
A185: 03500210 | B185: 4844 | C185: 710
A186: 03500290 | B186: 5552 | C186: 2786 | D186: 2766 | E186: 197 | F186: 160 | G186: 418 | H186: 319 | I186: 382 | J186: 384 | K186: 930 | L186: 1053 | M186: 641 | N186: 637 | O186: 218 | P186: 213
A187: 03500300 | B187: 1223 | C187: 679 | D187: 544 | E187: 49 | F187: 36 | G187: 303 | H187: 184 | I187: 65 | J187: 51 | K187: 144 | L187: 136 | M187: 101 | N187: 116 | O187: 17 | P187: 21
A188: 03500331 | B188: 65 | C188: 48 | D188: 17 | E188: 0 | F188: 1 | G188: 2 | H188: 4 | I188: 4 | J188: 0 | K188: 25 | L188: 8 | M188: 17 | N188: 4 | O188: 0 | P188: 0 | Q188: 0
A189: 03500332 | B189: 90 | C189: 72 | D189: 18 | E189: 0 | F189: 0 | G189: 5 | H189: 1 | I189: 6 | J189: 3 | K189: 36 | L189: 10 | M189: 24 | N189: 4 | O189: 1 | P189: 0 | Q189: 0
A190: 03500333 | B190: 1 | C190: 1 | D190: 0 | M190: 1
A191: 03500334 | B191: 15 | C191: 10 | D191: 5 | E191: 0 | F191: 0 | G191: 0 | H191: 0 | I191: 0 | J191: 0 | K191: 10 | L191: 5 | M191: 0 | N191: 0 | O191: 0 | P191: 0 | Q191: 0
A192: 03500335 | B192: 2 | C192: 2 | D192: 0 | K192: 2
A193: 03500336 | B193: 4 | C193: 2 | D193: 2 | E193: 0 | F193: 0 | G193: 0 | H193: 0 | I193: 0 | J193: 0 | K193: 0 | L193: 0 | M193: 1 | N193: 0 | O193: 0 | P193: 0 | Q193: 0 | R193: 0 | S193: 0 | T193: 2 | U193: 0 | V193: 0 | W193: 1 | X193: 0 | Y193: 0 | Z193: 0
A194: 03500337 | B194: 101 | C194: 54 | D194: 47 | E194: 2 | F194: 0 | G194: 0 | H194: 0 | I194: 1 | J194: 1 | K194: 1 | L194: 0 | M194: 0 | N194: 2 | O194: 3 | P194: 0 | Q194: 2 | R194: 6 | S194: 33 | T194: 32 | U194: 3 | V194: 0 | W194: 8 | X194: 4 | Y194: 1 | Z194: 2
A195: 03500338 | B195: 142 | C195: 74 | D195: 68 | E195: 0 | F195: 0 | G195: 0 | H195: 0 | I195: 0 | J195: 2 | K195: 0 | L195: 2 | M195: 0 | N195: 0 | O195: 4 | P195: 2 | Q195: 2 | R195: 0 | S195: 39 | T195: 44 | U195: 10 | V195: 3 | W195: 17 | X195: 12 | Y195: 2 | Z195: 3
A196: 03500339 | B196: 219 | C196: 92 | D196: 127 | E196: 0 | F196: 0 | G196: 0 | H196: 0 | I196: 5 | J196: 5 | K196: 5 | L196: 7 | M196: 3 | N196: 0 | O196: 4 | P196: 3 | Q196: 2 | R196: 2 | S196: 45 | T196: 51 | U196: 6 | V196: 10 | W196: 11 | X196: 15 | Y196: 11 | Z196: 34
A197: 03500340 | B197: 44 | C197: 17 | D197: 27 | E197: 0 | F197: 1 | G197: 0 | H197: 0 | I197: 0 | J197: 2 | K197: 5 | L197: 0 | M197: 0 | N197: 0 | O197: 0 | P197: 2 | Q197: 0 | R197: 1 | S197: 3 | T197: 3 | U197: 3 | V197: 2 | W197: 3 | X197: 4 | Y197: 3 | Z197: 12
A198: 03500341 | B198: 2 | C198: 2 | D198: 0 | E198: 0 | F198: 0 | G198: 0 | H198: 0 | I198: 0 | J198: 0 | K198: 0 | L198: 0 | M198: 0 | N198: 0 | O198: 0 | P198: 0 | Q198: 0 | R198: 0 | S198: 0 | T198: 0 | U198: 0 | V198: 0 | W198: 2 | X198: 0 | Y198: 0 | Z198: 0
A199: 03500342 | B199: 23 | C199: 16 | D199: 7 | E199: 1 | F199: 0 | G199: 0 | H199: 0 | I199: 1 | J199: 1 | K199: 0 | L199: 0 | M199: 0 | N199: 1 | O199: 0 | P199: 0 | Q199: 0 | R199: 0 | S199: 8 | T199: 4 | U199: 1 | V199: 0 | W199: 5 | X199: 1 | Y199: 0 | Z199: 0
A200: 03500343 | B200: 40 | C200: 19 | D200: 21 | E200: 0 | F200: 0 | G200: 0 | H200: 0 | I200: 0 | J200: 1 | K200: 0 | L200: 1 | M200: 0 | N200: 0 | O200: 0 | P200: 0 | Q200: 0 | R200: 0 | S200: 11 | T200: 13 | U200: 2 | V200: 1 | W200: 6 | X200: 4 | Y200: 0 | Z200: 1
A201: 03500344 | B201: 65 | C201: 24 | D201: 41 | E201: 0 | F201: 0 | G201: 0 | H201: 0 | I201: 2 | J201: 2 | K201: 0 | L201: 1 | M201: 1 | N201: 0 | O201: 1 | P201: 0 | Q201: 1 | R201: 0 | S201: 12 | T201: 17 | U201: 1 | V201: 2 | W201: 3 | X201: 9 | Y201: 3 | Z201: 10
... 1686 more rows

Sheet A01
B6: REM-A01. CONTROLES DE SALUD
B9: SECCIÓN A: CONTROLES DE SALUD SEXUAL Y REPRODUCTIVA
B10: TIPO DE CONTROL | C10: PROFESIONAL | D10: TOTAL | E10: POR EDAD | U10: SEXO | W10: Beneficiarios | X10: Control con pareja familiar u otro | Y10: Control de diada con presencia del padre | Z10: TIPOS DE LACTANCIA
E11: 5 - 9 | F11: 10 - 14 | G11: 15 a 19 | H11: 20 - 24 | I11: 25 - 29 | J11: 30 - 34 | K11: 35 - 39 | L11: 40 - 44 | M11: 45 - 49 | N11: 50 - 54 | O11: 55 - 59 | P11: 60 - 64 | Q11: 65 - 69 | R11: 70 - 74 | S11: 75 - 79 | T11: 80 y mas | U11: HOMBRES | V11: MUJERES | Z11: Lactancia Materna Exclusiva | AA11: Lactancia Materna / Formula Lactea | AB11: Formula Lactea
A12: 01010101 | B12: PRE- CONCEPCIONAL | C12: MÉDICO | D12: =IFERROR(VLOOKUP($A12,Filtro!$A$4:$AY$1887,2,FALSE),0) -> 22 | E12: =IFERROR(VLOOKUP($A12,Filtro!$A$4:$AY$1887,3,FALSE),0) -> 0 | F12: =IFERROR(VLOOKUP($A12,Filtro!$A$4:$AY$1887,4,FALSE),0) -> 0 | G12: =IFERROR(VLOOKUP($A12,Filtro!$A$4:$AY$1887,5,FALSE),0) -> 0 | H12: =IFERROR(VLOOKUP($A12,Filtro!$A$4:$AY$1887,6,FALSE),0) -> 3 | I12: =IFERROR(VLOOKUP($A12,Filtro!$A$4:$AY$1887,7,FALSE),0) -> 13 | J12: =IFERROR(VLOOKUP($A12,Filtro!$A$4:$AY$1887,8,FALSE),0) -> 1 | K12: =IFERROR(VLOOKUP($A12,Filtro!$A$4:$AY$1887,9,FALSE),0) -> 3 | L12: =IFERROR(VLOOKUP($A12,Filtro!$A$4:$AY$1887,10,FALSE),0) -> 2 | M12: =IFERROR(VLOOKUP($A12,Filtro!$A$4:$AY$1887,11,FALSE),0) -> 0 | N12: =IFERROR(VLOOKUP($A12,Filtro!$A$4:$AY$1887,12,FALSE),0) -> 0 | O12: =IFERROR(VLOOKUP($A12,Filtro!$A$4:$AY$1887,13,FALSE),0) -> 0 | P12: =IFERROR(VLOOKUP($A12,Filtro!$A$4:$AY$1887,14,FALSE),0) -> 0 | Q12: =IFERROR(VLOOKUP($A12,Filtro!$A$4:$AY$1887,15,FALSE),0) -> 0 | R12: =IFERROR(VLOOKUP($A12,Filtro!$A$4:$AY$1887,16,FALSE),0) -> 0 | S12: =IFERROR(VLOOKUP($A12,Filtro!$A$4:$AY$1887,17,FALSE),0) -> 0 | T12: =IFERROR(VLOOKUP($A12,Filtro!$A$4:$AY$1887,18,FALSE),0) -> 0 | U12: =IFERROR(VLOOKUP($A12,Filtro!$A$4:$AY$1887,19,FALSE),0) -> 0 | V12: =IFERROR(VLOOKUP($A12,Filtro!$A$4:$AY$1887,20,FALSE),0) -> 22 | W12: =IFERROR(VLOOKUP($A12,Filtro!$A$4:$AY$1887,21,FALSE),0) -> 22 | X12: =IFERROR(VLOOKUP($A12,Filtro!$A$4:$AY$1887,22,FALSE),0) -> 0 | Y12: =IFERROR(VLOOKUP($A12,Filtro!$A$4:$AY$1887,23,FALSE),0) -> 0 | Z12: =IFERROR(VLOOKUP($A12,Filtro!$A$4:$AY$1887,24,FALSE),0) -> 0 | AA12: =IFERROR(VLOOKUP($A12,Filtro!$A$4:$AY$1887,25,FALSE),0) -> 0 | AB12: =IFERROR(VLOOKUP($A12,Filtro!$A$4:$AY$1887,26,FALSE),0) -> 0 | CA12: * La suma de los sexos NO DEBE ser diferente al Total. | CL12: 1 | CM12: 0 | CN12: 0 | CQ12: 0 | CR12: 0
A13: 01010103 | C13: MATRONA /ÓN | D13: =IFERROR(VLOOKUP($A13,Filtro!$A$4:$AY$1887,2,FALSE),0) -> 1814 | E13: =IFERROR(VLOOKUP($A13,Filtro!$A$4:$AY$1887,3,FALSE),0) -> 0 | F13: =IFERROR(VLOOKUP($A13,Filtro!$A$4:$AY$1887,4,FALSE),0) -> 2 | G13: =IFERROR(VLOOKUP($A13,Filtro!$A$4:$AY$1887,5,FALSE),0) -> 87 | H13: =IFERROR(VLOOKUP($A13,Filtro!$A$4:$AY$1887,6,FALSE),0) -> 354 | I13: =IFERROR(VLOOKUP($A13,Filtro!$A$4:$AY$1887,7,FALSE),0) -> 508 | J13: =IFERROR(VLOOKUP($A13,Filtro!$A$4:$AY$1887,8,FALSE),0) -> 432 | K13: =IFERROR(VLOOKUP($A13,Filtro!$A$4:$AY$1887,9,FALSE),0) -> 279 | L13: =IFERROR(VLOOKUP($A13,Filtro!$A$4:$AY$1887,10,FALSE),0) -> 119 | M13: =IFERROR(VLOOKUP($A13,Filtro!$A$4:$AY$1887,11,FALSE),0) -> 32 | N13: =IFERROR(VLOOKUP($A13,Filtro!$A$4:$AY$1887,12,FALSE),0) -> 1 | O13: =IFERROR(VLOOKUP($A13,Filtro!$A$4:$AY$1887,13,FALSE),0) -> 0 | P13: =IFERROR(VLOOKUP($A13,Filtro!$A$4:$AY$1887,14,FALSE),0) -> 0 | Q13: =IFERROR(VLOOKUP($A13,Filtro!$A$4:$AY$1887,15,FALSE),0) -> 0 | R13: =IFERROR(VLOOKUP($A13,Filtro!$A$4:$AY$1887,16,FALSE),0) -> 0 | S13: =IFERROR(VLOOKUP($A13,Filtro!$A$4:$AY$1887,17,FALSE),0) -> 0 | T13: =IFERROR(VLOOKUP($A13,Filtro!$A$4:$AY$1887,18,FALSE),0) -> 0 | U13: =IFERROR(VLOOKUP($A13,Filtro!$A$4:$AY$1887,19,FALSE),0) -> 0 | V13: =IFERROR(VLOOKUP($A13,Filtro!$A$4:$AY$1887,20,FALSE),0) -> 1809 | W13: =IFERROR(VLOOKUP($A13,Filtro!$A$4:$AY$1887,21,FALSE),0) -> 1795 | X13: =IFERROR(VLOOKUP($A13,Filtro!$A$4:$AY$1887,22,FALSE),0) -> 0 | Y13: =IFERROR(VLOOKUP($A13,Filtro!$A$4:$AY$1887,23,FALSE),0) -> 0 | Z13: =IFERROR(VLOOKUP($A13,Filtro!$A$4:$AY$1887,24,FALSE),0) -> 0 | AA13: =IFERROR(VLOOKUP($A13,Filtro!$A$4:$AY$1887,25,FALSE),0) -> 0 | AB13: =IFERROR(VLOOKUP($A13,Filtro!$A$4:$AY$1887,26,FALSE),0) -> 0 | CA13: * La suma de los sexos NO DEBE ser diferente al Total. | CG13: * No olvide digitar el campo Beneficiarios (Digite CERO si no tiene). | CL13: 1 | CM13: 0 | CN13: 0 | CQ13: 1 | CR13: 0
A14: 01010201 | B14: PRENATAL | C14: MÉDICO | D14: =IFERROR(VLOOKUP($A14,Filtro!$A$4:$AY$1887,2,FALSE),0) -> 505 | E14: =IFERROR(VLOOKUP($A14,Filtro!$A$4:$AY$1887,3,FALSE),0) -> 0 | F14: =IFERROR(VLOOKUP($A14,Filtro!$A$4:$AY$1887,4,FALSE),0) -> 3 | G14: =IFERROR(VLOOKUP($A14,Filtro!$A$4:$AY$1887,5,FALSE),0) -> 66 | H14: =IFERROR(VLOOKUP($A14,Filtro!$A$4:$AY$1887,6,FALSE),0) -> 126 | I14: =IFERROR(VLOOKUP($A14,Filtro!$A$4:$AY$1887,7,FALSE),0) -> 141 | J14: =IFERROR(VLOOKUP($A14,Filtro!$A$4:$AY$1887,8,FALSE),0) -> 96 | K14: =IFERROR(VLOOKUP($A14,Filtro!$A$4:$AY$1887,9,FALSE),0) -> 56 | L14: =IFERROR(VLOOKUP($A14,Filtro!$A$4:$AY$1887,10,FALSE),0) -> 15 | M14: =IFERROR(VLOOKUP($A14,Filtro!$A$4:$AY$1887,11,FALSE),0) -> 1 | N14: =IFERROR(VLOOKUP($A14,Filtro!$A$4:$AY$1887,12,FALSE),0) -> 0 | O14: =IFERROR(VLOOKUP($A14,Filtro!$A$4:$AY$1887,13,FALSE),0) -> 1 | P14: =IFERROR(VLOOKUP($A14,Filtro!$A$4:$AY$1887,14,FALSE),0) -> 0 | Q14: =IFERROR(VLOOKUP($A14,Filtro!$A$4:$AY$1887,15,FALSE),0) -> 0 | R14: =IFERROR(VLOOKUP($A14,Filtro!$A$4:$AY$1887,16,FALSE),0) -> 0 | S14: =IFERROR(VLOOKUP($A14,Filtro!$A$4:$AY$1887,17,FALSE),0) -> 0 | T14: =IFERROR(VLOOKUP($A14,Filtro!$A$4:$AY$1887,18,FALSE),0) -> 0 | U14: =IFERROR(VLOOKUP($A14,Filtro!$A$4:$AY$1887,19,FALSE),0) -> 0 | V14: =IFERROR(VLOOKUP($A14,Filtro!$A$4:$AY$1887,20,FALSE),0) -> 505 | W14: =IFERROR(VLOOKUP($A14,Filtro!$A$4:$AY$1887,21,FALSE),0) -> 504 | X14: =IFERROR(VLOOKUP($A14,Filtro!$A$4:$AY$1887,22,FALSE),0) -> 211 | Y14: =IFERROR(VLOOKUP($A14,Filtro!$A$4:$AY$1887,23,FALSE),0) -> 0 | Z14: =IFERROR(VLOOKUP($A14,Filtro!$A$4:$AY$1887,24,FALSE),0) -> 0 | AA14: =IFERROR(VLOOKUP($A14,Filtro!$A$4:$AY$1887,25,FALSE),0) -> 0 | AB14: =IFERROR(VLOOKUP($A14,Filtro!$A$4:$AY$1887,26,FALSE),0) -> 0 | CA14: * La suma de los sexos NO DEBE ser diferente al Total. | CG14: * No olvide digitar el campo Beneficiarios (Digite CERO si no tiene). | CH14: * No olvide digitar el campo Control con pareja familiar u otro (Digite CERO si no tiene). | CL14: 1 | CM14: 0 | CN14: 0 | CO14: 0 | CQ14: 1 | CR14: 1 | CS14: 0
A15: 01010203 | C15: MATRONA /ÓN | D15: =IFERROR(VLOOKUP($A15,Filtro!$A$4:$AY$1887,2,FALSE),0) -> 44158 | E15: =IFERROR(VLOOKUP($A15,Filtro!$A$4:$AY$1887,3,FALSE),0) -> 0 | F15: =IFERROR(VLOOKUP($A15,Filtro!$A$4:$AY$1887,4,FALSE),0) -> 109 | G15: =IFERROR(VLOOKUP($A15,Filtro!$A$4:$AY$1887,5,FALSE),0) -> 4309 | H15: =IFERROR(VLOOKUP($A15,Filtro!$A$4:$AY$1887,6,FALSE),0) -> 10736 | I15: =IFERROR(VLOOKUP($A15,Filtro!$A$4:$AY$1887,7,FALSE),0) -> 12885 | J15: =IFERROR(VLOOKUP($A15,Filtro!$A$4:$AY$1887,8,FALSE),0) -> 9522 | K15: =IFERROR(VLOOKUP($A15,Filtro!$A$4:$AY$1887,9,FALSE),0) -> 5144 | L15: =IFERROR(VLOOKUP($A15,Filtro!$A$4:$AY$1887,10,FALSE),0) -> 1365 | M15: =IFERROR(VLOOKUP($A15,Filtro!$A$4:$AY$1887,11,FALSE),0) -> 84 | N15: =IFERROR(VLOOKUP($A15,Filtro!$A$4:$AY$1887,12,FALSE),0) -> 3 | O15: =IFERROR(VLOOKUP($A15,Filtro!$A$4:$AY$1887,13,FALSE),0) -> 1 | P15: =IFERROR(VLOOKUP($A15,Filtro!$A$4:$AY$1887,14,FALSE),0) -> 0 | Q15: =IFERROR(VLOOKUP($A15,Filtro!$A$4:$AY$1887,15,FALSE),0) -> 0 | R15: =IFERROR(VLOOKUP($A15,Filtro!$A$4:$AY$1887,16,FALSE),0) -> 0 | S15: =IFERROR(VLOOKUP($A15,Filtro!$A$4:$AY$1887,17,FALSE),0) -> 0 | T15: =IFERROR(VLOOKUP($A15,Filtro!$A$4:$AY$1887,18,FALSE),0) -> 0 | U15: =IFERROR(VLOOKUP($A15,Filtro!$A$4:$AY$1887,19,FALSE),0) -> 0 | V15: =IFERROR(VLOOKUP($A15,Filtro!$A$4:$AY$1887,20,FALSE),0) -> 44094 | W15: =IFERROR(VLOOKUP($A15,Filtro!$A$4:$AY$1887,21,FALSE),0) -> 43412 | X15: =IFERROR(VLOOKUP($A15,Filtro!$A$4:$AY$1887,22,FALSE),0) -> 14985 | Y15: =IFERROR(VLOOKUP($A15,Filtro!$A$4:$AY$1887,23,FALSE),0) -> 0 | Z15: =IFERROR(VLOOKUP($A15,Filtro!$A$4:$AY$1887,24,FALSE),0) -> 0 | AA15: =IFERROR(VLOOKUP($A15,Filtro!$A$4:$AY$1887,25,FALSE),0) -> 0 | AB15: =IFERROR(VLOOKUP($A15,Filtro!$A$4:$AY$1887,26,FALSE),0) -> 0 | CA15: * La suma de los sexos NO DEBE ser diferente al Total. | CG15: * No olvide digitar el campo Beneficiarios (Digite CERO si no tiene). | CH15: * No olvide digitar el campo Control con pareja familiar u otro (Digite CERO si no tiene). | CL15: 1 | CM15: 0 | CN15: 0 | CO15: 0 | CQ15: 1 | CR15: 1 | CS15: 0
A16: 01080001 | B16: POST PARTO Y POST ABORTO | C16: MÉDICO | D16: =IFERROR(VLOOKUP($A16,Filtro!$A$4:$AY$1887,2,FALSE),0) -> 17 | E16: =IFERROR(VLOOKUP($A16,Filtro!$A$4:$AY$1887,3,FALSE),0) -> 0 | F16: =IFERROR(VLOOKUP($A16,Filtro!$A$4:$AY$1887,4,FALSE),0) -> 0 | G16: =IFERROR(VLOOKUP($A16,Filtro!$A$4:$AY$1887,5,FALSE),0) -> 1 | H16: =IFERROR(VLOOKUP($A16,Filtro!$A$4:$AY$1887,6,FALSE),0) -> 7 | I16: =IFERROR(VLOOKUP($A16,Filtro!$A$4:$AY$1887,7,FALSE),0) -> 4 | J16: =IFERROR(VLOOKUP($A16,Filtro!$A$4:$AY$1887,8,FALSE),0) -> 4 | K16: =IFERROR(VLOOKUP($A16,Filtro!$A$4:$AY$1887,9,FALSE),0) -> 1 | L16: =IFERROR(VLOOKUP($A16,Filtro!$A$4:$AY$1887,10,FALSE),0) -> 0 | M16: =IFERROR(VLOOKUP($A16,Filtro!$A$4:$AY$1887,11,FALSE),0) -> 0 | N16: =IFERROR(VLOOKUP($A16,Filtro!$A$4:$AY$1887,12,FALSE),0) -> 0 | O16: =IFERROR(VLOOKUP($A16,Filtro!$A$4:$AY$1887,13,FALSE),0) -> 0 | P16: =IFERROR(VLOOKUP($A16,Filtro!$A$4:$AY$1887,14,FALSE),0) -> 0 | Q16: =IFERROR(VLOOKUP($A16,Filtro!$A$4:$AY$1887,15,FALSE),0) -> 0 | R16: =IFERROR(VLOOKUP($A16,Filtro!$A$4:$AY$1887,16,FALSE),0) -> 0 | S16: =IFERROR(VLOOKUP($A16,Filtro!$A$4:$AY$1887,17,FALSE),0) -> 0 | T16: =IFERROR(VLOOKUP($A16,Filtro!$A$4:$AY$1887,18,FALSE),0) -> 0 | U16: =IFERROR(VLOOKUP($A16,Filtro!$A$4:$AY$1887,19,FALSE),0) -> 0 | V16: =IFERROR(VLOOKUP($A16,Filtro!$A$4:$AY$1887,20,FALSE),0) -> 17 | W16: =IFERROR(VLOOKUP($A16,Filtro!$A$4:$AY$1887,21,FALSE),0) -> 17 | X16: =IFERROR(VLOOKUP($A16,Filtro!$A$4:$AY$1887,22,FALSE),0) -> 0 | Y16: =IFERROR(VLOOKUP($A16,Filtro!$A$4:$AY$1887,23,FALSE),0) -> 0 | Z16: =IFERROR(VLOOKUP($A16,Filtro!$A$4:$AY$1887,24,FALSE),0) -> 0 | AA16: =IFERROR(VLOOKUP($A16,Filtro!$A$4:$AY$1887,25,FALSE),0) -> 0 | AB16: =IFERROR(VLOOKUP($A16,Filtro!$A$4:$AY$1887,26,FALSE),0) -> 0 | CA16: * La suma de los sexos NO DEBE ser diferente al Total. | CG16: * No olvide digitar el campo Beneficiarios (Digite CERO si no tiene). | CL16: 1 | CM16: 0 | CN16: 0 | CQ16: 1 | CR16: 0
A17: 01080002 | C17: MATRONA /ÓN | D17: =IFERROR(VLOOKUP($A17,Filtro!$A$4:$AY$1887,2,FALSE),0) -> 1081 | E17: =IFERROR(VLOOKUP($A17,Filtro!$A$4:$AY$1887,3,FALSE),0) -> 0 | F17: =IFERROR(VLOOKUP($A17,Filtro!$A$4:$AY$1887,4,FALSE),0) -> 3 | G17: =IFERROR(VLOOKUP($A17,Filtro!$A$4:$AY$1887,5,FALSE),0) -> 89 | H17: =IFERROR(VLOOKUP($A17,Filtro!$A$4:$AY$1887,6,FALSE),0) -> 232 | I17: =IFERROR(VLOOKUP($A17,Filtro!$A$4:$AY$1887,7,FALSE),0) -> 307 | J17: =IFERROR(VLOOKUP($A17,Filtro!$A$4:$AY$1887,8,FALSE),0) -> 225 | K17: =IFERROR(VLOOKUP($A17,Filtro!$A$4:$AY$1887,9,FALSE),0) -> 156 | L17: =IFERROR(VLOOKUP($A17,Filtro!$A$4:$AY$1887,10,FALSE),0) -> 62 | M17: =IFERROR(VLOOKUP($A17,Filtro!$A$4:$AY$1887,11,FALSE),0) -> 5 | N17: =IFERROR(VLOOKUP($A17,Filtro!$A$4:$AY$1887,12,FALSE),0) -> 2 | O17: =IFERROR(VLOOKUP($A17,Filtro!$A$4:$AY$1887,13,FALSE),0) -> 0 | P17: =IFERROR(VLOOKUP($A17,Filtro!$A$4:$AY$1887,14,FALSE),0) -> 0 | Q17: =IFERROR(VLOOKUP($A17,Filtro!$A$4:$AY$1887,15,FALSE),0) -> 0 | R17: =IFERROR(VLOOKUP($A17,Filtro!$A$4:$AY$1887,16,FALSE),0) -> 0 | S17: =IFERROR(VLOOKUP($A17,Filtro!$A$4:$AY$1887,17,FALSE),0) -> 0 | T17: =IFERROR(VLOOKUP($A17,Filtro!$A$4:$AY$1887,18,FALSE),0) -> 0 | U17: =IFERROR(VLOOKUP($A17,Filtro!$A$4:$AY$1887,19,FALSE),0) -> 0 | V17: =IFERROR(VLOOKUP($A17,Filtro!$A$4:$AY$1887,20,FALSE),0) -> 1070 | W17: =IFERROR(VLOOKUP($A17,Filtro!$A$4:$AY$1887,21,FALSE),0) -> 1062 | X17: =IFERROR(VLOOKUP($A17,Filtro!$A$4:$AY$1887,22,FALSE),0) -> 0 | Y17: =IFERROR(VLOOKUP($A17,Filtro!$A$4:$AY$1887,23,FALSE),0) -> 0 | Z17: =IFERROR(VLOOKUP($A17,Filtro!$A$4:$AY$1887,24,FALSE),0) -> 0 | AA17: =IFERROR(VLOOKUP($A17,Filtro!$A$4:$AY$1887,25,FALSE),0) -> 0 | AB17: =IFERROR(VLOOKUP($A17,Filtro!$A$4:$AY$1887,26,FALSE),0) -> 0 | CA17: * La suma de los sexos NO DEBE ser diferente al Total. | CG17: * No olvide digitar el campo Beneficiarios (Digite CERO si no tiene). | CL17: 1 | CM17: 0 | CN17: 0 | CQ17: 1 | CR17: 0
A18: 01110106 | B18: PUÉRPERA CON RECIÉN NACIDO HASTA 10 DÍAS DE VIDA | C18: MÉDICO | D18: =IFERROR(VLOOKUP($A18,Filtro!$A$4:$AY$1887,2,FALSE),0) -> 35 | E18: =IFERROR(VLOOKUP($A18,Filtro!$A$4:$AY$1887,3,FALSE),0) -> 0 | F18: =IFERROR(VLOOKUP($A18,Filtro!$A$4:$AY$1887,4,FALSE),0) -> 0 | G18: =IFERROR(VLOOKUP($A18,Filtro!$A$4:$AY$1887,5,FALSE),0) -> 4 | H18: =IFERROR(VLOOKUP($A18,Filtro!$A$4:$AY$1887,6,FALSE),0) -> 10 | I18: =IFERROR(VLOOKUP($A18,Filtro!$A$4:$AY$1887,7,FALSE),0) -> 5 | J18: =IFERROR(VLOOKUP($A18,Filtro!$A$4:$AY$1887,8,FALSE),0) -> 7 | K18: =IFERROR(VLOOKUP($A18,Filtro!$A$4:$AY$1887,9,FALSE),0) -> 9 | L18: =IFERROR(VLOOKUP($A18,Filtro!$A$4:$AY$1887,10,FALSE),0) -> 0 | M18: =IFERROR(VLOOKUP($A18,Filtro!$A$4:$AY$1887,11,FALSE),0) -> 0 | N18: =IFERROR(VLOOKUP($A18,Filtro!$A$4:$AY$1887,12,FALSE),0) -> 0 | O18: =IFERROR(VLOOKUP($A18,Filtro!$A$4:$AY$1887,13,FALSE),0) -> 0 | P18: =IFERROR(VLOOKUP($A18,Filtro!$A$4:$AY$1887,14,FALSE),0) -> 0 | Q18: =IFERROR(VLOOKUP($A18,Filtro!$A$4:$AY$1887,15,FALSE),0) -> 0 | R18: =IFERROR(VLOOKUP($A18,Filtro!$A$4:$AY$1887,16,FALSE),0) -> 0 | S18: =IFERROR(VLOOKUP($A18,Filtro!$A$4:$AY$1887,17,FALSE),0) -> 0 | T18: =IFERROR(VLOOKUP($A18,Filtro!$A$4:$AY$1887,18,FALSE),0) -> 0 | U18: =IFERROR(VLOOKUP($A18,Filtro!$A$4:$AY$1887,19,FALSE),0) -> 0 | V18: =IFERROR(VLOOKUP($A18,Filtro!$A$4:$AY$1887,20,FALSE),0) -> 35 | W18: =IFERROR(VLOOKUP($A18,Filtro!$A$4:$AY$1887,21,FALSE),0) -> 35 | X18: =IFERROR(VLOOKUP($A18,Filtro!$A$4:$AY$1887,22,FALSE),0) -> 0 | Y18: =IFERROR(VLOOKUP($A18,Filtro!$A$4:$AY$1887,23,FALSE),0) -> 21 | Z18: =IFERROR(VLOOKUP($A18,Filtro!$A$4:$AY$1887,24,FALSE),0) -> 29 | AA18: =IFERROR(VLOOKUP($A18,Filtro!$A$4:$AY$1887,25,FALSE),0) -> 6 | AB18: =IFERROR(VLOOKUP($A18,Filtro!$A$4:$AY$1887,26,FALSE),0) -> 0 | CA18: * La suma de los sexos NO DEBE ser diferente al Total. | CF18: =IF(AND(C18<>0,#REF!=""),"* No olvide registrar ingresos a control de salud de los respectivos RN, en REM A05-sección E. ","") ->  | CG18: * No olvide digitar el campo Beneficiarios (Digite CERO si no tiene). | CI18: * No olvide digitar alguna de las lactancias (Materna exclusiva y/o Artificial) (Digite CERO si no tiene). | CJ18: * No olvide digitar Control de diada con presencia del padre (Digite CERO si no tiene). | CL18: 1 | CM18: 0 | CN18: 0 | CO18: 0 | CP18: 0 | CQ18: 1 | CR18: 0 | CS18: 1 | CT18: 1 | CU18: 0
A19: 01110107 | C19: MATRONA /ÓN | D19: =IFERROR(VLOOKUP($A19,Filtro!$A$4:$AY$1887,2,FALSE),0) -> 3908 | E19: =IFERROR(VLOOKUP($A19,Filtro!$A$4:$AY$1887,3,FALSE),0) -> 0 | F19: =IFERROR(VLOOKUP($A19,Filtro!$A$4:$AY$1887,4,FALSE),0) -> 10 | G19: =IFERROR(VLOOKUP($A19,Filtro!$A$4:$AY$1887,5,FALSE),0) -> 355 | H19: =IFERROR(VLOOKUP($A19,Filtro!$A$4:$AY$1887,6,FALSE),0) -> 902 | I19: =IFERROR(VLOOKUP($A19,Filtro!$A$4:$AY$1887,7,FALSE),0) -> 1148 | J19: =IFERROR(VLOOKUP($A19,Filtro!$A$4:$AY$1887,8,FALSE),0) -> 868 | K19: =IFERROR(VLOOKUP($A19,Filtro!$A$4:$AY$1887,9,FALSE),0) -> 484 | L19: =IFERROR(VLOOKUP($A19,Filtro!$A$4:$AY$1887,10,FALSE),0) -> 133 | M19: =IFERROR(VLOOKUP($A19,Filtro!$A$4:$AY$1887,11,FALSE),0) -> 8 | N19: =IFERROR(VLOOKUP($A19,Filtro!$A$4:$AY$1887,12,FALSE),0) -> 0 | O19: =IFERROR(VLOOKUP($A19,Filtro!$A$4:$AY$1887,13,FALSE),0) -> 0 | P19: =IFERROR(VLOOKUP($A19,Filtro!$A$4:$AY$1887,14,FALSE),0) -> 0 | Q19: =IFERROR(VLOOKUP($A19,Filtro!$A$4:$AY$1887,15,FALSE),0) -> 0 | R19: =IFERROR(VLOOKUP($A19,Filtro!$A$4:$AY$1887,16,FALSE),0) -> 0 | S19: =IFERROR(VLOOKUP($A19,Filtro!$A$4:$AY$1887,17,FALSE),0) -> 0 | T19: =IFERROR(VLOOKUP($A19,Filtro!$A$4:$AY$1887,18,FALSE),0) -> 0 | U19: =IFERROR(VLOOKUP($A19,Filtro!$A$4:$AY$1887,19,FALSE),0) -> 0 | V19: =IFERROR(VLOOKUP($A19,Filtro!$A$4:$AY$1887,20,FALSE),0) -> 3865 | W19: =IFERROR(VLOOKUP($A19,Filtro!$A$4:$AY$1887,21,FALSE),0) -> 3784 | X19: =IFERROR(VLOOKUP($A19,Filtro!$A$4:$AY$1887,22,FALSE),0) -> 0 | Y19: =IFERROR(VLOOKUP($A19,Filtro!$A$4:$AY$1887,23,FALSE),0) -> 2050 | Z19: =IFERROR(VLOOKUP($A19,Filtro!$A$4:$AY$1887,24,FALSE),0) -> 3299 | AA19: =IFERROR(VLOOKUP($A19,Filtro!$A$4:$AY$1887,25,FALSE),0) -> 285 | AB19: =IFERROR(VLOOKUP($A19,Filtro!$A$4:$AY$1887,26,FALSE),0) -> 30 | CA19: * La suma de los sexos NO DEBE ser diferente al Total. | CF19: =IF(AND(C19<>0,#REF!=""),"* No olvide registrar ingresos a control de salud de los respectivos RN, en REM A05-sección E. ","") ->  | CG19: * No olvide digitar el campo Beneficiarios (Digite CERO si no tiene). | CI19: * No olvide digitar alguna de las lactancias (Materna exclusiva y/o Artificial) (Digite CERO si no tiene). | CJ19: * No olvide digitar Control de diada con presencia del padre (Digite CERO si no tiene). | CL19: 1 | CM19: 0 | CN19: 0 | CO19: 0 | CP19: 0 | CQ19: 1 | CR19: 0 | CS19: 1 | CT19: 1 | CU19: 0
A20: 01080030 | B20: PUÉRPERA CON RECIÉN NACIDO ENTRE 11 y 28 DÍAS | C20: MÉDICO | D20: =IFERROR(VLOOKUP($A20,Filtro!$A$4:$AY$1887,2,FALSE),0) -> 11 | E20: =IFERROR(VLOOKUP($A20,Filtro!$A$4:$AY$1887,3,FALSE),0) -> 0 | F20: =IFERROR(VLOOKUP($A20,Filtro!$A$4:$AY$1887,4,FALSE),0) -> 0 | G20: =IFERROR(VLOOKUP($A20,Filtro!$A$4:$AY$1887,5,FALSE),0) -> 0 | H20: =IFERROR(VLOOKUP($A20,Filtro!$A$4:$AY$1887,6,FALSE),0) -> 3 | I20: =IFERROR(VLOOKUP($A20,Filtro!$A$4:$AY$1887,7,FALSE),0) -> 4 | J20: =IFERROR(VLOOKUP($A20,Filtro!$A$4:$AY$1887,8,FALSE),0) -> 2 | K20: =IFERROR(VLOOKUP($A20,Filtro!$A$4:$AY$1887,9,FALSE),0) -> 2 | L20: =IFERROR(VLOOKUP($A20,Filtro!$A$4:$AY$1887,10,FALSE),0) -> 0 | M20: =IFERROR(VLOOKUP($A20,Filtro!$A$4:$AY$1887,11,FALSE),0) -> 0 | N20: =IFERROR(VLOOKUP($A20,Filtro!$A$4:$AY$1887,12,FALSE),0) -> 0 | O20: =IFERROR(VLOOKUP($A20,Filtro!$A$4:$AY$1887,13,FALSE),0) -> 0 | P20: =IFERROR(VLOOKUP($A20,Filtro!$A$4:$AY$1887,14,FALSE),0) -> 0 | Q20: =IFERROR(VLOOKUP($A20,Filtro!$A$4:$AY$1887,15,FALSE),0) -> 0 | R20: =IFERROR(VLOOKUP($A20,Filtro!$A$4:$AY$1887,16,FALSE),0) -> 0 | S20: =IFERROR(VLOOKUP($A20,Filtro!$A$4:$AY$1887,17,FALSE),0) -> 0 | T20: =IFERROR(VLOOKUP($A20,Filtro!$A$4:$AY$1887,18,FALSE),0) -> 0 | U20: =IFERROR(VLOOKUP($A20,Filtro!$A$4:$AY$1887,19,FALSE),0) -> 0 | V20: =IFERROR(VLOOKUP($A20,Filtro!$A$4:$AY$1887,20,FALSE),0) -> 23 | W20: =IFERROR(VLOOKUP($A20,Filtro!$A$4:$AY$1887,21,FALSE),0) -> 23 | X20: =IFERROR(VLOOKUP($A20,Filtro!$A$4:$AY$1887,22,FALSE),0) -> 0 | Y20: =IFERROR(VLOOKUP($A20,Filtro!$A$4:$AY$1887,23,FALSE),0) -> 12 | Z20: =IFERROR(VLOOKUP($A20,Filtro!$A$4:$AY$1887,24,FALSE),0) -> 16 | AA20: =IFERROR(VLOOKUP($A20,Filtro!$A$4:$AY$1887,25,FALSE),0) -> 6 | AB20: =IFERROR(VLOOKUP($A20,Filtro!$A$4:$AY$1887,26,FALSE),0) -> 0 | CA20: * La suma de los sexos NO DEBE ser diferente al Total. | CF20: =IF(AND(C20<>0,#REF!=""),"* No olvide registrar ingresos a control de salud de los respectivos RN, en REM A05-sección E. ","") ->  | CG20: * No olvide digitar el campo Beneficiarios (Digite CERO si no tiene). | CI20: * No olvide digitar alguna de las lactancias (Materna exclusiva y/o Artificial) (Digite CERO si no tiene). | CJ20: * No olvide digitar Control de diada con presencia del padre (Digite CERO si no tiene). | CL20: 1 | CM20: 0 | CN20: 0 | CO20: 0 | CP20: 0 | CQ20: 1 | CR20: 0 | CS20: 1 | CT20: 1 | CU20: 0
A21: 01080040 | C21: MATRONA /ÓN | D21: =IFERROR(VLOOKUP($A21,Filtro!$A$4:$AY$1887,2,FALSE),0) -> 1719 | E21: =IFERROR(VLOOKUP($A21,Filtro!$A$4:$AY$1887,3,FALSE),0) -> 0 | F21: =IFERROR(VLOOKUP($A21,Filtro!$A$4:$AY$1887,4,FALSE),0) -> 3 | G21: =IFERROR(VLOOKUP($A21,Filtro!$A$4:$AY$1887,5,FALSE),0) -> 144 | H21: =IFERROR(VLOOKUP($A21,Filtro!$A$4:$AY$1887,6,FALSE),0) -> 402 | I21: =IFERROR(VLOOKUP($A21,Filtro!$A$4:$AY$1887,7,FALSE),0) -> 501 | J21: =IFERROR(VLOOKUP($A21,Filtro!$A$4:$AY$1887,8,FALSE),0) -> 383 | K21: =IFERROR(VLOOKUP($A21,Filtro!$A$4:$AY$1887,9,FALSE),0) -> 221 | L21: =IFERROR(VLOOKUP($A21,Filtro!$A$4:$AY$1887,10,FALSE),0) -> 61 | M21: =IFERROR(VLOOKUP($A21,Filtro!$A$4:$AY$1887,11,FALSE),0) -> 4 | N21: =IFERROR(VLOOKUP($A21,Filtro!$A$4:$AY$1887,12,FALSE),0) -> 0 | O21: =IFERROR(VLOOKUP($A21,Filtro!$A$4:$AY$1887,13,FALSE),0) -> 0 | P21: =IFERROR(VLOOKUP($A21,Filtro!$A$4:$AY$1887,14,FALSE),0) -> 0 | Q21: =IFERROR(VLOOKUP($A21,Filtro!$A$4:$AY$1887,15,FALSE),0) -> 0 | R21: =IFERROR(VLOOKUP($A21,Filtro!$A$4:$AY$1887,16,FALSE),0) -> 0 | S21: =IFERROR(VLOOKUP($A21,Filtro!$A$4:$AY$1887,17,FALSE),0) -> 0 | T21: =IFERROR(VLOOKUP($A21,Filtro!$A$4:$AY$1887,18,FALSE),0) -> 0 | U21: =IFERROR(VLOOKUP($A21,Filtro!$A$4:$AY$1887,19,FALSE),0) -> 0 | V21: =IFERROR(VLOOKUP($A21,Filtro!$A$4:$AY$1887,20,FALSE),0) -> 1714 | W21: =IFERROR(VLOOKUP($A21,Filtro!$A$4:$AY$1887,21,FALSE),0) -> 1680 | X21: =IFERROR(VLOOKUP($A21,Filtro!$A$4:$AY$1887,22,FALSE),0) -> 0 | Y21: =IFERROR(VLOOKUP($A21,Filtro!$A$4:$AY$1887,23,FALSE),0) -> 632 | Z21: =IFERROR(VLOOKUP($A21,Filtro!$A$4:$AY$1887,24,FALSE),0) -> 1300 | AA21: =IFERROR(VLOOKUP($A21,Filtro!$A$4:$AY$1887,25,FALSE),0) -> 204 | AB21: =IFERROR(VLOOKUP($A21,Filtro!$A$4:$AY$1887,26,FALSE),0) -> 27 | CA21: * La suma de los sexos NO DEBE ser diferente al Total. | CF21: =IF(AND(C21<>0,#REF!=""),"* No olvide registrar ingresos a control de salud de los respectivos RN, en REM A05-sección E. ","") ->  | CG21: * No olvide digitar el campo Beneficiarios (Digite CERO si no tiene). | CI21: * No olvide digitar alguna de las lactancias (Materna exclusiva y/o Artificial) (Digite CERO si no tiene). | CJ21: * No olvide digitar Control de diada con presencia del padre (Digite CERO si no tiene). | CL21: 1 | CM21: 0 | CN21: 0 | CO21: 0 | CP21: 0 | CQ21: 1 | CR21: 0 | CS21: 1 | CT21: 1 | CU21: 0
A22: 01010601 | B22: GINECOLÓGICO | C22: MÉDICO | D22: =IFERROR(VLOOKUP($A22,Filtro!$A$4:$AY$1887,2,FALSE),0) -> 229 | E22: =IFERROR(VLOOKUP($A22,Filtro!$A$4:$AY$1887,3,FALSE),0) -> 0 | F22: =IFERROR(VLOOKUP($A22,Filtro!$A$4:$AY$1887,4,FALSE),0) -> 0 | G22: =IFERROR(VLOOKUP($A22,Filtro!$A$4:$AY$1887,5,FALSE),0) -> 9 | H22: =IFERROR(VLOOKUP($A22,Filtro!$A$4:$AY$1887,6,FALSE),0) -> 18 | I22: =IFERROR(VLOOKUP($A22,Filtro!$A$4:$AY$1887,7,FALSE),0) -> 24 | J22: =IFERROR(VLOOKUP($A22,Filtro!$A$4:$AY$1887,8,FALSE),0) -> 21 | K22: =IFERROR(VLOOKUP($A22,Filtro!$A$4:$AY$1887,9,FALSE),0) -> 20 | L22: =IFERROR(VLOOKUP($A22,Filtro!$A$4:$AY$1887,10,FALSE),0) -> 23 | M22: =IFERROR(VLOOKUP($A22,Filtro!$A$4:$AY$1887,11,FALSE),0) -> 33 | N22: =IFERROR(VLOOKUP($A22,Filtro!$A$4:$AY$1887,12,FALSE),0) -> 25 | O22: =IFERROR(VLOOKUP($A22,Filtro!$A$4:$AY$1887,13,FALSE),0) -> 30 | P22: =IFERROR(VLOOKUP($A22,Filtro!$A$4:$AY$1887,14,FALSE),0) -> 12 | Q22: =IFERROR(VLOOKUP($A22,Filtro!$A$4:$AY$1887,15,FALSE),0) -> 7 | R22: =IFERROR(VLOOKUP($A22,Filtro!$A$4:$AY$1887,16,FALSE),0) -> 7 | S22: =IFERROR(VLOOKUP($A22,Filtro!$A$4:$AY$1887,17,FALSE),0) -> 0 | T22: =IFERROR(VLOOKUP($A22,Filtro!$A$4:$AY$1887,18,FALSE),0) -> 0 | U22: =IFERROR(VLOOKUP($A22,Filtro!$A$4:$AY$1887,19,FALSE),0) -> 0 | V22: =IFERROR(VLOOKUP($A22,Filtro!$A$4:$AY$1887,20,FALSE),0) -> 231 | W22: =IFERROR(VLOOKUP($A22,Filtro!$A$4:$AY$1887,21,FALSE),0) -> 231 | X22: =IFERROR(VLOOKUP($A22,Filtro!$A$4:$AY$1887,22,FALSE),0) -> 0 | Y22: =IFERROR(VLOOKUP($A22,Filtro!$A$4:$AY$1887,23,FALSE),0) -> 0 | Z22: =IFERROR(VLOOKUP($A22,Filtro!$A$4:$AY$1887,24,FALSE),0) -> 0 | AA22: =IFERROR(VLOOKUP($A22,Filtro!$A$4:$AY$1887,25,FALSE),0) -> 0 | AB22: =IFERROR(VLOOKUP($A22,Filtro!$A$4:$AY$1887,26,FALSE),0) -> 0 | CA22: * La suma de los sexos NO DEBE ser diferente al Total. | CG22: * No olvide digitar el campo Beneficiarios (Digite CERO si no tiene). | CL22: 1 | CM22: 0 | CN22: 0 | CQ22: 1 | CR22: 0
A23: 01010603 | C23: MATRONA /ÓN | D23: =IFERROR(VLOOKUP($A23,Filtro!$A$4:$AY$1887,2,FALSE),0) -> 38992 | E23: =IFERROR(VLOOKUP($A23,Filtro!$A$4:$AY$1887,3,FALSE),0) -> 0 | F23: =IFERROR(VLOOKUP($A23,Filtro!$A$4:$AY$1887,4,FALSE),0) -> 366 | G23: =IFERROR(VLOOKUP($A23,Filtro!$A$4:$AY$1887,5,FALSE),0) -> 881 | H23: =IFERROR(VLOOKUP($A23,Filtro!$A$4:$AY$1887,6,FALSE),0) -> 2307 | I23: =IFERROR(VLOOKUP($A23,Filtro!$A$4:$AY$1887,7,FALSE),0) -> 3578 | J23: =IFERROR(VLOOKUP($A23,Filtro!$A$4:$AY$1887,8,FALSE),0) -> 3687 | K23: =IFERROR(VLOOKUP($A23,Filtro!$A$4:$AY$1887,9,FALSE),0) -> 3944 | L23: =IFERROR(VLOOKUP($A23,Filtro!$A$4:$AY$1887,10,FALSE),0) -> 4395 | M23: =IFERROR(VLOOKUP($A23,Filtro!$A$4:$AY$1887,11,FALSE),0) -> 4750 | N23: =IFERROR(VLOOKUP($A23,Filtro!$A$4:$AY$1887,12,FALSE),0) -> 5369 | O23: =IFERROR(VLOOKUP($A23,Filtro!$A$4:$AY$1887,13,FALSE),0) -> 4349 | P23: =IFERROR(VLOOKUP($A23,Filtro!$A$4:$AY$1887,14,FALSE),0) -> 2970 | Q23: =IFERROR(VLOOKUP($A23,Filtro!$A$4:$AY$1887,15,FALSE),0) -> 1526 | R23: =IFERROR(VLOOKUP($A23,Filtro!$A$4:$AY$1887,16,FALSE),0) -> 578 | S23: =IFERROR(VLOOKUP($A23,Filtro!$A$4:$AY$1887,17,FALSE),0) -> 203 | T23: =IFERROR(VLOOKUP($A23,Filtro!$A$4:$AY$1887,18,FALSE),0) -> 89 | U23: =IFERROR(VLOOKUP($A23,Filtro!$A$4:$AY$1887,19,FALSE),0) -> 0 | V23: =IFERROR(VLOOKUP($A23,Filtro!$A$4:$AY$1887,20,FALSE),0) -> 38455 | W23: =IFERROR(VLOOKUP($A23,Filtro!$A$4:$AY$1887,21,FALSE),0) -> 38139 | X23: =IFERROR(VLOOKUP($A23,Filtro!$A$4:$AY$1887,22,FALSE),0) -> 0 | Y23: =IFERROR(VLOOKUP($A23,Filtro!$A$4:$AY$1887,23,FALSE),0) -> 0 | Z23: =IFERROR(VLOOKUP($A23,Filtro!$A$4:$AY$1887,24,FALSE),0) -> 0 | AA23: =IFERROR(VLOOKUP($A23,Filtro!$A$4:$AY$1887,25,FALSE),0) -> 0 | AB23: =IFERROR(VLOOKUP($A23,Filtro!$A$4:$AY$1887,26,FALSE),0) -> 0 | CA23: * La suma de los sexos NO DEBE ser diferente al Total. | CG23: * No olvide digitar el campo Beneficiarios (Digite CERO si no tiene). | CL23: 1 | CM23: 0 | CN23: 0 | CQ23: 1 | CR23: 0
A24: 01010901 | B24: CLIMATERIO | C24: MÉDICO | D24: =IFERROR(VLOOKUP($A24,Filtro!$A$4:$AY$1887,2,FALSE),0) -> 12 | E24: =IFERROR(VLOOKUP($A24,Filtro!$A$4:$AY$1887,3,FALSE),0) -> 0 | F24: =IFERROR(VLOOKUP($A24,Filtro!$A$4:$AY$1887,4,FALSE),0) -> 0 | G24: =IFERROR(VLOOKUP($A24,Filtro!$A$4:$AY$1887,5,FALSE),0) -> 0 | H24: =IFERROR(VLOOKUP($A24,Filtro!$A$4:$AY$1887,6,FALSE),0) -> 0 | I24: =IFERROR(VLOOKUP($A24,Filtro!$A$4:$AY$1887,7,FALSE),0) -> 0 | J24: =IFERROR(VLOOKUP($A24,Filtro!$A$4:$AY$1887,8,FALSE),0) -> 0 | K24: =IFERROR(VLOOKUP($A24,Filtro!$A$4:$AY$1887,9,FALSE),0) -> 0 | L24: =IFERROR(VLOOKUP($A24,Filtro!$A$4:$AY$1887,10,FALSE),0) -> 0 | M24: =IFERROR(VLOOKUP($A24,Filtro!$A$4:$AY$1887,11,FALSE),0) -> 3 | N24: =IFERROR(VLOOKUP($A24,Filtro!$A$4:$AY$1887,12,FALSE),0) -> 5 | O24: =IFERROR(VLOOKUP($A24,Filtro!$A$4:$AY$1887,13,FALSE),0) -> 2 | P24: =IFERROR(VLOOKUP($A24,Filtro!$A$4:$AY$1887,14,FALSE),0) -> 2 | Q24: =IFERROR(VLOOKUP($A24,Filtro!$A$4:$AY$1887,15,FALSE),0) -> 0 | R24: =IFERROR(VLOOKUP($A24,Filtro!$A$4:$AY$1887,16,FALSE),0) -> 0 | S24: =IFERROR(VLOOKUP($A24,Filtro!$A$4:$AY$1887,17,FALSE),0) -> 0 | T24: =IFERROR(VLOOKUP($A24,Filtro!$A$4:$AY$1887,18,FALSE),0) -> 0 | U24: =IFERROR(VLOOKUP($A24,Filtro!$A$4:$AY$1887,19,FALSE),0) -> 0 | V24: =IFERROR(VLOOKUP($A24,Filtro!$A$4:$AY$1887,20,FALSE),0) -> 25 | W24: =IFERROR(VLOOKUP($A24,Filtro!$A$4:$AY$1887,21,FALSE),0) -> 25 | X24: =IFERROR(VLOOKUP($A24,Filtro!$A$4:$AY$1887,22,FALSE),0) -> 0 | Y24: =IFERROR(VLOOKUP($A24,Filtro!$A$4:$AY$1887,23,FALSE),0) -> 0 | Z24: =IFERROR(VLOOKUP($A24,Filtro!$A$4:$AY$1887,24,FALSE),0) -> 0 | AA24: =IFERROR(VLOOKUP($A24,Filtro!$A$4:$AY$1887,25,FALSE),0) -> 0 | AB24: =IFERROR(VLOOKUP($A24,Filtro!$A$4:$AY$1887,26,FALSE),0) -> 0 | CA24: * La suma de los sexos NO DEBE ser diferente al Total. | CG24: * No olvide digitar el campo Beneficiarios (Digite CERO si no tiene). | CL24: 1 | CM24: 0 | CN24: 0 | CQ24: 1 | CR24: 0
A25: 01010903 | C25: MATRONA /ÓN | D25: =IFERROR(VLOOKUP($A25,Filtro!$A$4:$AY$1887,2,FALSE),0) -> 2783 | E25: =IFERROR(VLOOKUP($A25,Filtro!$A$4:$AY$1887,3,FALSE),0) -> 0 | F25: =IFERROR(VLOOKUP($A25,Filtro!$A$4:$AY$1887,4,FALSE),0) -> 0 | G25: =IFERROR(VLOOKUP($A25,Filtro!$A$4:$AY$1887,5,FALSE),0) -> 0 | H25: =IFERROR(VLOOKUP($A25,Filtro!$A$4:$AY$1887,6,FALSE),0) -> 0 | I25: =IFERROR(VLOOKUP($A25,Filtro!$A$4:$AY$1887,7,FALSE),0) -> 0 | J25: =IFERROR(VLOOKUP($A25,Filtro!$A$4:$AY$1887,8,FALSE),0) -> 0 | K25: =IFERROR(VLOOKUP($A25,Filtro!$A$4:$AY$1887,9,FALSE),0) -> 0 | L25: =IFERROR(VLOOKUP($A25,Filtro!$A$4:$AY$1887,10,FALSE),0) -> 0 | M25: =IFERROR(VLOOKUP($A25,Filtro!$A$4:$AY$1887,11,FALSE),0) -> 873 | N25: =IFERROR(VLOOKUP($A25,Filtro!$A$4:$AY$1887,12,FALSE),0) -> 1028 | O25: =IFERROR(VLOOKUP($A25,Filtro!$A$4:$AY$1887,13,FALSE),0) -> 572 | P25: =IFERROR(VLOOKUP($A25,Filtro!$A$4:$AY$1887,14,FALSE),0) -> 310 | Q25: =IFERROR(VLOOKUP($A25,Filtro!$A$4:$AY$1887,15,FALSE),0) -> 0 | R25: =IFERROR(VLOOKUP($A25,Filtro!$A$4:$AY$1887,16,FALSE),0) -> 0 | S25: =IFERROR(VLOOKUP($A25,Filtro!$A$4:$AY$1887,17,FALSE),0) -> 0 | T25: =IFERROR(VLOOKUP($A25,Filtro!$A$4:$AY$1887,18,FALSE),0) -> 0 | U25: =IFERROR(VLOOKUP($A25,Filtro!$A$4:$AY$1887,19,FALSE),0) -> 0 | V25: =IFERROR(VLOOKUP($A25,Filtro!$A$4:$AY$1887,20,FALSE),0) -> 2776 | W25: =IFERROR(VLOOKUP($A25,Filtro!$A$4:$AY$1887,21,FALSE),0) -> 2765 | X25: =IFERROR(VLOOKUP($A25,Filtro!$A$4:$AY$1887,22,FALSE),0) -> 0 | Y25: =IFERROR(VLOOKUP($A25,Filtro!$A$4:$AY$1887,23,FALSE),0) -> 0 | Z25: =IFERROR(VLOOKUP($A25,Filtro!$A$4:$AY$1887,24,FALSE),0) -> 0 | AA25: =IFERROR(VLOOKUP($A25,Filtro!$A$4:$AY$1887,25,FALSE),0) -> 0 | AB25: =IFERROR(VLOOKUP($A25,Filtro!$A$4:$AY$1887,26,FALSE),0) -> 0 | CA25: * La suma de los sexos NO DEBE ser diferente al Total. | CG25: * No olvide digitar el campo Beneficiarios (Digite CERO si no tiene). | CL25: 1 | CM25: 0 | CN25: 0 | CQ25: 1 | CR25: 0
A26: 01010401 | B26: REGULACIÓN DE FECUNDIDAD | C26: MÉDICO | D26: =IFERROR(VLOOKUP($A26,Filtro!$A$4:$AY$1887,2,FALSE),0) -> 454 | E26: =IFERROR(VLOOKUP($A26,Filtro!$A$4:$AY$1887,3,FALSE),0) -> 0 | F26: =IFERROR(VLOOKUP($A26,Filtro!$A$4:$AY$1887,4,FALSE),0) -> 18 | G26: =IFERROR(VLOOKUP($A26,Filtro!$A$4:$AY$1887,5,FALSE),0) -> 86 | H26: =IFERROR(VLOOKUP($A26,Filtro!$A$4:$AY$1887,6,FALSE),0) -> 104 | I26: =IFERROR(VLOOKUP($A26,Filtro!$A$4:$AY$1887,7,FALSE),0) -> 96 | J26: =IFERROR(VLOOKUP($A26,Filtro!$A$4:$AY$1887,8,FALSE),0) -> 64 | K26: =IFERROR(VLOOKUP($A26,Filtro!$A$4:$AY$1887,9,FALSE),0) -> 32 | L26: =IFERROR(VLOOKUP($A26,Filtro!$A$4:$AY$1887,10,FALSE),0) -> 22 | M26: =IFERROR(VLOOKUP($A26,Filtro!$A$4:$AY$1887,11,FALSE),0) -> 22 | N26: =IFERROR(VLOOKUP($A26,Filtro!$A$4:$AY$1887,12,FALSE),0) -> 7 | O26: =IFERROR(VLOOKUP($A26,Filtro!$A$4:$AY$1887,13,FALSE),0) -> 1 | P26: =IFERROR(VLOOKUP($A26,Filtro!$A$4:$AY$1887,14,FALSE),0) -> 2 | Q26: =IFERROR(VLOOKUP($A26,Filtro!$A$4:$AY$1887,15,FALSE),0) -> 0 | R26: =IFERROR(VLOOKUP($A26,Filtro!$A$4:$AY$1887,16,FALSE),0) -> 0 | S26: =IFERROR(VLOOKUP($A26,Filtro!$A$4:$AY$1887,17,FALSE),0) -> 0 | T26: =IFERROR(VLOOKUP($A26,Filtro!$A$4:$AY$1887,18,FALSE),0) -> 0 | U26: =IFERROR(VLOOKUP($A26,Filtro!$A$4:$AY$1887,19,FALSE),0) -> 9 | V26: =IFERROR(VLOOKUP($A26,Filtro!$A$4:$AY$1887,20,FALSE),0) -> 451 | W26: =IFERROR(VLOOKUP($A26,Filtro!$A$4:$AY$1887,21,FALSE),0) -> 451 | X26: =IFERROR(VLOOKUP($A26,Filtro!$A$4:$AY$1887,22,FALSE),0) -> 0 | Y26: =IFERROR(VLOOKUP($A26,Filtro!$A$4:$AY$1887,23,FALSE),0) -> 0 | Z26: =IFERROR(VLOOKUP($A26,Filtro!$A$4:$AY$1887,24,FALSE),0) -> 0 | AA26: =IFERROR(VLOOKUP($A26,Filtro!$A$4:$AY$1887,25,FALSE),0) -> 0 | AB26: =IFERROR(VLOOKUP($A26,Filtro!$A$4:$AY$1887,26,FALSE),0) -> 0 | CA26: * La suma de los sexos NO DEBE ser diferente al Total. | CG26: * No olvide digitar el campo Beneficiarios (Digite CERO si no tiene). | CL26: 1 | CM26: 0 | CN26: 0 | CQ26: 1 | CR26: 0
A27: 01010403 | C27: MATRONA /ÓN | D27: =IFERROR(VLOOKUP($A27,Filtro!$A$4:$AY$1887,2,FALSE),0) -> 92946 | E27: =IFERROR(VLOOKUP($A27,Filtro!$A$4:$AY$1887,3,FALSE),0) -> 0 | F27: =IFERROR(VLOOKUP($A27,Filtro!$A$4:$AY$1887,4,FALSE),0) -> 1281 | G27: =IFERROR(VLOOKUP($A27,Filtro!$A$4:$AY$1887,5,FALSE),0) -> 14004 | H27: =IFERROR(VLOOKUP($A27,Filtro!$A$4:$AY$1887,6,FALSE),0) -> 17667 | I27: =IFERROR(VLOOKUP($A27,Filtro!$A$4:$AY$1887,7,FALSE),0) -> 17328 | J27: =IFERROR(VLOOKUP($A27,Filtro!$A$4:$AY$1887,8,FALSE),0) -> 14518 | K27: =IFERROR(VLOOKUP($A27,Filtro!$A$4:$AY$1887,9,FALSE),0) -> 10743 | L27: =IFERROR(VLOOKUP($A27,Filtro!$A$4:$AY$1887,10,FALSE),0) -> 8859 | M27: =IFERROR(VLOOKUP($A27,Filtro!$A$4:$AY$1887,11,FALSE),0) -> 6323 | N27: =IFERROR(VLOOKUP($A27,Filtro!$A$4:$AY$1887,12,FALSE),0) -> 2026 | O27: =IFERROR(VLOOKUP($A27,Filtro!$A$4:$AY$1887,13,FALSE),0) -> 166 | P27: =IFERROR(VLOOKUP($A27,Filtro!$A$4:$AY$1887,14,FALSE),0) -> 28 | Q27: =IFERROR(VLOOKUP($A27,Filtro!$A$4:$AY$1887,15,FALSE),0) -> 8 | R27: =IFERROR(VLOOKUP($A27,Filtro!$A$4:$AY$1887,16,FALSE),0) -> 3 | S27: =IFERROR(VLOOKUP($A27,Filtro!$A$4:$AY$1887,17,FALSE),0) -> 1 | T27: =IFERROR(VLOOKUP($A27,Filtro!$A$4:$AY$1887,18,FALSE),0) -> 1 | U27: =IFERROR(VLOOKUP($A27,Filtro!$A$4:$AY$1887,19,FALSE),0) -> 436 | V27: =IFERROR(VLOOKUP($A27,Filtro!$A$4:$AY$1887,20,FALSE),0) -> 91899 | W27: =IFERROR(VLOOKUP($A27,Filtro!$A$4:$AY$1887,21,FALSE),0) -> 91544 | X27: =IFERROR(VLOOKUP($A27,Filtro!$A$4:$AY$1887,22,FALSE),0) -> 0 | Y27: =IFERROR(VLOOKUP($A27,Filtro!$A$4:$AY$1887,23,FALSE),0) -> 0 | Z27: =IFERROR(VLOOKUP($A27,Filtro!$A$4:$AY$1887,24,FALSE),0) -> 0 | AA27: =IFERROR(VLOOKUP($A27,Filtro!$A$4:$AY$1887,25,FALSE),0) -> 0 | AB27: =IFERROR(VLOOKUP($A27,Filtro!$A$4:$AY$1887,26,FALSE),0) -> 0 | CA27: * La suma de los sexos NO DEBE ser diferente al Total. | CG27: * No olvide digitar el campo Beneficiarios (Digite CERO si no tiene). | CL27: 1 | CM27: 0 | CN27: 0 | CQ27: 1 | CR27: 0
B28: SECCIÓN B: CONTROLES DE SALUD SEGÚN CICLO VITAL
B29: TIPO DE CONTROL | C29: PROFESIONAL | D29: TOTAL | G29: POR EDAD | AJ29: Beneficiarios | AK29: CONTROL CON PRESENCIA DEL PADRE | AM29: Niños, Niñas, Adolescentes y Jóvenes Población SENAME
D30: Ambos Sexos | E30: Hombres | F30: Mujeres | G30: Menor de 1 mes | H30: 1 mes | I30: 2 meses | J30: 3 meses | K30: 4 meses | L30: 5 meses | M30: 6 meses | N30: 7 - 11 meses | O30: 12 a 17 meses | P30: 18 - 23 meses | Q30: 24 - 47 meses | R30: 48 - 59 meses | S30: 60 - 71 meses | T30: 6 - 9 | U30: 10 - 14 | V30: 15 - 19 | W30: 20 - 24 | X30: 25 - 29 | Y30: 30 - 34 | Z30: 35 - 39 | AA30: 40 - 44 | AB30: 45 - 49 | AC30: 50 - 54 | AD30: 55 - 59 | AE30: 60 - 64 | AF30: 65 - 69 | AG30: 70 - 74 | AH30: 75 - 79 | AI30: 80 y mas | AK30: menor 1 año | AL30: 1 año a 3 años 11 meses 29 días
A31: 02010101 | B31: DE SALUD | C31: MÉDICO | D31: =IFERROR(VLOOKUP($A31,Filtro!$A$4:$AY$1887,2,FALSE),0) -> 23908 | E31: =IFERROR(VLOOKUP($A31,Filtro!$A$4:$AY$1887,3,FALSE),0) -> 10830 | F31: =IFERROR(VLOOKUP($A31,Filtro!$A$4:$AY$1887,4,FALSE),0) -> 13042 | G31: =IFERROR(VLOOKUP($A31,Filtro!$A$4:$AY$1887,5,FALSE),0) -> 325 | H31: =IFERROR(VLOOKUP($A31,Filtro!$A$4:$AY$1887,6,FALSE),0) -> 5363 | I31: =IFERROR(VLOOKUP($A31,Filtro!$A$4:$AY$1887,7,FALSE),0) -> 522 | J31: =IFERROR(VLOOKUP($A31,Filtro!$A$4:$AY$1887,8,FALSE),0) -> 4908 | K31: =IFERROR(VLOOKUP($A31,Filtro!$A$4:$AY$1887,9,FALSE),0) -> 536 | L31: =IFERROR(VLOOKUP($A31,Filtro!$A$4:$AY$1887,10,FALSE),0) -> 136 | M31: =IFERROR(VLOOKUP($A31,Filtro!$A$4:$AY$1887,11,FALSE),0) -> 78 | N31: =IFERROR(VLOOKUP($A31,Filtro!$A$4:$AY$1887,12,FALSE),0) -> 174 | O31: =IFERROR(VLOOKUP($A31,Filtro!$A$4:$AY$1887,13,FALSE),0) -> 145 | P31: =IFERROR(VLOOKUP($A31,Filtro!$A$4:$AY$1887,14,FALSE),0) -> 126 | Q31: =IFERROR(VLOOKUP($A31,Filtro!$A$4:$AY$1887,15,FALSE),0) -> 361 | R31: =IFERROR(VLOOKUP($A31,Filtro!$A$4:$AY$1887,16,FALSE),0) -> 326 | S31: =IFERROR(VLOOKUP($A31,Filtro!$A$4:$AY$1887,17,FALSE),0) -> 424 | T31: =IFERROR(VLOOKUP($A31,Filtro!$A$4:$AY$1887,18,FALSE),0) -> 1598 | U31: =IFERROR(VLOOKUP($A31,Filtro!$A$4:$AY$1887,19,FALSE),0) -> 2439 | V31: =IFERROR(VLOOKUP($A31,Filtro!$A$4:$AY$1887,20,FALSE),0) -> 668 | W31: =IFERROR(VLOOKUP($A31,Filtro!$A$4:$AY$1887,21,FALSE),0) -> 243 | X31: =IFERROR(VLOOKUP($A31,Filtro!$A$4:$AY$1887,22,FALSE),0) -> 276 | Y31: =IFERROR(VLOOKUP($A31,Filtro!$A$4:$AY$1887,23,FALSE),0) -> 270 | Z31: =IFERROR(VLOOKUP($A31,Filtro!$A$4:$AY$1887,24,FALSE),0) -> 303 | AA31: =IFERROR(VLOOKUP($A31,Filtro!$A$4:$AY$1887,25,FALSE),0) -> 288 | AB31: =IFERROR(VLOOKUP($A31,Filtro!$A$4:$AY$1887,26,FALSE),0) -> 437 | AC31: =IFERROR(VLOOKUP($A31,Filtro!$A$4:$AY$1887,27,FALSE),0) -> 512 | AD31: =IFERROR(VLOOKUP($A31,Filtro!$A$4:$AY$1887,28,FALSE),0) -> 528 | AE31: =IFERROR(VLOOKUP($A31,Filtro!$A$4:$AY$1887,29,FALSE),0) -> 634 | AF31: =IFERROR(VLOOKUP($A31,Filtro!$A$4:$AY$1887,30,FALSE),0) -> 646 | AG31: =IFERROR(VLOOKUP($A31,Filtro!$A$4:$AY$1887,31,FALSE),0) -> 565 | AH31: =IFERROR(VLOOKUP($A31,Filtro!$A$4:$AY$1887,32,FALSE),0) -> 510 | AI31: =IFERROR(VLOOKUP($A31,Filtro!$A$4:$AY$1887,33,FALSE),0) -> 567 | AJ31: =IFERROR(VLOOKUP($A31,Filtro!$A$4:$AY$1887,34,FALSE),0) -> 22072 | AK31: =IFERROR(VLOOKUP($A31,Filtro!$A$4:$AY$1887,35,FALSE),0) -> 2640 | AL31: =IFERROR(VLOOKUP($A31,Filtro!$A$4:$AY$1887,36,FALSE),0) -> 49 | AM31: =IFERROR(VLOOKUP($A31,Filtro!$A$4:$AY$1887,37,FALSE),0) -> 285 | CC31: =IF(AJ31>SUM(F31:M31),"* Los controles con presencia del padre NO DEBE ser mayor que el total Controles Menor 1 año. ",IF(AK31>SUM(N31:P31),"* Los controles con presencia del padre NO DEBE ser mayor que el total Controles 1 año a 3 años 11 meses 29 días. ","")) -> * Los controles con presencia del padre NO DEBE ser mayor que el total Controles 1 año a 3 años 11 meses 29 días. | CD31: =IF(AND(F31<>0,#REF!=""),"* NO OLVIDE REGISTRAR INGRESOS A CONTROL DE SALUD DE LOS RESPECTIVOS RN, EN REM A05-SECCIÓN E. ","") ->  | CE31: * El número de controles según sexo NO DEBE ser diferente al Total. | CH31: 0 | CI31: =IF(AJ31>SUM(F31:M31),1,IF(AK31>SUM(N31:P31),1,0)) -> 1 | CJ31: 1
A32: 02010201 | C32: ENFERMERA /O | D32: =IFERROR(VLOOKUP($A32,Filtro!$A$4:$AY$1887,2,FALSE),0) -> 115747 | E32: =IFERROR(VLOOKUP($A32,Filtro!$A$4:$AY$1887,3,FALSE),0) -> 55597 | F32: =IFERROR(VLOOKUP($A32,Filtro!$A$4:$AY$1887,4,FALSE),0) -> 59899 | G32: =IFERROR(VLOOKUP($A32,Filtro!$A$4:$AY$1887,5,FALSE),0) -> 56 | H32: =IFERROR(VLOOKUP($A32,Filtro!$A$4:$AY$1887,6,FALSE),0) -> 225 | I32: =IFERROR(VLOOKUP($A32,Filtro!$A$4:$AY$1887,7,FALSE),0) -> 5795 | J32: =IFERROR(VLOOKUP($A32,Filtro!$A$4:$AY$1887,8,FALSE),0) -> 294 | K32: =IFERROR(VLOOKUP($A32,Filtro!$A$4:$AY$1887,9,FALSE),0) -> 5553 | L32: =IFERROR(VLOOKUP($A32,Filtro!$A$4:$AY$1887,10,FALSE),0) -> 426 | M32: =IFERROR(VLOOKUP($A32,Filtro!$A$4:$AY$1887,11,FALSE),0) -> 5577 | N32: =IFERROR(VLOOKUP($A32,Filtro!$A$4:$AY$1887,12,FALSE),0) -> 7133 | O32: =IFERROR(VLOOKUP($A32,Filtro!$A$4:$AY$1887,13,FALSE),0) -> 6974 | P32: =IFERROR(VLOOKUP($A32,Filtro!$A$4:$AY$1887,14,FALSE),0) -> 7244 | Q32: =IFERROR(VLOOKUP($A32,Filtro!$A$4:$AY$1887,15,FALSE),0) -> 13766 | R32: =IFERROR(VLOOKUP($A32,Filtro!$A$4:$AY$1887,16,FALSE),0) -> 6469 | S32: =IFERROR(VLOOKUP($A32,Filtro!$A$4:$AY$1887,17,FALSE),0) -> 6721 | T32: =IFERROR(VLOOKUP($A32,Filtro!$A$4:$AY$1887,18,FALSE),0) -> 17906 | U32: =IFERROR(VLOOKUP($A32,Filtro!$A$4:$AY$1887,19,FALSE),0) -> 6244 | V32: =IFERROR(VLOOKUP($A32,Filtro!$A$4:$AY$1887,20,FALSE),0) -> 3965 | W32: =IFERROR(VLOOKUP($A32,Filtro!$A$4:$AY$1887,21,FALSE),0) -> 633 | X32: =IFERROR(VLOOKUP($A32,Filtro!$A$4:$AY$1887,22,FALSE),0) -> 663 | Y32: =IFERROR(VLOOKUP($A32,Filtro!$A$4:$AY$1887,23,FALSE),0) -> 613 | Z32: =IFERROR(VLOOKUP($A32,Filtro!$A$4:$AY$1887,24,FALSE),0) -> 615 | AA32: =IFERROR(VLOOKUP($A32,Filtro!$A$4:$AY$1887,25,FALSE),0) -> 750 | AB32: =IFERROR(VLOOKUP($A32,Filtro!$A$4:$AY$1887,26,FALSE),0) -> 966 | AC32: =IFERROR(VLOOKUP($A32,Filtro!$A$4:$AY$1887,27,FALSE),0) -> 1116 | AD32: =IFERROR(VLOOKUP($A32,Filtro!$A$4:$AY$1887,28,FALSE),0) -> 1215 | AE32: =IFERROR(VLOOKUP($A32,Filtro!$A$4:$AY$1887,29,FALSE),0) -> 1296 | AF32: =IFERROR(VLOOKUP($A32,Filtro!$A$4:$AY$1887,30,FALSE),0) -> 3431 | AG32: =IFERROR(VLOOKUP($A32,Filtro!$A$4:$AY$1887,31,FALSE),0) -> 3458 | AH32: =IFERROR(VLOOKUP($A32,Filtro!$A$4:$AY$1887,32,FALSE),0) -> 2992 | AI32: =IFERROR(VLOOKUP($A32,Filtro!$A$4:$AY$1887,33,FALSE),0) -> 3651 | AJ32: =IFERROR(VLOOKUP($A32,Filtro!$A$4:$AY$1887,34,FALSE),0) -> 110315 | AK32: =IFERROR(VLOOKUP($A32,Filtro!$A$4:$AY$1887,35,FALSE),0) -> 4748 | AL32: =IFERROR(VLOOKUP($A32,Filtro!$A$4:$AY$1887,36,FALSE),0) -> 4289 | AM32: =IFERROR(VLOOKUP($A32,Filtro!$A$4:$AY$1887,37,FALSE),0) -> 1034 | CC32: =IF(AJ32>SUM(F32:M32),"* Los controles con presencia del padre NO DEBE ser mayor que el total Controles Menor 1 año. ",IF(AK32>SUM(N32:P32),"* Los controles con presencia del padre NO DEBE ser mayor que el total Controles 1 año a 3 años 11 meses 29 días. ","")) -> * Los controles con presencia del padre NO DEBE ser mayor que el total Controles Menor 1 año. | CD32: =IF(AND(F32<>0,#REF!=""),"* NO OLVIDE REGISTRAR INGRESOS A CONTROL DE SALUD DE LOS RESPECTIVOS RN, EN REM A05-SECCIÓN E. ","") ->  | CE32: * El número de controles según sexo NO DEBE ser diferente al Total. | CH32: 0 | CI32: =IF(AJ32>SUM(F32:M32),1,IF(AK31>SUM(N32:P32),1,0)) -> 1 | CJ32: 1
A33: 02010103 | C33: MATRONA /ÓN | D33: =IFERROR(VLOOKUP($A33,Filtro!$A$4:$AY$1887,2,FALSE),0) -> 26010 | E33: =IFERROR(VLOOKUP($A33,Filtro!$A$4:$AY$1887,3,FALSE),0) -> 4402 | F33: =IFERROR(VLOOKUP($A33,Filtro!$A$4:$AY$1887,4,FALSE),0) -> 21259 | G33: =IFERROR(VLOOKUP($A33,Filtro!$A$4:$AY$1887,5,FALSE),0) -> 4372 | H33: =IFERROR(VLOOKUP($A33,Filtro!$A$4:$AY$1887,6,FALSE),0) -> 0 | I33: =IFERROR(VLOOKUP($A33,Filtro!$A$4:$AY$1887,7,FALSE),0) -> 0 | J33: =IFERROR(VLOOKUP($A33,Filtro!$A$4:$AY$1887,8,FALSE),0) -> 0 | K33: =IFERROR(VLOOKUP($A33,Filtro!$A$4:$AY$1887,9,FALSE),0) -> 0 | L33: =IFERROR(VLOOKUP($A33,Filtro!$A$4:$AY$1887,10,FALSE),0) -> 0 | M33: =IFERROR(VLOOKUP($A33,Filtro!$A$4:$AY$1887,11,FALSE),0) -> 0 | N33: =IFERROR(VLOOKUP($A33,Filtro!$A$4:$AY$1887,12,FALSE),0) -> 0 | O33: =IFERROR(VLOOKUP($A33,Filtro!$A$4:$AY$1887,13,FALSE),0) -> 0 | P33: =IFERROR(VLOOKUP($A33,Filtro!$A$4:$AY$1887,14,FALSE),0) -> 0 | Q33: =IFERROR(VLOOKUP($A33,Filtro!$A$4:$AY$1887,15,FALSE),0) -> 0 | R33: =IFERROR(VLOOKUP($A33,Filtro!$A$4:$AY$1887,16,FALSE),0) -> 0 | S33: =IFERROR(VLOOKUP($A33,Filtro!$A$4:$AY$1887,17,FALSE),0) -> 0 | T33: =IFERROR(VLOOKUP($A33,Filtro!$A$4:$AY$1887,18,FALSE),0) -> 0 | U33: =IFERROR(VLOOKUP($A33,Filtro!$A$4:$AY$1887,19,FALSE),0) -> 3117 | V33: =IFERROR(VLOOKUP($A33,Filtro!$A$4:$AY$1887,20,FALSE),0) -> 4691 | W33: =IFERROR(VLOOKUP($A33,Filtro!$A$4:$AY$1887,21,FALSE),0) -> 2146 | X33: =IFERROR(VLOOKUP($A33,Filtro!$A$4:$AY$1887,22,FALSE),0) -> 2619 | Y33: =IFERROR(VLOOKUP($A33,Filtro!$A$4:$AY$1887,23,FALSE),0) -> 2278 | Z33: =IFERROR(VLOOKUP($A33,Filtro!$A$4:$AY$1887,24,FALSE),0) -> 1815 | AA33: =IFERROR(VLOOKUP($A33,Filtro!$A$4:$AY$1887,25,FALSE),0) -> 1488 | AB33: =IFERROR(VLOOKUP($A33,Filtro!$A$4:$AY$1887,26,FALSE),0) -> 1308 | AC33: =IFERROR(VLOOKUP($A33,Filtro!$A$4:$AY$1887,27,FALSE),0) -> 948 | AD33: =IFERROR(VLOOKUP($A33,Filtro!$A$4:$AY$1887,28,FALSE),0) -> 523 | AE33: =IFERROR(VLOOKUP($A33,Filtro!$A$4:$AY$1887,29,FALSE),0) -> 383 | AF33: =IFERROR(VLOOKUP($A33,Filtro!$A$4:$AY$1887,30,FALSE),0) -> 188 | AG33: =IFERROR(VLOOKUP($A33,Filtro!$A$4:$AY$1887,31,FALSE),0) -> 85 | AH33: =IFERROR(VLOOKUP($A33,Filtro!$A$4:$AY$1887,32,FALSE),0) -> 23 | AI33: =IFERROR(VLOOKUP($A33,Filtro!$A$4:$AY$1887,33,FALSE),0) -> 26 | AJ33: =IFERROR(VLOOKUP($A33,Filtro!$A$4:$AY$1887,34,FALSE),0) -> 23948 | AK33: =IFERROR(VLOOKUP($A33,Filtro!$A$4:$AY$1887,35,FALSE),0) -> 1806 | AL33: =IFERROR(VLOOKUP($A33,Filtro!$A$4:$AY$1887,36,FALSE),0) -> 0 | AM33: =IFERROR(VLOOKUP($A33,Filtro!$A$4:$AY$1887,37,FALSE),0) -> 329 | CC33: =IF((AJ33>F33),"* Los controles con presencia del padre NO DEBE ser mayor que el total Controles Menor 1 año. ","") -> * Los controles con presencia del padre NO DEBE ser mayor que el total Controles Menor 1 año. | CD33: =IF(AND(F33<>0,#REF!=""),"* NO OLVIDE REGISTRAR INGRESOS A CONTROL DE SALUD DE LOS RESPECTIVOS RN, EN REM A05-SECCIÓN E. ","") ->  | CE33: * El número de controles según sexo NO DEBE ser diferente al Total. | CH33: 0 | CI33: =IF(AJ33>SUM(F33:M33),1,0) -> 0 | CJ33: 1
A34: 02010105 | C34: TÉCNICO PARAMÉDICO | D34: =IFERROR(VLOOKUP($A34,Filtro!$A$4:$AY$1887,2,FALSE),0) -> 645 | E34: =IFERROR(VLOOKUP($A34,Filtro!$A$4:$AY$1887,3,FALSE),0) -> 321 | F34: =IFERROR(VLOOKUP($A34,Filtro!$A$4:$AY$1887,4,FALSE),0) -> 321 | G34: =IFERROR(VLOOKUP($A34,Filtro!$A$4:$AY$1887,5,FALSE),0) -> 0 | H34: =IFERROR(VLOOKUP($A34,Filtro!$A$4:$AY$1887,6,FALSE),0) -> 0 | I34: =IFERROR(VLOOKUP($A34,Filtro!$A$4:$AY$1887,7,FALSE),0) -> 0 | J34: =IFERROR(VLOOKUP($A34,Filtro!$A$4:$AY$1887,8,FALSE),0) -> 0 | K34: =IFERROR(VLOOKUP($A34,Filtro!$A$4:$AY$1887,9,FALSE),0) -> 0 | L34: =IFERROR(VLOOKUP($A34,Filtro!$A$4:$AY$1887,10,FALSE),0) -> 0 | M34: =IFERROR(VLOOKUP($A34,Filtro!$A$4:$AY$1887,11,FALSE),0) -> 0 | N34: =IFERROR(VLOOKUP($A34,Filtro!$A$4:$AY$1887,12,FALSE),0) -> 0 | O34: =IFERROR(VLOOKUP($A34,Filtro!$A$4:$AY$1887,13,FALSE),0) -> 88 | P34: =IFERROR(VLOOKUP($A34,Filtro!$A$4:$AY$1887,14,FALSE),0) -> 17 | Q34: =IFERROR(VLOOKUP($A34,Filtro!$A$4:$AY$1887,15,FALSE),0) -> 244 | R34: =IFERROR(VLOOKUP($A34,Filtro!$A$4:$AY$1887,16,FALSE),0) -> 151 | S34: =IFERROR(VLOOKUP($A34,Filtro!$A$4:$AY$1887,17,FALSE),0) -> 108 | T34: =IFERROR(VLOOKUP($A34,Filtro!$A$4:$AY$1887,18,FALSE),0) -> 37 | U34: =IFERROR(VLOOKUP($A34,Filtro!$A$4:$AY$1887,19,FALSE),0) -> 0 | V34: =IFERROR(VLOOKUP($A34,Filtro!$A$4:$AY$1887,20,FALSE),0) -> 0 | W34: =IFERROR(VLOOKUP($A34,Filtro!$A$4:$AY$1887,21,FALSE),0) -> 0 | X34: =IFERROR(VLOOKUP($A34,Filtro!$A$4:$AY$1887,22,FALSE),0) -> 0 | Y34: =IFERROR(VLOOKUP($A34,Filtro!$A$4:$AY$1887,23,FALSE),0) -> 0 | Z34: =IFERROR(VLOOKUP($A34,Filtro!$A$4:$AY$1887,24,FALSE),0) -> 0 | AA34: =IFERROR(VLOOKUP($A34,Filtro!$A$4:$AY$1887,25,FALSE),0) -> 0 | AB34: =IFERROR(VLOOKUP($A34,Filtro!$A$4:$AY$1887,26,FALSE),0) -> 0 | AC34: =IFERROR(VLOOKUP($A34,Filtro!$A$4:$AY$1887,27,FALSE),0) -> 0 | AD34: =IFERROR(VLOOKUP($A34,Filtro!$A$4:$AY$1887,28,FALSE),0) -> 0 | AE34: =IFERROR(VLOOKUP($A34,Filtro!$A$4:$AY$1887,29,FALSE),0) -> 0 | AF34: =IFERROR(VLOOKUP($A34,Filtro!$A$4:$AY$1887,30,FALSE),0) -> 0 | AG34: =IFERROR(VLOOKUP($A34,Filtro!$A$4:$AY$1887,31,FALSE),0) -> 0 | AH34: =IFERROR(VLOOKUP($A34,Filtro!$A$4:$AY$1887,32,FALSE),0) -> 0 | AI34: =IFERROR(VLOOKUP($A34,Filtro!$A$4:$AY$1887,33,FALSE),0) -> 0 | AJ34: =IFERROR(VLOOKUP($A34,Filtro!$A$4:$AY$1887,34,FALSE),0) -> 637 | AK34: =IFERROR(VLOOKUP($A34,Filtro!$A$4:$AY$1887,35,FALSE),0) -> 0 | AL34: =IFERROR(VLOOKUP($A34,Filtro!$A$4:$AY$1887,36,FALSE),0) -> 58 | AM34: =IFERROR(VLOOKUP($A34,Filtro!$A$4:$AY$1887,37,FALSE),0) -> 7 | CC34: =IF(AK34>SUM(N34:S34),"* Los controles con presencia del padre NO DEBE ser mayor que el total Controles 1año a 3 años 11 meses 29 días. ","") ->  | CD34: =IF(AL34>SUM(O34:T34),"* Los controles con presencia del padre NO DEBE ser mayor que el total Controles 1año a 3 años 11 meses 29 días. ","") ->  | CE34: * El número de controles según sexo NO DEBE ser diferente al Total. | CH34: 0 | CI34: =IF(AJ34>SUM(F34:M34),1,0) -> 1 | CJ34: 1
B35: SECCIÓN C: CONTROLES SEGÚN PROBLEMA DE SALUD
B36: TIPO DE CONTROL | C36: PROFESIONAL | D36: TOTAL | G36: POR EDAD | AO36: Beneficiarios
G37: 0 - 4 | I37: 5 - 9 | K37: 10 - 14 | M37: 15 a 19 | O37: 20 - 24 | Q37: 25 - 29 | S37: 30 - 34 | U37: 35 - 39 | W37: 40 - 44 | Y37: 45 - 49 | AA37: 50 - 54 | AC37: 55 - 59 | AE37: 60 - 64 | AG37: 65 - 69 | AI37: 70 - 74 | AK37: 75 - 79 | AM37: 80 y mas
D38: Ambos Sexos | E38: Hombres | F38: Mujeres | G38: Hombres | H38: Mujeres | I38: Hombres | J38: Mujeres | K38: Hombres | L38: Mujeres | M38: Hombres | N38: Mujeres | O38: Hombres | P38: Mujeres | Q38: Hombres | R38: Mujeres | S38: Hombres | T38: Mujeres | U38: Hombres | V38: Mujeres | W38: Hombres | X38: Mujeres | Y38: Hombres | Z38: Mujeres | AA38: Hombres | AB38: Mujeres | AC38: Hombres | AD38: Mujeres | AE38: Hombres | AF38: Mujeres | AG38: Hombres | AH38: Mujeres | AI38: Hombres | AJ38: Mujeres | AK38: Hombres | AL38: Mujeres | AM38: Hombres | AN38: Mujeres
A39: 03010501 | B39: DE SALUD CARDIOVASCULAR | C39: MÉDICO | D39: =IFERROR(VLOOKUP($A39,Filtro!$A$4:$AY$1887,2,FALSE),0) -> 139810 | E39: =IFERROR(VLOOKUP($A39,Filtro!$A$4:$AY$1887,3,FALSE),0) -> 47892 | F39: =IFERROR(VLOOKUP($A39,Filtro!$A$4:$AY$1887,4,FALSE),0) -> 91918 | G39: =IFERROR(VLOOKUP($A39,Filtro!$A$4:$AY$1887,5,FALSE),0) -> 0 | H39: =IFERROR(VLOOKUP($A39,Filtro!$A$4:$AY$1887,6,FALSE),0) -> 0 | I39: =IFERROR(VLOOKUP($A39,Filtro!$A$4:$AY$1887,7,FALSE),0) -> 0 | J39: =IFERROR(VLOOKUP($A39,Filtro!$A$4:$AY$1887,8,FALSE),0) -> 0 | K39: =IFERROR(VLOOKUP($A39,Filtro!$A$4:$AY$1887,9,FALSE),0) -> 0 | L39: =IFERROR(VLOOKUP($A39,Filtro!$A$4:$AY$1887,10,FALSE),0) -> 0 | M39: =IFERROR(VLOOKUP($A39,Filtro!$A$4:$AY$1887,11,FALSE),0) -> 107 | N39: =IFERROR(VLOOKUP($A39,Filtro!$A$4:$AY$1887,12,FALSE),0) -> 198 | O39: =IFERROR(VLOOKUP($A39,Filtro!$A$4:$AY$1887,13,FALSE),0) -> 127 | P39: =IFERROR(VLOOKUP($A39,Filtro!$A$4:$AY$1887,14,FALSE),0) -> 385 | Q39: =IFERROR(VLOOKUP($A39,Filtro!$A$4:$AY$1887,15,FALSE),0) -> 197 | R39: =IFERROR(VLOOKUP($A39,Filtro!$A$4:$AY$1887,16,FALSE),0) -> 641 | S39: =IFERROR(VLOOKUP($A39,Filtro!$A$4:$AY$1887,17,FALSE),0) -> 390 | T39: =IFERROR(VLOOKUP($A39,Filtro!$A$4:$AY$1887,18,FALSE),0) -> 1076 | U39: =IFERROR(VLOOKUP($A39,Filtro!$A$4:$AY$1887,19,FALSE),0) -> 625 | V39: =IFERROR(VLOOKUP($A39,Filtro!$A$4:$AY$1887,20,FALSE),0) -> 1809 | W39: =IFERROR(VLOOKUP($A39,Filtro!$A$4:$AY$1887,21,FALSE),0) -> 1130 | X39: =IFERROR(VLOOKUP($A39,Filtro!$A$4:$AY$1887,22,FALSE),0) -> 3214 | Y39: =IFERROR(VLOOKUP($A39,Filtro!$A$4:$AY$1887,23,FALSE),0) -> 1985 | Z39: =IFERROR(VLOOKUP($A39,Filtro!$A$4:$AY$1887,24,FALSE),0) -> 5379 | AA39: =IFERROR(VLOOKUP($A39,Filtro!$A$4:$AY$1887,25,FALSE),0) -> 3496 | AB39: =IFERROR(VLOOKUP($A39,Filtro!$A$4:$AY$1887,26,FALSE),0) -> 9102 | AC39: =IFERROR(VLOOKUP($A39,Filtro!$A$4:$AY$1887,27,FALSE),0) -> 5120 | AD39: =IFERROR(VLOOKUP($A39,Filtro!$A$4:$AY$1887,28,FALSE),0) -> 11370 | AE39: =IFERROR(VLOOKUP($A39,Filtro!$A$4:$AY$1887,29,FALSE),0) -> 6398 | AF39: =IFERROR(VLOOKUP($A39,Filtro!$A$4:$AY$1887,30,FALSE),0) -> 12649 | AG39: =IFERROR(VLOOKUP($A39,Filtro!$A$4:$AY$1887,31,FALSE),0) -> 7259 | AH39: =IFERROR(VLOOKUP($A39,Filtro!$A$4:$AY$1887,32,FALSE),0) -> 12649 | AI39: =IFERROR(VLOOKUP($A39,Filtro!$A$4:$AY$1887,33,FALSE),0) -> 7210 | AJ39: =IFERROR(VLOOKUP($A39,Filtro!$A$4:$AY$1887,34,FALSE),0) -> 11627 | AK39: =IFERROR(VLOOKUP($A39,Filtro!$A$4:$AY$1887,35,FALSE),0) -> 6628 | AL39: =IFERROR(VLOOKUP($A39,Filtro!$A$4:$AY$1887,36,FALSE),0) -> 9979 | AM39: =IFERROR(VLOOKUP($A39,Filtro!$A$4:$AY$1887,37,FALSE),0) -> 7227 | AN39: =IFERROR(VLOOKUP($A39,Filtro!$A$4:$AY$1887,38,FALSE),0) -> 11854 | AO39: =IFERROR(VLOOKUP($A39,Filtro!$A$4:$AY$1887,39,FALSE),0) -> 137433 | CJ39: 0
A40: 03010502 | C40: ENFERMERA /O | D40: =IFERROR(VLOOKUP($A40,Filtro!$A$4:$AY$1887,2,FALSE),0) -> 59464 | E40: =IFERROR(VLOOKUP($A40,Filtro!$A$4:$AY$1887,3,FALSE),0) -> 21040 | F40: =IFERROR(VLOOKUP($A40,Filtro!$A$4:$AY$1887,4,FALSE),0) -> 38424 | G40: =IFERROR(VLOOKUP($A40,Filtro!$A$4:$AY$1887,5,FALSE),0) -> 0 | H40: =IFERROR(VLOOKUP($A40,Filtro!$A$4:$AY$1887,6,FALSE),0) -> 0 | I40: =IFERROR(VLOOKUP($A40,Filtro!$A$4:$AY$1887,7,FALSE),0) -> 0 | J40: =IFERROR(VLOOKUP($A40,Filtro!$A$4:$AY$1887,8,FALSE),0) -> 0 | K40: =IFERROR(VLOOKUP($A40,Filtro!$A$4:$AY$1887,9,FALSE),0) -> 0 | L40: =IFERROR(VLOOKUP($A40,Filtro!$A$4:$AY$1887,10,FALSE),0) -> 0 | M40: =IFERROR(VLOOKUP($A40,Filtro!$A$4:$AY$1887,11,FALSE),0) -> 21 | N40: =IFERROR(VLOOKUP($A40,Filtro!$A$4:$AY$1887,12,FALSE),0) -> 36 | O40: =IFERROR(VLOOKUP($A40,Filtro!$A$4:$AY$1887,13,FALSE),0) -> 53 | P40: =IFERROR(VLOOKUP($A40,Filtro!$A$4:$AY$1887,14,FALSE),0) -> 124 | Q40: =IFERROR(VLOOKUP($A40,Filtro!$A$4:$AY$1887,15,FALSE),0) -> 123 | R40: =IFERROR(VLOOKUP($A40,Filtro!$A$4:$AY$1887,16,FALSE),0) -> 274 | S40: =IFERROR(VLOOKUP($A40,Filtro!$A$4:$AY$1887,17,FALSE),0) -> 220 | T40: =IFERROR(VLOOKUP($A40,Filtro!$A$4:$AY$1887,18,FALSE),0) -> 501 | U40: =IFERROR(VLOOKUP($A40,Filtro!$A$4:$AY$1887,19,FALSE),0) -> 313 | V40: =IFERROR(VLOOKUP($A40,Filtro!$A$4:$AY$1887,20,FALSE),0) -> 741 | W40: =IFERROR(VLOOKUP($A40,Filtro!$A$4:$AY$1887,21,FALSE),0) -> 501 | X40: =IFERROR(VLOOKUP($A40,Filtro!$A$4:$AY$1887,22,FALSE),0) -> 1326 | Y40: =IFERROR(VLOOKUP($A40,Filtro!$A$4:$AY$1887,23,FALSE),0) -> 802 | Z40: =IFERROR(VLOOKUP($A40,Filtro!$A$4:$AY$1887,24,FALSE),0) -> 2155 | AA40: =IFERROR(VLOOKUP($A40,Filtro!$A$4:$AY$1887,25,FALSE),0) -> 1443 | AB40: =IFERROR(VLOOKUP($A40,Filtro!$A$4:$AY$1887,26,FALSE),0) -> 3703 | AC40: =IFERROR(VLOOKUP($A40,Filtro!$A$4:$AY$1887,27,FALSE),0) -> 2092 | AD40: =IFERROR(VLOOKUP($A40,Filtro!$A$4:$AY$1887,28,FALSE),0) -> 4526 | AE40: =IFERROR(VLOOKUP($A40,Filtro!$A$4:$AY$1887,29,FALSE),0) -> 2667 | AF40: =IFERROR(VLOOKUP($A40,Filtro!$A$4:$AY$1887,30,FALSE),0) -> 5008 | AG40: =IFERROR(VLOOKUP($A40,Filtro!$A$4:$AY$1887,31,FALSE),0) -> 3365 | AH40: =IFERROR(VLOOKUP($A40,Filtro!$A$4:$AY$1887,32,FALSE),0) -> 5721 | AI40: =IFERROR(VLOOKUP($A40,Filtro!$A$4:$AY$1887,33,FALSE),0) -> 3314 | AJ40: =IFERROR(VLOOKUP($A40,Filtro!$A$4:$AY$1887,34,FALSE),0) -> 5035 | AK40: =IFERROR(VLOOKUP($A40,Filtro!$A$4:$AY$1887,35,FALSE),0) -> 3011 | AL40: =IFERROR(VLOOKUP($A40,Filtro!$A$4:$AY$1887,36,FALSE),0) -> 4239 | AM40: =IFERROR(VLOOKUP($A40,Filtro!$A$4:$AY$1887,37,FALSE),0) -> 3115 | AN40: =IFERROR(VLOOKUP($A40,Filtro!$A$4:$AY$1887,38,FALSE),0) -> 5035 | AO40: =IFERROR(VLOOKUP($A40,Filtro!$A$4:$AY$1887,39,FALSE),0) -> 58591 | CJ40: 0
A41: 03010504 | C41: NUTRICIONISTA | D41: =IFERROR(VLOOKUP($A41,Filtro!$A$4:$AY$1887,2,FALSE),0) -> 49844 | E41: =IFERROR(VLOOKUP($A41,Filtro!$A$4:$AY$1887,3,FALSE),0) -> 16109 | F41: =IFERROR(VLOOKUP($A41,Filtro!$A$4:$AY$1887,4,FALSE),0) -> 33735 | G41: =IFERROR(VLOOKUP($A41,Filtro!$A$4:$AY$1887,5,FALSE),0) -> 0 | H41: =IFERROR(VLOOKUP($A41,Filtro!$A$4:$AY$1887,6,FALSE),0) -> 0 | I41: =IFERROR(VLOOKUP($A41,Filtro!$A$4:$AY$1887,7,FALSE),0) -> 0 | J41: =IFERROR(VLOOKUP($A41,Filtro!$A$4:$AY$1887,8,FALSE),0) -> 0 | K41: =IFERROR(VLOOKUP($A41,Filtro!$A$4:$AY$1887,9,FALSE),0) -> 0 | L41: =IFERROR(VLOOKUP($A41,Filtro!$A$4:$AY$1887,10,FALSE),0) -> 0 | M41: =IFERROR(VLOOKUP($A41,Filtro!$A$4:$AY$1887,11,FALSE),0) -> 48 | N41: =IFERROR(VLOOKUP($A41,Filtro!$A$4:$AY$1887,12,FALSE),0) -> 85 | O41: =IFERROR(VLOOKUP($A41,Filtro!$A$4:$AY$1887,13,FALSE),0) -> 52 | P41: =IFERROR(VLOOKUP($A41,Filtro!$A$4:$AY$1887,14,FALSE),0) -> 148 | Q41: =IFERROR(VLOOKUP($A41,Filtro!$A$4:$AY$1887,15,FALSE),0) -> 91 | R41: =IFERROR(VLOOKUP($A41,Filtro!$A$4:$AY$1887,16,FALSE),0) -> 275 | S41: =IFERROR(VLOOKUP($A41,Filtro!$A$4:$AY$1887,17,FALSE),0) -> 141 | T41: =IFERROR(VLOOKUP($A41,Filtro!$A$4:$AY$1887,18,FALSE),0) -> 433 | U41: =IFERROR(VLOOKUP($A41,Filtro!$A$4:$AY$1887,19,FALSE),0) -> 233 | V41: =IFERROR(VLOOKUP($A41,Filtro!$A$4:$AY$1887,20,FALSE),0) -> 759 | W41: =IFERROR(VLOOKUP($A41,Filtro!$A$4:$AY$1887,21,FALSE),0) -> 454 | X41: =IFERROR(VLOOKUP($A41,Filtro!$A$4:$AY$1887,22,FALSE),0) -> 1413 | Y41: =IFERROR(VLOOKUP($A41,Filtro!$A$4:$AY$1887,23,FALSE),0) -> 706 | Z41: =IFERROR(VLOOKUP($A41,Filtro!$A$4:$AY$1887,24,FALSE),0) -> 2305 | AA41: =IFERROR(VLOOKUP($A41,Filtro!$A$4:$AY$1887,25,FALSE),0) -> 1224 | AB41: =IFERROR(VLOOKUP($A41,Filtro!$A$4:$AY$1887,26,FALSE),0) -> 3602 | AC41: =IFERROR(VLOOKUP($A41,Filtro!$A$4:$AY$1887,27,FALSE),0) -> 1642 | AD41: =IFERROR(VLOOKUP($A41,Filtro!$A$4:$AY$1887,28,FALSE),0) -> 4286 | AE41: =IFERROR(VLOOKUP($A41,Filtro!$A$4:$AY$1887,29,FALSE),0) -> 2134 | AF41: =IFERROR(VLOOKUP($A41,Filtro!$A$4:$AY$1887,30,FALSE),0) -> 4753 | AG41: =IFERROR(VLOOKUP($A41,Filtro!$A$4:$AY$1887,31,FALSE),0) -> 2445 | AH41: =IFERROR(VLOOKUP($A41,Filtro!$A$4:$AY$1887,32,FALSE),0) -> 4643 | AI41: =IFERROR(VLOOKUP($A41,Filtro!$A$4:$AY$1887,33,FALSE),0) -> 2457 | AJ41: =IFERROR(VLOOKUP($A41,Filtro!$A$4:$AY$1887,34,FALSE),0) -> 4159 | AK41: =IFERROR(VLOOKUP($A41,Filtro!$A$4:$AY$1887,35,FALSE),0) -> 2210 | AL41: =IFERROR(VLOOKUP($A41,Filtro!$A$4:$AY$1887,36,FALSE),0) -> 3211 | AM41: =IFERROR(VLOOKUP($A41,Filtro!$A$4:$AY$1887,37,FALSE),0) -> 2275 | AN41: =IFERROR(VLOOKUP($A41,Filtro!$A$4:$AY$1887,38,FALSE),0) -> 3666 | AO41: =IFERROR(VLOOKUP($A41,Filtro!$A$4:$AY$1887,39,FALSE),0) -> 49569 | CJ41: 0
A42: 03010505 | C42: TÉCNICO PARAMÉDICO | D42: =IFERROR(VLOOKUP($A42,Filtro!$A$4:$AY$1887,2,FALSE),0) -> 4078 | E42: =IFERROR(VLOOKUP($A42,Filtro!$A$4:$AY$1887,3,FALSE),0) -> 1495 | F42: =IFERROR(VLOOKUP($A42,Filtro!$A$4:$AY$1887,4,FALSE),0) -> 2583 | G42: =IFERROR(VLOOKUP($A42,Filtro!$A$4:$AY$1887,5,FALSE),0) -> 0 | H42: =IFERROR(VLOOKUP($A42,Filtro!$A$4:$AY$1887,6,FALSE),0) -> 0 | I42: =IFERROR(VLOOKUP($A42,Filtro!$A$4:$AY$1887,7,FALSE),0) -> 0 | J42: =IFERROR(VLOOKUP($A42,Filtro!$A$4:$AY$1887,8,FALSE),0) -> 0 | K42: =IFERROR(VLOOKUP($A42,Filtro!$A$4:$AY$1887,9,FALSE),0) -> 0 | L42: =IFERROR(VLOOKUP($A42,Filtro!$A$4:$AY$1887,10,FALSE),0) -> 0 | M42: =IFERROR(VLOOKUP($A42,Filtro!$A$4:$AY$1887,11,FALSE),0) -> 6 | N42: =IFERROR(VLOOKUP($A42,Filtro!$A$4:$AY$1887,12,FALSE),0) -> 1 | O42: =IFERROR(VLOOKUP($A42,Filtro!$A$4:$AY$1887,13,FALSE),0) -> 6 | P42: =IFERROR(VLOOKUP($A42,Filtro!$A$4:$AY$1887,14,FALSE),0) -> 4 | Q42: =IFERROR(VLOOKUP($A42,Filtro!$A$4:$AY$1887,15,FALSE),0) -> 29 | R42: =IFERROR(VLOOKUP($A42,Filtro!$A$4:$AY$1887,16,FALSE),0) -> 16 | S42: =IFERROR(VLOOKUP($A42,Filtro!$A$4:$AY$1887,17,FALSE),0) -> 30 | T42: =IFERROR(VLOOKUP($A42,Filtro!$A$4:$AY$1887,18,FALSE),0) -> 51 | U42: =IFERROR(VLOOKUP($A42,Filtro!$A$4:$AY$1887,19,FALSE),0) -> 13 | V42: =IFERROR(VLOOKUP($A42,Filtro!$A$4:$AY$1887,20,FALSE),0) -> 25 | W42: =IFERROR(VLOOKUP($A42,Filtro!$A$4:$AY$1887,21,FALSE),0) -> 54 | X42: =IFERROR(VLOOKUP($A42,Filtro!$A$4:$AY$1887,22,FALSE),0) -> 98 | Y42: =IFERROR(VLOOKUP($A42,Filtro!$A$4:$AY$1887,23,FALSE),0) -> 50 | Z42: =IFERROR(VLOOKUP($A42,Filtro!$A$4:$AY$1887,24,FALSE),0) -> 156 | AA42: =IFERROR(VLOOKUP($A42,Filtro!$A$4:$AY$1887,25,FALSE),0) -> 100 | AB42: =IFERROR(VLOOKUP($A42,Filtro!$A$4:$AY$1887,26,FALSE),0) -> 349 | AC42: =IFERROR(VLOOKUP($A42,Filtro!$A$4:$AY$1887,27,FALSE),0) -> 156 | AD42: =IFERROR(VLOOKUP($A42,Filtro!$A$4:$AY$1887,28,FALSE),0) -> 232 | AE42: =IFERROR(VLOOKUP($A42,Filtro!$A$4:$AY$1887,29,FALSE),0) -> 183 | AF42: =IFERROR(VLOOKUP($A42,Filtro!$A$4:$AY$1887,30,FALSE),0) -> 266 | AG42: =IFERROR(VLOOKUP($A42,Filtro!$A$4:$AY$1887,31,FALSE),0) -> 217 | AH42: =IFERROR(VLOOKUP($A42,Filtro!$A$4:$AY$1887,32,FALSE),0) -> 342 | AI42: =IFERROR(VLOOKUP($A42,Filtro!$A$4:$AY$1887,33,FALSE),0) -> 229 | AJ42: =IFERROR(VLOOKUP($A42,Filtro!$A$4:$AY$1887,34,FALSE),0) -> 322 | AK42: =IFERROR(VLOOKUP($A42,Filtro!$A$4:$AY$1887,35,FALSE),0) -> 163 | AL42: =IFERROR(VLOOKUP($A42,Filtro!$A$4:$AY$1887,36,FALSE),0) -> 296 | AM42: =IFERROR(VLOOKUP($A42,Filtro!$A$4:$AY$1887,37,FALSE),0) -> 259 | AN42: =IFERROR(VLOOKUP($A42,Filtro!$A$4:$AY$1887,38,FALSE),0) -> 425 | AO42: =IFERROR(VLOOKUP($A42,Filtro!$A$4:$AY$1887,39,FALSE),0) -> 4044 | CJ42: 0
A43: 03030190 | B43: DE TUBERCULOSIS | C43: MÉDICO | D43: =IFERROR(VLOOKUP($A43,Filtro!$A$4:$AY$1887,2,FALSE),0) -> 513 | E43: =IFERROR(VLOOKUP($A43,Filtro!$A$4:$AY$1887,3,FALSE),0) -> 285 | F43: =IFERROR(VLOOKUP($A43,Filtro!$A$4:$AY$1887,4,FALSE),0) -> 228 | G43: =IFERROR(VLOOKUP($A43,Filtro!$A$4:$AY$1887,5,FALSE),0) -> 6 | H43: =IFERROR(VLOOKUP($A43,Filtro!$A$4:$AY$1887,6,FALSE),0) -> 10 | I43: =IFERROR(VLOOKUP($A43,Filtro!$A$4:$AY$1887,7,FALSE),0) -> 7 | J43: =IFERROR(VLOOKUP($A43,Filtro!$A$4:$AY$1887,8,FALSE),0) -> 4 | K43: =IFERROR(VLOOKUP($A43,Filtro!$A$4:$AY$1887,9,FALSE),0) -> 9 | L43: =IFERROR(VLOOKUP($A43,Filtro!$A$4:$AY$1887,10,FALSE),0) -> 7 | M43: =IFERROR(VLOOKUP($A43,Filtro!$A$4:$AY$1887,11,FALSE),0) -> 7 | N43: =IFERROR(VLOOKUP($A43,Filtro!$A$4:$AY$1887,12,FALSE),0) -> 8 | O43: =IFERROR(VLOOKUP($A43,Filtro!$A$4:$AY$1887,13,FALSE),0) -> 13 | P43: =IFERROR(VLOOKUP($A43,Filtro!$A$4:$AY$1887,14,FALSE),0) -> 15 | Q43: =IFERROR(VLOOKUP($A43,Filtro!$A$4:$AY$1887,15,FALSE),0) -> 12 | R43: =IFERROR(VLOOKUP($A43,Filtro!$A$4:$AY$1887,16,FALSE),0) -> 23 | S43: =IFERROR(VLOOKUP($A43,Filtro!$A$4:$AY$1887,17,FALSE),0) -> 21 | T43: =IFERROR(VLOOKUP($A43,Filtro!$A$4:$AY$1887,18,FALSE),0) -> 20 | U43: =IFERROR(VLOOKUP($A43,Filtro!$A$4:$AY$1887,19,FALSE),0) -> 19 | V43: =IFERROR(VLOOKUP($A43,Filtro!$A$4:$AY$1887,20,FALSE),0) -> 10 | W43: =IFERROR(VLOOKUP($A43,Filtro!$A$4:$AY$1887,21,FALSE),0) -> 24 | X43: =IFERROR(VLOOKUP($A43,Filtro!$A$4:$AY$1887,22,FALSE),0) -> 21 | Y43: =IFERROR(VLOOKUP($A43,Filtro!$A$4:$AY$1887,23,FALSE),0) -> 23 | Z43: =IFERROR(VLOOKUP($A43,Filtro!$A$4:$AY$1887,24,FALSE),0) -> 5 | AA43: =IFERROR(VLOOKUP($A43,Filtro!$A$4:$AY$1887,25,FALSE),0) -> 15 | AB43: =IFERROR(VLOOKUP($A43,Filtro!$A$4:$AY$1887,26,FALSE),0) -> 21 | AC43: =IFERROR(VLOOKUP($A43,Filtro!$A$4:$AY$1887,27,FALSE),0) -> 26 | AD43: =IFERROR(VLOOKUP($A43,Filtro!$A$4:$AY$1887,28,FALSE),0) -> 10 | AE43: =IFERROR(VLOOKUP($A43,Filtro!$A$4:$AY$1887,29,FALSE),0) -> 30 | AF43: =IFERROR(VLOOKUP($A43,Filtro!$A$4:$AY$1887,30,FALSE),0) -> 39 | AG43: =IFERROR(VLOOKUP($A43,Filtro!$A$4:$AY$1887,31,FALSE),0) -> 14 | AH43: =IFERROR(VLOOKUP($A43,Filtro!$A$4:$AY$1887,32,FALSE),0) -> 8 | AI43: =IFERROR(VLOOKUP($A43,Filtro!$A$4:$AY$1887,33,FALSE),0) -> 22 | AJ43: =IFERROR(VLOOKUP($A43,Filtro!$A$4:$AY$1887,34,FALSE),0) -> 4 | AK43: =IFERROR(VLOOKUP($A43,Filtro!$A$4:$AY$1887,35,FALSE),0) -> 14 | AL43: =IFERROR(VLOOKUP($A43,Filtro!$A$4:$AY$1887,36,FALSE),0) -> 12 | AM43: =IFERROR(VLOOKUP($A43,Filtro!$A$4:$AY$1887,37,FALSE),0) -> 23 | AN43: =IFERROR(VLOOKUP($A43,Filtro!$A$4:$AY$1887,38,FALSE),0) -> 11 | AO43: =IFERROR(VLOOKUP($A43,Filtro!$A$4:$AY$1887,39,FALSE),0) -> 506 | CJ43: 0
A44: 03030200 | C44: ENFERMERA /O | D44: =IFERROR(VLOOKUP($A44,Filtro!$A$4:$AY$1887,2,FALSE),0) -> 195 | E44: =IFERROR(VLOOKUP($A44,Filtro!$A$4:$AY$1887,3,FALSE),0) -> 122 | F44: =IFERROR(VLOOKUP($A44,Filtro!$A$4:$AY$1887,4,FALSE),0) -> 73 | G44: =IFERROR(VLOOKUP($A44,Filtro!$A$4:$AY$1887,5,FALSE),0) -> 2 | H44: =IFERROR(VLOOKUP($A44,Filtro!$A$4:$AY$1887,6,FALSE),0) -> 0 | I44: =IFERROR(VLOOKUP($A44,Filtro!$A$4:$AY$1887,7,FALSE),0) -> 3 | J44: =IFERROR(VLOOKUP($A44,Filtro!$A$4:$AY$1887,8,FALSE),0) -> 6 | K44: =IFERROR(VLOOKUP($A44,Filtro!$A$4:$AY$1887,9,FALSE),0) -> 14 | L44: =IFERROR(VLOOKUP($A44,Filtro!$A$4:$AY$1887,10,FALSE),0) -> 20 | M44: =IFERROR(VLOOKUP($A44,Filtro!$A$4:$AY$1887,11,FALSE),0) -> 4 | N44: =IFERROR(VLOOKUP($A44,Filtro!$A$4:$AY$1887,12,FALSE),0) -> 3 | O44: =IFERROR(VLOOKUP($A44,Filtro!$A$4:$AY$1887,13,FALSE),0) -> 5 | P44: =IFERROR(VLOOKUP($A44,Filtro!$A$4:$AY$1887,14,FALSE),0) -> 5 | Q44: =IFERROR(VLOOKUP($A44,Filtro!$A$4:$AY$1887,15,FALSE),0) -> 1 | R44: =IFERROR(VLOOKUP($A44,Filtro!$A$4:$AY$1887,16,FALSE),0) -> 4 | S44: =IFERROR(VLOOKUP($A44,Filtro!$A$4:$AY$1887,17,FALSE),0) -> 10 | T44: =IFERROR(VLOOKUP($A44,Filtro!$A$4:$AY$1887,18,FALSE),0) -> 7 | U44: =IFERROR(VLOOKUP($A44,Filtro!$A$4:$AY$1887,19,FALSE),0) -> 8 | V44: =IFERROR(VLOOKUP($A44,Filtro!$A$4:$AY$1887,20,FALSE),0) -> 5 | W44: =IFERROR(VLOOKUP($A44,Filtro!$A$4:$AY$1887,21,FALSE),0) -> 8 | X44: =IFERROR(VLOOKUP($A44,Filtro!$A$4:$AY$1887,22,FALSE),0) -> 5 | Y44: =IFERROR(VLOOKUP($A44,Filtro!$A$4:$AY$1887,23,FALSE),0) -> 13 | Z44: =IFERROR(VLOOKUP($A44,Filtro!$A$4:$AY$1887,24,FALSE),0) -> 1 | AA44: =IFERROR(VLOOKUP($A44,Filtro!$A$4:$AY$1887,25,FALSE),0) -> 6 | AB44: =IFERROR(VLOOKUP($A44,Filtro!$A$4:$AY$1887,26,FALSE),0) -> 2 | AC44: =IFERROR(VLOOKUP($A44,Filtro!$A$4:$AY$1887,27,FALSE),0) -> 16 | AD44: =IFERROR(VLOOKUP($A44,Filtro!$A$4:$AY$1887,28,FALSE),0) -> 1 | AE44: =IFERROR(VLOOKUP($A44,Filtro!$A$4:$AY$1887,29,FALSE),0) -> 17 | AF44: =IFERROR(VLOOKUP($A44,Filtro!$A$4:$AY$1887,30,FALSE),0) -> 3 | AG44: =IFERROR(VLOOKUP($A44,Filtro!$A$4:$AY$1887,31,FALSE),0) -> 2 | AH44: =IFERROR(VLOOKUP($A44,Filtro!$A$4:$AY$1887,32,FALSE),0) -> 4 | AI44: =IFERROR(VLOOKUP($A44,Filtro!$A$4:$AY$1887,33,FALSE),0) -> 3 | AJ44: =IFERROR(VLOOKUP($A44,Filtro!$A$4:$AY$1887,34,FALSE),0) -> 1 | AK44: =IFERROR(VLOOKUP($A44,Filtro!$A$4:$AY$1887,35,FALSE),0) -> 6 | AL44: =IFERROR(VLOOKUP($A44,Filtro!$A$4:$AY$1887,36,FALSE),0) -> 2 | AM44: =IFERROR(VLOOKUP($A44,Filtro!$A$4:$AY$1887,37,FALSE),0) -> 4 | AN44: =IFERROR(VLOOKUP($A44,Filtro!$A$4:$AY$1887,38,FALSE),0) -> 4 | AO44: =IFERROR(VLOOKUP($A44,Filtro!$A$4:$AY$1887,39,FALSE),0) -> 190 | CJ44: 0
A45: 01030100A | B45: SEGUIMIENTO AUTOVALENTE CON RIESGO | C45: MÉDICO | D45: =IFERROR(VLOOKUP($A45,Filtro!$A$4:$AY$1887,2,FALSE),0) -> 82 | E45: =IFERROR(VLOOKUP($A45,Filtro!$A$4:$AY$1887,3,FALSE),0) -> 33 | F45: =IFERROR(VLOOKUP($A45,Filtro!$A$4:$AY$1887,4,FALSE),0) -> 49 | G45: =IFERROR(VLOOKUP($A45,Filtro!$A$4:$AY$1887,5,FALSE),0) -> 0 | H45: =IFERROR(VLOOKUP($A45,Filtro!$A$4:$AY$1887,6,FALSE),0) -> 0 | I45: =IFERROR(VLOOKUP($A45,Filtro!$A$4:$AY$1887,7,FALSE),0) -> 0 | J45: =IFERROR(VLOOKUP($A45,Filtro!$A$4:$AY$1887,8,FALSE),0) -> 0 | K45: =IFERROR(VLOOKUP($A45,Filtro!$A$4:$AY$1887,9,FALSE),0) -> 0 | L45: =IFERROR(VLOOKUP($A45,Filtro!$A$4:$AY$1887,10,FALSE),0) -> 0 | M45: =IFERROR(VLOOKUP($A45,Filtro!$A$4:$AY$1887,11,FALSE),0) -> 0 | N45: =IFERROR(VLOOKUP($A45,Filtro!$A$4:$AY$1887,12,FALSE),0) -> 0 | O45: =IFERROR(VLOOKUP($A45,Filtro!$A$4:$AY$1887,13,FALSE),0) -> 0 | P45: =IFERROR(VLOOKUP($A45,Filtro!$A$4:$AY$1887,14,FALSE),0) -> 0 | Q45: =IFERROR(VLOOKUP($A45,Filtro!$A$4:$AY$1887,15,FALSE),0) -> 0 | R45: =IFERROR(VLOOKUP($A45,Filtro!$A$4:$AY$1887,16,FALSE),0) -> 0 | S45: =IFERROR(VLOOKUP($A45,Filtro!$A$4:$AY$1887,17,FALSE),0) -> 0 | T45: =IFERROR(VLOOKUP($A45,Filtro!$A$4:$AY$1887,18,FALSE),0) -> 0 | U45: =IFERROR(VLOOKUP($A45,Filtro!$A$4:$AY$1887,19,FALSE),0) -> 0 | V45: =IFERROR(VLOOKUP($A45,Filtro!$A$4:$AY$1887,20,FALSE),0) -> 0 | W45: =IFERROR(VLOOKUP($A45,Filtro!$A$4:$AY$1887,21,FALSE),0) -> 0 | X45: =IFERROR(VLOOKUP($A45,Filtro!$A$4:$AY$1887,22,FALSE),0) -> 0 | Y45: =IFERROR(VLOOKUP($A45,Filtro!$A$4:$AY$1887,23,FALSE),0) -> 0 | Z45: =IFERROR(VLOOKUP($A45,Filtro!$A$4:$AY$1887,24,FALSE),0) -> 0 | AA45: =IFERROR(VLOOKUP($A45,Filtro!$A$4:$AY$1887,25,FALSE),0) -> 0 | AB45: =IFERROR(VLOOKUP($A45,Filtro!$A$4:$AY$1887,26,FALSE),0) -> 0 | AC45: =IFERROR(VLOOKUP($A45,Filtro!$A$4:$AY$1887,27,FALSE),0) -> 0 | AD45: =IFERROR(VLOOKUP($A45,Filtro!$A$4:$AY$1887,28,FALSE),0) -> 0 | AE45: =IFERROR(VLOOKUP($A45,Filtro!$A$4:$AY$1887,29,FALSE),0) -> 0 | AF45: =IFERROR(VLOOKUP($A45,Filtro!$A$4:$AY$1887,30,FALSE),0) -> 0 | AG45: =IFERROR(VLOOKUP($A45,Filtro!$A$4:$AY$1887,31,FALSE),0) -> 8 | AH45: =IFERROR(VLOOKUP($A45,Filtro!$A$4:$AY$1887,32,FALSE),0) -> 5 | AI45: =IFERROR(VLOOKUP($A45,Filtro!$A$4:$AY$1887,33,FALSE),0) -> 6 | AJ45: =IFERROR(VLOOKUP($A45,Filtro!$A$4:$AY$1887,34,FALSE),0) -> 11 | AK45: =IFERROR(VLOOKUP($A45,Filtro!$A$4:$AY$1887,35,FALSE),0) -> 3 | AL45: =IFERROR(VLOOKUP($A45,Filtro!$A$4:$AY$1887,36,FALSE),0) -> 11 | AM45: =IFERROR(VLOOKUP($A45,Filtro!$A$4:$AY$1887,37,FALSE),0) -> 16 | AN45: =IFERROR(VLOOKUP($A45,Filtro!$A$4:$AY$1887,38,FALSE),0) -> 22 | AO45: =IFERROR(VLOOKUP($A45,Filtro!$A$4:$AY$1887,39,FALSE),0) -> 81 | CJ45: 0
A46: 01030200B | C46: ENFERMERA /O | D46: =IFERROR(VLOOKUP($A46,Filtro!$A$4:$AY$1887,2,FALSE),0) -> 1706 | E46: =IFERROR(VLOOKUP($A46,Filtro!$A$4:$AY$1887,3,FALSE),0) -> 666 | F46: =IFERROR(VLOOKUP($A46,Filtro!$A$4:$AY$1887,4,FALSE),0) -> 1040 | G46: =IFERROR(VLOOKUP($A46,Filtro!$A$4:$AY$1887,5,FALSE),0) -> 0 | H46: =IFERROR(VLOOKUP($A46,Filtro!$A$4:$AY$1887,6,FALSE),0) -> 0 | I46: =IFERROR(VLOOKUP($A46,Filtro!$A$4:$AY$1887,7,FALSE),0) -> 0 | J46: =IFERROR(VLOOKUP($A46,Filtro!$A$4:$AY$1887,8,FALSE),0) -> 0 | K46: =IFERROR(VLOOKUP($A46,Filtro!$A$4:$AY$1887,9,FALSE),0) -> 0 | L46: =IFERROR(VLOOKUP($A46,Filtro!$A$4:$AY$1887,10,FALSE),0) -> 0 | M46: =IFERROR(VLOOKUP($A46,Filtro!$A$4:$AY$1887,11,FALSE),0) -> 0 | N46: =IFERROR(VLOOKUP($A46,Filtro!$A$4:$AY$1887,12,FALSE),0) -> 0 | O46: =IFERROR(VLOOKUP($A46,Filtro!$A$4:$AY$1887,13,FALSE),0) -> 0 | P46: =IFERROR(VLOOKUP($A46,Filtro!$A$4:$AY$1887,14,FALSE),0) -> 0 | Q46: =IFERROR(VLOOKUP($A46,Filtro!$A$4:$AY$1887,15,FALSE),0) -> 0 | R46: =IFERROR(VLOOKUP($A46,Filtro!$A$4:$AY$1887,16,FALSE),0) -> 0 | S46: =IFERROR(VLOOKUP($A46,Filtro!$A$4:$AY$1887,17,FALSE),0) -> 0 | T46: =IFERROR(VLOOKUP($A46,Filtro!$A$4:$AY$1887,18,FALSE),0) -> 0 | U46: =IFERROR(VLOOKUP($A46,Filtro!$A$4:$AY$1887,19,FALSE),0) -> 0 | V46: =IFERROR(VLOOKUP($A46,Filtro!$A$4:$AY$1887,20,FALSE),0) -> 0 | W46: =IFERROR(VLOOKUP($A46,Filtro!$A$4:$AY$1887,21,FALSE),0) -> 0 | X46: =IFERROR(VLOOKUP($A46,Filtro!$A$4:$AY$1887,22,FALSE),0) -> 0 | Y46: =IFERROR(VLOOKUP($A46,Filtro!$A$4:$AY$1887,23,FALSE),0) -> 0 | Z46: =IFERROR(VLOOKUP($A46,Filtro!$A$4:$AY$1887,24,FALSE),0) -> 0 | AA46: =IFERROR(VLOOKUP($A46,Filtro!$A$4:$AY$1887,25,FALSE),0) -> 0 | AB46: =IFERROR(VLOOKUP($A46,Filtro!$A$4:$AY$1887,26,FALSE),0) -> 0 | AC46: =IFERROR(VLOOKUP($A46,Filtro!$A$4:$AY$1887,27,FALSE),0) -> 0 | AD46: =IFERROR(VLOOKUP($A46,Filtro!$A$4:$AY$1887,28,FALSE),0) -> 0 | AE46: =IFERROR(VLOOKUP($A46,Filtro!$A$4:$AY$1887,29,FALSE),0) -> 0 | AF46: =IFERROR(VLOOKUP($A46,Filtro!$A$4:$AY$1887,30,FALSE),0) -> 0 | AG46: =IFERROR(VLOOKUP($A46,Filtro!$A$4:$AY$1887,31,FALSE),0) -> 166 | AH46: =IFERROR(VLOOKUP($A46,Filtro!$A$4:$AY$1887,32,FALSE),0) -> 285 | AI46: =IFERROR(VLOOKUP($A46,Filtro!$A$4:$AY$1887,33,FALSE),0) -> 168 | AJ46: =IFERROR(VLOOKUP($A46,Filtro!$A$4:$AY$1887,34,FALSE),0) -> 287 | AK46: =IFERROR(VLOOKUP($A46,Filtro!$A$4:$AY$1887,35,FALSE),0) -> 172 | AL46: =IFERROR(VLOOKUP($A46,Filtro!$A$4:$AY$1887,36,FALSE),0) -> 255 | AM46: =IFERROR(VLOOKUP($A46,Filtro!$A$4:$AY$1887,37,FALSE),0) -> 160 | AN46: =IFERROR(VLOOKUP($A46,Filtro!$A$4:$AY$1887,38,FALSE),0) -> 213 | AO46: =IFERROR(VLOOKUP($A46,Filtro!$A$4:$AY$1887,39,FALSE),0) -> 1684 | CJ46: 0
A47: 01030300C | B47: SEGUIMIENTO RIESGO DEPENDENCIA | C47: MÉDICO | D47: =IFERROR(VLOOKUP($A47,Filtro!$A$4:$AY$1887,2,FALSE),0) -> 60 | E47: =IFERROR(VLOOKUP($A47,Filtro!$A$4:$AY$1887,3,FALSE),0) -> 24 | F47: =IFERROR(VLOOKUP($A47,Filtro!$A$4:$AY$1887,4,FALSE),0) -> 36 | G47: =IFERROR(VLOOKUP($A47,Filtro!$A$4:$AY$1887,5,FALSE),0) -> 0 | H47: =IFERROR(VLOOKUP($A47,Filtro!$A$4:$AY$1887,6,FALSE),0) -> 0 | I47: =IFERROR(VLOOKUP($A47,Filtro!$A$4:$AY$1887,7,FALSE),0) -> 0 | J47: =IFERROR(VLOOKUP($A47,Filtro!$A$4:$AY$1887,8,FALSE),0) -> 0 | K47: =IFERROR(VLOOKUP($A47,Filtro!$A$4:$AY$1887,9,FALSE),0) -> 0 | L47: =IFERROR(VLOOKUP($A47,Filtro!$A$4:$AY$1887,10,FALSE),0) -> 0 | M47: =IFERROR(VLOOKUP($A47,Filtro!$A$4:$AY$1887,11,FALSE),0) -> 0 | N47: =IFERROR(VLOOKUP($A47,Filtro!$A$4:$AY$1887,12,FALSE),0) -> 0 | O47: =IFERROR(VLOOKUP($A47,Filtro!$A$4:$AY$1887,13,FALSE),0) -> 0 | P47: =IFERROR(VLOOKUP($A47,Filtro!$A$4:$AY$1887,14,FALSE),0) -> 0 | Q47: =IFERROR(VLOOKUP($A47,Filtro!$A$4:$AY$1887,15,FALSE),0) -> 0 | R47: =IFERROR(VLOOKUP($A47,Filtro!$A$4:$AY$1887,16,FALSE),0) -> 0 | S47: =IFERROR(VLOOKUP($A47,Filtro!$A$4:$AY$1887,17,FALSE),0) -> 0 | T47: =IFERROR(VLOOKUP($A47,Filtro!$A$4:$AY$1887,18,FALSE),0) -> 0 | U47: =IFERROR(VLOOKUP($A47,Filtro!$A$4:$AY$1887,19,FALSE),0) -> 0 | V47: =IFERROR(VLOOKUP($A47,Filtro!$A$4:$AY$1887,20,FALSE),0) -> 0 | W47: =IFERROR(VLOOKUP($A47,Filtro!$A$4:$AY$1887,21,FALSE),0) -> 0 | X47: =IFERROR(VLOOKUP($A47,Filtro!$A$4:$AY$1887,22,FALSE),0) -> 0 | Y47: =IFERROR(VLOOKUP($A47,Filtro!$A$4:$AY$1887,23,FALSE),0) -> 0 | Z47: =IFERROR(VLOOKUP($A47,Filtro!$A$4:$AY$1887,24,FALSE),0) -> 0 | AA47: =IFERROR(VLOOKUP($A47,Filtro!$A$4:$AY$1887,25,FALSE),0) -> 0 | AB47: =IFERROR(VLOOKUP($A47,Filtro!$A$4:$AY$1887,26,FALSE),0) -> 0 | AC47: =IFERROR(VLOOKUP($A47,Filtro!$A$4:$AY$1887,27,FALSE),0) -> 0 | AD47: =IFERROR(VLOOKUP($A47,Filtro!$A$4:$AY$1887,28,FALSE),0) -> 0 | AE47: =IFERROR(VLOOKUP($A47,Filtro!$A$4:$AY$1887,29,FALSE),0) -> 0 | AF47: =IFERROR(VLOOKUP($A47,Filtro!$A$4:$AY$1887,30,FALSE),0) -> 0 | AG47: =IFERROR(VLOOKUP($A47,Filtro!$A$4:$AY$1887,31,FALSE),0) -> 6 | AH47: =IFERROR(VLOOKUP($A47,Filtro!$A$4:$AY$1887,32,FALSE),0) -> 3 | AI47: =IFERROR(VLOOKUP($A47,Filtro!$A$4:$AY$1887,33,FALSE),0) -> 5 | AJ47: =IFERROR(VLOOKUP($A47,Filtro!$A$4:$AY$1887,34,FALSE),0) -> 12 | AK47: =IFERROR(VLOOKUP($A47,Filtro!$A$4:$AY$1887,35,FALSE),0) -> 6 | AL47: =IFERROR(VLOOKUP($A47,Filtro!$A$4:$AY$1887,36,FALSE),0) -> 9 | AM47: =IFERROR(VLOOKUP($A47,Filtro!$A$4:$AY$1887,37,FALSE),0) -> 7 | AN47: =IFERROR(VLOOKUP($A47,Filtro!$A$4:$AY$1887,38,FALSE),0) -> 12 | AO47: =IFERROR(VLOOKUP($A47,Filtro!$A$4:$AY$1887,39,FALSE),0) -> 59 | CJ47: 0
A48: 01030400D | C48: ENFERMERA /O | D48: =IFERROR(VLOOKUP($A48,Filtro!$A$4:$AY$1887,2,FALSE),0) -> 583 | E48: =IFERROR(VLOOKUP($A48,Filtro!$A$4:$AY$1887,3,FALSE),0) -> 239 | F48: =IFERROR(VLOOKUP($A48,Filtro!$A$4:$AY$1887,4,FALSE),0) -> 344 | G48: =IFERROR(VLOOKUP($A48,Filtro!$A$4:$AY$1887,5,FALSE),0) -> 0 | H48: =IFERROR(VLOOKUP($A48,Filtro!$A$4:$AY$1887,6,FALSE),0) -> 0 | I48: =IFERROR(VLOOKUP($A48,Filtro!$A$4:$AY$1887,7,FALSE),0) -> 0 | J48: =IFERROR(VLOOKUP($A48,Filtro!$A$4:$AY$1887,8,FALSE),0) -> 0 | K48: =IFERROR(VLOOKUP($A48,Filtro!$A$4:$AY$1887,9,FALSE),0) -> 0 | L48: =IFERROR(VLOOKUP($A48,Filtro!$A$4:$AY$1887,10,FALSE),0) -> 0 | M48: =IFERROR(VLOOKUP($A48,Filtro!$A$4:$AY$1887,11,FALSE),0) -> 0 | N48: =IFERROR(VLOOKUP($A48,Filtro!$A$4:$AY$1887,12,FALSE),0) -> 0 | O48: =IFERROR(VLOOKUP($A48,Filtro!$A$4:$AY$1887,13,FALSE),0) -> 0 | P48: =IFERROR(VLOOKUP($A48,Filtro!$A$4:$AY$1887,14,FALSE),0) -> 0 | Q48: =IFERROR(VLOOKUP($A48,Filtro!$A$4:$AY$1887,15,FALSE),0) -> 0 | R48: =IFERROR(VLOOKUP($A48,Filtro!$A$4:$AY$1887,16,FALSE),0) -> 0 | S48: =IFERROR(VLOOKUP($A48,Filtro!$A$4:$AY$1887,17,FALSE),0) -> 0 | T48: =IFERROR(VLOOKUP($A48,Filtro!$A$4:$AY$1887,18,FALSE),0) -> 0 | U48: =IFERROR(VLOOKUP($A48,Filtro!$A$4:$AY$1887,19,FALSE),0) -> 0 | V48: =IFERROR(VLOOKUP($A48,Filtro!$A$4:$AY$1887,20,FALSE),0) -> 0 | W48: =IFERROR(VLOOKUP($A48,Filtro!$A$4:$AY$1887,21,FALSE),0) -> 0 | X48: =IFERROR(VLOOKUP($A48,Filtro!$A$4:$AY$1887,22,FALSE),0) -> 0 | Y48: =IFERROR(VLOOKUP($A48,Filtro!$A$4:$AY$1887,23,FALSE),0) -> 0 | Z48: =IFERROR(VLOOKUP($A48,Filtro!$A$4:$AY$1887,24,FALSE),0) -> 0 | AA48: =IFERROR(VLOOKUP($A48,Filtro!$A$4:$AY$1887,25,FALSE),0) -> 0 | AB48: =IFERROR(VLOOKUP($A48,Filtro!$A$4:$AY$1887,26,FALSE),0) -> 0 | AC48: =IFERROR(VLOOKUP($A48,Filtro!$A$4:$AY$1887,27,FALSE),0) -> 0 | AD48: =IFERROR(VLOOKUP($A48,Filtro!$A$4:$AY$1887,28,FALSE),0) -> 0 | AE48: =IFERROR(VLOOKUP($A48,Filtro!$A$4:$AY$1887,29,FALSE),0) -> 0 | AF48: =IFERROR(VLOOKUP($A48,Filtro!$A$4:$AY$1887,30,FALSE),0) -> 0 | AG48: =IFERROR(VLOOKUP($A48,Filtro!$A$4:$AY$1887,31,FALSE),0) -> 32 | AH48: =IFERROR(VLOOKUP($A48,Filtro!$A$4:$AY$1887,32,FALSE),0) -> 43 | AI48: =IFERROR(VLOOKUP($A48,Filtro!$A$4:$AY$1887,33,FALSE),0) -> 30 | AJ48: =IFERROR(VLOOKUP($A48,Filtro!$A$4:$AY$1887,34,FALSE),0) -> 58 | AK48: =IFERROR(VLOOKUP($A48,Filtro!$A$4:$AY$1887,35,FALSE),0) -> 57 | AL48: =IFERROR(VLOOKUP($A48,Filtro!$A$4:$AY$1887,36,FALSE),0) -> 73 | AM48: =IFERROR(VLOOKUP($A48,Filtro!$A$4:$AY$1887,37,FALSE),0) -> 120 | AN48: =IFERROR(VLOOKUP($A48,Filtro!$A$4:$AY$1887,38,FALSE),0) -> 170 | AO48: =IFERROR(VLOOKUP($A48,Filtro!$A$4:$AY$1887,39,FALSE),0) -> 575 | CJ48: 0
A49: 01200010 | B49: DE INFECCIÓN TRANSMISIÓN SEXUAL | C49: MÉDICO | D49: =IFERROR(VLOOKUP($A49,Filtro!$A$4:$AY$1887,2,FALSE),0) -> 332 | E49: =IFERROR(VLOOKUP($A49,Filtro!$A$4:$AY$1887,3,FALSE),0) -> 113 | F49: =IFERROR(VLOOKUP($A49,Filtro!$A$4:$AY$1887,4,FALSE),0) -> 219 | G49: =IFERROR(VLOOKUP($A49,Filtro!$A$4:$AY$1887,5,FALSE),0) -> 1 | H49: =IFERROR(VLOOKUP($A49,Filtro!$A$4:$AY$1887,6,FALSE),0) -> 0 | I49: =IFERROR(VLOOKUP($A49,Filtro!$A$4:$AY$1887,7,FALSE),0) -> 1 | J49: =IFERROR(VLOOKUP($A49,Filtro!$A$4:$AY$1887,8,FALSE),0) -> 1 | K49: =IFERROR(VLOOKUP($A49,Filtro!$A$4:$AY$1887,9,FALSE),0) -> 1 | L49: =IFERROR(VLOOKUP($A49,Filtro!$A$4:$AY$1887,10,FALSE),0) -> 1 | M49: =IFERROR(VLOOKUP($A49,Filtro!$A$4:$AY$1887,11,FALSE),0) -> 5 | N49: =IFERROR(VLOOKUP($A49,Filtro!$A$4:$AY$1887,12,FALSE),0) -> 5 | O49: =IFERROR(VLOOKUP($A49,Filtro!$A$4:$AY$1887,13,FALSE),0) -> 15 | P49: =IFERROR(VLOOKUP($A49,Filtro!$A$4:$AY$1887,14,FALSE),0) -> 6 | Q49: =IFERROR(VLOOKUP($A49,Filtro!$A$4:$AY$1887,15,FALSE),0) -> 3 | R49: =IFERROR(VLOOKUP($A49,Filtro!$A$4:$AY$1887,16,FALSE),0) -> 5 | S49: =IFERROR(VLOOKUP($A49,Filtro!$A$4:$AY$1887,17,FALSE),0) -> 5 | T49: =IFERROR(VLOOKUP($A49,Filtro!$A$4:$AY$1887,18,FALSE),0) -> 7 | U49: =IFERROR(VLOOKUP($A49,Filtro!$A$4:$AY$1887,19,FALSE),0) -> 11 | V49: =IFERROR(VLOOKUP($A49,Filtro!$A$4:$AY$1887,20,FALSE),0) -> 7 | W49: =IFERROR(VLOOKUP($A49,Filtro!$A$4:$AY$1887,21,FALSE),0) -> 3 | X49: =IFERROR(VLOOKUP($A49,Filtro!$A$4:$AY$1887,22,FALSE),0) -> 14 | Y49: =IFERROR(VLOOKUP($A49,Filtro!$A$4:$AY$1887,23,FALSE),0) -> 3 | Z49: =IFERROR(VLOOKUP($A49,Filtro!$A$4:$AY$1887,24,FALSE),0) -> 9 | AA49: =IFERROR(VLOOKUP($A49,Filtro!$A$4:$AY$1887,25,FALSE),0) -> 5 | AB49: =IFERROR(VLOOKUP($A49,Filtro!$A$4:$AY$1887,26,FALSE),0) -> 6 | AC49: =IFERROR(VLOOKUP($A49,Filtro!$A$4:$AY$1887,27,FALSE),0) -> 10 | AD49: =IFERROR(VLOOKUP($A49,Filtro!$A$4:$AY$1887,28,FALSE),0) -> 28 | AE49: =IFERROR(VLOOKUP($A49,Filtro!$A$4:$AY$1887,29,FALSE),0) -> 11 | AF49: =IFERROR(VLOOKUP($A49,Filtro!$A$4:$AY$1887,30,FALSE),0) -> 29 | AG49: =IFERROR(VLOOKUP($A49,Filtro!$A$4:$AY$1887,31,FALSE),0) -> 5 | AH49: =IFERROR(VLOOKUP($A49,Filtro!$A$4:$AY$1887,32,FALSE),0) -> 26 | AI49: =IFERROR(VLOOKUP($A49,Filtro!$A$4:$AY$1887,33,FALSE),0) -> 11 | AJ49: =IFERROR(VLOOKUP($A49,Filtro!$A$4:$AY$1887,34,FALSE),0) -> 38 | AK49: =IFERROR(VLOOKUP($A49,Filtro!$A$4:$AY$1887,35,FALSE),0) -> 10 | AL49: =IFERROR(VLOOKUP($A49,Filtro!$A$4:$AY$1887,36,FALSE),0) -> 15 | AM49: =IFERROR(VLOOKUP($A49,Filtro!$A$4:$AY$1887,37,FALSE),0) -> 13 | AN49: =IFERROR(VLOOKUP($A49,Filtro!$A$4:$AY$1887,38,FALSE),0) -> 22 | AO49: =IFERROR(VLOOKUP($A49,Filtro!$A$4:$AY$1887,39,FALSE),0) -> 327 | CJ49: 0
A50: 01200020 | C50: ENFERMERA /O | D50: =IFERROR(VLOOKUP($A50,Filtro!$A$4:$AY$1887,2,FALSE),0) -> 5 | E50: =IFERROR(VLOOKUP($A50,Filtro!$A$4:$AY$1887,3,FALSE),0) -> 2 | F50: =IFERROR(VLOOKUP($A50,Filtro!$A$4:$AY$1887,4,FALSE),0) -> 3 | G50: =IFERROR(VLOOKUP($A50,Filtro!$A$4:$AY$1887,5,FALSE),0) -> 2 | H50: =IFERROR(VLOOKUP($A50,Filtro!$A$4:$AY$1887,6,FALSE),0) -> 0 | I50: =IFERROR(VLOOKUP($A50,Filtro!$A$4:$AY$1887,7,FALSE),0) -> 0 | J50: =IFERROR(VLOOKUP($A50,Filtro!$A$4:$AY$1887,8,FALSE),0) -> 0 | K50: =IFERROR(VLOOKUP($A50,Filtro!$A$4:$AY$1887,9,FALSE),0) -> 0 | L50: =IFERROR(VLOOKUP($A50,Filtro!$A$4:$AY$1887,10,FALSE),0) -> 1 | M50: =IFERROR(VLOOKUP($A50,Filtro!$A$4:$AY$1887,11,FALSE),0) -> 0 | N50: =IFERROR(VLOOKUP($A50,Filtro!$A$4:$AY$1887,12,FALSE),0) -> 0 | O50: =IFERROR(VLOOKUP($A50,Filtro!$A$4:$AY$1887,13,FALSE),0) -> 0 | P50: =IFERROR(VLOOKUP($A50,Filtro!$A$4:$AY$1887,14,FALSE),0) -> 0 | Q50: =IFERROR(VLOOKUP($A50,Filtro!$A$4:$AY$1887,15,FALSE),0) -> 0 | R50: =IFERROR(VLOOKUP($A50,Filtro!$A$4:$AY$1887,16,FALSE),0) -> 0 | S50: =IFERROR(VLOOKUP($A50,Filtro!$A$4:$AY$1887,17,FALSE),0) -> 0 | T50: =IFERROR(VLOOKUP($A50,Filtro!$A$4:$AY$1887,18,FALSE),0) -> 0 | U50: =IFERROR(VLOOKUP($A50,Filtro!$A$4:$AY$1887,19,FALSE),0) -> 0 | V50: =IFERROR(VLOOKUP($A50,Filtro!$A$4:$AY$1887,20,FALSE),0) -> 0 | W50: =IFERROR(VLOOKUP($A50,Filtro!$A$4:$AY$1887,21,FALSE),0) -> 0 | X50: =IFERROR(VLOOKUP($A50,Filtro!$A$4:$AY$1887,22,FALSE),0) -> 0 | Y50: =IFERROR(VLOOKUP($A50,Filtro!$A$4:$AY$1887,23,FALSE),0) -> 0 | Z50: =IFERROR(VLOOKUP($A50,Filtro!$A$4:$AY$1887,24,FALSE),0) -> 0 | AA50: =IFERROR(VLOOKUP($A50,Filtro!$A$4:$AY$1887,25,FALSE),0) -> 0 | AB50: =IFERROR(VLOOKUP($A50,Filtro!$A$4:$AY$1887,26,FALSE),0) -> 0 | AC50: =IFERROR(VLOOKUP($A50,Filtro!$A$4:$AY$1887,27,FALSE),0) -> 0 | AD50: =IFERROR(VLOOKUP($A50,Filtro!$A$4:$AY$1887,28,FALSE),0) -> 1 | AE50: =IFERROR(VLOOKUP($A50,Filtro!$A$4:$AY$1887,29,FALSE),0) -> 0 | AF50: =IFERROR(VLOOKUP($A50,Filtro!$A$4:$AY$1887,30,FALSE),0) -> 0 | AG50: =IFERROR(VLOOKUP($A50,Filtro!$A$4:$AY$1887,31,FALSE),0) -> 0 | AH50: =IFERROR(VLOOKUP($A50,Filtro!$A$4:$AY$1887,32,FALSE),0) -> 0 | AI50: =IFERROR(VLOOKUP($A50,Filtro!$A$4:$AY$1887,33,FALSE),0) -> 0 | AJ50: =IFERROR(VLOOKUP($A50,Filtro!$A$4:$AY$1887,34,FALSE),0) -> 1 | AK50: =IFERROR(VLOOKUP($A50,Filtro!$A$4:$AY$1887,35,FALSE),0) -> 0 | AL50: =IFERROR(VLOOKUP($A50,Filtro!$A$4:$AY$1887,36,FALSE),0) -> 0 | AM50: =IFERROR(VLOOKUP($A50,Filtro!$A$4:$AY$1887,37,FALSE),0) -> 0 | AN50: =IFERROR(VLOOKUP($A50,Filtro!$A$4:$AY$1887,38,FALSE),0) -> 0 | AO50: =IFERROR(VLOOKUP($A50,Filtro!$A$4:$AY$1887,39,FALSE),0) -> 5 | CJ50: 0
A51: 01200030 | C51: MATRONA /ÓN | D51: =IFERROR(VLOOKUP($A51,Filtro!$A$4:$AY$1887,2,FALSE),0) -> 423 | E51: =IFERROR(VLOOKUP($A51,Filtro!$A$4:$AY$1887,3,FALSE),0) -> 76 | F51: =IFERROR(VLOOKUP($A51,Filtro!$A$4:$AY$1887,4,FALSE),0) -> 347 | G51: =IFERROR(VLOOKUP($A51,Filtro!$A$4:$AY$1887,5,FALSE),0) -> 1 | H51: =IFERROR(VLOOKUP($A51,Filtro!$A$4:$AY$1887,6,FALSE),0) -> 6 | I51: =IFERROR(VLOOKUP($A51,Filtro!$A$4:$AY$1887,7,FALSE),0) -> 1 | J51: =IFERROR(VLOOKUP($A51,Filtro!$A$4:$AY$1887,8,FALSE),0) -> 1 | K51: =IFERROR(VLOOKUP($A51,Filtro!$A$4:$AY$1887,9,FALSE),0) -> 0 | L51: =IFERROR(VLOOKUP($A51,Filtro!$A$4:$AY$1887,10,FALSE),0) -> 6 | M51: =IFERROR(VLOOKUP($A51,Filtro!$A$4:$AY$1887,11,FALSE),0) -> 14 | N51: =IFERROR(VLOOKUP($A51,Filtro!$A$4:$AY$1887,12,FALSE),0) -> 39 | O51: =IFERROR(VLOOKUP($A51,Filtro!$A$4:$AY$1887,13,FALSE),0) -> 6 | P51: =IFERROR(VLOOKUP($A51,Filtro!$A$4:$AY$1887,14,FALSE),0) -> 64 | Q51: =IFERROR(VLOOKUP($A51,Filtro!$A$4:$AY$1887,15,FALSE),0) -> 16 | R51: =IFERROR(VLOOKUP($A51,Filtro!$A$4:$AY$1887,16,FALSE),0) -> 49 | S51: =IFERROR(VLOOKUP($A51,Filtro!$A$4:$AY$1887,17,FALSE),0) -> 11 | T51: =IFERROR(VLOOKUP($A51,Filtro!$A$4:$AY$1887,18,FALSE),0) -> 36 | U51: =IFERROR(VLOOKUP($A51,Filtro!$A$4:$AY$1887,19,FALSE),0) -> 4 | V51: =IFERROR(VLOOKUP($A51,Filtro!$A$4:$AY$1887,20,FALSE),0) -> 35 | W51: =IFERROR(VLOOKUP($A51,Filtro!$A$4:$AY$1887,21,FALSE),0) -> 2 | X51: =IFERROR(VLOOKUP($A51,Filtro!$A$4:$AY$1887,22,FALSE),0) -> 25 | Y51: =IFERROR(VLOOKUP($A51,Filtro!$A$4:$AY$1887,23,FALSE),0) -> 4 | Z51: =IFERROR(VLOOKUP($A51,Filtro!$A$4:$AY$1887,24,FALSE),0) -> 21 | AA51: =IFERROR(VLOOKUP($A51,Filtro!$A$4:$AY$1887,25,FALSE),0) -> 4 | AB51: =IFERROR(VLOOKUP($A51,Filtro!$A$4:$AY$1887,26,FALSE),0) -> 16 | AC51: =IFERROR(VLOOKUP($A51,Filtro!$A$4:$AY$1887,27,FALSE),0) -> 3 | AD51: =IFERROR(VLOOKUP($A51,Filtro!$A$4:$AY$1887,28,FALSE),0) -> 14 | AE51: =IFERROR(VLOOKUP($A51,Filtro!$A$4:$AY$1887,29,FALSE),0) -> 2 | AF51: =IFERROR(VLOOKUP($A51,Filtro!$A$4:$AY$1887,30,FALSE),0) -> 10 | AG51: =IFERROR(VLOOKUP($A51,Filtro!$A$4:$AY$1887,31,FALSE),0) -> 2 | AH51: =IFERROR(VLOOKUP($A51,Filtro!$A$4:$AY$1887,32,FALSE),0) -> 11 | AI51: =IFERROR(VLOOKUP($A51,Filtro!$A$4:$AY$1887,33,FALSE),0) -> 2 | AJ51: =IFERROR(VLOOKUP($A51,Filtro!$A$4:$AY$1887,34,FALSE),0) -> 6 | AK51: =IFERROR(VLOOKUP($A51,Filtro!$A$4:$AY$1887,35,FALSE),0) -> 0 | AL51: =IFERROR(VLOOKUP($A51,Filtro!$A$4:$AY$1887,36,FALSE),0) -> 5 | AM51: =IFERROR(VLOOKUP($A51,Filtro!$A$4:$AY$1887,37,FALSE),0) -> 4 | AN51: =IFERROR(VLOOKUP($A51,Filtro!$A$4:$AY$1887,38,FALSE),0) -> 3 | AO51: =IFERROR(VLOOKUP($A51,Filtro!$A$4:$AY$1887,39,FALSE),0) -> 416 | CJ51: 0
A52: 03030140 | B52: OTROS PROBLEMAS DE SALUD | C52: MÉDICO | D52: =IFERROR(VLOOKUP($A52,Filtro!$A$4:$AY$1887,2,FALSE),0) -> 32405 | E52: =IFERROR(VLOOKUP($A52,Filtro!$A$4:$AY$1887,3,FALSE),0) -> 9134 | F52: =IFERROR(VLOOKUP($A52,Filtro!$A$4:$AY$1887,4,FALSE),0) -> 23271 | G52: =IFERROR(VLOOKUP($A52,Filtro!$A$4:$AY$1887,5,FALSE),0) -> 204 | H52: =IFERROR(VLOOKUP($A52,Filtro!$A$4:$AY$1887,6,FALSE),0) -> 168 | I52: =IFERROR(VLOOKUP($A52,Filtro!$A$4:$AY$1887,7,FALSE),0) -> 194 | J52: =IFERROR(VLOOKUP($A52,Filtro!$A$4:$AY$1887,8,FALSE),0) -> 158 | K52: =IFERROR(VLOOKUP($A52,Filtro!$A$4:$AY$1887,9,FALSE),0) -> 194 | L52: =IFERROR(VLOOKUP($A52,Filtro!$A$4:$AY$1887,10,FALSE),0) -> 206 | M52: =IFERROR(VLOOKUP($A52,Filtro!$A$4:$AY$1887,11,FALSE),0) -> 201 | N52: =IFERROR(VLOOKUP($A52,Filtro!$A$4:$AY$1887,12,FALSE),0) -> 353 | O52: =IFERROR(VLOOKUP($A52,Filtro!$A$4:$AY$1887,13,FALSE),0) -> 169 | P52: =IFERROR(VLOOKUP($A52,Filtro!$A$4:$AY$1887,14,FALSE),0) -> 486 | Q52: =IFERROR(VLOOKUP($A52,Filtro!$A$4:$AY$1887,15,FALSE),0) -> 160 | R52: =IFERROR(VLOOKUP($A52,Filtro!$A$4:$AY$1887,16,FALSE),0) -> 657 | S52: =IFERROR(VLOOKUP($A52,Filtro!$A$4:$AY$1887,17,FALSE),0) -> 191 | T52: =IFERROR(VLOOKUP($A52,Filtro!$A$4:$AY$1887,18,FALSE),0) -> 805 | U52: =IFERROR(VLOOKUP($A52,Filtro!$A$4:$AY$1887,19,FALSE),0) -> 207 | V52: =IFERROR(VLOOKUP($A52,Filtro!$A$4:$AY$1887,20,FALSE),0) -> 996 | W52: =IFERROR(VLOOKUP($A52,Filtro!$A$4:$AY$1887,21,FALSE),0) -> 262 | X52: =IFERROR(VLOOKUP($A52,Filtro!$A$4:$AY$1887,22,FALSE),0) -> 1324 | Y52: =IFERROR(VLOOKUP($A52,Filtro!$A$4:$AY$1887,23,FALSE),0) -> 305 | Z52: =IFERROR(VLOOKUP($A52,Filtro!$A$4:$AY$1887,24,FALSE),0) -> 1584 | AA52: =IFERROR(VLOOKUP($A52,Filtro!$A$4:$AY$1887,25,FALSE),0) -> 541 | AB52: =IFERROR(VLOOKUP($A52,Filtro!$A$4:$AY$1887,26,FALSE),0) -> 2265 | AC52: =IFERROR(VLOOKUP($A52,Filtro!$A$4:$AY$1887,27,FALSE),0) -> 812 | AD52: =IFERROR(VLOOKUP($A52,Filtro!$A$4:$AY$1887,28,FALSE),0) -> 2754 | AE52: =IFERROR(VLOOKUP($A52,Filtro!$A$4:$AY$1887,29,FALSE),0) -> 978 | AF52: =IFERROR(VLOOKUP($A52,Filtro!$A$4:$AY$1887,30,FALSE),0) -> 2742 | AG52: =IFERROR(VLOOKUP($A52,Filtro!$A$4:$AY$1887,31,FALSE),0) -> 1187 | AH52: =IFERROR(VLOOKUP($A52,Filtro!$A$4:$AY$1887,32,FALSE),0) -> 2601 | AI52: =IFERROR(VLOOKUP($A52,Filtro!$A$4:$AY$1887,33,FALSE),0) -> 1114 | AJ52: =IFERROR(VLOOKUP($A52,Filtro!$A$4:$AY$1887,34,FALSE),0) -> 2265 | AK52: =IFERROR(VLOOKUP($A52,Filtro!$A$4:$AY$1887,35,FALSE),0) -> 1081 | AL52: =IFERROR(VLOOKUP($A52,Filtro!$A$4:$AY$1887,36,FALSE),0) -> 1812 | AM52: =IFERROR(VLOOKUP($A52,Filtro!$A$4:$AY$1887,37,FALSE),0) -> 1334 | AN52: =IFERROR(VLOOKUP($A52,Filtro!$A$4:$AY$1887,38,FALSE),0) -> 2095 | AO52: =IFERROR(VLOOKUP($A52,Filtro!$A$4:$AY$1887,39,FALSE),0) -> 31398 | CJ52: 0
A53: 03030150 | C53: ENFERMERA /O | D53: =IFERROR(VLOOKUP($A53,Filtro!$A$4:$AY$1887,2,FALSE),0) -> 3506 | E53: =IFERROR(VLOOKUP($A53,Filtro!$A$4:$AY$1887,3,FALSE),0) -> 1321 | F53: =IFERROR(VLOOKUP($A53,Filtro!$A$4:$AY$1887,4,FALSE),0) -> 2185 | G53: =IFERROR(VLOOKUP($A53,Filtro!$A$4:$AY$1887,5,FALSE),0) -> 8 | H53: =IFERROR(VLOOKUP($A53,Filtro!$A$4:$AY$1887,6,FALSE),0) -> 15 | I53: =IFERROR(VLOOKUP($A53,Filtro!$A$4:$AY$1887,7,FALSE),0) -> 5 | J53: =IFERROR(VLOOKUP($A53,Filtro!$A$4:$AY$1887,8,FALSE),0) -> 14 | K53: =IFERROR(VLOOKUP($A53,Filtro!$A$4:$AY$1887,9,FALSE),0) -> 8 | L53: =IFERROR(VLOOKUP($A53,Filtro!$A$4:$AY$1887,10,FALSE),0) -> 7 | M53: =IFERROR(VLOOKUP($A53,Filtro!$A$4:$AY$1887,11,FALSE),0) -> 26 | N53: =IFERROR(VLOOKUP($A53,Filtro!$A$4:$AY$1887,12,FALSE),0) -> 16 | O53: =IFERROR(VLOOKUP($A53,Filtro!$A$4:$AY$1887,13,FALSE),0) -> 6 | P53: =IFERROR(VLOOKUP($A53,Filtro!$A$4:$AY$1887,14,FALSE),0) -> 28 | Q53: =IFERROR(VLOOKUP($A53,Filtro!$A$4:$AY$1887,15,FALSE),0) -> 14 | R53: =IFERROR(VLOOKUP($A53,Filtro!$A$4:$AY$1887,16,FALSE),0) -> 35 | S53: =IFERROR(VLOOKUP($A53,Filtro!$A$4:$AY$1887,17,FALSE),0) -> 9 | T53: =IFERROR(VLOOKUP($A53,Filtro!$A$4:$AY$1887,18,FALSE),0) -> 50 | U53: =IFERROR(VLOOKUP($A53,Filtro!$A$4:$AY$1887,19,FALSE),0) -> 16 | V53: =IFERROR(VLOOKUP($A53,Filtro!$A$4:$AY$1887,20,FALSE),0) -> 56 | W53: =IFERROR(VLOOKUP($A53,Filtro!$A$4:$AY$1887,21,FALSE),0) -> 18 | X53: =IFERROR(VLOOKUP($A53,Filtro!$A$4:$AY$1887,22,FALSE),0) -> 87 | Y53: =IFERROR(VLOOKUP($A53,Filtro!$A$4:$AY$1887,23,FALSE),0) -> 50 | Z53: =IFERROR(VLOOKUP($A53,Filtro!$A$4:$AY$1887,24,FALSE),0) -> 115 | AA53: =IFERROR(VLOOKUP($A53,Filtro!$A$4:$AY$1887,25,FALSE),0) -> 57 | AB53: =IFERROR(VLOOKUP($A53,Filtro!$A$4:$AY$1887,26,FALSE),0) -> 140 | AC53: =IFERROR(VLOOKUP($A53,Filtro!$A$4:$AY$1887,27,FALSE),0) -> 78 | AD53: =IFERROR(VLOOKUP($A53,Filtro!$A$4:$AY$1887,28,FALSE),0) -> 197 | AE53: =IFERROR(VLOOKUP($A53,Filtro!$A$4:$AY$1887,29,FALSE),0) -> 89 | AF53: =IFERROR(VLOOKUP($A53,Filtro!$A$4:$AY$1887,30,FALSE),0) -> 253 | AG53: =IFERROR(VLOOKUP($A53,Filtro!$A$4:$AY$1887,31,FALSE),0) -> 246 | AH53: =IFERROR(VLOOKUP($A53,Filtro!$A$4:$AY$1887,32,FALSE),0) -> 394 | AI53: =IFERROR(VLOOKUP($A53,Filtro!$A$4:$AY$1887,33,FALSE),0) -> 180 | AJ53: =IFERROR(VLOOKUP($A53,Filtro!$A$4:$AY$1887,34,FALSE),0) -> 282 | AK53: =IFERROR(VLOOKUP($A53,Filtro!$A$4:$AY$1887,35,FALSE),0) -> 309 | AL53: =IFERROR(VLOOKUP($A53,Filtro!$A$4:$AY$1887,36,FALSE),0) -> 201 | AM53: =IFERROR(VLOOKUP($A53,Filtro!$A$4:$AY$1887,37,FALSE),0) -> 202 | AN53: =IFERROR(VLOOKUP($A53,Filtro!$A$4:$AY$1887,38,FALSE),0) -> 295 | AO53: =IFERROR(VLOOKUP($A53,Filtro!$A$4:$AY$1887,39,FALSE),0) -> 3425 | CJ53: 0
A54: 03030170 | C54: MATRONA /ÓN | D54: =IFERROR(VLOOKUP($A54,Filtro!$A$4:$AY$1887,2,FALSE),0) -> 127 | E54: =IFERROR(VLOOKUP($A54,Filtro!$A$4:$AY$1887,3,FALSE),0) -> 7 | F54: =IFERROR(VLOOKUP($A54,Filtro!$A$4:$AY$1887,4,FALSE),0) -> 120 | G54: =IFERROR(VLOOKUP($A54,Filtro!$A$4:$AY$1887,5,FALSE),0) -> 2 | H54: =IFERROR(VLOOKUP($A54,Filtro!$A$4:$AY$1887,6,FALSE),0) -> 0 | I54: =IFERROR(VLOOKUP($A54,Filtro!$A$4:$AY$1887,7,FALSE),0) -> 0 | J54: =IFERROR(VLOOKUP($A54,Filtro!$A$4:$AY$1887,8,FALSE),0) -> 0 | K54: =IFERROR(VLOOKUP($A54,Filtro!$A$4:$AY$1887,9,FALSE),0) -> 0 | L54: =IFERROR(VLOOKUP($A54,Filtro!$A$4:$AY$1887,10,FALSE),0) -> 1 | M54: =IFERROR(VLOOKUP($A54,Filtro!$A$4:$AY$1887,11,FALSE),0) -> 0 | N54: =IFERROR(VLOOKUP($A54,Filtro!$A$4:$AY$1887,12,FALSE),0) -> 3 | O54: =IFERROR(VLOOKUP($A54,Filtro!$A$4:$AY$1887,13,FALSE),0) -> 0 | P54: =IFERROR(VLOOKUP($A54,Filtro!$A$4:$AY$1887,14,FALSE),0) -> 12 | Q54: =IFERROR(VLOOKUP($A54,Filtro!$A$4:$AY$1887,15,FALSE),0) -> 0 | R54: =IFERROR(VLOOKUP($A54,Filtro!$A$4:$AY$1887,16,FALSE),0) -> 16 | S54: =IFERROR(VLOOKUP($A54,Filtro!$A$4:$AY$1887,17,FALSE),0) -> 1 | T54: =IFERROR(VLOOKUP($A54,Filtro!$A$4:$AY$1887,18,FALSE),0) -> 15 | U54: =IFERROR(VLOOKUP($A54,Filtro!$A$4:$AY$1887,19,FALSE),0) -> 0 | V54: =IFERROR(VLOOKUP($A54,Filtro!$A$4:$AY$1887,20,FALSE),0) -> 11 | W54: =IFERROR(VLOOKUP($A54,Filtro!$A$4:$AY$1887,21,FALSE),0) -> 0 | X54: =IFERROR(VLOOKUP($A54,Filtro!$A$4:$AY$1887,22,FALSE),0) -> 12 | Y54: =IFERROR(VLOOKUP($A54,Filtro!$A$4:$AY$1887,23,FALSE),0) -> 0 | Z54: =IFERROR(VLOOKUP($A54,Filtro!$A$4:$AY$1887,24,FALSE),0) -> 12 | AA54: =IFERROR(VLOOKUP($A54,Filtro!$A$4:$AY$1887,25,FALSE),0) -> 1 | AB54: =IFERROR(VLOOKUP($A54,Filtro!$A$4:$AY$1887,26,FALSE),0) -> 10 | AC54: =IFERROR(VLOOKUP($A54,Filtro!$A$4:$AY$1887,27,FALSE),0) -> 0 | AD54: =IFERROR(VLOOKUP($A54,Filtro!$A$4:$AY$1887,28,FALSE),0) -> 7 | AE54: =IFERROR(VLOOKUP($A54,Filtro!$A$4:$AY$1887,29,FALSE),0) -> 0 | AF54: =IFERROR(VLOOKUP($A54,Filtro!$A$4:$AY$1887,30,FALSE),0) -> 7 | AG54: =IFERROR(VLOOKUP($A54,Filtro!$A$4:$AY$1887,31,FALSE),0) -> 1 | AH54: =IFERROR(VLOOKUP($A54,Filtro!$A$4:$AY$1887,32,FALSE),0) -> 9 | AI54: =IFERROR(VLOOKUP($A54,Filtro!$A$4:$AY$1887,33,FALSE),0) -> 1 | AJ54: =IFERROR(VLOOKUP($A54,Filtro!$A$4:$AY$1887,34,FALSE),0) -> 4 | AK54: =IFERROR(VLOOKUP($A54,Filtro!$A$4:$AY$1887,35,FALSE),0) -> 0 | AL54: =IFERROR(VLOOKUP($A54,Filtro!$A$4:$AY$1887,36,FALSE),0) -> 1 | AM54: =IFERROR(VLOOKUP($A54,Filtro!$A$4:$AY$1887,37,FALSE),0) -> 1 | AN54: =IFERROR(VLOOKUP($A54,Filtro!$A$4:$AY$1887,38,FALSE),0) -> 0 | AO54: =IFERROR(VLOOKUP($A54,Filtro!$A$4:$AY$1887,39,FALSE),0) -> 127 | CJ54: 0
A55: 03030160 | C55: NUTRICIONISTA | D55: =IFERROR(VLOOKUP($A55,Filtro!$A$4:$AY$1887,2,FALSE),0) -> 4297 | E55: =IFERROR(VLOOKUP($A55,Filtro!$A$4:$AY$1887,3,FALSE),0) -> 1204 | F55: =IFERROR(VLOOKUP($A55,Filtro!$A$4:$AY$1887,4,FALSE),0) -> 3093 | G55: =IFERROR(VLOOKUP($A55,Filtro!$A$4:$AY$1887,5,FALSE),0) -> 371 | H55: =IFERROR(VLOOKUP($A55,Filtro!$A$4:$AY$1887,6,FALSE),0) -> 354 | I55: =IFERROR(VLOOKUP($A55,Filtro!$A$4:$AY$1887,7,FALSE),0) -> 61 | J55: =IFERROR(VLOOKUP($A55,Filtro!$A$4:$AY$1887,8,FALSE),0) -> 75 | K55: =IFERROR(VLOOKUP($A55,Filtro!$A$4:$AY$1887,9,FALSE),0) -> 69 | L55: =IFERROR(VLOOKUP($A55,Filtro!$A$4:$AY$1887,10,FALSE),0) -> 87 | M55: =IFERROR(VLOOKUP($A55,Filtro!$A$4:$AY$1887,11,FALSE),0) -> 52 | N55: =IFERROR(VLOOKUP($A55,Filtro!$A$4:$AY$1887,12,FALSE),0) -> 184 | O55: =IFERROR(VLOOKUP($A55,Filtro!$A$4:$AY$1887,13,FALSE),0) -> 35 | P55: =IFERROR(VLOOKUP($A55,Filtro!$A$4:$AY$1887,14,FALSE),0) -> 195 | Q55: =IFERROR(VLOOKUP($A55,Filtro!$A$4:$AY$1887,15,FALSE),0) -> 19 | R55: =IFERROR(VLOOKUP($A55,Filtro!$A$4:$AY$1887,16,FALSE),0) -> 212 | S55: =IFERROR(VLOOKUP($A55,Filtro!$A$4:$AY$1887,17,FALSE),0) -> 34 | T55: =IFERROR(VLOOKUP($A55,Filtro!$A$4:$AY$1887,18,FALSE),0) -> 229 | U55: =IFERROR(VLOOKUP($A55,Filtro!$A$4:$AY$1887,19,FALSE),0) -> 34 | V55: =IFERROR(VLOOKUP($A55,Filtro!$A$4:$AY$1887,20,FALSE),0) -> 208 | W55: =IFERROR(VLOOKUP($A55,Filtro!$A$4:$AY$1887,21,FALSE),0) -> 33 | X55: =IFERROR(VLOOKUP($A55,Filtro!$A$4:$AY$1887,22,FALSE),0) -> 210 | Y55: =IFERROR(VLOOKUP($A55,Filtro!$A$4:$AY$1887,23,FALSE),0) -> 37 | Z55: =IFERROR(VLOOKUP($A55,Filtro!$A$4:$AY$1887,24,FALSE),0) -> 214 | AA55: =IFERROR(VLOOKUP($A55,Filtro!$A$4:$AY$1887,25,FALSE),0) -> 57 | AB55: =IFERROR(VLOOKUP($A55,Filtro!$A$4:$AY$1887,26,FALSE),0) -> 233 | AC55: =IFERROR(VLOOKUP($A55,Filtro!$A$4:$AY$1887,27,FALSE),0) -> 71 | AD55: =IFERROR(VLOOKUP($A55,Filtro!$A$4:$AY$1887,28,FALSE),0) -> 223 | AE55: =IFERROR(VLOOKUP($A55,Filtro!$A$4:$AY$1887,29,FALSE),0) -> 68 | AF55: =IFERROR(VLOOKUP($A55,Filtro!$A$4:$AY$1887,30,FALSE),0) -> 195 | AG55: =IFERROR(VLOOKUP($A55,Filtro!$A$4:$AY$1887,31,FALSE),0) -> 87 | AH55: =IFERROR(VLOOKUP($A55,Filtro!$A$4:$AY$1887,32,FALSE),0) -> 156 | AI55: =IFERROR(VLOOKUP($A55,Filtro!$A$4:$AY$1887,33,FALSE),0) -> 51 | AJ55: =IFERROR(VLOOKUP($A55,Filtro!$A$4:$AY$1887,34,FALSE),0) -> 135 | AK55: =IFERROR(VLOOKUP($A55,Filtro!$A$4:$AY$1887,35,FALSE),0) -> 64 | AL55: =IFERROR(VLOOKUP($A55,Filtro!$A$4:$AY$1887,36,FALSE),0) -> 88 | AM55: =IFERROR(VLOOKUP($A55,Filtro!$A$4:$AY$1887,37,FALSE),0) -> 61 | AN55: =IFERROR(VLOOKUP($A55,Filtro!$A$4:$AY$1887,38,FALSE),0) -> 95 | AO55: =IFERROR(VLOOKUP($A55,Filtro!$A$4:$AY$1887,39,FALSE),0) -> 4084 | CJ55: 0
A56: 03030180 | C56: TÉCNICO PARAMÉDICO | D56: =IFERROR(VLOOKUP($A56,Filtro!$A$4:$AY$1887,2,FALSE),0) -> 1479 | E56: =IFERROR(VLOOKUP($A56,Filtro!$A$4:$AY$1887,3,FALSE),0) -> 736 | F56: =IFERROR(VLOOKUP($A56,Filtro!$A$4:$AY$1887,4,FALSE),0) -> 743 | G56: =IFERROR(VLOOKUP($A56,Filtro!$A$4:$AY$1887,5,FALSE),0) -> 8 | H56: =IFERROR(VLOOKUP($A56,Filtro!$A$4:$AY$1887,6,FALSE),0) -> 18 | I56: =IFERROR(VLOOKUP($A56,Filtro!$A$4:$AY$1887,7,FALSE),0) -> 2 | J56: =IFERROR(VLOOKUP($A56,Filtro!$A$4:$AY$1887,8,FALSE),0) -> 2 | K56: =IFERROR(VLOOKUP($A56,Filtro!$A$4:$AY$1887,9,FALSE),0) -> 10 | L56: =IFERROR(VLOOKUP($A56,Filtro!$A$4:$AY$1887,10,FALSE),0) -> 13 | M56: =IFERROR(VLOOKUP($A56,Filtro!$A$4:$AY$1887,11,FALSE),0) -> 13 | N56: =IFERROR(VLOOKUP($A56,Filtro!$A$4:$AY$1887,12,FALSE),0) -> 4 | O56: =IFERROR(VLOOKUP($A56,Filtro!$A$4:$AY$1887,13,FALSE),0) -> 4 | P56: =IFERROR(VLOOKUP($A56,Filtro!$A$4:$AY$1887,14,FALSE),0) -> 10 | Q56: =IFERROR(VLOOKUP($A56,Filtro!$A$4:$AY$1887,15,FALSE),0) -> 15 | R56: =IFERROR(VLOOKUP($A56,Filtro!$A$4:$AY$1887,16,FALSE),0) -> 19 | S56: =IFERROR(VLOOKUP($A56,Filtro!$A$4:$AY$1887,17,FALSE),0) -> 14 | T56: =IFERROR(VLOOKUP($A56,Filtro!$A$4:$AY$1887,18,FALSE),0) -> 39 | U56: =IFERROR(VLOOKUP($A56,Filtro!$A$4:$AY$1887,19,FALSE),0) -> 16 | V56: =IFERROR(VLOOKUP($A56,Filtro!$A$4:$AY$1887,20,FALSE),0) -> 28 | W56: =IFERROR(VLOOKUP($A56,Filtro!$A$4:$AY$1887,21,FALSE),0) -> 13 | X56: =IFERROR(VLOOKUP($A56,Filtro!$A$4:$AY$1887,22,FALSE),0) -> 77 | Y56: =IFERROR(VLOOKUP($A56,Filtro!$A$4:$AY$1887,23,FALSE),0) -> 65 | Z56: =IFERROR(VLOOKUP($A56,Filtro!$A$4:$AY$1887,24,FALSE),0) -> 33 | AA56: =IFERROR(VLOOKUP($A56,Filtro!$A$4:$AY$1887,25,FALSE),0) -> 17 | AB56: =IFERROR(VLOOKUP($A56,Filtro!$A$4:$AY$1887,26,FALSE),0) -> 63 | AC56: =IFERROR(VLOOKUP($A56,Filtro!$A$4:$AY$1887,27,FALSE),0) -> 30 | AD56: =IFERROR(VLOOKUP($A56,Filtro!$A$4:$AY$1887,28,FALSE),0) -> 82 | AE56: =IFERROR(VLOOKUP($A56,Filtro!$A$4:$AY$1887,29,FALSE),0) -> 22 | AF56: =IFERROR(VLOOKUP($A56,Filtro!$A$4:$AY$1887,30,FALSE),0) -> 62 | AG56: =IFERROR(VLOOKUP($A56,Filtro!$A$4:$AY$1887,31,FALSE),0) -> 31 | AH56: =IFERROR(VLOOKUP($A56,Filtro!$A$4:$AY$1887,32,FALSE),0) -> 21 | AI56: =IFERROR(VLOOKUP($A56,Filtro!$A$4:$AY$1887,33,FALSE),0) -> 84 | AJ56: =IFERROR(VLOOKUP($A56,Filtro!$A$4:$AY$1887,34,FALSE),0) -> 36 | AK56: =IFERROR(VLOOKUP($A56,Filtro!$A$4:$AY$1887,35,FALSE),0) -> 115 | AL56: =IFERROR(VLOOKUP($A56,Filtro!$A$4:$AY$1887,36,FALSE),0) -> 80 | AM56: =IFERROR(VLOOKUP($A56,Filtro!$A$4:$AY$1887,37,FALSE),0) -> 277 | AN56: =IFERROR(VLOOKUP($A56,Filtro!$A$4:$AY$1887,38,FALSE),0) -> 156 | AO56: =IFERROR(VLOOKUP($A56,Filtro!$A$4:$AY$1887,39,FALSE),0) -> 1479 | CJ56: 0
A57: 01200031 | B57: NIÑOS CON NECESIDADES ESPECIALES | C57: MÉDICO | D57: =IFERROR(VLOOKUP($A57,Filtro!$A$4:$AY$1887,2,FALSE),0) -> 68 | E57: =IFERROR(VLOOKUP($A57,Filtro!$A$4:$AY$1887,3,FALSE),0) -> 37 | F57: =IFERROR(VLOOKUP($A57,Filtro!$A$4:$AY$1887,4,FALSE),0) -> 31 | G57: =IFERROR(VLOOKUP($A57,Filtro!$A$4:$AY$1887,5,FALSE),0) -> 19 | H57: =IFERROR(VLOOKUP($A57,Filtro!$A$4:$AY$1887,6,FALSE),0) -> 22 | I57: =IFERROR(VLOOKUP($A57,Filtro!$A$4:$AY$1887,7,FALSE),0) -> 11 | J57: =IFERROR(VLOOKUP($A57,Filtro!$A$4:$AY$1887,8,FALSE),0) -> 4 | K57: =IFERROR(VLOOKUP($A57,Filtro!$A$4:$AY$1887,9,FALSE),0) -> 4 | L57: =IFERROR(VLOOKUP($A57,Filtro!$A$4:$AY$1887,10,FALSE),0) -> 2 | M57: =IFERROR(VLOOKUP($A57,Filtro!$A$4:$AY$1887,11,FALSE),0) -> 2 | N57: =IFERROR(VLOOKUP($A57,Filtro!$A$4:$AY$1887,12,FALSE),0) -> 2 | O57: =IFERROR(VLOOKUP($A57,Filtro!$A$4:$AY$1887,13,FALSE),0) -> 1 | P57: =IFERROR(VLOOKUP($A57,Filtro!$A$4:$AY$1887,14,FALSE),0) -> 1 | Q57: =IFERROR(VLOOKUP($A57,Filtro!$A$4:$AY$1887,15,FALSE),0) -> 0 | R57: =IFERROR(VLOOKUP($A57,Filtro!$A$4:$AY$1887,16,FALSE),0) -> 0 | S57: =IFERROR(VLOOKUP($A57,Filtro!$A$4:$AY$1887,17,FALSE),0) -> 0 | T57: =IFERROR(VLOOKUP($A57,Filtro!$A$4:$AY$1887,18,FALSE),0) -> 0 | U57: =IFERROR(VLOOKUP($A57,Filtro!$A$4:$AY$1887,19,FALSE),0) -> 0 | V57: =IFERROR(VLOOKUP($A57,Filtro!$A$4:$AY$1887,20,FALSE),0) -> 0 | W57: =IFERROR(VLOOKUP($A57,Filtro!$A$4:$AY$1887,21,FALSE),0) -> 0 | X57: =IFERROR(VLOOKUP($A57,Filtro!$A$4:$AY$1887,22,FALSE),0) -> 0 | Y57: =IFERROR(VLOOKUP($A57,Filtro!$A$4:$AY$1887,23,FALSE),0) -> 0 | Z57: =IFERROR(VLOOKUP($A57,Filtro!$A$4:$AY$1887,24,FALSE),0) -> 0 | AA57: =IFERROR(VLOOKUP($A57,Filtro!$A$4:$AY$1887,25,FALSE),0) -> 0 | AB57: =IFERROR(VLOOKUP($A57,Filtro!$A$4:$AY$1887,26,FALSE),0) -> 0 | AC57: =IFERROR(VLOOKUP($A57,Filtro!$A$4:$AY$1887,27,FALSE),0) -> 0 | AD57: =IFERROR(VLOOKUP($A57,Filtro!$A$4:$AY$1887,28,FALSE),0) -> 0 | AE57: =IFERROR(VLOOKUP($A57,Filtro!$A$4:$AY$1887,29,FALSE),0) -> 0 | AF57: =IFERROR(VLOOKUP($A57,Filtro!$A$4:$AY$1887,30,FALSE),0) -> 0 | AG57: =IFERROR(VLOOKUP($A57,Filtro!$A$4:$AY$1887,31,FALSE),0) -> 0 | AH57: =IFERROR(VLOOKUP($A57,Filtro!$A$4:$AY$1887,32,FALSE),0) -> 0 | AI57: =IFERROR(VLOOKUP($A57,Filtro!$A$4:$AY$1887,33,FALSE),0) -> 0 | AJ57: =IFERROR(VLOOKUP($A57,Filtro!$A$4:$AY$1887,34,FALSE),0) -> 0 | AK57: =IFERROR(VLOOKUP($A57,Filtro!$A$4:$AY$1887,35,FALSE),0) -> 0 | AL57: =IFERROR(VLOOKUP($A57,Filtro!$A$4:$AY$1887,36,FALSE),0) -> 0 | AM57: =IFERROR(VLOOKUP($A57,Filtro!$A$4:$AY$1887,37,FALSE),0) -> 0 | AN57: =IFERROR(VLOOKUP($A57,Filtro!$A$4:$AY$1887,38,FALSE),0) -> 0 | AO57: =IFERROR(VLOOKUP($A57,Filtro!$A$4:$AY$1887,39,FALSE),0) -> 62 | CJ57: 0
A58: 01200032 | C58: ENFERMERA /O | D58: =IFERROR(VLOOKUP($A58,Filtro!$A$4:$AY$1887,2,FALSE),0) -> 97 | E58: =IFERROR(VLOOKUP($A58,Filtro!$A$4:$AY$1887,3,FALSE),0) -> 55 | F58: =IFERROR(VLOOKUP($A58,Filtro!$A$4:$AY$1887,4,FALSE),0) -> 42 | G58: =IFERROR(VLOOKUP($A58,Filtro!$A$4:$AY$1887,5,FALSE),0) -> 45 | H58: =IFERROR(VLOOKUP($A58,Filtro!$A$4:$AY$1887,6,FALSE),0) -> 34 | I58: =IFERROR(VLOOKUP($A58,Filtro!$A$4:$AY$1887,7,FALSE),0) -> 10 | J58: =IFERROR(VLOOKUP($A58,Filtro!$A$4:$AY$1887,8,FALSE),0) -> 5 | K58: =IFERROR(VLOOKUP($A58,Filtro!$A$4:$AY$1887,9,FALSE),0) -> 0 | L58: =IFERROR(VLOOKUP($A58,Filtro!$A$4:$AY$1887,10,FALSE),0) -> 2 | M58: =IFERROR(VLOOKUP($A58,Filtro!$A$4:$AY$1887,11,FALSE),0) -> 0 | N58: =IFERROR(VLOOKUP($A58,Filtro!$A$4:$AY$1887,12,FALSE),0) -> 0 | O58: =IFERROR(VLOOKUP($A58,Filtro!$A$4:$AY$1887,13,FALSE),0) -> 0 | P58: =IFERROR(VLOOKUP($A58,Filtro!$A$4:$AY$1887,14,FALSE),0) -> 1 | Q58: =IFERROR(VLOOKUP($A58,Filtro!$A$4:$AY$1887,15,FALSE),0) -> 0 | R58: =IFERROR(VLOOKUP($A58,Filtro!$A$4:$AY$1887,16,FALSE),0) -> 0 | S58: =IFERROR(VLOOKUP($A58,Filtro!$A$4:$AY$1887,17,FALSE),0) -> 0 | T58: =IFERROR(VLOOKUP($A58,Filtro!$A$4:$AY$1887,18,FALSE),0) -> 0 | U58: =IFERROR(VLOOKUP($A58,Filtro!$A$4:$AY$1887,19,FALSE),0) -> 0 | V58: =IFERROR(VLOOKUP($A58,Filtro!$A$4:$AY$1887,20,FALSE),0) -> 0 | W58: =IFERROR(VLOOKUP($A58,Filtro!$A$4:$AY$1887,21,FALSE),0) -> 0 | X58: =IFERROR(VLOOKUP($A58,Filtro!$A$4:$AY$1887,22,FALSE),0) -> 0 | Y58: =IFERROR(VLOOKUP($A58,Filtro!$A$4:$AY$1887,23,FALSE),0) -> 0 | Z58: =IFERROR(VLOOKUP($A58,Filtro!$A$4:$AY$1887,24,FALSE),0) -> 0 | AA58: =IFERROR(VLOOKUP($A58,Filtro!$A$4:$AY$1887,25,FALSE),0) -> 0 | AB58: =IFERROR(VLOOKUP($A58,Filtro!$A$4:$AY$1887,26,FALSE),0) -> 0 | AC58: =IFERROR(VLOOKUP($A58,Filtro!$A$4:$AY$1887,27,FALSE),0) -> 0 | AD58: =IFERROR(VLOOKUP($A58,Filtro!$A$4:$AY$1887,28,FALSE),0) -> 0 | AE58: =IFERROR(VLOOKUP($A58,Filtro!$A$4:$AY$1887,29,FALSE),0) -> 0 | AF58: =IFERROR(VLOOKUP($A58,Filtro!$A$4:$AY$1887,30,FALSE),0) -> 0 | AG58: =IFERROR(VLOOKUP($A58,Filtro!$A$4:$AY$1887,31,FALSE),0) -> 0 | AH58: =IFERROR(VLOOKUP($A58,Filtro!$A$4:$AY$1887,32,FALSE),0) -> 0 | AI58: =IFERROR(VLOOKUP($A58,Filtro!$A$4:$AY$1887,33,FALSE),0) -> 0 | AJ58: =IFERROR(VLOOKUP($A58,Filtro!$A$4:$AY$1887,34,FALSE),0) -> 0 | AK58: =IFERROR(VLOOKUP($A58,Filtro!$A$4:$AY$1887,35,FALSE),0) -> 0 | AL58: =IFERROR(VLOOKUP($A58,Filtro!$A$4:$AY$1887,36,FALSE),0) -> 0 | AM58: =IFERROR(VLOOKUP($A58,Filtro!$A$4:$AY$1887,37,FALSE),0) -> 0 | AN58: =IFERROR(VLOOKUP($A58,Filtro!$A$4:$AY$1887,38,FALSE),0) -> 0 | AO58: =IFERROR(VLOOKUP($A58,Filtro!$A$4:$AY$1887,39,FALSE),0) -> 80 | CJ58: 0
A59: 01200033 | C59: MATRONA /ÓN | D59: =IFERROR(VLOOKUP($A59,Filtro!$A$4:$AY$1887,2,FALSE),0) -> 5 | E59: =IFERROR(VLOOKUP($A59,Filtro!$A$4:$AY$1887,3,FALSE),0) -> 4 | F59: =IFERROR(VLOOKUP($A59,Filtro!$A$4:$AY$1887,4,FALSE),0) -> 1 | G59: =IFERROR(VLOOKUP($A59,Filtro!$A$4:$AY$1887,5,FALSE),0) -> 3 | H59: =IFERROR(VLOOKUP($A59,Filtro!$A$4:$AY$1887,6,FALSE),0) -> 1 | I59: =IFERROR(VLOOKUP($A59,Filtro!$A$4:$AY$1887,7,FALSE),0) -> 1 | J59: =IFERROR(VLOOKUP($A59,Filtro!$A$4:$AY$1887,8,FALSE),0) -> 0 | K59: =IFERROR(VLOOKUP($A59,Filtro!$A$4:$AY$1887,9,FALSE),0) -> 0 | L59: =IFERROR(VLOOKUP($A59,Filtro!$A$4:$AY$1887,10,FALSE),0) -> 0 | M59: =IFERROR(VLOOKUP($A59,Filtro!$A$4:$AY$1887,11,FALSE),0) -> 0 | N59: =IFERROR(VLOOKUP($A59,Filtro!$A$4:$AY$1887,12,FALSE),0) -> 0 | O59: =IFERROR(VLOOKUP($A59,Filtro!$A$4:$AY$1887,13,FALSE),0) -> 0 | P59: =IFERROR(VLOOKUP($A59,Filtro!$A$4:$AY$1887,14,FALSE),0) -> 0 | Q59: =IFERROR(VLOOKUP($A59,Filtro!$A$4:$AY$1887,15,FALSE),0) -> 0 | R59: =IFERROR(VLOOKUP($A59,Filtro!$A$4:$AY$1887,16,FALSE),0) -> 0 | S59: =IFERROR(VLOOKUP($A59,Filtro!$A$4:$AY$1887,17,FALSE),0) -> 0 | T59: =IFERROR(VLOOKUP($A59,Filtro!$A$4:$AY$1887,18,FALSE),0) -> 0 | U59: =IFERROR(VLOOKUP($A59,Filtro!$A$4:$AY$1887,19,FALSE),0) -> 0 | V59: =IFERROR(VLOOKUP($A59,Filtro!$A$4:$AY$1887,20,FALSE),0) -> 0 | W59: =IFERROR(VLOOKUP($A59,Filtro!$A$4:$AY$1887,21,FALSE),0) -> 0 | X59: =IFERROR(VLOOKUP($A59,Filtro!$A$4:$AY$1887,22,FALSE),0) -> 0 | Y59: =IFERROR(VLOOKUP($A59,Filtro!$A$4:$AY$1887,23,FALSE),0) -> 0 | Z59: =IFERROR(VLOOKUP($A59,Filtro!$A$4:$AY$1887,24,FALSE),0) -> 0 | AA59: =IFERROR(VLOOKUP($A59,Filtro!$A$4:$AY$1887,25,FALSE),0) -> 0 | AB59: =IFERROR(VLOOKUP($A59,Filtro!$A$4:$AY$1887,26,FALSE),0) -> 0 | AC59: =IFERROR(VLOOKUP($A59,Filtro!$A$4:$AY$1887,27,FALSE),0) -> 0 | AD59: =IFERROR(VLOOKUP($A59,Filtro!$A$4:$AY$1887,28,FALSE),0) -> 0 | AE59: =IFERROR(VLOOKUP($A59,Filtro!$A$4:$AY$1887,29,FALSE),0) -> 0 | AF59: =IFERROR(VLOOKUP($A59,Filtro!$A$4:$AY$1887,30,FALSE),0) -> 0 | AG59: =IFERROR(VLOOKUP($A59,Filtro!$A$4:$AY$1887,31,FALSE),0) -> 0 | AH59: =IFERROR(VLOOKUP($A59,Filtro!$A$4:$AY$1887,32,FALSE),0) -> 0 | AI59: =IFERROR(VLOOKUP($A59,Filtro!$A$4:$AY$1887,33,FALSE),0) -> 0 | AJ59: =IFERROR(VLOOKUP($A59,Filtro!$A$4:$AY$1887,34,FALSE),0) -> 0 | AK59: =IFERROR(VLOOKUP($A59,Filtro!$A$4:$AY$1887,35,FALSE),0) -> 0 | AL59: =IFERROR(VLOOKUP($A59,Filtro!$A$4:$AY$1887,36,FALSE),0) -> 0 | AM59: =IFERROR(VLOOKUP($A59,Filtro!$A$4:$AY$1887,37,FALSE),0) -> 0 | AN59: =IFERROR(VLOOKUP($A59,Filtro!$A$4:$AY$1887,38,FALSE),0) -> 0 | AO59: =IFERROR(VLOOKUP($A59,Filtro!$A$4:$AY$1887,39,FALSE),0) -> 4 | CJ59: 0
A60: 01200034 | C60: NUTRICIONISTA | D60: =IFERROR(VLOOKUP($A60,Filtro!$A$4:$AY$1887,2,FALSE),0) -> 52 | E60: =IFERROR(VLOOKUP($A60,Filtro!$A$4:$AY$1887,3,FALSE),0) -> 29 | F60: =IFERROR(VLOOKUP($A60,Filtro!$A$4:$AY$1887,4,FALSE),0) -> 23 | G60: =IFERROR(VLOOKUP($A60,Filtro!$A$4:$AY$1887,5,FALSE),0) -> 16 | H60: =IFERROR(VLOOKUP($A60,Filtro!$A$4:$AY$1887,6,FALSE),0) -> 14 | I60: =IFERROR(VLOOKUP($A60,Filtro!$A$4:$AY$1887,7,FALSE),0) -> 6 | J60: =IFERROR(VLOOKUP($A60,Filtro!$A$4:$AY$1887,8,FALSE),0) -> 2 | K60: =IFERROR(VLOOKUP($A60,Filtro!$A$4:$AY$1887,9,FALSE),0) -> 7 | L60: =IFERROR(VLOOKUP($A60,Filtro!$A$4:$AY$1887,10,FALSE),0) -> 4 | M60: =IFERROR(VLOOKUP($A60,Filtro!$A$4:$AY$1887,11,FALSE),0) -> 0 | N60: =IFERROR(VLOOKUP($A60,Filtro!$A$4:$AY$1887,12,FALSE),0) -> 2 | O60: =IFERROR(VLOOKUP($A60,Filtro!$A$4:$AY$1887,13,FALSE),0) -> 0 | P60: =IFERROR(VLOOKUP($A60,Filtro!$A$4:$AY$1887,14,FALSE),0) -> 1 | Q60: =IFERROR(VLOOKUP($A60,Filtro!$A$4:$AY$1887,15,FALSE),0) -> 0 | R60: =IFERROR(VLOOKUP($A60,Filtro!$A$4:$AY$1887,16,FALSE),0) -> 0 | S60: =IFERROR(VLOOKUP($A60,Filtro!$A$4:$AY$1887,17,FALSE),0) -> 0 | T60: =IFERROR(VLOOKUP($A60,Filtro!$A$4:$AY$1887,18,FALSE),0) -> 0 | U60: =IFERROR(VLOOKUP($A60,Filtro!$A$4:$AY$1887,19,FALSE),0) -> 0 | V60: =IFERROR(VLOOKUP($A60,Filtro!$A$4:$AY$1887,20,FALSE),0) -> 0 | W60: =IFERROR(VLOOKUP($A60,Filtro!$A$4:$AY$1887,21,FALSE),0) -> 0 | X60: =IFERROR(VLOOKUP($A60,Filtro!$A$4:$AY$1887,22,FALSE),0) -> 0 | Y60: =IFERROR(VLOOKUP($A60,Filtro!$A$4:$AY$1887,23,FALSE),0) -> 0 | Z60: =IFERROR(VLOOKUP($A60,Filtro!$A$4:$AY$1887,24,FALSE),0) -> 0 | AA60: =IFERROR(VLOOKUP($A60,Filtro!$A$4:$AY$1887,25,FALSE),0) -> 0 | AB60: =IFERROR(VLOOKUP($A60,Filtro!$A$4:$AY$1887,26,FALSE),0) -> 0 | AC60: =IFERROR(VLOOKUP($A60,Filtro!$A$4:$AY$1887,27,FALSE),0) -> 0 | AD60: =IFERROR(VLOOKUP($A60,Filtro!$A$4:$AY$1887,28,FALSE),0) -> 0 | AE60: =IFERROR(VLOOKUP($A60,Filtro!$A$4:$AY$1887,29,FALSE),0) -> 0 | AF60: =IFERROR(VLOOKUP($A60,Filtro!$A$4:$AY$1887,30,FALSE),0) -> 0 | AG60: =IFERROR(VLOOKUP($A60,Filtro!$A$4:$AY$1887,31,FALSE),0) -> 0 | AH60: =IFERROR(VLOOKUP($A60,Filtro!$A$4:$AY$1887,32,FALSE),0) -> 0 | AI60: =IFERROR(VLOOKUP($A60,Filtro!$A$4:$AY$1887,33,FALSE),0) -> 0 | AJ60: =IFERROR(VLOOKUP($A60,Filtro!$A$4:$AY$1887,34,FALSE),0) -> 0 | AK60: =IFERROR(VLOOKUP($A60,Filtro!$A$4:$AY$1887,35,FALSE),0) -> 0 | AL60: =IFERROR(VLOOKUP($A60,Filtro!$A$4:$AY$1887,36,FALSE),0) -> 0 | AM60: =IFERROR(VLOOKUP($A60,Filtro!$A$4:$AY$1887,37,FALSE),0) -> 0 | AN60: =IFERROR(VLOOKUP($A60,Filtro!$A$4:$AY$1887,38,FALSE),0) -> 0 | AO60: =IFERROR(VLOOKUP($A60,Filtro!$A$4:$AY$1887,39,FALSE),0) -> 52 | CJ60: 0
A61: 01200035 | C61: TÉCNICO PARAMÉDICO | D61: =IFERROR(VLOOKUP($A61,Filtro!$A$4:$AY$1887,2,FALSE),0) -> 12 | E61: =IFERROR(VLOOKUP($A61,Filtro!$A$4:$AY$1887,3,FALSE),0) -> 8 | F61: =IFERROR(VLOOKUP($A61,Filtro!$A$4:$AY$1887,4,FALSE),0) -> 4 | G61: =IFERROR(VLOOKUP($A61,Filtro!$A$4:$AY$1887,5,FALSE),0) -> 2 | H61: =IFERROR(VLOOKUP($A61,Filtro!$A$4:$AY$1887,6,FALSE),0) -> 4 | I61: =IFERROR(VLOOKUP($A61,Filtro!$A$4:$AY$1887,7,FALSE),0) -> 6 | J61: =IFERROR(VLOOKUP($A61,Filtro!$A$4:$AY$1887,8,FALSE),0) -> 0 | K61: =IFERROR(VLOOKUP($A61,Filtro!$A$4:$AY$1887,9,FALSE),0) -> 0 | L61: =IFERROR(VLOOKUP($A61,Filtro!$A$4:$AY$1887,10,FALSE),0) -> 0 | M61: =IFERROR(VLOOKUP($A61,Filtro!$A$4:$AY$1887,11,FALSE),0) -> 0 | N61: =IFERROR(VLOOKUP($A61,Filtro!$A$4:$AY$1887,12,FALSE),0) -> 0 | O61: =IFERROR(VLOOKUP($A61,Filtro!$A$4:$AY$1887,13,FALSE),0) -> 0 | P61: =IFERROR(VLOOKUP($A61,Filtro!$A$4:$AY$1887,14,FALSE),0) -> 0 | Q61: =IFERROR(VLOOKUP($A61,Filtro!$A$4:$AY$1887,15,FALSE),0) -> 0 | R61: =IFERROR(VLOOKUP($A61,Filtro!$A$4:$AY$1887,16,FALSE),0) -> 0 | S61: =IFERROR(VLOOKUP($A61,Filtro!$A$4:$AY$1887,17,FALSE),0) -> 0 | T61: =IFERROR(VLOOKUP($A61,Filtro!$A$4:$AY$1887,18,FALSE),0) -> 0 | U61: =IFERROR(VLOOKUP($A61,Filtro!$A$4:$AY$1887,19,FALSE),0) -> 0 | V61: =IFERROR(VLOOKUP($A61,Filtro!$A$4:$AY$1887,20,FALSE),0) -> 0 | W61: =IFERROR(VLOOKUP($A61,Filtro!$A$4:$AY$1887,21,FALSE),0) -> 0 | X61: =IFERROR(VLOOKUP($A61,Filtro!$A$4:$AY$1887,22,FALSE),0) -> 0 | Y61: =IFERROR(VLOOKUP($A61,Filtro!$A$4:$AY$1887,23,FALSE),0) -> 0 | Z61: =IFERROR(VLOOKUP($A61,Filtro!$A$4:$AY$1887,24,FALSE),0) -> 0 | AA61: =IFERROR(VLOOKUP($A61,Filtro!$A$4:$AY$1887,25,FALSE),0) -> 0 | AB61: =IFERROR(VLOOKUP($A61,Filtro!$A$4:$AY$1887,26,FALSE),0) -> 0 | AC61: =IFERROR(VLOOKUP($A61,Filtro!$A$4:$AY$1887,27,FALSE),0) -> 0 | AD61: =IFERROR(VLOOKUP($A61,Filtro!$A$4:$AY$1887,28,FALSE),0) -> 0 | AE61: =IFERROR(VLOOKUP($A61,Filtro!$A$4:$AY$1887,29,FALSE),0) -> 0 | AF61: =IFERROR(VLOOKUP($A61,Filtro!$A$4:$AY$1887,30,FALSE),0) -> 0 | AG61: =IFERROR(VLOOKUP($A61,Filtro!$A$4:$AY$1887,31,FALSE),0) -> 0 | AH61: =IFERROR(VLOOKUP($A61,Filtro!$A$4:$AY$1887,32,FALSE),0) -> 0 | AI61: =IFERROR(VLOOKUP($A61,Filtro!$A$4:$AY$1887,33,FALSE),0) -> 0 | AJ61: =IFERROR(VLOOKUP($A61,Filtro!$A$4:$AY$1887,34,FALSE),0) -> 0 | AK61: =IFERROR(VLOOKUP($A61,Filtro!$A$4:$AY$1887,35,FALSE),0) -> 0 | AL61: =IFERROR(VLOOKUP($A61,Filtro!$A$4:$AY$1887,36,FALSE),0) -> 0 | AM61: =IFERROR(VLOOKUP($A61,Filtro!$A$4:$AY$1887,37,FALSE),0) -> 0 | AN61: =IFERROR(VLOOKUP($A61,Filtro!$A$4:$AY$1887,38,FALSE),0) -> 0 | AO61: =IFERROR(VLOOKUP($A61,Filtro!$A$4:$AY$1887,39,FALSE),0) -> 12 | CJ61: 0
B62: SECCIÓN D: CONTROL DE SALUD INTEGRAL DE ADOLESCENTES (incluidos en sección B)
B63: LUGAR DEL CONTROL, SEGÚN EDAD | D63: 10 A 14 AÑOS | G63: 15 A 19 AÑOS
D64: Ambos Sexos | E64: Hombres | F64: Mujeres | G64: Ambos Sexos | H64: Hombres | I64: Mujeres
A65: 01030500 | B65: EN ESPACIO AMIGABLE | D65: =IFERROR(VLOOKUP($A65,Filtro!$A$4:$AY$1887,2,FALSE),0) -> 459 | E65: =IFERROR(VLOOKUP($A65,Filtro!$A$4:$AY$1887,3,FALSE),0) -> 168 | F65: =IFERROR(VLOOKUP($A65,Filtro!$A$4:$AY$1887,4,FALSE),0) -> 291 | G65: =IFERROR(VLOOKUP($A65,Filtro!$A$4:$AY$1887,5,FALSE),0) -> 3036 | H65: =IFERROR(VLOOKUP($A65,Filtro!$A$4:$AY$1887,6,FALSE),0) -> 1114 | I65: =IFERROR(VLOOKUP($A65,Filtro!$A$4:$AY$1887,7,FALSE),0) -> 1922
A66: 01030600 | B66: EN OTROS ESPACIOS DEL ESTABLECIMIENTO DE SALUD | D66: =IFERROR(VLOOKUP($A66,Filtro!$A$4:$AY$1887,2,FALSE),0) -> 2272 | E66: =IFERROR(VLOOKUP($A66,Filtro!$A$4:$AY$1887,3,FALSE),0) -> 1006 | F66: =IFERROR(VLOOKUP($A66,Filtro!$A$4:$AY$1887,4,FALSE),0) -> 1266 | G66: =IFERROR(VLOOKUP($A66,Filtro!$A$4:$AY$1887,5,FALSE),0) -> 811 | H66: =IFERROR(VLOOKUP($A66,Filtro!$A$4:$AY$1887,6,FALSE),0) -> 322 | I66: =IFERROR(VLOOKUP($A66,Filtro!$A$4:$AY$1887,7,FALSE),0) -> 489
A67: 01030700 | B67: EN ESTABLECIMIENTOS EDUCACIONALES | D67: =IFERROR(VLOOKUP($A67,Filtro!$A$4:$AY$1887,2,FALSE),0) -> 7356 | E67: =IFERROR(VLOOKUP($A67,Filtro!$A$4:$AY$1887,3,FALSE),0) -> 3633 | F67: =IFERROR(VLOOKUP($A67,Filtro!$A$4:$AY$1887,4,FALSE),0) -> 3723 | G67: =IFERROR(VLOOKUP($A67,Filtro!$A$4:$AY$1887,5,FALSE),0) -> 2650 | H67: =IFERROR(VLOOKUP($A67,Filtro!$A$4:$AY$1887,6,FALSE),0) -> 1163 | I67: =IFERROR(VLOOKUP($A67,Filtro!$A$4:$AY$1887,7,FALSE),0) -> 1487
A68: 01030800 | B68: EN OTROS LUGARES FUERA DEL ESTABLECIMIENTO DE SALUD | D68: =IFERROR(VLOOKUP($A68,Filtro!$A$4:$AY$1887,2,FALSE),0) -> 314 | E68: =IFERROR(VLOOKUP($A68,Filtro!$A$4:$AY$1887,3,FALSE),0) -> 136 | F68: =IFERROR(VLOOKUP($A68,Filtro!$A$4:$AY$1887,4,FALSE),0) -> 178 | G68: =IFERROR(VLOOKUP($A68,Filtro!$A$4:$AY$1887,5,FALSE),0) -> 907 | H68: =IFERROR(VLOOKUP($A68,Filtro!$A$4:$AY$1887,6,FALSE),0) -> 479 | I68: =IFERROR(VLOOKUP($A68,Filtro!$A$4:$AY$1887,7,FALSE),0) -> 428
B69: TOTAL | D69: =SUM(D65:D68) -> 10401 | E69: 4943 | F69: 5458 | G69: 7404 | H69: 3078 | I69: 4326
B70: SECCIÓN E: CONTROLES DE SALUD EN ESTABLECIMIENTO EDUCACIONAL (Los controles individuales deben estar incluídos en la Sección B)
B71: TIPO DE CONTROLES | C71: CURSO | D71: TOTAL* | E71: TOTAL NIÑOS Y NIÑAS | F71: SEXO
F72: Hombres | G72: Mujeres
A73: 01031000 | B73: CONTROLES INDIVIDUALES | C73: KÍNDER | D73: =IFERROR(VLOOKUP($A73,Filtro!$A$4:$AY$1887,2,FALSE),0) -> 1836 | E73: =IFERROR(VLOOKUP($A73,Filtro!$A$4:$AY$1887,3,FALSE),0) -> 0 | F73: =IFERROR(VLOOKUP($A73,Filtro!$A$4:$AY$1887,4,FALSE),0) -> 915 | G73: =IFERROR(VLOOKUP($A73,Filtro!$A$4:$AY$1887,5,FALSE),0) -> 921
A74: 01031100 | C74: PRIMERO BÁSICO | D74: =IFERROR(VLOOKUP($A74,Filtro!$A$4:$AY$1887,2,FALSE),0) -> 2760 | E74: =IFERROR(VLOOKUP($A74,Filtro!$A$4:$AY$1887,3,FALSE),0) -> 0 | F74: =IFERROR(VLOOKUP($A74,Filtro!$A$4:$AY$1887,4,FALSE),0) -> 1331 | G74: =IFERROR(VLOOKUP($A74,Filtro!$A$4:$AY$1887,5,FALSE),0) -> 1429
A75: 01031200 | C75: SEGUNDO BÁSICO | D75: =IFERROR(VLOOKUP($A75,Filtro!$A$4:$AY$1887,2,FALSE),0) -> 2903 | E75: =IFERROR(VLOOKUP($A75,Filtro!$A$4:$AY$1887,3,FALSE),0) -> 0 | F75: =IFERROR(VLOOKUP($A75,Filtro!$A$4:$AY$1887,4,FALSE),0) -> 1407 | G75: =IFERROR(VLOOKUP($A75,Filtro!$A$4:$AY$1887,5,FALSE),0) -> 1496
A76: 01031300 | C76: TERCERO BÁSICO | D76: =IFERROR(VLOOKUP($A76,Filtro!$A$4:$AY$1887,2,FALSE),0) -> 2864 | E76: =IFERROR(VLOOKUP($A76,Filtro!$A$4:$AY$1887,3,FALSE),0) -> 0 | F76: =IFERROR(VLOOKUP($A76,Filtro!$A$4:$AY$1887,4,FALSE),0) -> 1361 | G76: =IFERROR(VLOOKUP($A76,Filtro!$A$4:$AY$1887,5,FALSE),0) -> 1503
A77: 01031400 | C77: CUARTO BÁSICO | D77: =IFERROR(VLOOKUP($A77,Filtro!$A$4:$AY$1887,2,FALSE),0) -> 3010 | E77: =IFERROR(VLOOKUP($A77,Filtro!$A$4:$AY$1887,3,FALSE),0) -> 0 | F77: =IFERROR(VLOOKUP($A77,Filtro!$A$4:$AY$1887,4,FALSE),0) -> 1473 | G77: =IFERROR(VLOOKUP($A77,Filtro!$A$4:$AY$1887,5,FALSE),0) -> 1537
A78: 01031500 | B78: CONTROLES GRUPALES * | C78: KÍNDER | D78: =IFERROR(VLOOKUP($A78,Filtro!$A$4:$AY$1887,2,FALSE),0) -> 1 | E78: =IFERROR(VLOOKUP($A78,Filtro!$A$4:$AY$1887,3,FALSE),0) -> 144 | F78: =IFERROR(VLOOKUP($A78,Filtro!$A$4:$AY$1887,4,FALSE),0) -> 74 | G78: =IFERROR(VLOOKUP($A78,Filtro!$A$4:$AY$1887,5,FALSE),0) -> 70
A79: 01031600 | C79: PRIMERO BÁSICO | D79: =IFERROR(VLOOKUP($A79,Filtro!$A$4:$AY$1887,2,FALSE),0) -> 3 | E79: =IFERROR(VLOOKUP($A79,Filtro!$A$4:$AY$1887,3,FALSE),0) -> 14 | F79: =IFERROR(VLOOKUP($A79,Filtro!$A$4:$AY$1887,4,FALSE),0) -> 7 | G79: =IFERROR(VLOOKUP($A79,Filtro!$A$4:$AY$1887,5,FALSE),0) -> 7
A80: 01031700 | C80: SEGUNDO BÁSICO | D80: =IFERROR(VLOOKUP($A80,Filtro!$A$4:$AY$1887,2,FALSE),0) -> 3 | E80: =IFERROR(VLOOKUP($A80,Filtro!$A$4:$AY$1887,3,FALSE),0) -> 31 | F80: =IFERROR(VLOOKUP($A80,Filtro!$A$4:$AY$1887,4,FALSE),0) -> 14 | G80: =IFERROR(VLOOKUP($A80,Filtro!$A$4:$AY$1887,5,FALSE),0) -> 17
A81: 01031800 | C81: TERCERO BÁSICO | D81: =IFERROR(VLOOKUP($A81,Filtro!$A$4:$AY$1887,2,FALSE),0) -> 3 | E81: =IFERROR(VLOOKUP($A81,Filtro!$A$4:$AY$1887,3,FALSE),0) -> 70 | F81: =IFERROR(VLOOKUP($A81,Filtro!$A$4:$AY$1887,4,FALSE),0) -> 40 | G81: =IFERROR(VLOOKUP($A81,Filtro!$A$4:$AY$1887,5,FALSE),0) -> 30
A82: 01031900 | C82: CUARTO BÁSICO | D82: =IFERROR(VLOOKUP($A82,Filtro!$A$4:$AY$1887,2,FALSE),0) -> 3 | E82: =IFERROR(VLOOKUP($A82,Filtro!$A$4:$AY$1887,3,FALSE),0) -> 96 | F82: =IFERROR(VLOOKUP($A82,Filtro!$A$4:$AY$1887,4,FALSE),0) -> 50 | G82: =IFERROR(VLOOKUP($A82,Filtro!$A$4:$AY$1887,5,FALSE),0) -> 46
B83: En Total* se registra el número de controles grupales
B195: =SUM(D12:D27,W12:W27,U26:V27,Y18:AB21,X14:X15,D31:D34,E31:F34,AJ31:AJ34,D39:F61,D65:D69,G65:G69,D73:D77,E78:E82) -> 1626660 | C195: =SUM(CH1:CV82) -> 48

Sheet A02
B6: REM-A02. EXAMEN DE MEDICINA PREVENTIVA EN MAYORES DE 15 AÑOS
B8: SECCIÓN A: EMP REALIZADO POR PROFESIONAL
B9: PROFESIONAL | C9: TOTAL
C10: Ambos Sexos | D10: Hombres | E10: Mujeres
B11: TOTAL | C11: =SUM(C12:C17) -> 110242 | D11: =SUM(D12:D17) -> 42119 | E11: =SUM(E12:E17) -> 68123
A12: 03030101 | B12: MÉDICO | C12: =IFERROR(VLOOKUP($A12,Filtro!$A$4:$AY$1887,2,FALSE),0) -> 1760 | D12: =IFERROR(VLOOKUP($A12,Filtro!$A$4:$AY$1887,3,FALSE),0) -> 820 | E12: =IFERROR(VLOOKUP($A12,Filtro!$A$4:$AY$1887,4,FALSE),0) -> 940
A13: 03030102 | B13: ENFERMERA /O | C13: =IFERROR(VLOOKUP($A13,Filtro!$A$4:$AY$1887,2,FALSE),0) -> 73403 | D13: =IFERROR(VLOOKUP($A13,Filtro!$A$4:$AY$1887,3,FALSE),0) -> 28434 | E13: =IFERROR(VLOOKUP($A13,Filtro!$A$4:$AY$1887,4,FALSE),0) -> 44969
A14: 03030103 | B14: MATRONA /ÓN | C14: =IFERROR(VLOOKUP($A14,Filtro!$A$4:$AY$1887,2,FALSE),0) -> 4229 | D14: =IFERROR(VLOOKUP($A14,Filtro!$A$4:$AY$1887,3,FALSE),0) -> 324 | E14: =IFERROR(VLOOKUP($A14,Filtro!$A$4:$AY$1887,4,FALSE),0) -> 3905
A15: 03030104 | B15: NUTRICIONISTA | C15: =IFERROR(VLOOKUP($A15,Filtro!$A$4:$AY$1887,2,FALSE),0) -> 5130 | D15: =IFERROR(VLOOKUP($A15,Filtro!$A$4:$AY$1887,3,FALSE),0) -> 1965 | E15: =IFERROR(VLOOKUP($A15,Filtro!$A$4:$AY$1887,4,FALSE),0) -> 3165
A16: 03030350 | B16: OTRO PROFESIONAL | C16: =IFERROR(VLOOKUP($A16,Filtro!$A$4:$AY$1887,2,FALSE),0) -> 9016 | D16: =IFERROR(VLOOKUP($A16,Filtro!$A$4:$AY$1887,3,FALSE),0) -> 3728 | E16: =IFERROR(VLOOKUP($A16,Filtro!$A$4:$AY$1887,4,FALSE),0) -> 5288
A17: 03030110 | B17: TÉCNICO PARAMÉDICO | C17: =IFERROR(VLOOKUP($A17,Filtro!$A$4:$AY$1887,2,FALSE),0) -> 16704 | D17: =IFERROR(VLOOKUP($A17,Filtro!$A$4:$AY$1887,3,FALSE),0) -> 6848 | E17: =IFERROR(VLOOKUP($A17,Filtro!$A$4:$AY$1887,4,FALSE),0) -> 9856
B18: SECCIÓN B: EMP SEGÚN RESULTADO DEL ESTADO NUTRICIONAL
B19: ESTADO NUTRICIONAL | C19: TOTAL | F19: 15 a 19 | H19: 20 a 24 | J19: 25 a 29 | L19: 30 a 34 | N19: 35 a 39 | P19: 40 a 44 | R19: 45 a 49 | T19: 50 a 54 | V19: 55 a 59 | X19: 60 a 64 | Z19: 65 a 69 | AB19: 70 a 74 | AD19: 75 a 79 | AF19: 80 y más
C20: Ambos Sexos | D20: Hombres | E20: Mujeres | F20: Hombres | G20: Mujeres | H20: Hombres | I20: Mujeres | J20: Hombres | K20: Mujeres | L20: Hombres | M20: Mujeres | N20: Hombres | O20: Mujeres | P20: Hombres | Q20: Mujeres | R20: Hombres | S20: Mujeres | T20: Hombres | U20: Mujeres | V20: Hombres | W20: Mujeres | X20: Hombres | Y20: Mujeres | Z20: Hombres | AA20: Mujeres | AB20: Hombres | AC20: Mujeres | AD20: Hombres | AE20: Mujeres | AF20: Hombres | AG20: Mujeres
B21: TOTAL | C21: =SUM(C22:C25) -> 110309 | D21: 42086 | E21: 68223 | F21: 365 | G21: 515 | H21: 3701 | I21: 4949 | J21: 3393 | K21: 5764 | L21: 3112 | M21: 5602 | N21: 2895 | O21: 4936 | P21: 2568 | Q21: 4843 | R21: 2558 | S21: 5071 | T21: 2516 | U21: 4404 | V21: 2139 | W21: 3202 | X21: 1666 | Y21: 2212 | Z21: 4264 | AA21: 7233 | AB21: 4455 | AC21: 6694 | AD21: 3886 | AE21: 5568 | AF21: 4568 | AG21: 7230 | CA21: * Debe coincidir el total de EMP según Estado Nutricional con EMP realizado según profesional. | CI21: 1 | CJ21: 0
A22: 03030330 | B22: NORMAL | C22: =IFERROR(VLOOKUP($A22,Filtro!$A$4:$AY$1887,2,FALSE),0) -> 35260 | D22: =IFERROR(VLOOKUP($A22,Filtro!$A$4:$AY$1887,3,FALSE),0) -> 14975 | E22: =IFERROR(VLOOKUP($A22,Filtro!$A$4:$AY$1887,4,FALSE),0) -> 20285 | F22: =IFERROR(VLOOKUP($A22,Filtro!$A$4:$AY$1887,5,FALSE),0) -> 170 | G22: =IFERROR(VLOOKUP($A22,Filtro!$A$4:$AY$1887,6,FALSE),0) -> 241 | H22: =IFERROR(VLOOKUP($A22,Filtro!$A$4:$AY$1887,7,FALSE),0) -> 1852 | I22: =IFERROR(VLOOKUP($A22,Filtro!$A$4:$AY$1887,8,FALSE),0) -> 1947 | J22: =IFERROR(VLOOKUP($A22,Filtro!$A$4:$AY$1887,9,FALSE),0) -> 1298 | K22: =IFERROR(VLOOKUP($A22,Filtro!$A$4:$AY$1887,10,FALSE),0) -> 1880 | L22: =IFERROR(VLOOKUP($A22,Filtro!$A$4:$AY$1887,11,FALSE),0) -> 956 | M22: =IFERROR(VLOOKUP($A22,Filtro!$A$4:$AY$1887,12,FALSE),0) -> 1537 | N22: =IFERROR(VLOOKUP($A22,Filtro!$A$4:$AY$1887,13,FALSE),0) -> 683 | O22: =IFERROR(VLOOKUP($A22,Filtro!$A$4:$AY$1887,14,FALSE),0) -> 1189 | P22: =IFERROR(VLOOKUP($A22,Filtro!$A$4:$AY$1887,15,FALSE),0) -> 607 | Q22: =IFERROR(VLOOKUP($A22,Filtro!$A$4:$AY$1887,16,FALSE),0) -> 1064 | R22: =IFERROR(VLOOKUP($A22,Filtro!$A$4:$AY$1887,17,FALSE),0) -> 548 | S22: =IFERROR(VLOOKUP($A22,Filtro!$A$4:$AY$1887,18,FALSE),0) -> 1011 | T22: =IFERROR(VLOOKUP($A22,Filtro!$A$4:$AY$1887,19,FALSE),0) -> 582 | U22: =IFERROR(VLOOKUP($A22,Filtro!$A$4:$AY$1887,20,FALSE),0) -> 858 | V22: =IFERROR(VLOOKUP($A22,Filtro!$A$4:$AY$1887,21,FALSE),0) -> 495 | W22: =IFERROR(VLOOKUP($A22,Filtro!$A$4:$AY$1887,22,FALSE),0) -> 724 | X22: =IFERROR(VLOOKUP($A22,Filtro!$A$4:$AY$1887,23,FALSE),0) -> 419 | Y22: =IFERROR(VLOOKUP($A22,Filtro!$A$4:$AY$1887,24,FALSE),0) -> 512 | Z22: =IFERROR(VLOOKUP($A22,Filtro!$A$4:$AY$1887,25,FALSE),0) -> 1673 | AA22: =IFERROR(VLOOKUP($A22,Filtro!$A$4:$AY$1887,26,FALSE),0) -> 2218 | AB22: =IFERROR(VLOOKUP($A22,Filtro!$A$4:$AY$1887,27,FALSE),0) -> 1842 | AC22: =IFERROR(VLOOKUP($A22,Filtro!$A$4:$AY$1887,28,FALSE),0) -> 2282 | AD22: =IFERROR(VLOOKUP($A22,Filtro!$A$4:$AY$1887,29,FALSE),0) -> 1702 | AE22: =IFERROR(VLOOKUP($A22,Filtro!$A$4:$AY$1887,30,FALSE),0) -> 1989 | AF22: =IFERROR(VLOOKUP($A22,Filtro!$A$4:$AY$1887,31,FALSE),0) -> 2148 | AG22: =IFERROR(VLOOKUP($A22,Filtro!$A$4:$AY$1887,32,FALSE),0) -> 2833
A23: 03030340 | B23: BAJO PESO | C23: =IFERROR(VLOOKUP($A23,Filtro!$A$4:$AY$1887,2,FALSE),0) -> 5384 | D23: =IFERROR(VLOOKUP($A23,Filtro!$A$4:$AY$1887,3,FALSE),0) -> 2169 | E23: =IFERROR(VLOOKUP($A23,Filtro!$A$4:$AY$1887,4,FALSE),0) -> 3215 | F23: =IFERROR(VLOOKUP($A23,Filtro!$A$4:$AY$1887,5,FALSE),0) -> 33 | G23: =IFERROR(VLOOKUP($A23,Filtro!$A$4:$AY$1887,6,FALSE),0) -> 23 | H23: =IFERROR(VLOOKUP($A23,Filtro!$A$4:$AY$1887,7,FALSE),0) -> 78 | I23: =IFERROR(VLOOKUP($A23,Filtro!$A$4:$AY$1887,8,FALSE),0) -> 133 | J23: =IFERROR(VLOOKUP($A23,Filtro!$A$4:$AY$1887,9,FALSE),0) -> 44 | K23: =IFERROR(VLOOKUP($A23,Filtro!$A$4:$AY$1887,10,FALSE),0) -> 82 | L23: =IFERROR(VLOOKUP($A23,Filtro!$A$4:$AY$1887,11,FALSE),0) -> 18 | M23: =IFERROR(VLOOKUP($A23,Filtro!$A$4:$AY$1887,12,FALSE),0) -> 59 | N23: =IFERROR(VLOOKUP($A23,Filtro!$A$4:$AY$1887,13,FALSE),0) -> 20 | O23: =IFERROR(VLOOKUP($A23,Filtro!$A$4:$AY$1887,14,FALSE),0) -> 48 | P23: =IFERROR(VLOOKUP($A23,Filtro!$A$4:$AY$1887,15,FALSE),0) -> 19 | Q23: =IFERROR(VLOOKUP($A23,Filtro!$A$4:$AY$1887,16,FALSE),0) -> 44 | R23: =IFERROR(VLOOKUP($A23,Filtro!$A$4:$AY$1887,17,FALSE),0) -> 19 | S23: =IFERROR(VLOOKUP($A23,Filtro!$A$4:$AY$1887,18,FALSE),0) -> 53 | T23: =IFERROR(VLOOKUP($A23,Filtro!$A$4:$AY$1887,19,FALSE),0) -> 25 | U23: =IFERROR(VLOOKUP($A23,Filtro!$A$4:$AY$1887,20,FALSE),0) -> 28 | V23: =IFERROR(VLOOKUP($A23,Filtro!$A$4:$AY$1887,21,FALSE),0) -> 13 | W23: =IFERROR(VLOOKUP($A23,Filtro!$A$4:$AY$1887,22,FALSE),0) -> 33 | X23: =IFERROR(VLOOKUP($A23,Filtro!$A$4:$AY$1887,23,FALSE),0) -> 21 | Y23: =IFERROR(VLOOKUP($A23,Filtro!$A$4:$AY$1887,24,FALSE),0) -> 34 | Z23: =IFERROR(VLOOKUP($A23,Filtro!$A$4:$AY$1887,25,FALSE),0) -> 302 | AA23: =IFERROR(VLOOKUP($A23,Filtro!$A$4:$AY$1887,26,FALSE),0) -> 418 | AB23: =IFERROR(VLOOKUP($A23,Filtro!$A$4:$AY$1887,27,FALSE),0) -> 389 | AC23: =IFERROR(VLOOKUP($A23,Filtro!$A$4:$AY$1887,28,FALSE),0) -> 474 | AD23: =IFERROR(VLOOKUP($A23,Filtro!$A$4:$AY$1887,29,FALSE),0) -> 420 | AE23: =IFERROR(VLOOKUP($A23,Filtro!$A$4:$AY$1887,30,FALSE),0) -> 546 | AF23: =IFERROR(VLOOKUP($A23,Filtro!$A$4:$AY$1887,31,FALSE),0) -> 768 | AG23: =IFERROR(VLOOKUP($A23,Filtro!$A$4:$AY$1887,32,FALSE),0) -> 1240
A24: 03030120 | B24: SOBREPESO | C24: =IFERROR(VLOOKUP($A24,Filtro!$A$4:$AY$1887,2,FALSE),0) -> 39204 | D24: =IFERROR(VLOOKUP($A24,Filtro!$A$4:$AY$1887,3,FALSE),0) -> 15765 | E24: =IFERROR(VLOOKUP($A24,Filtro!$A$4:$AY$1887,4,FALSE),0) -> 23439 | F24: =IFERROR(VLOOKUP($A24,Filtro!$A$4:$AY$1887,5,FALSE),0) -> 91 | G24: =IFERROR(VLOOKUP($A24,Filtro!$A$4:$AY$1887,6,FALSE),0) -> 151 | H24: =IFERROR(VLOOKUP($A24,Filtro!$A$4:$AY$1887,7,FALSE),0) -> 1146 | I24: =IFERROR(VLOOKUP($A24,Filtro!$A$4:$AY$1887,8,FALSE),0) -> 1516 | J24: =IFERROR(VLOOKUP($A24,Filtro!$A$4:$AY$1887,9,FALSE),0) -> 1352 | K24: =IFERROR(VLOOKUP($A24,Filtro!$A$4:$AY$1887,10,FALSE),0) -> 1970 | L24: =IFERROR(VLOOKUP($A24,Filtro!$A$4:$AY$1887,11,FALSE),0) -> 1333 | M24: =IFERROR(VLOOKUP($A24,Filtro!$A$4:$AY$1887,12,FALSE),0) -> 2064 | N24: =IFERROR(VLOOKUP($A24,Filtro!$A$4:$AY$1887,13,FALSE),0) -> 1297 | O24: =IFERROR(VLOOKUP($A24,Filtro!$A$4:$AY$1887,14,FALSE),0) -> 1942 | P24: =IFERROR(VLOOKUP($A24,Filtro!$A$4:$AY$1887,15,FALSE),0) -> 1177 | Q24: =IFERROR(VLOOKUP($A24,Filtro!$A$4:$AY$1887,16,FALSE),0) -> 1950 | R24: =IFERROR(VLOOKUP($A24,Filtro!$A$4:$AY$1887,17,FALSE),0) -> 1278 | S24: =IFERROR(VLOOKUP($A24,Filtro!$A$4:$AY$1887,18,FALSE),0) -> 2163 | T24: =IFERROR(VLOOKUP($A24,Filtro!$A$4:$AY$1887,19,FALSE),0) -> 1187 | U24: =IFERROR(VLOOKUP($A24,Filtro!$A$4:$AY$1887,20,FALSE),0) -> 1885 | V24: =IFERROR(VLOOKUP($A24,Filtro!$A$4:$AY$1887,21,FALSE),0) -> 1034 | W24: =IFERROR(VLOOKUP($A24,Filtro!$A$4:$AY$1887,22,FALSE),0) -> 1334 | X24: =IFERROR(VLOOKUP($A24,Filtro!$A$4:$AY$1887,23,FALSE),0) -> 762 | Y24: =IFERROR(VLOOKUP($A24,Filtro!$A$4:$AY$1887,24,FALSE),0) -> 904 | Z24: =IFERROR(VLOOKUP($A24,Filtro!$A$4:$AY$1887,25,FALSE),0) -> 1378 | AA24: =IFERROR(VLOOKUP($A24,Filtro!$A$4:$AY$1887,26,FALSE),0) -> 2143 | AB24: =IFERROR(VLOOKUP($A24,Filtro!$A$4:$AY$1887,27,FALSE),0) -> 1413 | AC24: =IFERROR(VLOOKUP($A24,Filtro!$A$4:$AY$1887,28,FALSE),0) -> 1970 | AD24: =IFERROR(VLOOKUP($A24,Filtro!$A$4:$AY$1887,29,FALSE),0) -> 1172 | AE24: =IFERROR(VLOOKUP($A24,Filtro!$A$4:$AY$1887,30,FALSE),0) -> 1613 | AF24: =IFERROR(VLOOKUP($A24,Filtro!$A$4:$AY$1887,31,FALSE),0) -> 1145 | AG24: =IFERROR(VLOOKUP($A24,Filtro!$A$4:$AY$1887,32,FALSE),0) -> 1834
A25: 03030130 | B25: OBESOS | C25: =IFERROR(VLOOKUP($A25,Filtro!$A$4:$AY$1887,2,FALSE),0) -> 30461 | D25: =IFERROR(VLOOKUP($A25,Filtro!$A$4:$AY$1887,3,FALSE),0) -> 9177 | E25: =IFERROR(VLOOKUP($A25,Filtro!$A$4:$AY$1887,4,FALSE),0) -> 21284 | F25: =IFERROR(VLOOKUP($A25,Filtro!$A$4:$AY$1887,5,FALSE),0) -> 71 | G25: =IFERROR(VLOOKUP($A25,Filtro!$A$4:$AY$1887,6,FALSE),0) -> 100 | H25: =IFERROR(VLOOKUP($A25,Filtro!$A$4:$AY$1887,7,FALSE),0) -> 625 | I25: =IFERROR(VLOOKUP($A25,Filtro!$A$4:$AY$1887,8,FALSE),0) -> 1353 | J25: =IFERROR(VLOOKUP($A25,Filtro!$A$4:$AY$1887,9,FALSE),0) -> 699 | K25: =IFERROR(VLOOKUP($A25,Filtro!$A$4:$AY$1887,10,FALSE),0) -> 1832 | L25: =IFERROR(VLOOKUP($A25,Filtro!$A$4:$AY$1887,11,FALSE),0) -> 805 | M25: =IFERROR(VLOOKUP($A25,Filtro!$A$4:$AY$1887,12,FALSE),0) -> 1942 | N25: =IFERROR(VLOOKUP($A25,Filtro!$A$4:$AY$1887,13,FALSE),0) -> 895 | O25: =IFERROR(VLOOKUP($A25,Filtro!$A$4:$AY$1887,14,FALSE),0) -> 1757 | P25: =IFERROR(VLOOKUP($A25,Filtro!$A$4:$AY$1887,15,FALSE),0) -> 765 | Q25: =IFERROR(VLOOKUP($A25,Filtro!$A$4:$AY$1887,16,FALSE),0) -> 1785 | R25: =IFERROR(VLOOKUP($A25,Filtro!$A$4:$AY$1887,17,FALSE),0) -> 713 | S25: =IFERROR(VLOOKUP($A25,Filtro!$A$4:$AY$1887,18,FALSE),0) -> 1844 | T25: =IFERROR(VLOOKUP($A25,Filtro!$A$4:$AY$1887,19,FALSE),0) -> 722 | U25: =IFERROR(VLOOKUP($A25,Filtro!$A$4:$AY$1887,20,FALSE),0) -> 1633 | V25: =IFERROR(VLOOKUP($A25,Filtro!$A$4:$AY$1887,21,FALSE),0) -> 597 | W25: =IFERROR(VLOOKUP($A25,Filtro!$A$4:$AY$1887,22,FALSE),0) -> 1111 | X25: =IFERROR(VLOOKUP($A25,Filtro!$A$4:$AY$1887,23,FALSE),0) -> 464 | Y25: =IFERROR(VLOOKUP($A25,Filtro!$A$4:$AY$1887,24,FALSE),0) -> 762 | Z25: =IFERROR(VLOOKUP($A25,Filtro!$A$4:$AY$1887,25,FALSE),0) -> 911 | AA25: =IFERROR(VLOOKUP($A25,Filtro!$A$4:$AY$1887,26,FALSE),0) -> 2454 | AB25: =IFERROR(VLOOKUP($A25,Filtro!$A$4:$AY$1887,27,FALSE),0) -> 811 | AC25: =IFERROR(VLOOKUP($A25,Filtro!$A$4:$AY$1887,28,FALSE),0) -> 1968 | AD25: =IFERROR(VLOOKUP($A25,Filtro!$A$4:$AY$1887,29,FALSE),0) -> 592 | AE25: =IFERROR(VLOOKUP($A25,Filtro!$A$4:$AY$1887,30,FALSE),0) -> 1420 | AF25: =IFERROR(VLOOKUP($A25,Filtro!$A$4:$AY$1887,31,FALSE),0) -> 507 | AG25: =IFERROR(VLOOKUP($A25,Filtro!$A$4:$AY$1887,32,FALSE),0) -> 1323
B26: SECCIÓN C: RESULTADOS DE EMP SEGÚN ESTADO DE SALUD
B27: ESTADO DE SALUD | C27: TOTAL | F27: 15 a 19 | H27: 20 a 24 | J27: 25 a 29 | L27: 30 a 34 | N27: 35 a 39 | P27: 40 a 44 | R27: 45 a 49 | T27: 50 a 54 | V27: 55 a 59 | X27: 60 a 64 | Z27: 65 a 69 | AB27: 70 a 74 | AD27: 75 a 79 | AF27: 80 y más
C28: Ambos Sexos | D28: Hombres | E28: Mujeres | F28: Hombres | G28: Mujeres | H28: Hombres | I28: Mujeres | J28: Hombres | K28: Mujeres | L28: Hombres | M28: Mujeres | N28: Hombres | O28: Mujeres | P28: Hombres | Q28: Mujeres | R28: Hombres | S28: Mujeres | T28: Hombres | U28: Mujeres | V28: Hombres | W28: Mujeres | X28: Hombres | Y28: Mujeres | Z28: Hombres | AA28: Mujeres | AB28: Hombres | AC28: Mujeres | AD28: Hombres | AE28: Mujeres | AF28: Hombres | AG28: Mujeres
A29: 02200010 | B29: TABAQUISMO | C29: =IFERROR(VLOOKUP($A29,Filtro!$A$4:$AY$1887,2,FALSE),0) -> 19767 | D29: =IFERROR(VLOOKUP($A29,Filtro!$A$4:$AY$1887,3,FALSE),0) -> 8444 | E29: =IFERROR(VLOOKUP($A29,Filtro!$A$4:$AY$1887,4,FALSE),0) -> 11323 | F29: =IFERROR(VLOOKUP($A29,Filtro!$A$4:$AY$1887,5,FALSE),0) -> 53 | G29: =IFERROR(VLOOKUP($A29,Filtro!$A$4:$AY$1887,6,FALSE),0) -> 62 | H29: =IFERROR(VLOOKUP($A29,Filtro!$A$4:$AY$1887,7,FALSE),0) -> 1176 | I29: =IFERROR(VLOOKUP($A29,Filtro!$A$4:$AY$1887,8,FALSE),0) -> 1310 | J29: =IFERROR(VLOOKUP($A29,Filtro!$A$4:$AY$1887,9,FALSE),0) -> 1154 | K29: =IFERROR(VLOOKUP($A29,Filtro!$A$4:$AY$1887,10,FALSE),0) -> 1476 | L29: =IFERROR(VLOOKUP($A29,Filtro!$A$4:$AY$1887,11,FALSE),0) -> 1055 | M29: =IFERROR(VLOOKUP($A29,Filtro!$A$4:$AY$1887,12,FALSE),0) -> 1601 | N29: =IFERROR(VLOOKUP($A29,Filtro!$A$4:$AY$1887,13,FALSE),0) -> 1001 | O29: =IFERROR(VLOOKUP($A29,Filtro!$A$4:$AY$1887,14,FALSE),0) -> 1429 | P29: =IFERROR(VLOOKUP($A29,Filtro!$A$4:$AY$1887,15,FALSE),0) -> 799 | Q29: =IFERROR(VLOOKUP($A29,Filtro!$A$4:$AY$1887,16,FALSE),0) -> 1248 | R29: =IFERROR(VLOOKUP($A29,Filtro!$A$4:$AY$1887,17,FALSE),0) -> 851 | S29: =IFERROR(VLOOKUP($A29,Filtro!$A$4:$AY$1887,18,FALSE),0) -> 1176 | T29: =IFERROR(VLOOKUP($A29,Filtro!$A$4:$AY$1887,19,FALSE),0) -> 668 | U29: =IFERROR(VLOOKUP($A29,Filtro!$A$4:$AY$1887,20,FALSE),0) -> 985 | V29: =IFERROR(VLOOKUP($A29,Filtro!$A$4:$AY$1887,21,FALSE),0) -> 535 | W29: =IFERROR(VLOOKUP($A29,Filtro!$A$4:$AY$1887,22,FALSE),0) -> 683 | X29: =IFERROR(VLOOKUP($A29,Filtro!$A$4:$AY$1887,23,FALSE),0) -> 356 | Y29: =IFERROR(VLOOKUP($A29,Filtro!$A$4:$AY$1887,24,FALSE),0) -> 454 | Z29: =IFERROR(VLOOKUP($A29,Filtro!$A$4:$AY$1887,25,FALSE),0) -> 307 | AA29: =IFERROR(VLOOKUP($A29,Filtro!$A$4:$AY$1887,26,FALSE),0) -> 414 | AB29: =IFERROR(VLOOKUP($A29,Filtro!$A$4:$AY$1887,27,FALSE),0) -> 231 | AC29: =IFERROR(VLOOKUP($A29,Filtro!$A$4:$AY$1887,28,FALSE),0) -> 260 | AD29: =IFERROR(VLOOKUP($A29,Filtro!$A$4:$AY$1887,29,FALSE),0) -> 156 | AE29: =IFERROR(VLOOKUP($A29,Filtro!$A$4:$AY$1887,30,FALSE),0) -> 135 | AF29: =IFERROR(VLOOKUP($A29,Filtro!$A$4:$AY$1887,31,FALSE),0) -> 102 | AG29: =IFERROR(VLOOKUP($A29,Filtro!$A$4:$AY$1887,32,FALSE),0) -> 90 | CG29: 0 | CH29: 0
A30: 02200020 | B30: PRESIÓN ARTERIAL ELEVADA (= >140/90 mmHg) | C30: =IFERROR(VLOOKUP($A30,Filtro!$A$4:$AY$1887,2,FALSE),0) -> 16800 | D30: =IFERROR(VLOOKUP($A30,Filtro!$A$4:$AY$1887,3,FALSE),0) -> 7609 | E30: =IFERROR(VLOOKUP($A30,Filtro!$A$4:$AY$1887,4,FALSE),0) -> 9191 | F30: =IFERROR(VLOOKUP($A30,Filtro!$A$4:$AY$1887,5,FALSE),0) -> 10 | G30: =IFERROR(VLOOKUP($A30,Filtro!$A$4:$AY$1887,6,FALSE),0) -> 5 | H30: =IFERROR(VLOOKUP($A30,Filtro!$A$4:$AY$1887,7,FALSE),0) -> 352 | I30: =IFERROR(VLOOKUP($A30,Filtro!$A$4:$AY$1887,8,FALSE),0) -> 203 | J30: =IFERROR(VLOOKUP($A30,Filtro!$A$4:$AY$1887,9,FALSE),0) -> 371 | K30: =IFERROR(VLOOKUP($A30,Filtro!$A$4:$AY$1887,10,FALSE),0) -> 261 | L30: =IFERROR(VLOOKUP($A30,Filtro!$A$4:$AY$1887,11,FALSE),0) -> 315 | M30: =IFERROR(VLOOKUP($A30,Filtro!$A$4:$AY$1887,12,FALSE),0) -> 323 | N30: =IFERROR(VLOOKUP($A30,Filtro!$A$4:$AY$1887,13,FALSE),0) -> 429 | O30: =IFERROR(VLOOKUP($A30,Filtro!$A$4:$AY$1887,14,FALSE),0) -> 376 | P30: =IFERROR(VLOOKUP($A30,Filtro!$A$4:$AY$1887,15,FALSE),0) -> 397 | Q30: =IFERROR(VLOOKUP($A30,Filtro!$A$4:$AY$1887,16,FALSE),0) -> 500 | R30: =IFERROR(VLOOKUP($A30,Filtro!$A$4:$AY$1887,17,FALSE),0) -> 481 | S30: =IFERROR(VLOOKUP($A30,Filtro!$A$4:$AY$1887,18,FALSE),0) -> 610 | T30: =IFERROR(VLOOKUP($A30,Filtro!$A$4:$AY$1887,19,FALSE),0) -> 548 | U30: =IFERROR(VLOOKUP($A30,Filtro!$A$4:$AY$1887,20,FALSE),0) -> 657 | V30: =IFERROR(VLOOKUP($A30,Filtro!$A$4:$AY$1887,21,FALSE),0) -> 516 | W30: =IFERROR(VLOOKUP($A30,Filtro!$A$4:$AY$1887,22,FALSE),0) -> 519 | X30: =IFERROR(VLOOKUP($A30,Filtro!$A$4:$AY$1887,23,FALSE),0) -> 467 | Y30: =IFERROR(VLOOKUP($A30,Filtro!$A$4:$AY$1887,24,FALSE),0) -> 406 | Z30: =IFERROR(VLOOKUP($A30,Filtro!$A$4:$AY$1887,25,FALSE),0) -> 959 | AA30: =IFERROR(VLOOKUP($A30,Filtro!$A$4:$AY$1887,26,FALSE),0) -> 1351 | AB30: =IFERROR(VLOOKUP($A30,Filtro!$A$4:$AY$1887,27,FALSE),0) -> 1044 | AC30: =IFERROR(VLOOKUP($A30,Filtro!$A$4:$AY$1887,28,FALSE),0) -> 1352 | AD30: =IFERROR(VLOOKUP($A30,Filtro!$A$4:$AY$1887,29,FALSE),0) -> 819 | AE30: =IFERROR(VLOOKUP($A30,Filtro!$A$4:$AY$1887,30,FALSE),0) -> 1145 | AF30: =IFERROR(VLOOKUP($A30,Filtro!$A$4:$AY$1887,31,FALSE),0) -> 901 | AG30: =IFERROR(VLOOKUP($A30,Filtro!$A$4:$AY$1887,32,FALSE),0) -> 1483 | CG30: 0 | CH30: 0
B31: SECCIÓN D: RESULTADOS DE EMP SEGÚN ESTADO DE SALUD (EXÁMENES DE LABORATORIO)
B32: ESTADO DE SALUD | C32: TOTAL | F32: 15 a 19 años | H32: 20 a 24 años | J32: 25 a 29 | L32: 30 a 34 | N32: 35 a 39 | P32: 40 a 44 | R32: 45 a 49 | T32: 50 a 54 | V32: 55 a 59 | X32: 60 a 64 | Z32: 65 a 69 | AB32: 70 a 74 | AD32: 75 a 79 | AF32: 80 y más
C33: Ambos Sexos | D33: Hombres | E33: Mujeres | F33: Hombres | G33: Mujeres | H33: Hombres | I33: Mujeres | J33: Hombres | K33: Mujeres | L33: Hombres | M33: Mujeres | N33: Hombres | O33: Mujeres | P33: Hombres | Q33: Mujeres | R33: Hombres | S33: Mujeres | T33: Hombres | U33: Mujeres | V33: Hombres | W33: Mujeres | X33: Hombres | Y33: Mujeres | Z33: Hombres | AA33: Mujeres | AB33: Hombres | AC33: Mujeres | AD33: Hombres | AE33: Mujeres | AF33: Hombres | AG33: Mujeres
A34: 02200030 | B34: GLICEMIA ALTERADA (= > a 100 mg/dl) | C34: =IFERROR(VLOOKUP($A34,Filtro!$A$4:$AY$1887,2,FALSE),0) -> 8322 | D34: =IFERROR(VLOOKUP($A34,Filtro!$A$4:$AY$1887,3,FALSE),0) -> 3281 | E34: =IFERROR(VLOOKUP($A34,Filtro!$A$4:$AY$1887,4,FALSE),0) -> 5041 | F34: =IFERROR(VLOOKUP($A34,Filtro!$A$4:$AY$1887,5,FALSE),0) -> 3 | G34: =IFERROR(VLOOKUP($A34,Filtro!$A$4:$AY$1887,6,FALSE),0) -> 4 | H34: =IFERROR(VLOOKUP($A34,Filtro!$A$4:$AY$1887,7,FALSE),0) -> 164 | I34: =IFERROR(VLOOKUP($A34,Filtro!$A$4:$AY$1887,8,FALSE),0) -> 219 | J34: =IFERROR(VLOOKUP($A34,Filtro!$A$4:$AY$1887,9,FALSE),0) -> 170 | K34: =IFERROR(VLOOKUP($A34,Filtro!$A$4:$AY$1887,10,FALSE),0) -> 270 | L34: =IFERROR(VLOOKUP($A34,Filtro!$A$4:$AY$1887,11,FALSE),0) -> 121 | M34: =IFERROR(VLOOKUP($A34,Filtro!$A$4:$AY$1887,12,FALSE),0) -> 309 | N34: =IFERROR(VLOOKUP($A34,Filtro!$A$4:$AY$1887,13,FALSE),0) -> 199 | O34: =IFERROR(VLOOKUP($A34,Filtro!$A$4:$AY$1887,14,FALSE),0) -> 344 | P34: =IFERROR(VLOOKUP($A34,Filtro!$A$4:$AY$1887,15,FALSE),0) -> 193 | Q34: =IFERROR(VLOOKUP($A34,Filtro!$A$4:$AY$1887,16,FALSE),0) -> 339 | R34: =IFERROR(VLOOKUP($A34,Filtro!$A$4:$AY$1887,17,FALSE),0) -> 236 | S34: =IFERROR(VLOOKUP($A34,Filtro!$A$4:$AY$1887,18,FALSE),0) -> 423 | T34: =IFERROR(VLOOKUP($A34,Filtro!$A$4:$AY$1887,19,FALSE),0) -> 275 | U34: =IFERROR(VLOOKUP($A34,Filtro!$A$4:$AY$1887,20,FALSE),0) -> 432 | V34: =IFERROR(VLOOKUP($A34,Filtro!$A$4:$AY$1887,21,FALSE),0) -> 232 | W34: =IFERROR(VLOOKUP($A34,Filtro!$A$4:$AY$1887,22,FALSE),0) -> 331 | X34: =IFERROR(VLOOKUP($A34,Filtro!$A$4:$AY$1887,23,FALSE),0) -> 177 | Y34: =IFERROR(VLOOKUP($A34,Filtro!$A$4:$AY$1887,24,FALSE),0) -> 208 | Z34: =IFERROR(VLOOKUP($A34,Filtro!$A$4:$AY$1887,25,FALSE),0) -> 431 | AA34: =IFERROR(VLOOKUP($A34,Filtro!$A$4:$AY$1887,26,FALSE),0) -> 634 | AB34: =IFERROR(VLOOKUP($A34,Filtro!$A$4:$AY$1887,27,FALSE),0) -> 388 | AC34: =IFERROR(VLOOKUP($A34,Filtro!$A$4:$AY$1887,28,FALSE),0) -> 555 | AD34: =IFERROR(VLOOKUP($A34,Filtro!$A$4:$AY$1887,29,FALSE),0) -> 389 | AE34: =IFERROR(VLOOKUP($A34,Filtro!$A$4:$AY$1887,30,FALSE),0) -> 475 | AF34: =IFERROR(VLOOKUP($A34,Filtro!$A$4:$AY$1887,31,FALSE),0) -> 303 | AG34: =IFERROR(VLOOKUP($A34,Filtro!$A$4:$AY$1887,32,FALSE),0) -> 498
A35: 02200040 | B35: COLESTEROL ELEVADO (= > 200 mg/dl) | C35: =IFERROR(VLOOKUP($A35,Filtro!$A$4:$AY$1887,2,FALSE),0) -> 8489 | D35: =IFERROR(VLOOKUP($A35,Filtro!$A$4:$AY$1887,3,FALSE),0) -> 3026 | E35: =IFERROR(VLOOKUP($A35,Filtro!$A$4:$AY$1887,4,FALSE),0) -> 5463 | F35: =IFERROR(VLOOKUP($A35,Filtro!$A$4:$AY$1887,5,FALSE),0) -> 5 | G35: =IFERROR(VLOOKUP($A35,Filtro!$A$4:$AY$1887,6,FALSE),0) -> 7 | H35: =IFERROR(VLOOKUP($A35,Filtro!$A$4:$AY$1887,7,FALSE),0) -> 80 | I35: =IFERROR(VLOOKUP($A35,Filtro!$A$4:$AY$1887,8,FALSE),0) -> 163 | J35: =IFERROR(VLOOKUP($A35,Filtro!$A$4:$AY$1887,9,FALSE),0) -> 221 | K35: =IFERROR(VLOOKUP($A35,Filtro!$A$4:$AY$1887,10,FALSE),0) -> 275 | L35: =IFERROR(VLOOKUP($A35,Filtro!$A$4:$AY$1887,11,FALSE),0) -> 209 | M35: =IFERROR(VLOOKUP($A35,Filtro!$A$4:$AY$1887,12,FALSE),0) -> 295 | N35: =IFERROR(VLOOKUP($A35,Filtro!$A$4:$AY$1887,13,FALSE),0) -> 262 | O35: =IFERROR(VLOOKUP($A35,Filtro!$A$4:$AY$1887,14,FALSE),0) -> 369 | P35: =IFERROR(VLOOKUP($A35,Filtro!$A$4:$AY$1887,15,FALSE),0) -> 297 | Q35: =IFERROR(VLOOKUP($A35,Filtro!$A$4:$AY$1887,16,FALSE),0) -> 460 | R35: =IFERROR(VLOOKUP($A35,Filtro!$A$4:$AY$1887,17,FALSE),0) -> 292 | S35: =IFERROR(VLOOKUP($A35,Filtro!$A$4:$AY$1887,18,FALSE),0) -> 608 | T35: =IFERROR(VLOOKUP($A35,Filtro!$A$4:$AY$1887,19,FALSE),0) -> 328 | U35: =IFERROR(VLOOKUP($A35,Filtro!$A$4:$AY$1887,20,FALSE),0) -> 643 | V35: =IFERROR(VLOOKUP($A35,Filtro!$A$4:$AY$1887,21,FALSE),0) -> 249 | W35: =IFERROR(VLOOKUP($A35,Filtro!$A$4:$AY$1887,22,FALSE),0) -> 543 | X35: =IFERROR(VLOOKUP($A35,Filtro!$A$4:$AY$1887,23,FALSE),0) -> 222 | Y35: =IFERROR(VLOOKUP($A35,Filtro!$A$4:$AY$1887,24,FALSE),0) -> 352 | Z35: =IFERROR(VLOOKUP($A35,Filtro!$A$4:$AY$1887,25,FALSE),0) -> 209 | AA35: =IFERROR(VLOOKUP($A35,Filtro!$A$4:$AY$1887,26,FALSE),0) -> 530 | AB35: =IFERROR(VLOOKUP($A35,Filtro!$A$4:$AY$1887,27,FALSE),0) -> 245 | AC35: =IFERROR(VLOOKUP($A35,Filtro!$A$4:$AY$1887,28,FALSE),0) -> 463 | AD35: =IFERROR(VLOOKUP($A35,Filtro!$A$4:$AY$1887,29,FALSE),0) -> 229 | AE35: =IFERROR(VLOOKUP($A35,Filtro!$A$4:$AY$1887,30,FALSE),0) -> 374 | AF35: =IFERROR(VLOOKUP($A35,Filtro!$A$4:$AY$1887,31,FALSE),0) -> 178 | AG35: =IFERROR(VLOOKUP($A35,Filtro!$A$4:$AY$1887,32,FALSE),0) -> 381
B195: =SUM(C12:C17,C21:C25,C29:C30,C34:C35) -> 384238 | C195: =SUM(CH7:CN52) -> 1

Sheet A03
B6: REM-A03. APLICACIÓN Y RESULTADOS DE ESCALAS DE EVALUACIÓN
B7: SECCION A: APLICACIÓN DE INSTRUMENTO Y RESULTADO EN EL NIÑO (A)
B8: SECCIÓN A1: APLICACIÓN Y RESULTADOS DE PAUTA BREVE
B9: EVALUACIONES POR EDAD DEL NIÑO | D9: TOTAL | G9: GRUPO DE EDAD
G10: Menor de 1 mes | I10: 1 mes | K10: 2 meses | M10: 3 meses | O10: 4 meses | Q10: 5 meses | S10: 6 meses | U10: 7 - 11 meses | W10: 12 - 17 meses | Y10: 18 - 24 meses
D11: Ambos Sexos | E11: Hombres | F11: Mujeres | G11: Hombres | H11: Mujeres | I11: Hombres | J11: Mujeres | K11: Hombres | L11: Mujeres | M11: Hombres | N11: Mujeres | O11: Hombres | P11: Mujeres | Q11: Hombres | R11: Mujeres | S11: Hombres | T11: Mujeres | U11: Hombres | V11: Mujeres | W11: Hombres | X11: Mujeres | Y11: Hombres | Z11: Mujeres
A12: 02021730 | B12: APLICACIÓN PAUTA BREVE | D12: =IFERROR(VLOOKUP($A12,Filtro!$A$4:$AY$1887,2,FALSE),0) -> 15422 | E12: =IFERROR(VLOOKUP($A12,Filtro!$A$4:$AY$1887,3,FALSE),0) -> 7828 | F12: =IFERROR(VLOOKUP($A12,Filtro!$A$4:$AY$1887,4,FALSE),0) -> 7594 | G12: =IFERROR(VLOOKUP($A12,Filtro!$A$4:$AY$1887,5,FALSE),0) -> 77 | H12: =IFERROR(VLOOKUP($A12,Filtro!$A$4:$AY$1887,6,FALSE),0) -> 75 | I12: =IFERROR(VLOOKUP($A12,Filtro!$A$4:$AY$1887,7,FALSE),0) -> 15 | J12: =IFERROR(VLOOKUP($A12,Filtro!$A$4:$AY$1887,8,FALSE),0) -> 13 | K12: =IFERROR(VLOOKUP($A12,Filtro!$A$4:$AY$1887,9,FALSE),0) -> 34 | L12: =IFERROR(VLOOKUP($A12,Filtro!$A$4:$AY$1887,10,FALSE),0) -> 30 | M12: =IFERROR(VLOOKUP($A12,Filtro!$A$4:$AY$1887,11,FALSE),0) -> 43 | N12: =IFERROR(VLOOKUP($A12,Filtro!$A$4:$AY$1887,12,FALSE),0) -> 41 | O12: =IFERROR(VLOOKUP($A12,Filtro!$A$4:$AY$1887,13,FALSE),0) -> 2641 | P12: =IFERROR(VLOOKUP($A12,Filtro!$A$4:$AY$1887,14,FALSE),0) -> 2455 | Q12: =IFERROR(VLOOKUP($A12,Filtro!$A$4:$AY$1887,15,FALSE),0) -> 77 | R12: =IFERROR(VLOOKUP($A12,Filtro!$A$4:$AY$1887,16,FALSE),0) -> 57 | S12: =IFERROR(VLOOKUP($A12,Filtro!$A$4:$AY$1887,17,FALSE),0) -> 16 | T12: =IFERROR(VLOOKUP($A12,Filtro!$A$4:$AY$1887,18,FALSE),0) -> 23 | U12: =IFERROR(VLOOKUP($A12,Filtro!$A$4:$AY$1887,19,FALSE),0) -> 63 | V12: =IFERROR(VLOOKUP($A12,Filtro!$A$4:$AY$1887,20,FALSE),0) -> 62 | W12: =IFERROR(VLOOKUP($A12,Filtro!$A$4:$AY$1887,21,FALSE),0) -> 2591 | X12: =IFERROR(VLOOKUP($A12,Filtro!$A$4:$AY$1887,22,FALSE),0) -> 2565 | Y12: =IFERROR(VLOOKUP($A12,Filtro!$A$4:$AY$1887,23,FALSE),0) -> 2271 | Z12: =IFERROR(VLOOKUP($A12,Filtro!$A$4:$AY$1887,24,FALSE),0) -> 2273
A13: 03500020 | B13: RESULTADOS | C13: NORMAL | D13: =IFERROR(VLOOKUP($A13,Filtro!$A$4:$AY$1887,2,FALSE),0) -> 14171 | E13: =IFERROR(VLOOKUP($A13,Filtro!$A$4:$AY$1887,3,FALSE),0) -> 7107 | F13: =IFERROR(VLOOKUP($A13,Filtro!$A$4:$AY$1887,4,FALSE),0) -> 7064 | G13: =IFERROR(VLOOKUP($A13,Filtro!$A$4:$AY$1887,5,FALSE),0) -> 57 | H13: =IFERROR(VLOOKUP($A13,Filtro!$A$4:$AY$1887,6,FALSE),0) -> 52 | I13: =IFERROR(VLOOKUP($A13,Filtro!$A$4:$AY$1887,7,FALSE),0) -> 15 | J13: =IFERROR(VLOOKUP($A13,Filtro!$A$4:$AY$1887,8,FALSE),0) -> 13 | K13: =IFERROR(VLOOKUP($A13,Filtro!$A$4:$AY$1887,9,FALSE),0) -> 34 | L13: =IFERROR(VLOOKUP($A13,Filtro!$A$4:$AY$1887,10,FALSE),0) -> 29 | M13: =IFERROR(VLOOKUP($A13,Filtro!$A$4:$AY$1887,11,FALSE),0) -> 41 | N13: =IFERROR(VLOOKUP($A13,Filtro!$A$4:$AY$1887,12,FALSE),0) -> 39 | O13: =IFERROR(VLOOKUP($A13,Filtro!$A$4:$AY$1887,13,FALSE),0) -> 2547 | P13: =IFERROR(VLOOKUP($A13,Filtro!$A$4:$AY$1887,14,FALSE),0) -> 2378 | Q13: =IFERROR(VLOOKUP($A13,Filtro!$A$4:$AY$1887,15,FALSE),0) -> 76 | R13: =IFERROR(VLOOKUP($A13,Filtro!$A$4:$AY$1887,16,FALSE),0) -> 52 | S13: =IFERROR(VLOOKUP($A13,Filtro!$A$4:$AY$1887,17,FALSE),0) -> 16 | T13: =IFERROR(VLOOKUP($A13,Filtro!$A$4:$AY$1887,18,FALSE),0) -> 21 | U13: =IFERROR(VLOOKUP($A13,Filtro!$A$4:$AY$1887,19,FALSE),0) -> 61 | V13: =IFERROR(VLOOKUP($A13,Filtro!$A$4:$AY$1887,20,FALSE),0) -> 55 | W13: =IFERROR(VLOOKUP($A13,Filtro!$A$4:$AY$1887,21,FALSE),0) -> 2393 | X13: =IFERROR(VLOOKUP($A13,Filtro!$A$4:$AY$1887,22,FALSE),0) -> 2408 | Y13: =IFERROR(VLOOKUP($A13,Filtro!$A$4:$AY$1887,23,FALSE),0) -> 1867 | Z13: =IFERROR(VLOOKUP($A13,Filtro!$A$4:$AY$1887,24,FALSE),0) -> 2017 | DG13: 0 | DH13: 0 | DI13: 0 | DJ13: 0 | DK13: 0 | DL13: 0 | DM13: 0 | DN13: 0 | DO13: 0 | DP13: 0 | DQ13: 0 | DR13: 0 | DS13: 0 | DT13: 0 | DU13: 0 | DV13: 0 | DW13: 0 | DX13: 0 | DY13: 0 | DZ13: 0
A14: 03500030 | C14: ALTERADO | D14: =IFERROR(VLOOKUP($A14,Filtro!$A$4:$AY$1887,2,FALSE),0) -> 1299 | E14: =IFERROR(VLOOKUP($A14,Filtro!$A$4:$AY$1887,3,FALSE),0) -> 747 | F14: =IFERROR(VLOOKUP($A14,Filtro!$A$4:$AY$1887,4,FALSE),0) -> 552 | G14: =IFERROR(VLOOKUP($A14,Filtro!$A$4:$AY$1887,5,FALSE),0) -> 20 | H14: =IFERROR(VLOOKUP($A14,Filtro!$A$4:$AY$1887,6,FALSE),0) -> 23 | I14: =IFERROR(VLOOKUP($A14,Filtro!$A$4:$AY$1887,7,FALSE),0) -> 0 | J14: =IFERROR(VLOOKUP($A14,Filtro!$A$4:$AY$1887,8,FALSE),0) -> 0 | K14: =IFERROR(VLOOKUP($A14,Filtro!$A$4:$AY$1887,9,FALSE),0) -> 0 | L14: =IFERROR(VLOOKUP($A14,Filtro!$A$4:$AY$1887,10,FALSE),0) -> 1 | M14: =IFERROR(VLOOKUP($A14,Filtro!$A$4:$AY$1887,11,FALSE),0) -> 3 | N14: =IFERROR(VLOOKUP($A14,Filtro!$A$4:$AY$1887,12,FALSE),0) -> 2 | O14: =IFERROR(VLOOKUP($A14,Filtro!$A$4:$AY$1887,13,FALSE),0) -> 103 | P14: =IFERROR(VLOOKUP($A14,Filtro!$A$4:$AY$1887,14,FALSE),0) -> 82 | Q14: =IFERROR(VLOOKUP($A14,Filtro!$A$4:$AY$1887,15,FALSE),0) -> 1 | R14: =IFERROR(VLOOKUP($A14,Filtro!$A$4:$AY$1887,16,FALSE),0) -> 6 | S14: =IFERROR(VLOOKUP($A14,Filtro!$A$4:$AY$1887,17,FALSE),0) -> 0 | T14: =IFERROR(VLOOKUP($A14,Filtro!$A$4:$AY$1887,18,FALSE),0) -> 2 | U14: =IFERROR(VLOOKUP($A14,Filtro!$A$4:$AY$1887,19,FALSE),0) -> 3 | V14: =IFERROR(VLOOKUP($A14,Filtro!$A$4:$AY$1887,20,FALSE),0) -> 7 | W14: =IFERROR(VLOOKUP($A14,Filtro!$A$4:$AY$1887,21,FALSE),0) -> 205 | X14: =IFERROR(VLOOKUP($A14,Filtro!$A$4:$AY$1887,22,FALSE),0) -> 164 | Y14: =IFERROR(VLOOKUP($A14,Filtro!$A$4:$AY$1887,23,FALSE),0) -> 412 | Z14: =IFERROR(VLOOKUP($A14,Filtro!$A$4:$AY$1887,24,FALSE),0) -> 265
B16: SECCIÓN A2: RESULTADOS DE LA APLICACIÓN DE ESCALA DE EVALUACIÓN DEL DESARROLLO PSICOMOTOR
B17: ACTIVIDAD | C17: RESULTADO | D17: TOTAL | G17: POR EDAD | S17: MIGRANTES
G18: Menor 7 meses | I18: 7 - 11 meses | K18: 12 - 17 meses | M18: 18 - 23 meses | O18: 24 - 47 meses | Q18: 48 - 59 meses
D19: Ambos Sexos | E19: Hombres | F19: Mujeres | G19: Hombres | H19: Mujeres | I19: Hombres | J19: Mujeres | K19: Hombres | L19: Mujeres | M19: Hombres | N19: Mujeres | O19: Hombres | P19: Mujeres | Q19: Hombres | R19: Mujeres
A20: 02021740 | B20: APLICACIÓN TEST DE DESARROLLO PSICOMOTOR | D20: =IFERROR(VLOOKUP($A20,Filtro!$A$4:$AY$1887,2,FALSE),0) -> 18449 | E20: =IFERROR(VLOOKUP($A20,Filtro!$A$4:$AY$1887,3,FALSE),0) -> 9568 | F20: =IFERROR(VLOOKUP($A20,Filtro!$A$4:$AY$1887,4,FALSE),0) -> 8881 | G20: =IFERROR(VLOOKUP($A20,Filtro!$A$4:$AY$1887,5,FALSE),0) -> 64 | H20: =IFERROR(VLOOKUP($A20,Filtro!$A$4:$AY$1887,6,FALSE),0) -> 59 | I20: =IFERROR(VLOOKUP($A20,Filtro!$A$4:$AY$1887,7,FALSE),0) -> 3105 | J20: =IFERROR(VLOOKUP($A20,Filtro!$A$4:$AY$1887,8,FALSE),0) -> 2809 | K20: =IFERROR(VLOOKUP($A20,Filtro!$A$4:$AY$1887,9,FALSE),0) -> 472 | L20: =IFERROR(VLOOKUP($A20,Filtro!$A$4:$AY$1887,10,FALSE),0) -> 482 | M20: =IFERROR(VLOOKUP($A20,Filtro!$A$4:$AY$1887,11,FALSE),0) -> 3342 | N20: =IFERROR(VLOOKUP($A20,Filtro!$A$4:$AY$1887,12,FALSE),0) -> 3221 | O20: =IFERROR(VLOOKUP($A20,Filtro!$A$4:$AY$1887,13,FALSE),0) -> 2470 | P20: =IFERROR(VLOOKUP($A20,Filtro!$A$4:$AY$1887,14,FALSE),0) -> 2211 | Q20: =IFERROR(VLOOKUP($A20,Filtro!$A$4:$AY$1887,15,FALSE),0) -> 115 | R20: =IFERROR(VLOOKUP($A20,Filtro!$A$4:$AY$1887,16,FALSE),0) -> 99 | S20: =IFERROR(VLOOKUP($A20,Filtro!$A$4:$AY$1887,17,FALSE),0) -> 69 | CH20: 0 | CI20: 0 | CJ20: 0 | CK20: 0 | CL20: 0 | CM20: 0 | CN20: 0 | CO20: 0
A21: 02010320 | B21: PRIMERA EVALUACIÓN | C21: NORMAL | D21: =IFERROR(VLOOKUP($A21,Filtro!$A$4:$AY$1887,2,FALSE),0) -> 14877 | E21: =IFERROR(VLOOKUP($A21,Filtro!$A$4:$AY$1887,3,FALSE),0) -> 7334 | F21: =IFERROR(VLOOKUP($A21,Filtro!$A$4:$AY$1887,4,FALSE),0) -> 7543 | G21: =IFERROR(VLOOKUP($A21,Filtro!$A$4:$AY$1887,5,FALSE),0) -> 46 | H21: =IFERROR(VLOOKUP($A21,Filtro!$A$4:$AY$1887,6,FALSE),0) -> 44 | I21: =IFERROR(VLOOKUP($A21,Filtro!$A$4:$AY$1887,7,FALSE),0) -> 2765 | J21: =IFERROR(VLOOKUP($A21,Filtro!$A$4:$AY$1887,8,FALSE),0) -> 2511 | K21: =IFERROR(VLOOKUP($A21,Filtro!$A$4:$AY$1887,9,FALSE),0) -> 366 | L21: =IFERROR(VLOOKUP($A21,Filtro!$A$4:$AY$1887,10,FALSE),0) -> 395 | M21: =IFERROR(VLOOKUP($A21,Filtro!$A$4:$AY$1887,11,FALSE),0) -> 2480 | N21: =IFERROR(VLOOKUP($A21,Filtro!$A$4:$AY$1887,12,FALSE),0) -> 2670 | O21: =IFERROR(VLOOKUP($A21,Filtro!$A$4:$AY$1887,13,FALSE),0) -> 1590 | P21: =IFERROR(VLOOKUP($A21,Filtro!$A$4:$AY$1887,14,FALSE),0) -> 1838 | Q21: =IFERROR(VLOOKUP($A21,Filtro!$A$4:$AY$1887,15,FALSE),0) -> 87 | R21: =IFERROR(VLOOKUP($A21,Filtro!$A$4:$AY$1887,16,FALSE),0) -> 85 | S21: =IFERROR(VLOOKUP($A21,Filtro!$A$4:$AY$1887,17,FALSE),0) -> 58
A22: 05225303 | C22: NORMAL CON REZAGO | D22: =IFERROR(VLOOKUP($A22,Filtro!$A$4:$AY$1887,2,FALSE),0) -> 854 | E22: =IFERROR(VLOOKUP($A22,Filtro!$A$4:$AY$1887,3,FALSE),0) -> 516 | F22: =IFERROR(VLOOKUP($A22,Filtro!$A$4:$AY$1887,4,FALSE),0) -> 338 | G22: =IFERROR(VLOOKUP($A22,Filtro!$A$4:$AY$1887,5,FALSE),0) -> 1 | H22: =IFERROR(VLOOKUP($A22,Filtro!$A$4:$AY$1887,6,FALSE),0) -> 1 | I22: =IFERROR(VLOOKUP($A22,Filtro!$A$4:$AY$1887,7,FALSE),0) -> 98 | J22: =IFERROR(VLOOKUP($A22,Filtro!$A$4:$AY$1887,8,FALSE),0) -> 92 | K22: =IFERROR(VLOOKUP($A22,Filtro!$A$4:$AY$1887,9,FALSE),0) -> 17 | L22: =IFERROR(VLOOKUP($A22,Filtro!$A$4:$AY$1887,10,FALSE),0) -> 15 | M22: =IFERROR(VLOOKUP($A22,Filtro!$A$4:$AY$1887,11,FALSE),0) -> 141 | N22: =IFERROR(VLOOKUP($A22,Filtro!$A$4:$AY$1887,12,FALSE),0) -> 98 | O22: =IFERROR(VLOOKUP($A22,Filtro!$A$4:$AY$1887,13,FALSE),0) -> 255 | P22: =IFERROR(VLOOKUP($A22,Filtro!$A$4:$AY$1887,14,FALSE),0) -> 130 | Q22: =IFERROR(VLOOKUP($A22,Filtro!$A$4:$AY$1887,15,FALSE),0) -> 4 | R22: =IFERROR(VLOOKUP($A22,Filtro!$A$4:$AY$1887,16,FALSE),0) -> 2 | S22: =IFERROR(VLOOKUP($A22,Filtro!$A$4:$AY$1887,17,FALSE),0) -> 4
A23: 02010321 | C23: RIESGO | D23: =IFERROR(VLOOKUP($A23,Filtro!$A$4:$AY$1887,2,FALSE),0) -> 1084 | E23: =IFERROR(VLOOKUP($A23,Filtro!$A$4:$AY$1887,3,FALSE),0) -> 705 | F23: =IFERROR(VLOOKUP($A23,Filtro!$A$4:$AY$1887,4,FALSE),0) -> 379 | G23: =IFERROR(VLOOKUP($A23,Filtro!$A$4:$AY$1887,5,FALSE),0) -> 5 | H23: =IFERROR(VLOOKUP($A23,Filtro!$A$4:$AY$1887,6,FALSE),0) -> 5 | I23: =IFERROR(VLOOKUP($A23,Filtro!$A$4:$AY$1887,7,FALSE),0) -> 103 | J23: =IFERROR(VLOOKUP($A23,Filtro!$A$4:$AY$1887,8,FALSE),0) -> 87 | K23: =IFERROR(VLOOKUP($A23,Filtro!$A$4:$AY$1887,9,FALSE),0) -> 26 | L23: =IFERROR(VLOOKUP($A23,Filtro!$A$4:$AY$1887,10,FALSE),0) -> 19 | M23: =IFERROR(VLOOKUP($A23,Filtro!$A$4:$AY$1887,11,FALSE),0) -> 311 | N23: =IFERROR(VLOOKUP($A23,Filtro!$A$4:$AY$1887,12,FALSE),0) -> 180 | O23: =IFERROR(VLOOKUP($A23,Filtro!$A$4:$AY$1887,13,FALSE),0) -> 254 | P23: =IFERROR(VLOOKUP($A23,Filtro!$A$4:$AY$1887,14,FALSE),0) -> 88 | Q23: =IFERROR(VLOOKUP($A23,Filtro!$A$4:$AY$1887,15,FALSE),0) -> 6 | R23: =IFERROR(VLOOKUP($A23,Filtro!$A$4:$AY$1887,16,FALSE),0) -> 0 | S23: =IFERROR(VLOOKUP($A23,Filtro!$A$4:$AY$1887,17,FALSE),0) -> 3
A24: 02010322 | C24: RETRASO | D24: =IFERROR(VLOOKUP($A24,Filtro!$A$4:$AY$1887,2,FALSE),0) -> 232 | E24: =IFERROR(VLOOKUP($A24,Filtro!$A$4:$AY$1887,3,FALSE),0) -> 145 | F24: =IFERROR(VLOOKUP($A24,Filtro!$A$4:$AY$1887,4,FALSE),0) -> 87 | G24: =IFERROR(VLOOKUP($A24,Filtro!$A$4:$AY$1887,5,FALSE),0) -> 1 | H24: =IFERROR(VLOOKUP($A24,Filtro!$A$4:$AY$1887,6,FALSE),0) -> 0 | I24: =IFERROR(VLOOKUP($A24,Filtro!$A$4:$AY$1887,7,FALSE),0) -> 8 | J24: =IFERROR(VLOOKUP($A24,Filtro!$A$4:$AY$1887,8,FALSE),0) -> 10 | K24: =IFERROR(VLOOKUP($A24,Filtro!$A$4:$AY$1887,9,FALSE),0) -> 8 | L24: =IFERROR(VLOOKUP($A24,Filtro!$A$4:$AY$1887,10,FALSE),0) -> 4 | M24: =IFERROR(VLOOKUP($A24,Filtro!$A$4:$AY$1887,11,FALSE),0) -> 59 | N24: =IFERROR(VLOOKUP($A24,Filtro!$A$4:$AY$1887,12,FALSE),0) -> 50 | O24: =IFERROR(VLOOKUP($A24,Filtro!$A$4:$AY$1887,13,FALSE),0) -> 68 | P24: =IFERROR(VLOOKUP($A24,Filtro!$A$4:$AY$1887,14,FALSE),0) -> 22 | Q24: =IFERROR(VLOOKUP($A24,Filtro!$A$4:$AY$1887,15,FALSE),0) -> 1 | R24: =IFERROR(VLOOKUP($A24,Filtro!$A$4:$AY$1887,16,FALSE),0) -> 1 | S24: =IFERROR(VLOOKUP($A24,Filtro!$A$4:$AY$1887,17,FALSE),0) -> 1
A25: 05225304 | B25: REEVALUACIÓN | C25: NORMAL (desde normal con rezago) | D25: =IFERROR(VLOOKUP($A25,Filtro!$A$4:$AY$1887,2,FALSE),0) -> 489 | E25: =IFERROR(VLOOKUP($A25,Filtro!$A$4:$AY$1887,3,FALSE),0) -> 275 | F25: =IFERROR(VLOOKUP($A25,Filtro!$A$4:$AY$1887,4,FALSE),0) -> 214 | G25: =IFERROR(VLOOKUP($A25,Filtro!$A$4:$AY$1887,5,FALSE),0) -> 8 | H25: =IFERROR(VLOOKUP($A25,Filtro!$A$4:$AY$1887,6,FALSE),0) -> 9 | I25: =IFERROR(VLOOKUP($A25,Filtro!$A$4:$AY$1887,7,FALSE),0) -> 74 | J25: =IFERROR(VLOOKUP($A25,Filtro!$A$4:$AY$1887,8,FALSE),0) -> 66 | K25: =IFERROR(VLOOKUP($A25,Filtro!$A$4:$AY$1887,9,FALSE),0) -> 17 | L25: =IFERROR(VLOOKUP($A25,Filtro!$A$4:$AY$1887,10,FALSE),0) -> 19 | M25: =IFERROR(VLOOKUP($A25,Filtro!$A$4:$AY$1887,11,FALSE),0) -> 68 | N25: =IFERROR(VLOOKUP($A25,Filtro!$A$4:$AY$1887,12,FALSE),0) -> 50 | O25: =IFERROR(VLOOKUP($A25,Filtro!$A$4:$AY$1887,13,FALSE),0) -> 104 | P25: =IFERROR(VLOOKUP($A25,Filtro!$A$4:$AY$1887,14,FALSE),0) -> 62 | Q25: =IFERROR(VLOOKUP($A25,Filtro!$A$4:$AY$1887,15,FALSE),0) -> 4 | R25: =IFERROR(VLOOKUP($A25,Filtro!$A$4:$AY$1887,16,FALSE),0) -> 8 | S25: =IFERROR(VLOOKUP($A25,Filtro!$A$4:$AY$1887,17,FALSE),0) -> 0
A26: 02010420 | C26: NORMAL (desde riesgo) | D26: =IFERROR(VLOOKUP($A26,Filtro!$A$4:$AY$1887,2,FALSE),0) -> 569 | E26: =IFERROR(VLOOKUP($A26,Filtro!$A$4:$AY$1887,3,FALSE),0) -> 345 | F26: =IFERROR(VLOOKUP($A26,Filtro!$A$4:$AY$1887,4,FALSE),0) -> 224 | G26: =IFERROR(VLOOKUP($A26,Filtro!$A$4:$AY$1887,5,FALSE),0) -> 0 | H26: =IFERROR(VLOOKUP($A26,Filtro!$A$4:$AY$1887,6,FALSE),0) -> 0 | I26: =IFERROR(VLOOKUP($A26,Filtro!$A$4:$AY$1887,7,FALSE),0) -> 57 | J26: =IFERROR(VLOOKUP($A26,Filtro!$A$4:$AY$1887,8,FALSE),0) -> 41 | K26: =IFERROR(VLOOKUP($A26,Filtro!$A$4:$AY$1887,9,FALSE),0) -> 17 | L26: =IFERROR(VLOOKUP($A26,Filtro!$A$4:$AY$1887,10,FALSE),0) -> 15 | M26: =IFERROR(VLOOKUP($A26,Filtro!$A$4:$AY$1887,11,FALSE),0) -> 193 | N26: =IFERROR(VLOOKUP($A26,Filtro!$A$4:$AY$1887,12,FALSE),0) -> 136 | O26: =IFERROR(VLOOKUP($A26,Filtro!$A$4:$AY$1887,13,FALSE),0) -> 72 | P26: =IFERROR(VLOOKUP($A26,Filtro!$A$4:$AY$1887,14,FALSE),0) -> 31 | Q26: =IFERROR(VLOOKUP($A26,Filtro!$A$4:$AY$1887,15,FALSE),0) -> 6 | R26: =IFERROR(VLOOKUP($A26,Filtro!$A$4:$AY$1887,16,FALSE),0) -> 1 | S26: =IFERROR(VLOOKUP($A26,Filtro!$A$4:$AY$1887,17,FALSE),0) -> 1
A27: 05225305 | C27: NORMAL (desde retraso) | D27: =IFERROR(VLOOKUP($A27,Filtro!$A$4:$AY$1887,2,FALSE),0) -> 78 | E27: =IFERROR(VLOOKUP($A27,Filtro!$A$4:$AY$1887,3,FALSE),0) -> 51 | F27: =IFERROR(VLOOKUP($A27,Filtro!$A$4:$AY$1887,4,FALSE),0) -> 27 | G27: =IFERROR(VLOOKUP($A27,Filtro!$A$4:$AY$1887,5,FALSE),0) -> 1 | H27: =IFERROR(VLOOKUP($A27,Filtro!$A$4:$AY$1887,6,FALSE),0) -> 0 | I27: =IFERROR(VLOOKUP($A27,Filtro!$A$4:$AY$1887,7,FALSE),0) -> 6 | J27: =IFERROR(VLOOKUP($A27,Filtro!$A$4:$AY$1887,8,FALSE),0) -> 3 | K27: =IFERROR(VLOOKUP($A27,Filtro!$A$4:$AY$1887,9,FALSE),0) -> 3 | L27: =IFERROR(VLOOKUP($A27,Filtro!$A$4:$AY$1887,10,FALSE),0) -> 2 | M27: =IFERROR(VLOOKUP($A27,Filtro!$A$4:$AY$1887,11,FALSE),0) -> 25 | N27: =IFERROR(VLOOKUP($A27,Filtro!$A$4:$AY$1887,12,FALSE),0) -> 14 | O27: =IFERROR(VLOOKUP($A27,Filtro!$A$4:$AY$1887,13,FALSE),0) -> 14 | P27: =IFERROR(VLOOKUP($A27,Filtro!$A$4:$AY$1887,14,FALSE),0) -> 8 | Q27: =IFERROR(VLOOKUP($A27,Filtro!$A$4:$AY$1887,15,FALSE),0) -> 2 | R27: =IFERROR(VLOOKUP($A27,Filtro!$A$4:$AY$1887,16,FALSE),0) -> 0 | S27: =IFERROR(VLOOKUP($A27,Filtro!$A$4:$AY$1887,17,FALSE),0) -> 0
A28: 03500366 | C28: NORMAL CON REZAGO (desde riesgo) | D28: =IFERROR(VLOOKUP($A28,Filtro!$A$4:$AY$1887,2,FALSE),0) -> 110 | E28: =IFERROR(VLOOKUP($A28,Filtro!$A$4:$AY$1887,3,FALSE),0) -> 73 | F28: =IFERROR(VLOOKUP($A28,Filtro!$A$4:$AY$1887,4,FALSE),0) -> 37 | G28: =IFERROR(VLOOKUP($A28,Filtro!$A$4:$AY$1887,5,FALSE),0) -> 0 | H28: =IFERROR(VLOOKUP($A28,Filtro!$A$4:$AY$1887,6,FALSE),0) -> 0 | I28: =IFERROR(VLOOKUP($A28,Filtro!$A$4:$AY$1887,7,FALSE),0) -> 7 | J28: =IFERROR(VLOOKUP($A28,Filtro!$A$4:$AY$1887,8,FALSE),0) -> 7 | K28: =IFERROR(VLOOKUP($A28,Filtro!$A$4:$AY$1887,9,FALSE),0) -> 3 | L28: =IFERROR(VLOOKUP($A28,Filtro!$A$4:$AY$1887,10,FALSE),0) -> 5 | M28: =IFERROR(VLOOKUP($A28,Filtro!$A$4:$AY$1887,11,FALSE),0) -> 36 | N28: =IFERROR(VLOOKUP($A28,Filtro!$A$4:$AY$1887,12,FALSE),0) -> 20 | O28: =IFERROR(VLOOKUP($A28,Filtro!$A$4:$AY$1887,13,FALSE),0) -> 26 | P28: =IFERROR(VLOOKUP($A28,Filtro!$A$4:$AY$1887,14,FALSE),0) -> 5 | Q28: =IFERROR(VLOOKUP($A28,Filtro!$A$4:$AY$1887,15,FALSE),0) -> 1 | R28: =IFERROR(VLOOKUP($A28,Filtro!$A$4:$AY$1887,16,FALSE),0) -> 0 | S28: =IFERROR(VLOOKUP($A28,Filtro!$A$4:$AY$1887,17,FALSE),0) -> 2
A29: 03500400 | C29: NORMAL CON REZAGO (desde retraso) | D29: =IFERROR(VLOOKUP($A29,Filtro!$A$4:$AY$1887,2,FALSE),0) -> 17 | E29: =IFERROR(VLOOKUP($A29,Filtro!$A$4:$AY$1887,3,FALSE),0) -> 13 | F29: =IFERROR(VLOOKUP($A29,Filtro!$A$4:$AY$1887,4,FALSE),0) -> 4 | G29: =IFERROR(VLOOKUP($A29,Filtro!$A$4:$AY$1887,5,FALSE),0) -> 0 | H29: =IFERROR(VLOOKUP($A29,Filtro!$A$4:$AY$1887,6,FALSE),0) -> 0 | I29: =IFERROR(VLOOKUP($A29,Filtro!$A$4:$AY$1887,7,FALSE),0) -> 0 | J29: =IFERROR(VLOOKUP($A29,Filtro!$A$4:$AY$1887,8,FALSE),0) -> 1 | K29: =IFERROR(VLOOKUP($A29,Filtro!$A$4:$AY$1887,9,FALSE),0) -> 1 | L29: =IFERROR(VLOOKUP($A29,Filtro!$A$4:$AY$1887,10,FALSE),0) -> 0 | M29: =IFERROR(VLOOKUP($A29,Filtro!$A$4:$AY$1887,11,FALSE),0) -> 6 | N29: =IFERROR(VLOOKUP($A29,Filtro!$A$4:$AY$1887,12,FALSE),0) -> 1 | O29: =IFERROR(VLOOKUP($A29,Filtro!$A$4:$AY$1887,13,FALSE),0) -> 5 | P29: =IFERROR(VLOOKUP($A29,Filtro!$A$4:$AY$1887,14,FALSE),0) -> 2 | Q29: =IFERROR(VLOOKUP($A29,Filtro!$A$4:$AY$1887,15,FALSE),0) -> 1 | R29: =IFERROR(VLOOKUP($A29,Filtro!$A$4:$AY$1887,16,FALSE),0) -> 0 | S29: =IFERROR(VLOOKUP($A29,Filtro!$A$4:$AY$1887,17,FALSE),0) -> 0
A30: 03500401 | C30: RIESGO (desde retraso) | D30: =IFERROR(VLOOKUP($A30,Filtro!$A$4:$AY$1887,2,FALSE),0) -> 20 | E30: =IFERROR(VLOOKUP($A30,Filtro!$A$4:$AY$1887,3,FALSE),0) -> 11 | F30: =IFERROR(VLOOKUP($A30,Filtro!$A$4:$AY$1887,4,FALSE),0) -> 9 | G30: =IFERROR(VLOOKUP($A30,Filtro!$A$4:$AY$1887,5,FALSE),0) -> 0 | H30: =IFERROR(VLOOKUP($A30,Filtro!$A$4:$AY$1887,6,FALSE),0) -> 0 | I30: =IFERROR(VLOOKUP($A30,Filtro!$A$4:$AY$1887,7,FALSE),0) -> 2 | J30: =IFERROR(VLOOKUP($A30,Filtro!$A$4:$AY$1887,8,FALSE),0) -> 3 | K30: =IFERROR(VLOOKUP($A30,Filtro!$A$4:$AY$1887,9,FALSE),0) -> 0 | L30: =IFERROR(VLOOKUP($A30,Filtro!$A$4:$AY$1887,10,FALSE),0) -> 0 | M30: =IFERROR(VLOOKUP($A30,Filtro!$A$4:$AY$1887,11,FALSE),0) -> 3 | N30: =IFERROR(VLOOKUP($A30,Filtro!$A$4:$AY$1887,12,FALSE),0) -> 3 | O30: =IFERROR(VLOOKUP($A30,Filtro!$A$4:$AY$1887,13,FALSE),0) -> 6 | P30: =IFERROR(VLOOKUP($A30,Filtro!$A$4:$AY$1887,14,FALSE),0) -> 3 | Q30: =IFERROR(VLOOKUP($A30,Filtro!$A$4:$AY$1887,15,FALSE),0) -> 0 | R30: =IFERROR(VLOOKUP($A30,Filtro!$A$4:$AY$1887,16,FALSE),0) -> 0 | S30: =IFERROR(VLOOKUP($A30,Filtro!$A$4:$AY$1887,17,FALSE),0) -> 0
A31: 05225306 | C31: NORMAL CON REZAGO | D31: =IFERROR(VLOOKUP($A31,Filtro!$A$4:$AY$1887,2,FALSE),0) -> 73 | E31: =IFERROR(VLOOKUP($A31,Filtro!$A$4:$AY$1887,3,FALSE),0) -> 45 | F31: =IFERROR(VLOOKUP($A31,Filtro!$A$4:$AY$1887,4,FALSE),0) -> 28 | G31: =IFERROR(VLOOKUP($A31,Filtro!$A$4:$AY$1887,5,FALSE),0) -> 0 | H31: =IFERROR(VLOOKUP($A31,Filtro!$A$4:$AY$1887,6,FALSE),0) -> 0 | I31: =IFERROR(VLOOKUP($A31,Filtro!$A$4:$AY$1887,7,FALSE),0) -> 5 | J31: =IFERROR(VLOOKUP($A31,Filtro!$A$4:$AY$1887,8,FALSE),0) -> 6 | K31: =IFERROR(VLOOKUP($A31,Filtro!$A$4:$AY$1887,9,FALSE),0) -> 5 | L31: =IFERROR(VLOOKUP($A31,Filtro!$A$4:$AY$1887,10,FALSE),0) -> 2 | M31: =IFERROR(VLOOKUP($A31,Filtro!$A$4:$AY$1887,11,FALSE),0) -> 4 | N31: =IFERROR(VLOOKUP($A31,Filtro!$A$4:$AY$1887,12,FALSE),0) -> 8 | O31: =IFERROR(VLOOKUP($A31,Filtro!$A$4:$AY$1887,13,FALSE),0) -> 31 | P31: =IFERROR(VLOOKUP($A31,Filtro!$A$4:$AY$1887,14,FALSE),0) -> 12 | Q31: =IFERROR(VLOOKUP($A31,Filtro!$A$4:$AY$1887,15,FALSE),0) -> 0 | R31: =IFERROR(VLOOKUP($A31,Filtro!$A$4:$AY$1887,16,FALSE),0) -> 0 | S31: =IFERROR(VLOOKUP($A31,Filtro!$A$4:$AY$1887,17,FALSE),0) -> 0
A32: 02010421 | C32: RIESGO | D32: =IFERROR(VLOOKUP($A32,Filtro!$A$4:$AY$1887,2,FALSE),0) -> 145 | E32: =IFERROR(VLOOKUP($A32,Filtro!$A$4:$AY$1887,3,FALSE),0) -> 108 | F32: =IFERROR(VLOOKUP($A32,Filtro!$A$4:$AY$1887,4,FALSE),0) -> 37 | G32: =IFERROR(VLOOKUP($A32,Filtro!$A$4:$AY$1887,5,FALSE),0) -> 2 | H32: =IFERROR(VLOOKUP($A32,Filtro!$A$4:$AY$1887,6,FALSE),0) -> 0 | I32: =IFERROR(VLOOKUP($A32,Filtro!$A$4:$AY$1887,7,FALSE),0) -> 7 | J32: =IFERROR(VLOOKUP($A32,Filtro!$A$4:$AY$1887,8,FALSE),0) -> 6 | K32: =IFERROR(VLOOKUP($A32,Filtro!$A$4:$AY$1887,9,FALSE),0) -> 8 | L32: =IFERROR(VLOOKUP($A32,Filtro!$A$4:$AY$1887,10,FALSE),0) -> 5 | M32: =IFERROR(VLOOKUP($A32,Filtro!$A$4:$AY$1887,11,FALSE),0) -> 32 | N32: =IFERROR(VLOOKUP($A32,Filtro!$A$4:$AY$1887,12,FALSE),0) -> 11 | O32: =IFERROR(VLOOKUP($A32,Filtro!$A$4:$AY$1887,13,FALSE),0) -> 57 | P32: =IFERROR(VLOOKUP($A32,Filtro!$A$4:$AY$1887,14,FALSE),0) -> 14 | Q32: =IFERROR(VLOOKUP($A32,Filtro!$A$4:$AY$1887,15,FALSE),0) -> 2 | R32: =IFERROR(VLOOKUP($A32,Filtro!$A$4:$AY$1887,16,FALSE),0) -> 1 | S32: =IFERROR(VLOOKUP($A32,Filtro!$A$4:$AY$1887,17,FALSE),0) -> 0
A33: 02010422 | C33: RETRASO | D33: =IFERROR(VLOOKUP($A33,Filtro!$A$4:$AY$1887,2,FALSE),0) -> 62 | E33: =IFERROR(VLOOKUP($A33,Filtro!$A$4:$AY$1887,3,FALSE),0) -> 49 | F33: =IFERROR(VLOOKUP($A33,Filtro!$A$4:$AY$1887,4,FALSE),0) -> 13 | G33: =IFERROR(VLOOKUP($A33,Filtro!$A$4:$AY$1887,5,FALSE),0) -> 0 | H33: =IFERROR(VLOOKUP($A33,Filtro!$A$4:$AY$1887,6,FALSE),0) -> 0 | I33: =IFERROR(VLOOKUP($A33,Filtro!$A$4:$AY$1887,7,FALSE),0) -> 0 | J33: =IFERROR(VLOOKUP($A33,Filtro!$A$4:$AY$1887,8,FALSE),0) -> 0 | K33: =IFERROR(VLOOKUP($A33,Filtro!$A$4:$AY$1887,9,FALSE),0) -> 5 | L33: =IFERROR(VLOOKUP($A33,Filtro!$A$4:$AY$1887,10,FALSE),0) -> 2 | M33: =IFERROR(VLOOKUP($A33,Filtro!$A$4:$AY$1887,11,FALSE),0) -> 18 | N33: =IFERROR(VLOOKUP($A33,Filtro!$A$4:$AY$1887,12,FALSE),0) -> 8 | O33: =IFERROR(VLOOKUP($A33,Filtro!$A$4:$AY$1887,13,FALSE),0) -> 24 | P33: =IFERROR(VLOOKUP($A33,Filtro!$A$4:$AY$1887,14,FALSE),0) -> 3 | Q33: =IFERROR(VLOOKUP($A33,Filtro!$A$4:$AY$1887,15,FALSE),0) -> 2 | R33: =IFERROR(VLOOKUP($A33,Filtro!$A$4:$AY$1887,16,FALSE),0) -> 0 | S33: =IFERROR(VLOOKUP($A33,Filtro!$A$4:$AY$1887,17,FALSE),0) -> 0
A34: 03500331 | B34: DERIVADOS A ESPECIALIDAD | C34: RIESGO | D34: =IFERROR(VLOOKUP($A34,Filtro!$A$4:$AY$1887,2,FALSE),0) -> 65 | E34: =IFERROR(VLOOKUP($A34,Filtro!$A$4:$AY$1887,3,FALSE),0) -> 48 | F34: =IFERROR(VLOOKUP($A34,Filtro!$A$4:$AY$1887,4,FALSE),0) -> 17 | G34: =IFERROR(VLOOKUP($A34,Filtro!$A$4:$AY$1887,5,FALSE),0) -> 0 | H34: =IFERROR(VLOOKUP($A34,Filtro!$A$4:$AY$1887,6,FALSE),0) -> 1 | I34: =IFERROR(VLOOKUP($A34,Filtro!$A$4:$AY$1887,7,FALSE),0) -> 2 | J34: =IFERROR(VLOOKUP($A34,Filtro!$A$4:$AY$1887,8,FALSE),0) -> 4 | K34: =IFERROR(VLOOKUP($A34,Filtro!$A$4:$AY$1887,9,FALSE),0) -> 4 | L34: =IFERROR(VLOOKUP($A34,Filtro!$A$4:$AY$1887,10,FALSE),0) -> 0 | M34: =IFERROR(VLOOKUP($A34,Filtro!$A$4:$AY$1887,11,FALSE),0) -> 25 | N34: =IFERROR(VLOOKUP($A34,Filtro!$A$4:$AY$1887,12,FALSE),0) -> 8 | O34: =IFERROR(VLOOKUP($A34,Filtro!$A$4:$AY$1887,13,FALSE),0) -> 17 | P34: =IFERROR(VLOOKUP($A34,Filtro!$A$4:$AY$1887,14,FALSE),0) -> 4 | Q34: =IFERROR(VLOOKUP($A34,Filtro!$A$4:$AY$1887,15,FALSE),0) -> 0 | R34: =IFERROR(VLOOKUP($A34,Filtro!$A$4:$AY$1887,16,FALSE),0) -> 0 | S34: =IFERROR(VLOOKUP($A34,Filtro!$A$4:$AY$1887,17,FALSE),0) -> 0
A35: 03500332 | C35: RETRASO | D35: =IFERROR(VLOOKUP($A35,Filtro!$A$4:$AY$1887,2,FALSE),0) -> 90 | E35: =IFERROR(VLOOKUP($A35,Filtro!$A$4:$AY$1887,3,FALSE),0) -> 72 | F35: =IFERROR(VLOOKUP($A35,Filtro!$A$4:$AY$1887,4,FALSE),0) -> 18 | G35: =IFERROR(VLOOKUP($A35,Filtro!$A$4:$AY$1887,5,FALSE),0) -> 0 | H35: =IFERROR(VLOOKUP($A35,Filtro!$A$4:$AY$1887,6,FALSE),0) -> 0 | I35: =IFERROR(VLOOKUP($A35,Filtro!$A$4:$AY$1887,7,FALSE),0) -> 5 | J35: =IFERROR(VLOOKUP($A35,Filtro!$A$4:$AY$1887,8,FALSE),0) -> 1 | K35: =IFERROR(VLOOKUP($A35,Filtro!$A$4:$AY$1887,9,FALSE),0) -> 6 | L35: =IFERROR(VLOOKUP($A35,Filtro!$A$4:$AY$1887,10,FALSE),0) -> 3 | M35: =IFERROR(VLOOKUP($A35,Filtro!$A$4:$AY$1887,11,FALSE),0) -> 36 | N35: =IFERROR(VLOOKUP($A35,Filtro!$A$4:$AY$1887,12,FALSE),0) -> 10 | O35: =IFERROR(VLOOKUP($A35,Filtro!$A$4:$AY$1887,13,FALSE),0) -> 24 | P35: =IFERROR(VLOOKUP($A35,Filtro!$A$4:$AY$1887,14,FALSE),0) -> 4 | Q35: =IFERROR(VLOOKUP($A35,Filtro!$A$4:$AY$1887,15,FALSE),0) -> 1 | R35: =IFERROR(VLOOKUP($A35,Filtro!$A$4:$AY$1887,16,FALSE),0) -> 0 | S35: =IFERROR(VLOOKUP($A35,Filtro!$A$4:$AY$1887,17,FALSE),0) -> 0
A36: 03500333 | B36: TRASLADO DE ESTABLECIMIENTO | C36: REZAGO | D36: =IFERROR(VLOOKUP($A36,Filtro!$A$4:$AY$1887,2,FALSE),0) -> 1 | E36: =IFERROR(VLOOKUP($A36,Filtro!$A$4:$AY$1887,3,FALSE),0) -> 1 | F36: =IFERROR(VLOOKUP($A36,Filtro!$A$4:$AY$1887,4,FALSE),0) -> 0 | G36: =IFERROR(VLOOKUP($A36,Filtro!$A$4:$AY$1887,5,FALSE),0) -> 0 | H36: =IFERROR(VLOOKUP($A36,Filtro!$A$4:$AY$1887,6,FALSE),0) -> 0 | I36: =IFERROR(VLOOKUP($A36,Filtro!$A$4:$AY$1887,7,FALSE),0) -> 0 | J36: =IFERROR(VLOOKUP($A36,Filtro!$A$4:$AY$1887,8,FALSE),0) -> 0 | K36: =IFERROR(VLOOKUP($A36,Filtro!$A$4:$AY$1887,9,FALSE),0) -> 0 | L36: =IFERROR(VLOOKUP($A36,Filtro!$A$4:$AY$1887,10,FALSE),0) -> 0 | M36: =IFERROR(VLOOKUP($A36,Filtro!$A$4:$AY$1887,11,FALSE),0) -> 0 | N36: =IFERROR(VLOOKUP($A36,Filtro!$A$4:$AY$1887,12,FALSE),0) -> 0 | O36: =IFERROR(VLOOKUP($A36,Filtro!$A$4:$AY$1887,13,FALSE),0) -> 1 | P36: =IFERROR(VLOOKUP($A36,Filtro!$A$4:$AY$1887,14,FALSE),0) -> 0 | Q36: =IFERROR(VLOOKUP($A36,Filtro!$A$4:$AY$1887,15,FALSE),0) -> 0 | R36: =IFERROR(VLOOKUP($A36,Filtro!$A$4:$AY$1887,16,FALSE),0) -> 0 | S36: =IFERROR(VLOOKUP($A36,Filtro!$A$4:$AY$1887,17,FALSE),0) -> 0
A37: 03500334 | C37: RIESGO | D37: =IFERROR(VLOOKUP($A37,Filtro!$A$4:$AY$1887,2,FALSE),0) -> 15 | E37: =IFERROR(VLOOKUP($A37,Filtro!$A$4:$AY$1887,3,FALSE),0) -> 10 | F37: =IFERROR(VLOOKUP($A37,Filtro!$A$4:$AY$1887,4,FALSE),0) -> 5 | G37: =IFERROR(VLOOKUP($A37,Filtro!$A$4:$AY$1887,5,FALSE),0) -> 0 | H37: =IFERROR(VLOOKUP($A37,Filtro!$A$4:$AY$1887,6,FALSE),0) -> 0 | I37: =IFERROR(VLOOKUP($A37,Filtro!$A$4:$AY$1887,7,FALSE),0) -> 0 | J37: =IFERROR(VLOOKUP($A37,Filtro!$A$4:$AY$1887,8,FALSE),0) -> 0 | K37: =IFERROR(VLOOKUP($A37,Filtro!$A$4:$AY$1887,9,FALSE),0) -> 0 | L37: =IFERROR(VLOOKUP($A37,Filtro!$A$4:$AY$1887,10,FALSE),0) -> 0 | M37: =IFERROR(VLOOKUP($A37,Filtro!$A$4:$AY$1887,11,FALSE),0) -> 10 | N37: =IFERROR(VLOOKUP($A37,Filtro!$A$4:$AY$1887,12,FALSE),0) -> 5 | O37: =IFERROR(VLOOKUP($A37,Filtro!$A$4:$AY$1887,13,FALSE),0) -> 0 | P37: =IFERROR(VLOOKUP($A37,Filtro!$A$4:$AY$1887,14,FALSE),0) -> 0 | Q37: =IFERROR(VLOOKUP($A37,Filtro!$A$4:$AY$1887,15,FALSE),0) -> 0 | R37: =IFERROR(VLOOKUP($A37,Filtro!$A$4:$AY$1887,16,FALSE),0) -> 0 | S37: =IFERROR(VLOOKUP($A37,Filtro!$A$4:$AY$1887,17,FALSE),0) -> 0
A38: 03500335 | C38: RETRASO | D38: =IFERROR(VLOOKUP($A38,Filtro!$A$4:$AY$1887,2,FALSE),0) -> 2 | E38: =IFERROR(VLOOKUP($A38,Filtro!$A$4:$AY$1887,3,FALSE),0) -> 2 | F38: =IFERROR(VLOOKUP($A38,Filtro!$A$4:$AY$1887,4,FALSE),0) -> 0 | G38: =IFERROR(VLOOKUP($A38,Filtro!$A$4:$AY$1887,5,FALSE),0) -> 0 | H38: =IFERROR(VLOOKUP($A38,Filtro!$A$4:$AY$1887,6,FALSE),0) -> 0 | I38: =IFERROR(VLOOKUP($A38,Filtro!$A$4:$AY$1887,7,FALSE),0) -> 0 | J38: =IFERROR(VLOOKUP($A38,Filtro!$A$4:$AY$1887,8,FALSE),0) -> 0 | K38: =IFERROR(VLOOKUP($A38,Filtro!$A$4:$AY$1887,9,FALSE),0) -> 0 | L38: =IFERROR(VLOOKUP($A38,Filtro!$A$4:$AY$1887,10,FALSE),0) -> 0 | M38: =IFERROR(VLOOKUP($A38,Filtro!$A$4:$AY$1887,11,FALSE),0) -> 2 | N38: =IFERROR(VLOOKUP($A38,Filtro!$A$4:$AY$1887,12,FALSE),0) -> 0 | O38: =IFERROR(VLOOKUP($A38,Filtro!$A$4:$AY$1887,13,FALSE),0) -> 0 | P38: =IFERROR(VLOOKUP($A38,Filtro!$A$4:$AY$1887,14,FALSE),0) -> 0 | Q38: =IFERROR(VLOOKUP($A38,Filtro!$A$4:$AY$1887,15,FALSE),0) -> 0 | R38: =IFERROR(VLOOKUP($A38,Filtro!$A$4:$AY$1887,16,FALSE),0) -> 0 | S38: =IFERROR(VLOOKUP($A38,Filtro!$A$4:$AY$1887,17,FALSE),0) -> 0
B39: SECCIÓN A3: NIÑOS Y NIÑAS CON REZAGO, DÉFICIT U OTRA VULNERABILIDAD DERIVADOS A ALGUNA MODALIDAD DE ESTIMULACIÓN EN LA PRIMERA EVALUACIÓN
B40: NIÑO / A | D40: TOTAL | G40: POR EDAD
G41: Menor 7 meses | I41: 7 - 11 meses | K41: 12 - 17 meses | M41: 18 - 23 meses | O41: 24 - 47 meses | Q41: 48 - 59 meses
D42: Ambos Sexos | E42: Hombres | F42: Mujeres | G42: Hombres | H42: Mujeres | I42: Hombres | J42: Mujeres | K42: Hombres | L42: Mujeres | M42: Hombres | N42: Mujeres | O42: Hombres | P42: Mujeres | Q42: Hombres | R42: Mujeres
A43: 02021790 | B43: NORMAL CON REZAGO | D43: =IFERROR(VLOOKUP($A43,Filtro!$A$4:$AY$1887,2,FALSE),0) -> 1002 | E43: =IFERROR(VLOOKUP($A43,Filtro!$A$4:$AY$1887,3,FALSE),0) -> 603 | F43: =IFERROR(VLOOKUP($A43,Filtro!$A$4:$AY$1887,4,FALSE),0) -> 399 | G43: =IFERROR(VLOOKUP($A43,Filtro!$A$4:$AY$1887,5,FALSE),0) -> 60 | H43: =IFERROR(VLOOKUP($A43,Filtro!$A$4:$AY$1887,6,FALSE),0) -> 50 | I43: =IFERROR(VLOOKUP($A43,Filtro!$A$4:$AY$1887,7,FALSE),0) -> 110 | J43: =IFERROR(VLOOKUP($A43,Filtro!$A$4:$AY$1887,8,FALSE),0) -> 91 | K43: =IFERROR(VLOOKUP($A43,Filtro!$A$4:$AY$1887,9,FALSE),0) -> 35 | L43: =IFERROR(VLOOKUP($A43,Filtro!$A$4:$AY$1887,10,FALSE),0) -> 17 | M43: =IFERROR(VLOOKUP($A43,Filtro!$A$4:$AY$1887,11,FALSE),0) -> 145 | N43: =IFERROR(VLOOKUP($A43,Filtro!$A$4:$AY$1887,12,FALSE),0) -> 104 | O43: =IFERROR(VLOOKUP($A43,Filtro!$A$4:$AY$1887,13,FALSE),0) -> 245 | P43: =IFERROR(VLOOKUP($A43,Filtro!$A$4:$AY$1887,14,FALSE),0) -> 130 | Q43: =IFERROR(VLOOKUP($A43,Filtro!$A$4:$AY$1887,15,FALSE),0) -> 8 | R43: =IFERROR(VLOOKUP($A43,Filtro!$A$4:$AY$1887,16,FALSE),0) -> 7 | CB43: =IF(D43<>#REF!,"* Niños derivados deben ser iguales al ingreso de niños(as) Normal con Rezago a salas de estimulación REM A05 sección F. ","") -> 
A44: 02021810 | B44: RIESGO | D44: =IFERROR(VLOOKUP($A44,Filtro!$A$4:$AY$1887,2,FALSE),0) -> 1036 | E44: =IFERROR(VLOOKUP($A44,Filtro!$A$4:$AY$1887,3,FALSE),0) -> 662 | F44: =IFERROR(VLOOKUP($A44,Filtro!$A$4:$AY$1887,4,FALSE),0) -> 374 | G44: =IFERROR(VLOOKUP($A44,Filtro!$A$4:$AY$1887,5,FALSE),0) -> 10 | H44: =IFERROR(VLOOKUP($A44,Filtro!$A$4:$AY$1887,6,FALSE),0) -> 9 | I44: =IFERROR(VLOOKUP($A44,Filtro!$A$4:$AY$1887,7,FALSE),0) -> 91 | J44: =IFERROR(VLOOKUP($A44,Filtro!$A$4:$AY$1887,8,FALSE),0) -> 86 | K44: =IFERROR(VLOOKUP($A44,Filtro!$A$4:$AY$1887,9,FALSE),0) -> 28 | L44: =IFERROR(VLOOKUP($A44,Filtro!$A$4:$AY$1887,10,FALSE),0) -> 19 | M44: =IFERROR(VLOOKUP($A44,Filtro!$A$4:$AY$1887,11,FALSE),0) -> 285 | N44: =IFERROR(VLOOKUP($A44,Filtro!$A$4:$AY$1887,12,FALSE),0) -> 169 | O44: =IFERROR(VLOOKUP($A44,Filtro!$A$4:$AY$1887,13,FALSE),0) -> 244 | P44: =IFERROR(VLOOKUP($A44,Filtro!$A$4:$AY$1887,14,FALSE),0) -> 91 | Q44: =IFERROR(VLOOKUP($A44,Filtro!$A$4:$AY$1887,15,FALSE),0) -> 4 | R44: =IFERROR(VLOOKUP($A44,Filtro!$A$4:$AY$1887,16,FALSE),0) -> 0 | CB44: =IF(D44<>#REF!,"* Niños derivados deben ser iguales al ingreso de niños(as) con Riesgo a salas de estimulación REM A05 sección F. ","") -> 
A45: 02021820 | B45: RETRASO | D45: =IFERROR(VLOOKUP($A45,Filtro!$A$4:$AY$1887,2,FALSE),0) -> 224 | E45: =IFERROR(VLOOKUP($A45,Filtro!$A$4:$AY$1887,3,FALSE),0) -> 146 | F45: =IFERROR(VLOOKUP($A45,Filtro!$A$4:$AY$1887,4,FALSE),0) -> 78 | G45: =IFERROR(VLOOKUP($A45,Filtro!$A$4:$AY$1887,5,FALSE),0) -> 1 | H45: =IFERROR(VLOOKUP($A45,Filtro!$A$4:$AY$1887,6,FALSE),0) -> 0 | I45: =IFERROR(VLOOKUP($A45,Filtro!$A$4:$AY$1887,7,FALSE),0) -> 8 | J45: =IFERROR(VLOOKUP($A45,Filtro!$A$4:$AY$1887,8,FALSE),0) -> 8 | K45: =IFERROR(VLOOKUP($A45,Filtro!$A$4:$AY$1887,9,FALSE),0) -> 9 | L45: =IFERROR(VLOOKUP($A45,Filtro!$A$4:$AY$1887,10,FALSE),0) -> 4 | M45: =IFERROR(VLOOKUP($A45,Filtro!$A$4:$AY$1887,11,FALSE),0) -> 61 | N45: =IFERROR(VLOOKUP($A45,Filtro!$A$4:$AY$1887,12,FALSE),0) -> 42 | O45: =IFERROR(VLOOKUP($A45,Filtro!$A$4:$AY$1887,13,FALSE),0) -> 64 | P45: =IFERROR(VLOOKUP($A45,Filtro!$A$4:$AY$1887,14,FALSE),0) -> 22 | Q45: =IFERROR(VLOOKUP($A45,Filtro!$A$4:$AY$1887,15,FALSE),0) -> 3 | R45: =IFERROR(VLOOKUP($A45,Filtro!$A$4:$AY$1887,16,FALSE),0) -> 2 | CB45: =IF(D45<>#REF!,"* Niños derivados deben ser iguales al ingreso de niños(as) con Retraso a salas de estimulación REM A05 sección F. ","") -> 
A46: 05225307 | B46: OTRA VULNERABILIDAD | D46: =IFERROR(VLOOKUP($A46,Filtro!$A$4:$AY$1887,2,FALSE),0) -> 1384 | E46: =IFERROR(VLOOKUP($A46,Filtro!$A$4:$AY$1887,3,FALSE),0) -> 805 | F46: =IFERROR(VLOOKUP($A46,Filtro!$A$4:$AY$1887,4,FALSE),0) -> 579 | G46: =IFERROR(VLOOKUP($A46,Filtro!$A$4:$AY$1887,5,FALSE),0) -> 226 | H46: =IFERROR(VLOOKUP($A46,Filtro!$A$4:$AY$1887,6,FALSE),0) -> 172 | I46: =IFERROR(VLOOKUP($A46,Filtro!$A$4:$AY$1887,7,FALSE),0) -> 66 | J46: =IFERROR(VLOOKUP($A46,Filtro!$A$4:$AY$1887,8,FALSE),0) -> 64 | K46: =IFERROR(VLOOKUP($A46,Filtro!$A$4:$AY$1887,9,FALSE),0) -> 118 | L46: =IFERROR(VLOOKUP($A46,Filtro!$A$4:$AY$1887,10,FALSE),0) -> 85 | M46: =IFERROR(VLOOKUP($A46,Filtro!$A$4:$AY$1887,11,FALSE),0) -> 122 | N46: =IFERROR(VLOOKUP($A46,Filtro!$A$4:$AY$1887,12,FALSE),0) -> 74 | O46: =IFERROR(VLOOKUP($A46,Filtro!$A$4:$AY$1887,13,FALSE),0) -> 236 | P46: =IFERROR(VLOOKUP($A46,Filtro!$A$4:$AY$1887,14,FALSE),0) -> 152 | Q46: =IFERROR(VLOOKUP($A46,Filtro!$A$4:$AY$1887,15,FALSE),0) -> 37 | R46: =IFERROR(VLOOKUP($A46,Filtro!$A$4:$AY$1887,16,FALSE),0) -> 32 | CB46: =IF(D46<>#REF!,"* Niños derivados deben ser iguales al ingreso de niños(as) con Otras Vulnerabilidad a salas de estimulación REM A05 sección F. ","") -> 
B47: SECCIÓN A.4: RESULTADOS DE LA APLICACIÓN DE PROTOCOLO NEUROSENSORIAL
B48: RESULTADOS | D48: TOTAL | G48: POR EDAD
G49: 1 mes | I49: 2 meses
D50: Ambos Sexos | E50: Hombres | F50: Mujeres | G50: Hombres | H50: Mujeres | I50: Hombres | J50: Mujeres
A51: 02021760 | B51: APLICACIÓN DE PROTOCOLO NEUROSENSORIAL (1-2 MESES) | D51: =IFERROR(VLOOKUP($A51,Filtro!$A$4:$AY$1887,2,FALSE),0) -> 4503 | E51: =IFERROR(VLOOKUP($A51,Filtro!$A$4:$AY$1887,3,FALSE),0) -> 2305 | F51: =IFERROR(VLOOKUP($A51,Filtro!$A$4:$AY$1887,4,FALSE),0) -> 2198 | G51: =IFERROR(VLOOKUP($A51,Filtro!$A$4:$AY$1887,5,FALSE),0) -> 1872 | H51: =IFERROR(VLOOKUP($A51,Filtro!$A$4:$AY$1887,6,FALSE),0) -> 1806 | I51: =IFERROR(VLOOKUP($A51,Filtro!$A$4:$AY$1887,7,FALSE),0) -> 433 | J51: =IFERROR(VLOOKUP($A51,Filtro!$A$4:$AY$1887,8,FALSE),0) -> 392
A52: 03500040 | B52: NORMAL | D52: =IFERROR(VLOOKUP($A52,Filtro!$A$4:$AY$1887,2,FALSE),0) -> 3759 | E52: =IFERROR(VLOOKUP($A52,Filtro!$A$4:$AY$1887,3,FALSE),0) -> 1921 | F52: =IFERROR(VLOOKUP($A52,Filtro!$A$4:$AY$1887,4,FALSE),0) -> 1838 | G52: =IFERROR(VLOOKUP($A52,Filtro!$A$4:$AY$1887,5,FALSE),0) -> 1538 | H52: =IFERROR(VLOOKUP($A52,Filtro!$A$4:$AY$1887,6,FALSE),0) -> 1496 | I52: =IFERROR(VLOOKUP($A52,Filtro!$A$4:$AY$1887,7,FALSE),0) -> 383 | J52: =IFERROR(VLOOKUP($A52,Filtro!$A$4:$AY$1887,8,FALSE),0) -> 342
A53: 03500050 | B53: ANORMAL | D53: =IFERROR(VLOOKUP($A53,Filtro!$A$4:$AY$1887,2,FALSE),0) -> 691 | E53: =IFERROR(VLOOKUP($A53,Filtro!$A$4:$AY$1887,3,FALSE),0) -> 352 | F53: =IFERROR(VLOOKUP($A53,Filtro!$A$4:$AY$1887,4,FALSE),0) -> 339 | G53: =IFERROR(VLOOKUP($A53,Filtro!$A$4:$AY$1887,5,FALSE),0) -> 307 | H53: =IFERROR(VLOOKUP($A53,Filtro!$A$4:$AY$1887,6,FALSE),0) -> 293 | I53: =IFERROR(VLOOKUP($A53,Filtro!$A$4:$AY$1887,7,FALSE),0) -> 45 | J53: =IFERROR(VLOOKUP($A53,Filtro!$A$4:$AY$1887,8,FALSE),0) -> 46
A54: 03500060 | B54: MUY ANORMAL | D54: =IFERROR(VLOOKUP($A54,Filtro!$A$4:$AY$1887,2,FALSE),0) -> 53 | E54: =IFERROR(VLOOKUP($A54,Filtro!$A$4:$AY$1887,3,FALSE),0) -> 32 | F54: =IFERROR(VLOOKUP($A54,Filtro!$A$4:$AY$1887,4,FALSE),0) -> 21 | G54: =IFERROR(VLOOKUP($A54,Filtro!$A$4:$AY$1887,5,FALSE),0) -> 27 | H54: =IFERROR(VLOOKUP($A54,Filtro!$A$4:$AY$1887,6,FALSE),0) -> 17 | I54: =IFERROR(VLOOKUP($A54,Filtro!$A$4:$AY$1887,7,FALSE),0) -> 5 | J54: =IFERROR(VLOOKUP($A54,Filtro!$A$4:$AY$1887,8,FALSE),0) -> 4
B55: SECCIÓN A.5: LACTANCIA MATERNA EN MENORES CONTROLADOS
B56: TIPO DE ALIMENTACIÓN | D56: TOTAL | G56: SEGÚN CONTROL PROGRAMÁTICO
G57: Del 1° mes | I57: Del 3° mes | K57: Del 6° mes | M57: Del 12° mes | O57: Del 24° mes
D58: Ambos Sexos | E58: Hombres | F58: Mujeres | G58: Hombres | H58: Mujeres | I58: Hombres | J58: Mujeres | K58: Hombres | L58: Mujeres | M58: Hombres | N58: Mujeres | O58: Hombres | P58: Mujeres
A59: A0200001 | B59: MENORES CONTROLADOS | D59: =IFERROR(VLOOKUP($A59,Filtro!$A$4:$AY$1887,2,FALSE),0) -> 22643 | E59: =IFERROR(VLOOKUP($A59,Filtro!$A$4:$AY$1887,3,FALSE),0) -> 11490 | F59: =IFERROR(VLOOKUP($A59,Filtro!$A$4:$AY$1887,4,FALSE),0) -> 11153 | G59: =IFERROR(VLOOKUP($A59,Filtro!$A$4:$AY$1887,5,FALSE),0) -> 2614 | H59: =IFERROR(VLOOKUP($A59,Filtro!$A$4:$AY$1887,6,FALSE),0) -> 2541 | I59: =IFERROR(VLOOKUP($A59,Filtro!$A$4:$AY$1887,7,FALSE),0) -> 2343 | J59: =IFERROR(VLOOKUP($A59,Filtro!$A$4:$AY$1887,8,FALSE),0) -> 2204 | K59: =IFERROR(VLOOKUP($A59,Filtro!$A$4:$AY$1887,9,FALSE),0) -> 2757 | L59: =IFERROR(VLOOKUP($A59,Filtro!$A$4:$AY$1887,10,FALSE),0) -> 2656 | M59: =IFERROR(VLOOKUP($A59,Filtro!$A$4:$AY$1887,11,FALSE),0) -> 2125 | N59: =IFERROR(VLOOKUP($A59,Filtro!$A$4:$AY$1887,12,FALSE),0) -> 2086 | O59: =IFERROR(VLOOKUP($A59,Filtro!$A$4:$AY$1887,13,FALSE),0) -> 1651 | P59: =IFERROR(VLOOKUP($A59,Filtro!$A$4:$AY$1887,14,FALSE),0) -> 1666 | CH59: 0 | CI59: 0 | CJ59: 0 | CK59: 0 | CL59: 0
A60: A0200002 | B60: LACTANCIA MATERNA EXCLUSIVA | D60: =IFERROR(VLOOKUP($A60,Filtro!$A$4:$AY$1887,2,FALSE),0) -> 10802 | E60: =IFERROR(VLOOKUP($A60,Filtro!$A$4:$AY$1887,3,FALSE),0) -> 5487 | F60: =IFERROR(VLOOKUP($A60,Filtro!$A$4:$AY$1887,4,FALSE),0) -> 5315 | G60: =IFERROR(VLOOKUP($A60,Filtro!$A$4:$AY$1887,5,FALSE),0) -> 2022 | H60: =IFERROR(VLOOKUP($A60,Filtro!$A$4:$AY$1887,6,FALSE),0) -> 1984 | I60: =IFERROR(VLOOKUP($A60,Filtro!$A$4:$AY$1887,7,FALSE),0) -> 1717 | J60: =IFERROR(VLOOKUP($A60,Filtro!$A$4:$AY$1887,8,FALSE),0) -> 1626 | K60: =IFERROR(VLOOKUP($A60,Filtro!$A$4:$AY$1887,9,FALSE),0) -> 1748 | L60: =IFERROR(VLOOKUP($A60,Filtro!$A$4:$AY$1887,10,FALSE),0) -> 1705 | M60: =IFERROR(VLOOKUP($A60,Filtro!$A$4:$AY$1887,11,FALSE),0) -> 0 | N60: =IFERROR(VLOOKUP($A60,Filtro!$A$4:$AY$1887,12,FALSE),0) -> 0 | O60: =IFERROR(VLOOKUP($A60,Filtro!$A$4:$AY$1887,13,FALSE),0) -> 0 | P60: =IFERROR(VLOOKUP($A60,Filtro!$A$4:$AY$1887,14,FALSE),0) -> 0
A61: 03500359 | B61: LACTANCIA MATERNA / FORMULA LACTEA | D61: =IFERROR(VLOOKUP($A61,Filtro!$A$4:$AY$1887,2,FALSE),0) -> 2473 | E61: =IFERROR(VLOOKUP($A61,Filtro!$A$4:$AY$1887,3,FALSE),0) -> 1252 | F61: =IFERROR(VLOOKUP($A61,Filtro!$A$4:$AY$1887,4,FALSE),0) -> 1221 | G61: =IFERROR(VLOOKUP($A61,Filtro!$A$4:$AY$1887,5,FALSE),0) -> 434 | H61: =IFERROR(VLOOKUP($A61,Filtro!$A$4:$AY$1887,6,FALSE),0) -> 421 | I61: =IFERROR(VLOOKUP($A61,Filtro!$A$4:$AY$1887,7,FALSE),0) -> 419 | J61: =IFERROR(VLOOKUP($A61,Filtro!$A$4:$AY$1887,8,FALSE),0) -> 403 | K61: =IFERROR(VLOOKUP($A61,Filtro!$A$4:$AY$1887,9,FALSE),0) -> 399 | L61: =IFERROR(VLOOKUP($A61,Filtro!$A$4:$AY$1887,10,FALSE),0) -> 397 | M61: =IFERROR(VLOOKUP($A61,Filtro!$A$4:$AY$1887,11,FALSE),0) -> 0 | N61: =IFERROR(VLOOKUP($A61,Filtro!$A$4:$AY$1887,12,FALSE),0) -> 0 | O61: =IFERROR(VLOOKUP($A61,Filtro!$A$4:$AY$1887,13,FALSE),0) -> 0 | P61: =IFERROR(VLOOKUP($A61,Filtro!$A$4:$AY$1887,14,FALSE),0) -> 0
A62: 03500360 | B62: FORMULA LACTEA | D62: =IFERROR(VLOOKUP($A62,Filtro!$A$4:$AY$1887,2,FALSE),0) -> 1028 | E62: =IFERROR(VLOOKUP($A62,Filtro!$A$4:$AY$1887,3,FALSE),0) -> 566 | F62: =IFERROR(VLOOKUP($A62,Filtro!$A$4:$AY$1887,4,FALSE),0) -> 462 | G62: =IFERROR(VLOOKUP($A62,Filtro!$A$4:$AY$1887,5,FALSE),0) -> 103 | H62: =IFERROR(VLOOKUP($A62,Filtro!$A$4:$AY$1887,6,FALSE),0) -> 75 | I62: =IFERROR(VLOOKUP($A62,Filtro!$A$4:$AY$1887,7,FALSE),0) -> 168 | J62: =IFERROR(VLOOKUP($A62,Filtro!$A$4:$AY$1887,8,FALSE),0) -> 146 | K62: =IFERROR(VLOOKUP($A62,Filtro!$A$4:$AY$1887,9,FALSE),0) -> 295 | L62: =IFERROR(VLOOKUP($A62,Filtro!$A$4:$AY$1887,10,FALSE),0) -> 241 | M62: =IFERROR(VLOOKUP($A62,Filtro!$A$4:$AY$1887,11,FALSE),0) -> 0 | N62: =IFERROR(VLOOKUP($A62,Filtro!$A$4:$AY$1887,12,FALSE),0) -> 0 | O62: =IFERROR(VLOOKUP($A62,Filtro!$A$4:$AY$1887,13,FALSE),0) -> 0 | P62: =IFERROR(VLOOKUP($A62,Filtro!$A$4:$AY$1887,14,FALSE),0) -> 0
A63: A0200003 | B63: LACTANCIA MATERNA MAS SÓLIDOS | D63: =IFERROR(VLOOKUP($A63,Filtro!$A$4:$AY$1887,2,FALSE),0) -> 3143 | E63: =IFERROR(VLOOKUP($A63,Filtro!$A$4:$AY$1887,3,FALSE),0) -> 1566 | F63: =IFERROR(VLOOKUP($A63,Filtro!$A$4:$AY$1887,4,FALSE),0) -> 1577 | G63: =IFERROR(VLOOKUP($A63,Filtro!$A$4:$AY$1887,5,FALSE),0) -> 0 | H63: =IFERROR(VLOOKUP($A63,Filtro!$A$4:$AY$1887,6,FALSE),0) -> 0 | I63: =IFERROR(VLOOKUP($A63,Filtro!$A$4:$AY$1887,7,FALSE),0) -> 0 | J63: =IFERROR(VLOOKUP($A63,Filtro!$A$4:$AY$1887,8,FALSE),0) -> 0 | K63: =IFERROR(VLOOKUP($A63,Filtro!$A$4:$AY$1887,9,FALSE),0) -> 233 | L63: =IFERROR(VLOOKUP($A63,Filtro!$A$4:$AY$1887,10,FALSE),0) -> 236 | M63: =IFERROR(VLOOKUP($A63,Filtro!$A$4:$AY$1887,11,FALSE),0) -> 948 | N63: =IFERROR(VLOOKUP($A63,Filtro!$A$4:$AY$1887,12,FALSE),0) -> 921 | O63: =IFERROR(VLOOKUP($A63,Filtro!$A$4:$AY$1887,13,FALSE),0) -> 385 | P63: =IFERROR(VLOOKUP($A63,Filtro!$A$4:$AY$1887,14,FALSE),0) -> 420
B64: SECCION B: EVALUACIÓN, APLICACIÓN Y RESULTADOS DE ESCALAS EN LA MUJER
B65: SECCIÓN B.1: EVALUACIÓN DEL ESTADO NUTRICIONAL A MUJERES CONTROLADAS AL OCTAVO MES POST PARTO
B66: ESTADO NUTRICIONAL | D66: TOTAL
B68: TOTAL | D68: =SUM(D69:D72) -> 1630
A69: 03500120 | B69: OBESA | D69: =IFERROR(VLOOKUP($A69,Filtro!$A$4:$AY$1887,2,FALSE),0) -> 488
A70: 03500130 | B70: SOBREPESO | D70: =IFERROR(VLOOKUP($A70,Filtro!$A$4:$AY$1887,2,FALSE),0) -> 643
A71: 03500140 | B71: NORMAL | D71: =IFERROR(VLOOKUP($A71,Filtro!$A$4:$AY$1887,2,FALSE),0) -> 454
A72: 03500150 | B72: BAJO PESO | D72: =IFERROR(VLOOKUP($A72,Filtro!$A$4:$AY$1887,2,FALSE),0) -> 45
B73: SECCIÓN B.2: APLICACIÓN DE ESCALA SEGÚN EVALUACION DE RIESGO PSICOSOCIAL ABREVIADA A GESTANTES
B74: TIPO | D74: TOTAL DE APLICACIONES | E74: RIESGO | F74: DERIVADAS A EQUIPO DE CABECERA
A75: 02021830 | B75: EVALUACIÓN AL INGRESO | D75: =IFERROR(VLOOKUP($A75,Filtro!$A$4:$AY$1887,2,FALSE),0) -> 6914 | E75: =IFERROR(VLOOKUP($A75,Filtro!$A$4:$AY$1887,3,FALSE),0) -> 1770 | F75: =IFERROR(VLOOKUP($A75,Filtro!$A$4:$AY$1887,4,FALSE),0) -> 1839 | CD75: =IF(D75<=#REF!,"", "* Total de aplicaciones EPSA NO DEBE ser MAYOR que el Total de Gestantes ingresadas en REM A05 Sección A. ") ->  | CH75: 0 | CI75: 0
B76: SECCIÓN B.3: APLICACIÓN DE ESCALA DE EDIMBURGO A GESTANTES Y MUJERES POST PARTO | CH76: 0
B77: CONCEPTO | D77: TOTAL DE APLICACIONES | E77: RESULTADOS 10 O MÁS PTOS. O RESULTADO DISTINTO DE 0 EN PREG 10 . (PUERPERAS) | F77: RESULTADOS 13 O MÁS PTOS O RESULTADO DISTINTO DE 0 EN PREG 10. (GESTANTES) | CH77: 0
A78: 03500160 | B78: EVALUACIÓN A GESTANTES | C78: PRIMERA EVALUACIÓN (2º control prenatal) | D78: =IFERROR(VLOOKUP($A78,Filtro!$A$4:$AY$1887,2,FALSE),0) -> 6540 | E78: =IFERROR(VLOOKUP($A78,Filtro!$A$4:$AY$1887,3,FALSE),0) -> 0 | F78: =IFERROR(VLOOKUP($A78,Filtro!$A$4:$AY$1887,4,FALSE),0) -> 624 | CH78: 0
A79: 03500170 | C79: REEVALUACIÓN (con puntaje elevado en la primera evaluación) | D79: =IFERROR(VLOOKUP($A79,Filtro!$A$4:$AY$1887,2,FALSE),0) -> 114 | E79: =IFERROR(VLOOKUP($A79,Filtro!$A$4:$AY$1887,3,FALSE),0) -> 0 | F79: =IFERROR(VLOOKUP($A79,Filtro!$A$4:$AY$1887,4,FALSE),0) -> 8 | CH79: 0
A80: 03500200 | B80: EVALUACIÓN A MUJERES POST PARTO O SÍNTOMAS DE DEPRESIÓN | C80: A los 2 meses | D80: =IFERROR(VLOOKUP($A80,Filtro!$A$4:$AY$1887,2,FALSE),0) -> 5224 | E80: =IFERROR(VLOOKUP($A80,Filtro!$A$4:$AY$1887,3,FALSE),0) -> 692 | F80: =IFERROR(VLOOKUP($A80,Filtro!$A$4:$AY$1887,4,FALSE),0) -> 0 | CH80: 0
A81: 03500210 | C81: A los 6 meses | D81: =IFERROR(VLOOKUP($A81,Filtro!$A$4:$AY$1887,2,FALSE),0) -> 4844 | E81: =IFERROR(VLOOKUP($A81,Filtro!$A$4:$AY$1887,3,FALSE),0) -> 710 | F81: =IFERROR(VLOOKUP($A81,Filtro!$A$4:$AY$1887,4,FALSE),0) -> 0 | CH81: 0
B82: SECCIÓN C: RESULTADOS DE LA EVALUACIÓN DEL ESTADO NUTRICIONAL DEL ADOLESCENTE CON CONTROL SALUD INTEGRAL
B83: ESTADO NUTRICIONAL | D83: TOTAL | G83: 10 A 14 | I83: 15 A 19
D84: Ambos Sexos | E84: Hombres | F84: Mujeres | G84: Hombres | H84: Mujeres | I84: Hombres | J84: Mujeres
B85: TOTAL | D85: =SUM(D86:D90) -> 16027 | E85: 7202 | F85: 8825 | G85: 4551 | H85: 5065 | I85: 2651 | J85: 3760
A86: 03050400 | B86: NORMAL | D86: =IFERROR(VLOOKUP($A86,Filtro!$A$4:$AY$1887,2,FALSE),0) -> 7597 | E86: =IFERROR(VLOOKUP($A86,Filtro!$A$4:$AY$1887,3,FALSE),0) -> 3379 | F86: =IFERROR(VLOOKUP($A86,Filtro!$A$4:$AY$1887,4,FALSE),0) -> 4218 | G86: =IFERROR(VLOOKUP($A86,Filtro!$A$4:$AY$1887,5,FALSE),0) -> 1881 | H86: =IFERROR(VLOOKUP($A86,Filtro!$A$4:$AY$1887,6,FALSE),0) -> 2303 | I86: =IFERROR(VLOOKUP($A86,Filtro!$A$4:$AY$1887,7,FALSE),0) -> 1498 | J86: =IFERROR(VLOOKUP($A86,Filtro!$A$4:$AY$1887,8,FALSE),0) -> 1915
A87: 03050500 | B87: BAJO PESO | D87: =IFERROR(VLOOKUP($A87,Filtro!$A$4:$AY$1887,2,FALSE),0) -> 833 | E87: =IFERROR(VLOOKUP($A87,Filtro!$A$4:$AY$1887,3,FALSE),0) -> 478 | F87: =IFERROR(VLOOKUP($A87,Filtro!$A$4:$AY$1887,4,FALSE),0) -> 355 | G87: =IFERROR(VLOOKUP($A87,Filtro!$A$4:$AY$1887,5,FALSE),0) -> 237 | H87: =IFERROR(VLOOKUP($A87,Filtro!$A$4:$AY$1887,6,FALSE),0) -> 207 | I87: =IFERROR(VLOOKUP($A87,Filtro!$A$4:$AY$1887,7,FALSE),0) -> 241 | J87: =IFERROR(VLOOKUP($A87,Filtro!$A$4:$AY$1887,8,FALSE),0) -> 148
A88: 03050600 | B88: SOBREPESO | D88: =IFERROR(VLOOKUP($A88,Filtro!$A$4:$AY$1887,2,FALSE),0) -> 4331 | E88: =IFERROR(VLOOKUP($A88,Filtro!$A$4:$AY$1887,3,FALSE),0) -> 1782 | F88: =IFERROR(VLOOKUP($A88,Filtro!$A$4:$AY$1887,4,FALSE),0) -> 2549 | G88: =IFERROR(VLOOKUP($A88,Filtro!$A$4:$AY$1887,5,FALSE),0) -> 1195 | H88: =IFERROR(VLOOKUP($A88,Filtro!$A$4:$AY$1887,6,FALSE),0) -> 1539 | I88: =IFERROR(VLOOKUP($A88,Filtro!$A$4:$AY$1887,7,FALSE),0) -> 587 | J88: =IFERROR(VLOOKUP($A88,Filtro!$A$4:$AY$1887,8,FALSE),0) -> 1010
A89: 03050700 | B89: OBESOS | D89: =IFERROR(VLOOKUP($A89,Filtro!$A$4:$AY$1887,2,FALSE),0) -> 2889 | E89: =IFERROR(VLOOKUP($A89,Filtro!$A$4:$AY$1887,3,FALSE),0) -> 1374 | F89: =IFERROR(VLOOKUP($A89,Filtro!$A$4:$AY$1887,4,FALSE),0) -> 1515 | G89: =IFERROR(VLOOKUP($A89,Filtro!$A$4:$AY$1887,5,FALSE),0) -> 1086 | H89: =IFERROR(VLOOKUP($A89,Filtro!$A$4:$AY$1887,6,FALSE),0) -> 896 | I89: =IFERROR(VLOOKUP($A89,Filtro!$A$4:$AY$1887,7,FALSE),0) -> 288 | J89: =IFERROR(VLOOKUP($A89,Filtro!$A$4:$AY$1887,8,FALSE),0) -> 619
A90: 03050710 | B90: OBESOS SEVEROS | D90: =IFERROR(VLOOKUP($A90,Filtro!$A$4:$AY$1887,2,FALSE),0) -> 377 | E90: =IFERROR(VLOOKUP($A90,Filtro!$A$4:$AY$1887,3,FALSE),0) -> 189 | F90: =IFERROR(VLOOKUP($A90,Filtro!$A$4:$AY$1887,4,FALSE),0) -> 188 | G90: =IFERROR(VLOOKUP($A90,Filtro!$A$4:$AY$1887,5,FALSE),0) -> 152 | H90: =IFERROR(VLOOKUP($A90,Filtro!$A$4:$AY$1887,6,FALSE),0) -> 120 | I90: =IFERROR(VLOOKUP($A90,Filtro!$A$4:$AY$1887,7,FALSE),0) -> 37 | J90: =IFERROR(VLOOKUP($A90,Filtro!$A$4:$AY$1887,8,FALSE),0) -> 68
B91: SECCIÓN D: OTRAS EVALUACIONES, APLICACIONES Y RESULTADOS DE ESCALAS EN TODAS LAS EDADES
B92: SECCIÓN D.1: APLICACIÓN DE TAMIZAJE PARA EVALUAR EL NIVEL DE RIESGO DE CONSUMO DE ALCOHOL, TABACO Y OTRAS DROGAS
B93: COMPONENTE | D93: TOTAL | G93: POR EDAD
G94: 10-14 años | I94: 15-19 años | K94: 20-24 años | M94: 25-44 años | O94: 45-64 años | Q94: 65 o más
D95: Ambos Sexos | E95: Hombres | F95: Mujeres | G95: Hombres | H95: Mujeres | I95: Hombres | J95: Mujeres | K95: Hombres | L95: Mujeres | M95: Hombres | N95: Mujeres | O95: Hombres | P95: Mujeres | Q95: Hombres | R95: Mujeres
A96: 03500346 | B96: Nº DE AUDIT (EMP/EMPAM) | D96: =IFERROR(VLOOKUP($A96,Filtro!$A$4:$AY$1887,2,FALSE),0) -> 35362 | E96: =IFERROR(VLOOKUP($A96,Filtro!$A$4:$AY$1887,3,FALSE),0) -> 13182 | F96: =IFERROR(VLOOKUP($A96,Filtro!$A$4:$AY$1887,4,FALSE),0) -> 22180 | G96: =IFERROR(VLOOKUP($A96,Filtro!$A$4:$AY$1887,5,FALSE),0) -> 0 | H96: =IFERROR(VLOOKUP($A96,Filtro!$A$4:$AY$1887,6,FALSE),0) -> 0 | I96: =IFERROR(VLOOKUP($A96,Filtro!$A$4:$AY$1887,7,FALSE),0) -> 74 | J96: =IFERROR(VLOOKUP($A96,Filtro!$A$4:$AY$1887,8,FALSE),0) -> 95 | K96: =IFERROR(VLOOKUP($A96,Filtro!$A$4:$AY$1887,9,FALSE),0) -> 1569 | L96: =IFERROR(VLOOKUP($A96,Filtro!$A$4:$AY$1887,10,FALSE),0) -> 2346 | M96: =IFERROR(VLOOKUP($A96,Filtro!$A$4:$AY$1887,11,FALSE),0) -> 4797 | N96: =IFERROR(VLOOKUP($A96,Filtro!$A$4:$AY$1887,12,FALSE),0) -> 8799 | O96: =IFERROR(VLOOKUP($A96,Filtro!$A$4:$AY$1887,13,FALSE),0) -> 3645 | P96: =IFERROR(VLOOKUP($A96,Filtro!$A$4:$AY$1887,14,FALSE),0) -> 6015 | Q96: =IFERROR(VLOOKUP($A96,Filtro!$A$4:$AY$1887,15,FALSE),0) -> 3097 | R96: =IFERROR(VLOOKUP($A96,Filtro!$A$4:$AY$1887,16,FALSE),0) -> 4925
A97: 03500347 | B97: Nº DE AUDIT APLICADO | D97: =IFERROR(VLOOKUP($A97,Filtro!$A$4:$AY$1887,2,FALSE),0) -> 17132 | E97: =IFERROR(VLOOKUP($A97,Filtro!$A$4:$AY$1887,3,FALSE),0) -> 5575 | F97: =IFERROR(VLOOKUP($A97,Filtro!$A$4:$AY$1887,4,FALSE),0) -> 11557 | G97: =IFERROR(VLOOKUP($A97,Filtro!$A$4:$AY$1887,5,FALSE),0) -> 0 | H97: =IFERROR(VLOOKUP($A97,Filtro!$A$4:$AY$1887,6,FALSE),0) -> 0 | I97: =IFERROR(VLOOKUP($A97,Filtro!$A$4:$AY$1887,7,FALSE),0) -> 0 | J97: =IFERROR(VLOOKUP($A97,Filtro!$A$4:$AY$1887,8,FALSE),0) -> 0 | K97: =IFERROR(VLOOKUP($A97,Filtro!$A$4:$AY$1887,9,FALSE),0) -> 736 | L97: =IFERROR(VLOOKUP($A97,Filtro!$A$4:$AY$1887,10,FALSE),0) -> 1377 | M97: =IFERROR(VLOOKUP($A97,Filtro!$A$4:$AY$1887,11,FALSE),0) -> 1804 | N97: =IFERROR(VLOOKUP($A97,Filtro!$A$4:$AY$1887,12,FALSE),0) -> 4121 | O97: =IFERROR(VLOOKUP($A97,Filtro!$A$4:$AY$1887,13,FALSE),0) -> 1385 | P97: =IFERROR(VLOOKUP($A97,Filtro!$A$4:$AY$1887,14,FALSE),0) -> 3254 | Q97: =IFERROR(VLOOKUP($A97,Filtro!$A$4:$AY$1887,15,FALSE),0) -> 1650 | R97: =IFERROR(VLOOKUP($A97,Filtro!$A$4:$AY$1887,16,FALSE),0) -> 2805
A98: 03500348 | B98: Nº DE ASSIST | D98: =IFERROR(VLOOKUP($A98,Filtro!$A$4:$AY$1887,2,FALSE),0) -> 4413 | E98: =IFERROR(VLOOKUP($A98,Filtro!$A$4:$AY$1887,3,FALSE),0) -> 1244 | F98: =IFERROR(VLOOKUP($A98,Filtro!$A$4:$AY$1887,4,FALSE),0) -> 3169 | G98: =IFERROR(VLOOKUP($A98,Filtro!$A$4:$AY$1887,5,FALSE),0) -> 0 | H98: =IFERROR(VLOOKUP($A98,Filtro!$A$4:$AY$1887,6,FALSE),0) -> 0 | I98: =IFERROR(VLOOKUP($A98,Filtro!$A$4:$AY$1887,7,FALSE),0) -> 0 | J98: =IFERROR(VLOOKUP($A98,Filtro!$A$4:$AY$1887,8,FALSE),0) -> 0 | K98: =IFERROR(VLOOKUP($A98,Filtro!$A$4:$AY$1887,9,FALSE),0) -> 175 | L98: =IFERROR(VLOOKUP($A98,Filtro!$A$4:$AY$1887,10,FALSE),0) -> 374 | M98: =IFERROR(VLOOKUP($A98,Filtro!$A$4:$AY$1887,11,FALSE),0) -> 412 | N98: =IFERROR(VLOOKUP($A98,Filtro!$A$4:$AY$1887,12,FALSE),0) -> 1341 | O98: =IFERROR(VLOOKUP($A98,Filtro!$A$4:$AY$1887,13,FALSE),0) -> 407 | P98: =IFERROR(VLOOKUP($A98,Filtro!$A$4:$AY$1887,14,FALSE),0) -> 1066 | Q98: =IFERROR(VLOOKUP($A98,Filtro!$A$4:$AY$1887,15,FALSE),0) -> 250 | R98: =IFERROR(VLOOKUP($A98,Filtro!$A$4:$AY$1887,16,FALSE),0) -> 388
A99: 03500367 | B99: N° DE CRAFFT | D99: =IFERROR(VLOOKUP($A99,Filtro!$A$4:$AY$1887,2,FALSE),0) -> 7206 | E99: =IFERROR(VLOOKUP($A99,Filtro!$A$4:$AY$1887,3,FALSE),0) -> 3671 | F99: =IFERROR(VLOOKUP($A99,Filtro!$A$4:$AY$1887,4,FALSE),0) -> 3535 | G99: =IFERROR(VLOOKUP($A99,Filtro!$A$4:$AY$1887,5,FALSE),0) -> 1666 | H99: =IFERROR(VLOOKUP($A99,Filtro!$A$4:$AY$1887,6,FALSE),0) -> 1564 | I99: =IFERROR(VLOOKUP($A99,Filtro!$A$4:$AY$1887,7,FALSE),0) -> 2005 | J99: =IFERROR(VLOOKUP($A99,Filtro!$A$4:$AY$1887,8,FALSE),0) -> 1971 | K99: =IFERROR(VLOOKUP($A99,Filtro!$A$4:$AY$1887,9,FALSE),0) -> 0 | L99: =IFERROR(VLOOKUP($A99,Filtro!$A$4:$AY$1887,10,FALSE),0) -> 0 | M99: =IFERROR(VLOOKUP($A99,Filtro!$A$4:$AY$1887,11,FALSE),0) -> 0 | N99: =IFERROR(VLOOKUP($A99,Filtro!$A$4:$AY$1887,12,FALSE),0) -> 0 | O99: =IFERROR(VLOOKUP($A99,Filtro!$A$4:$AY$1887,13,FALSE),0) -> 0 | P99: =IFERROR(VLOOKUP($A99,Filtro!$A$4:$AY$1887,14,FALSE),0) -> 0 | Q99: =IFERROR(VLOOKUP($A99,Filtro!$A$4:$AY$1887,15,FALSE),0) -> 0 | R99: =IFERROR(VLOOKUP($A99,Filtro!$A$4:$AY$1887,16,FALSE),0) -> 0
A100: 03500402 | B100: Nº DE ASSIST/CRAFF (EMP/EMPAM) | D100: =IFERROR(VLOOKUP($A100,Filtro!$A$4:$AY$1887,2,FALSE),0) -> 1612 | E100: =IFERROR(VLOOKUP($A100,Filtro!$A$4:$AY$1887,3,FALSE),0) -> 594 | F100: =IFERROR(VLOOKUP($A100,Filtro!$A$4:$AY$1887,4,FALSE),0) -> 1018 | G100: =IFERROR(VLOOKUP($A100,Filtro!$A$4:$AY$1887,5,FALSE),0) -> 7 | H100: =IFERROR(VLOOKUP($A100,Filtro!$A$4:$AY$1887,6,FALSE),0) -> 5 | I100: =IFERROR(VLOOKUP($A100,Filtro!$A$4:$AY$1887,7,FALSE),0) -> 52 | J100: =IFERROR(VLOOKUP($A100,Filtro!$A$4:$AY$1887,8,FALSE),0) -> 86 | K100: =IFERROR(VLOOKUP($A100,Filtro!$A$4:$AY$1887,9,FALSE),0) -> 47 | L100: =IFERROR(VLOOKUP($A100,Filtro!$A$4:$AY$1887,10,FALSE),0) -> 76 | M100: =IFERROR(VLOOKUP($A100,Filtro!$A$4:$AY$1887,11,FALSE),0) -> 152 | N100: =IFERROR(VLOOKUP($A100,Filtro!$A$4:$AY$1887,12,FALSE),0) -> 292 | O100: =IFERROR(VLOOKUP($A100,Filtro!$A$4:$AY$1887,13,FALSE),0) -> 144 | P100: =IFERROR(VLOOKUP($A100,Filtro!$A$4:$AY$1887,14,FALSE),0) -> 259 | Q100: =IFERROR(VLOOKUP($A100,Filtro!$A$4:$AY$1887,15,FALSE),0) -> 192 | R100: =IFERROR(VLOOKUP($A100,Filtro!$A$4:$AY$1887,16,FALSE),0) -> 300
A101: 03500349 | B101: RESULTADOS DE EVALUACIÓN | C101: BAJO RIESGO | D101: =IFERROR(VLOOKUP($A101,Filtro!$A$4:$AY$1887,2,FALSE),0) -> 56850 | E101: =IFERROR(VLOOKUP($A101,Filtro!$A$4:$AY$1887,3,FALSE),0) -> 20074 | F101: =IFERROR(VLOOKUP($A101,Filtro!$A$4:$AY$1887,4,FALSE),0) -> 36776 | G101: =IFERROR(VLOOKUP($A101,Filtro!$A$4:$AY$1887,5,FALSE),0) -> 1495 | H101: =IFERROR(VLOOKUP($A101,Filtro!$A$4:$AY$1887,6,FALSE),0) -> 1420 | I101: =IFERROR(VLOOKUP($A101,Filtro!$A$4:$AY$1887,7,FALSE),0) -> 1425 | J101: =IFERROR(VLOOKUP($A101,Filtro!$A$4:$AY$1887,8,FALSE),0) -> 1646 | K101: =IFERROR(VLOOKUP($A101,Filtro!$A$4:$AY$1887,9,FALSE),0) -> 1989 | L101: =IFERROR(VLOOKUP($A101,Filtro!$A$4:$AY$1887,10,FALSE),0) -> 3539 | M101: =IFERROR(VLOOKUP($A101,Filtro!$A$4:$AY$1887,11,FALSE),0) -> 5922 | N101: =IFERROR(VLOOKUP($A101,Filtro!$A$4:$AY$1887,12,FALSE),0) -> 12944 | O101: =IFERROR(VLOOKUP($A101,Filtro!$A$4:$AY$1887,13,FALSE),0) -> 4601 | P101: =IFERROR(VLOOKUP($A101,Filtro!$A$4:$AY$1887,14,FALSE),0) -> 9438 | Q101: =IFERROR(VLOOKUP($A101,Filtro!$A$4:$AY$1887,15,FALSE),0) -> 4642 | R101: =IFERROR(VLOOKUP($A101,Filtro!$A$4:$AY$1887,16,FALSE),0) -> 7789
A102: 03500290 | C102: CONSUMO RIESGOSO / INTERMEDIO | D102: =IFERROR(VLOOKUP($A102,Filtro!$A$4:$AY$1887,2,FALSE),0) -> 5552 | E102: =IFERROR(VLOOKUP($A102,Filtro!$A$4:$AY$1887,3,FALSE),0) -> 2786 | F102: =IFERROR(VLOOKUP($A102,Filtro!$A$4:$AY$1887,4,FALSE),0) -> 2766 | G102: =IFERROR(VLOOKUP($A102,Filtro!$A$4:$AY$1887,5,FALSE),0) -> 197 | H102: =IFERROR(VLOOKUP($A102,Filtro!$A$4:$AY$1887,6,FALSE),0) -> 160 | I102: =IFERROR(VLOOKUP($A102,Filtro!$A$4:$AY$1887,7,FALSE),0) -> 418 | J102: =IFERROR(VLOOKUP($A102,Filtro!$A$4:$AY$1887,8,FALSE),0) -> 319 | K102: =IFERROR(VLOOKUP($A102,Filtro!$A$4:$AY$1887,9,FALSE),0) -> 382 | L102: =IFERROR(VLOOKUP($A102,Filtro!$A$4:$AY$1887,10,FALSE),0) -> 384 | M102: =IFERROR(VLOOKUP($A102,Filtro!$A$4:$AY$1887,11,FALSE),0) -> 930 | N102: =IFERROR(VLOOKUP($A102,Filtro!$A$4:$AY$1887,12,FALSE),0) -> 1053 | O102: =IFERROR(VLOOKUP($A102,Filtro!$A$4:$AY$1887,13,FALSE),0) -> 641 | P102: =IFERROR(VLOOKUP($A102,Filtro!$A$4:$AY$1887,14,FALSE),0) -> 637 | Q102: =IFERROR(VLOOKUP($A102,Filtro!$A$4:$AY$1887,15,FALSE),0) -> 218 | R102: =IFERROR(VLOOKUP($A102,Filtro!$A$4:$AY$1887,16,FALSE),0) -> 213
A103: 03500300 | C103: POSIBLE CONSUMO PERJUDICIAL O DEPENDENCIA | D103: =IFERROR(VLOOKUP($A103,Filtro!$A$4:$AY$1887,2,FALSE),0) -> 1223 | E103: =IFERROR(VLOOKUP($A103,Filtro!$A$4:$AY$1887,3,FALSE),0) -> 679 | F103: =IFERROR(VLOOKUP($A103,Filtro!$A$4:$AY$1887,4,FALSE),0) -> 544 | G103: =IFERROR(VLOOKUP($A103,Filtro!$A$4:$AY$1887,5,FALSE),0) -> 49 | H103: =IFERROR(VLOOKUP($A103,Filtro!$A$4:$AY$1887,6,FALSE),0) -> 36 | I103: =IFERROR(VLOOKUP($A103,Filtro!$A$4:$AY$1887,7,FALSE),0) -> 303 | J103: =IFERROR(VLOOKUP($A103,Filtro!$A$4:$AY$1887,8,FALSE),0) -> 184 | K103: =IFERROR(VLOOKUP($A103,Filtro!$A$4:$AY$1887,9,FALSE),0) -> 65 | L103: =IFERROR(VLOOKUP($A103,Filtro!$A$4:$AY$1887,10,FALSE),0) -> 51 | M103: =IFERROR(VLOOKUP($A103,Filtro!$A$4:$AY$1887,11,FALSE),0) -> 144 | N103: =IFERROR(VLOOKUP($A103,Filtro!$A$4:$AY$1887,12,FALSE),0) -> 136 | O103: =IFERROR(VLOOKUP($A103,Filtro!$A$4:$AY$1887,13,FALSE),0) -> 101 | P103: =IFERROR(VLOOKUP($A103,Filtro!$A$4:$AY$1887,14,FALSE),0) -> 116 | Q103: =IFERROR(VLOOKUP($A103,Filtro!$A$4:$AY$1887,15,FALSE),0) -> 17 | R103: =IFERROR(VLOOKUP($A103,Filtro!$A$4:$AY$1887,16,FALSE),0) -> 21
B104: SECCIÓN D.2: RESULTADOS DE LA APLICACIÓN DE INSTRUMENTO DE VALORACIÓN DE DESEMPEÑO EN COMUNIDAD (IVADEC-CIF)
B105: ACTIVIDAD | C105: RESULTADO | D105: TOTAL | G105: POR EDAD
G106: 6 -11 meses | I106: 12 - 23 meses | K106: 2 - 4 años | M106: 5 - 9 años | O106: 10 a 14 años | Q106: 15 a 19 años | S106: 20 a 24 años | U106: 25 a 64 años | W106: 65 a 69 años | Y106: 70 a 79 años | AA106: 80 y más años
D107: Ambos Sexos | E107: Hombres | F107: Mujeres | G107: Hombres | H107: Mujeres | I107: Hombres | J107: Mujeres | K107: Hombres | L107: Mujeres | M107: Hombres | N107: Mujeres | O107: Hombres | P107: Mujeres | Q107: Hombres | R107: Mujeres | S107: Hombres | T107: Mujeres | U107: Hombres | V107: Mujeres | W107: Hombres | X107: Mujeres | Y107: Hombres | Z107: Mujeres | AA107: Hombres | AB107: Mujeres
A108: 03051000A | B108: ORIGEN FÍSICO | C108: SIN DISCAPACIDAD | D108: =IFERROR(VLOOKUP($A108,Filtro!$A$4:$AY$1887,2,FALSE),0) -> 6 | E108: =IFERROR(VLOOKUP($A108,Filtro!$A$4:$AY$1887,3,FALSE),0) -> 5 | F108: =IFERROR(VLOOKUP($A108,Filtro!$A$4:$AY$1887,4,FALSE),0) -> 1 | G108: =IFERROR(VLOOKUP($A108,Filtro!$A$4:$AY$1887,5,FALSE),0) -> 0 | H108: =IFERROR(VLOOKUP($A108,Filtro!$A$4:$AY$1887,6,FALSE),0) -> 0 | I108: =IFERROR(VLOOKUP($A108,Filtro!$A$4:$AY$1887,7,FALSE),0) -> 0 | J108: =IFERROR(VLOOKUP($A108,Filtro!$A$4:$AY$1887,8,FALSE),0) -> 0 | K108: =IFERROR(VLOOKUP($A108,Filtro!$A$4:$AY$1887,9,FALSE),0) -> 0 | L108: =IFERROR(VLOOKUP($A108,Filtro!$A$4:$AY$1887,10,FALSE),0) -> 0 | M108: =IFERROR(VLOOKUP($A108,Filtro!$A$4:$AY$1887,11,FALSE),0) -> 0 | N108: =IFERROR(VLOOKUP($A108,Filtro!$A$4:$AY$1887,12,FALSE),0) -> 0 | O108: =IFERROR(VLOOKUP($A108,Filtro!$A$4:$AY$1887,13,FALSE),0) -> 1 | P108: =IFERROR(VLOOKUP($A108,Filtro!$A$4:$AY$1887,14,FALSE),0) -> 0 | Q108: =IFERROR(VLOOKUP($A108,Filtro!$A$4:$AY$1887,15,FALSE),0) -> 0 | R108: =IFERROR(VLOOKUP($A108,Filtro!$A$4:$AY$1887,16,FALSE),0) -> 0 | S108: =IFERROR(VLOOKUP($A108,Filtro!$A$4:$AY$1887,17,FALSE),0) -> 1 | T108: =IFERROR(VLOOKUP($A108,Filtro!$A$4:$AY$1887,18,FALSE),0) -> 0 | U108: =IFERROR(VLOOKUP($A108,Filtro!$A$4:$AY$1887,19,FALSE),0) -> 2 | V108: =IFERROR(VLOOKUP($A108,Filtro!$A$4:$AY$1887,20,FALSE),0) -> 1 | W108: =IFERROR(VLOOKUP($A108,Filtro!$A$4:$AY$1887,21,FALSE),0) -> 0 | X108: =IFERROR(VLOOKUP($A108,Filtro!$A$4:$AY$1887,22,FALSE),0) -> 0 | Y108: =IFERROR(VLOOKUP($A108,Filtro!$A$4:$AY$1887,23,FALSE),0) -> 1 | Z108: =IFERROR(VLOOKUP($A108,Filtro!$A$4:$AY$1887,24,FALSE),0) -> 0 | AA108: =IFERROR(VLOOKUP($A108,Filtro!$A$4:$AY$1887,25,FALSE),0) -> 0 | AB108: =IFERROR(VLOOKUP($A108,Filtro!$A$4:$AY$1887,26,FALSE),0) -> 0
A109: 03051100 | C109: DISCAPACIDAD LEVE | D109: =IFERROR(VLOOKUP($A109,Filtro!$A$4:$AY$1887,2,FALSE),0) -> 179 | E109: =IFERROR(VLOOKUP($A109,Filtro!$A$4:$AY$1887,3,FALSE),0) -> 96 | F109: =IFERROR(VLOOKUP($A109,Filtro!$A$4:$AY$1887,4,FALSE),0) -> 83 | G109: =IFERROR(VLOOKUP($A109,Filtro!$A$4:$AY$1887,5,FALSE),0) -> 1 | H109: =IFERROR(VLOOKUP($A109,Filtro!$A$4:$AY$1887,6,FALSE),0) -> 0 | I109: =IFERROR(VLOOKUP($A109,Filtro!$A$4:$AY$1887,7,FALSE),0) -> 0 | J109: =IFERROR(VLOOKUP($A109,Filtro!$A$4:$AY$1887,8,FALSE),0) -> 0 | K109: =IFERROR(VLOOKUP($A109,Filtro!$A$4:$AY$1887,9,FALSE),0) -> 1 | L109: =IFERROR(VLOOKUP($A109,Filtro!$A$4:$AY$1887,10,FALSE),0) -> 0 | M109: =IFERROR(VLOOKUP($A109,Filtro!$A$4:$AY$1887,11,FALSE),0) -> 2 | N109: =IFERROR(VLOOKUP($A109,Filtro!$A$4:$AY$1887,12,FALSE),0) -> 0 | O109: =IFERROR(VLOOKUP($A109,Filtro!$A$4:$AY$1887,13,FALSE),0) -> 2 | P109: =IFERROR(VLOOKUP($A109,Filtro!$A$4:$AY$1887,14,FALSE),0) -> 1 | Q109: =IFERROR(VLOOKUP($A109,Filtro!$A$4:$AY$1887,15,FALSE),0) -> 1 | R109: =IFERROR(VLOOKUP($A109,Filtro!$A$4:$AY$1887,16,FALSE),0) -> 1 | S109: =IFERROR(VLOOKUP($A109,Filtro!$A$4:$AY$1887,17,FALSE),0) -> 3 | T109: =IFERROR(VLOOKUP($A109,Filtro!$A$4:$AY$1887,18,FALSE),0) -> 7 | U109: =IFERROR(VLOOKUP($A109,Filtro!$A$4:$AY$1887,19,FALSE),0) -> 60 | V109: =IFERROR(VLOOKUP($A109,Filtro!$A$4:$AY$1887,20,FALSE),0) -> 59 | W109: =IFERROR(VLOOKUP($A109,Filtro!$A$4:$AY$1887,21,FALSE),0) -> 9 | X109: =IFERROR(VLOOKUP($A109,Filtro!$A$4:$AY$1887,22,FALSE),0) -> 7 | Y109: =IFERROR(VLOOKUP($A109,Filtro!$A$4:$AY$1887,23,FALSE),0) -> 14 | Z109: =IFERROR(VLOOKUP($A109,Filtro!$A$4:$AY$1887,24,FALSE),0) -> 6 | AA109: =IFERROR(VLOOKUP($A109,Filtro!$A$4:$AY$1887,25,FALSE),0) -> 3 | AB109: =IFERROR(VLOOKUP($A109,Filtro!$A$4:$AY$1887,26,FALSE),0) -> 2
A110: 03051200 | C110: DISCAPACIDAD MODERADA | D110: =IFERROR(VLOOKUP($A110,Filtro!$A$4:$AY$1887,2,FALSE),0) -> 166 | E110: =IFERROR(VLOOKUP($A110,Filtro!$A$4:$AY$1887,3,FALSE),0) -> 77 | F110: =IFERROR(VLOOKUP($A110,Filtro!$A$4:$AY$1887,4,FALSE),0) -> 89 | G110: =IFERROR(VLOOKUP($A110,Filtro!$A$4:$AY$1887,5,FALSE),0) -> 0 | H110: =IFERROR(VLOOKUP($A110,Filtro!$A$4:$AY$1887,6,FALSE),0) -> 0 | I110: =IFERROR(VLOOKUP($A110,Filtro!$A$4:$AY$1887,7,FALSE),0) -> 0 | J110: =IFERROR(VLOOKUP($A110,Filtro!$A$4:$AY$1887,8,FALSE),0) -> 0 | K110: =IFERROR(VLOOKUP($A110,Filtro!$A$4:$AY$1887,9,FALSE),0) -> 0 | L110: =IFERROR(VLOOKUP($A110,Filtro!$A$4:$AY$1887,10,FALSE),0) -> 0 | M110: =IFERROR(VLOOKUP($A110,Filtro!$A$4:$AY$1887,11,FALSE),0) -> 0 | N110: =IFERROR(VLOOKUP($A110,Filtro!$A$4:$AY$1887,12,FALSE),0) -> 0 | O110: =IFERROR(VLOOKUP($A110,Filtro!$A$4:$AY$1887,13,FALSE),0) -> 0 | P110: =IFERROR(VLOOKUP($A110,Filtro!$A$4:$AY$1887,14,FALSE),0) -> 0 | Q110: =IFERROR(VLOOKUP($A110,Filtro!$A$4:$AY$1887,15,FALSE),0) -> 0 | R110: =IFERROR(VLOOKUP($A110,Filtro!$A$4:$AY$1887,16,FALSE),0) -> 1 | S110: =IFERROR(VLOOKUP($A110,Filtro!$A$4:$AY$1887,17,FALSE),0) -> 1 | T110: =IFERROR(VLOOKUP($A110,Filtro!$A$4:$AY$1887,18,FALSE),0) -> 1 | U110: =IFERROR(VLOOKUP($A110,Filtro!$A$4:$AY$1887,19,FALSE),0) -> 45 | V110: =IFERROR(VLOOKUP($A110,Filtro!$A$4:$AY$1887,20,FALSE),0) -> 58 | W110: =IFERROR(VLOOKUP($A110,Filtro!$A$4:$AY$1887,21,FALSE),0) -> 10 | X110: =IFERROR(VLOOKUP($A110,Filtro!$A$4:$AY$1887,22,FALSE),0) -> 2 | Y110: =IFERROR(VLOOKUP($A110,Filtro!$A$4:$AY$1887,23,FALSE),0) -> 19 | Z110: =IFERROR(VLOOKUP($A110,Filtro!$A$4:$AY$1887,24,FALSE),0) -> 23 | AA110: =IFERROR(VLOOKUP($A110,Filtro!$A$4:$AY$1887,25,FALSE),0) -> 2 | AB110: =IFERROR(VLOOKUP($A110,Filtro!$A$4:$AY$1887,26,FALSE),0) -> 4
A111: 03051300 | C111: DISCAPACIDAD SEVERA | D111: =IFERROR(VLOOKUP($A111,Filtro!$A$4:$AY$1887,2,FALSE),0) -> 130 | E111: =IFERROR(VLOOKUP($A111,Filtro!$A$4:$AY$1887,3,FALSE),0) -> 60 | F111: =IFERROR(VLOOKUP($A111,Filtro!$A$4:$AY$1887,4,FALSE),0) -> 70 | G111: =IFERROR(VLOOKUP($A111,Filtro!$A$4:$AY$1887,5,FALSE),0) -> 0 | H111: =IFERROR(VLOOKUP($A111,Filtro!$A$4:$AY$1887,6,FALSE),0) -> 0 | I111: =IFERROR(VLOOKUP($A111,Filtro!$A$4:$AY$1887,7,FALSE),0) -> 1 | J111: =IFERROR(VLOOKUP($A111,Filtro!$A$4:$AY$1887,8,FALSE),0) -> 0 | K111: =IFERROR(VLOOKUP($A111,Filtro!$A$4:$AY$1887,9,FALSE),0) -> 0 | L111: =IFERROR(VLOOKUP($A111,Filtro!$A$4:$AY$1887,10,FALSE),0) -> 0 | M111: =IFERROR(VLOOKUP($A111,Filtro!$A$4:$AY$1887,11,FALSE),0) -> 0 | N111: =IFERROR(VLOOKUP($A111,Filtro!$A$4:$AY$1887,12,FALSE),0) -> 1 | O111: =IFERROR(VLOOKUP($A111,Filtro!$A$4:$AY$1887,13,FALSE),0) -> 0 | P111: =IFERROR(VLOOKUP($A111,Filtro!$A$4:$AY$1887,14,FALSE),0) -> 0 | Q111: =IFERROR(VLOOKUP($A111,Filtro!$A$4:$AY$1887,15,FALSE),0) -> 1 | R111: =IFERROR(VLOOKUP($A111,Filtro!$A$4:$AY$1887,16,FALSE),0) -> 1 | S111: =IFERROR(VLOOKUP($A111,Filtro!$A$4:$AY$1887,17,FALSE),0) -> 1 | T111: =IFERROR(VLOOKUP($A111,Filtro!$A$4:$AY$1887,18,FALSE),0) -> 0 | U111: =IFERROR(VLOOKUP($A111,Filtro!$A$4:$AY$1887,19,FALSE),0) -> 34 | V111: =IFERROR(VLOOKUP($A111,Filtro!$A$4:$AY$1887,20,FALSE),0) -> 34 | W111: =IFERROR(VLOOKUP($A111,Filtro!$A$4:$AY$1887,21,FALSE),0) -> 7 | X111: =IFERROR(VLOOKUP($A111,Filtro!$A$4:$AY$1887,22,FALSE),0) -> 8 | Y111: =IFERROR(VLOOKUP($A111,Filtro!$A$4:$AY$1887,23,FALSE),0) -> 8 | Z111: =IFERROR(VLOOKUP($A111,Filtro!$A$4:$AY$1887,24,FALSE),0) -> 11 | AA111: =IFERROR(VLOOKUP($A111,Filtro!$A$4:$AY$1887,25,FALSE),0) -> 8 | AB111: =IFERROR(VLOOKUP($A111,Filtro!$A$4:$AY$1887,26,FALSE),0) -> 15
A112: 03051400 | C112: DISCAPACIDAD PROFUNDA | D112: =IFERROR(VLOOKUP($A112,Filtro!$A$4:$AY$1887,2,FALSE),0) -> 19 | E112: =IFERROR(VLOOKUP($A112,Filtro!$A$4:$AY$1887,3,FALSE),0) -> 8 | F112: =IFERROR(VLOOKUP($A112,Filtro!$A$4:$AY$1887,4,FALSE),0) -> 11 | G112: =IFERROR(VLOOKUP($A112,Filtro!$A$4:$AY$1887,5,FALSE),0) -> 0 | H112: =IFERROR(VLOOKUP($A112,Filtro!$A$4:$AY$1887,6,FALSE),0) -> 0 | I112: =IFERROR(VLOOKUP($A112,Filtro!$A$4:$AY$1887,7,FALSE),0) -> 0 | J112: =IFERROR(VLOOKUP($A112,Filtro!$A$4:$AY$1887,8,FALSE),0) -> 0 | K112: =IFERROR(VLOOKUP($A112,Filtro!$A$4:$AY$1887,9,FALSE),0) -> 3 | L112: =IFERROR(VLOOKUP($A112,Filtro!$A$4:$AY$1887,10,FALSE),0) -> 1 | M112: =IFERROR(VLOOKUP($A112,Filtro!$A$4:$AY$1887,11,FALSE),0) -> 1 | N112: =IFERROR(VLOOKUP($A112,Filtro!$A$4:$AY$1887,12,FALSE),0) -> 0 | O112: =IFERROR(VLOOKUP($A112,Filtro!$A$4:$AY$1887,13,FALSE),0) -> 0 | P112: =IFERROR(VLOOKUP($A112,Filtro!$A$4:$AY$1887,14,FALSE),0) -> 0 | Q112: =IFERROR(VLOOKUP($A112,Filtro!$A$4:$AY$1887,15,FALSE),0) -> 0 | R112: =IFERROR(VLOOKUP($A112,Filtro!$A$4:$AY$1887,16,FALSE),0) -> 0 | S112: =IFERROR(VLOOKUP($A112,Filtro!$A$4:$AY$1887,17,FALSE),0) -> 0 | T112: =IFERROR(VLOOKUP($A112,Filtro!$A$4:$AY$1887,18,FALSE),0) -> 0 | U112: =IFERROR(VLOOKUP($A112,Filtro!$A$4:$AY$1887,19,FALSE),0) -> 2 | V112: =IFERROR(VLOOKUP($A112,Filtro!$A$4:$AY$1887,20,FALSE),0) -> 3 | W112: =IFERROR(VLOOKUP($A112,Filtro!$A$4:$AY$1887,21,FALSE),0) -> 1 | X112: =IFERROR(VLOOKUP($A112,Filtro!$A$4:$AY$1887,22,FALSE),0) -> 1 | Y112: =IFERROR(VLOOKUP($A112,Filtro!$A$4:$AY$1887,23,FALSE),0) -> 1 | Z112: =IFERROR(VLOOKUP($A112,Filtro!$A$4:$AY$1887,24,FALSE),0) -> 2 | AA112: =IFERROR(VLOOKUP($A112,Filtro!$A$4:$AY$1887,25,FALSE),0) -> 0 | AB112: =IFERROR(VLOOKUP($A112,Filtro!$A$4:$AY$1887,26,FALSE),0) -> 4
A113: 03051500 | B113: ORIGEN SENSORIAL VISUAL | C113: SIN DISCAPACIDAD | D113: =IFERROR(VLOOKUP($A113,Filtro!$A$4:$AY$1887,2,FALSE),0) -> 1 | E113: =IFERROR(VLOOKUP($A113,Filtro!$A$4:$AY$1887,3,FALSE),0) -> 0 | F113: =IFERROR(VLOOKUP($A113,Filtro!$A$4:$AY$1887,4,FALSE),0) -> 1 | G113: =IFERROR(VLOOKUP($A113,Filtro!$A$4:$AY$1887,5,FALSE),0) -> 0 | H113: =IFERROR(VLOOKUP($A113,Filtro!$A$4:$AY$1887,6,FALSE),0) -> 0 | I113: =IFERROR(VLOOKUP($A113,Filtro!$A$4:$AY$1887,7,FALSE),0) -> 0 | J113: =IFERROR(VLOOKUP($A113,Filtro!$A$4:$AY$1887,8,FALSE),0) -> 0 | K113: =IFERROR(VLOOKUP($A113,Filtro!$A$4:$AY$1887,9,FALSE),0) -> 0 | L113: =IFERROR(VLOOKUP($A113,Filtro!$A$4:$AY$1887,10,FALSE),0) -> 0 | M113: =IFERROR(VLOOKUP($A113,Filtro!$A$4:$AY$1887,11,FALSE),0) -> 0 | N113: =IFERROR(VLOOKUP($A113,Filtro!$A$4:$AY$1887,12,FALSE),0) -> 0 | O113: =IFERROR(VLOOKUP($A113,Filtro!$A$4:$AY$1887,13,FALSE),0) -> 0 | P113: =IFERROR(VLOOKUP($A113,Filtro!$A$4:$AY$1887,14,FALSE),0) -> 0 | Q113: =IFERROR(VLOOKUP($A113,Filtro!$A$4:$AY$1887,15,FALSE),0) -> 0 | R113: =IFERROR(VLOOKUP($A113,Filtro!$A$4:$AY$1887,16,FALSE),0) -> 0 | S113: =IFERROR(VLOOKUP($A113,Filtro!$A$4:$AY$1887,17,FALSE),0) -> 0 | T113: =IFERROR(VLOOKUP($A113,Filtro!$A$4:$AY$1887,18,FALSE),0) -> 0 | U113: =IFERROR(VLOOKUP($A113,Filtro!$A$4:$AY$1887,19,FALSE),0) -> 0 | V113: =IFERROR(VLOOKUP($A113,Filtro!$A$4:$AY$1887,20,FALSE),0) -> 1 | W113: =IFERROR(VLOOKUP($A113,Filtro!$A$4:$AY$1887,21,FALSE),0) -> 0 | X113: =IFERROR(VLOOKUP($A113,Filtro!$A$4:$AY$1887,22,FALSE),0) -> 0 | Y113: =IFERROR(VLOOKUP($A113,Filtro!$A$4:$AY$1887,23,FALSE),0) -> 0 | Z113: =IFERROR(VLOOKUP($A113,Filtro!$A$4:$AY$1887,24,FALSE),0) -> 0 | AA113: =IFERROR(VLOOKUP($A113,Filtro!$A$4:$AY$1887,25,FALSE),0) -> 0 | AB113: =IFERROR(VLOOKUP($A113,Filtro!$A$4:$AY$1887,26,FALSE),0) -> 0
A114: 03051600 | C114: DISCAPACIDAD LEVE | D114: =IFERROR(VLOOKUP($A114,Filtro!$A$4:$AY$1887,2,FALSE),0) -> 21 | E114: =IFERROR(VLOOKUP($A114,Filtro!$A$4:$AY$1887,3,FALSE),0) -> 10 | F114: =IFERROR(VLOOKUP($A114,Filtro!$A$4:$AY$1887,4,FALSE),0) -> 11 | G114: =IFERROR(VLOOKUP($A114,Filtro!$A$4:$AY$1887,5,FALSE),0) -> 0 | H114: =IFERROR(VLOOKUP($A114,Filtro!$A$4:$AY$1887,6,FALSE),0) -> 0 | I114: =IFERROR(VLOOKUP($A114,Filtro!$A$4:$AY$1887,7,FALSE),0) -> 0 | J114: =IFERROR(VLOOKUP($A114,Filtro!$A$4:$AY$1887,8,FALSE),0) -> 0 | K114: =IFERROR(VLOOKUP($A114,Filtro!$A$4:$AY$1887,9,FALSE),0) -> 0 | L114: =IFERROR(VLOOKUP($A114,Filtro!$A$4:$AY$1887,10,FALSE),0) -> 0 | M114: =IFERROR(VLOOKUP($A114,Filtro!$A$4:$AY$1887,11,FALSE),0) -> 0 | N114: =IFERROR(VLOOKUP($A114,Filtro!$A$4:$AY$1887,12,FALSE),0) -> 0 | O114: =IFERROR(VLOOKUP($A114,Filtro!$A$4:$AY$1887,13,FALSE),0) -> 0 | P114: =IFERROR(VLOOKUP($A114,Filtro!$A$4:$AY$1887,14,FALSE),0) -> 0 | Q114: =IFERROR(VLOOKUP($A114,Filtro!$A$4:$AY$1887,15,FALSE),0) -> 0 | R114: =IFERROR(VLOOKUP($A114,Filtro!$A$4:$AY$1887,16,FALSE),0) -> 0 | S114: =IFERROR(VLOOKUP($A114,Filtro!$A$4:$AY$1887,17,FALSE),0) -> 1 | T114: =IFERROR(VLOOKUP($A114,Filtro!$A$4:$AY$1887,18,FALSE),0) -> 0 | U114: =IFERROR(VLOOKUP($A114,Filtro!$A$4:$AY$1887,19,FALSE),0) -> 8 | V114: =IFERROR(VLOOKUP($A114,Filtro!$A$4:$AY$1887,20,FALSE),0) -> 10 | W114: =IFERROR(VLOOKUP($A114,Filtro!$A$4:$AY$1887,21,FALSE),0) -> 1 | X114: =IFERROR(VLOOKUP($A114,Filtro!$A$4:$AY$1887,22,FALSE),0) -> 0 | Y114: =IFERROR(VLOOKUP($A114,Filtro!$A$4:$AY$1887,23,FALSE),0) -> 0 | Z114: =IFERROR(VLOOKUP($A114,Filtro!$A$4:$AY$1887,24,FALSE),0) -> 1 | AA114: =IFERROR(VLOOKUP($A114,Filtro!$A$4:$AY$1887,25,FALSE),0) -> 0 | AB114: =IFERROR(VLOOKUP($A114,Filtro!$A$4:$AY$1887,26,FALSE),0) -> 0
A115: 03051700 | C115: DISCAPACIDAD MODERADA | D115: =IFERROR(VLOOKUP($A115,Filtro!$A$4:$AY$1887,2,FALSE),0) -> 21 | E115: =IFERROR(VLOOKUP($A115,Filtro!$A$4:$AY$1887,3,FALSE),0) -> 14 | F115: =IFERROR(VLOOKUP($A115,Filtro!$A$4:$AY$1887,4,FALSE),0) -> 7 | G115: =IFERROR(VLOOKUP($A115,Filtro!$A$4:$AY$1887,5,FALSE),0) -> 0 | H115: =IFERROR(VLOOKUP($A115,Filtro!$A$4:$AY$1887,6,FALSE),0) -> 0 | I115: =IFERROR(VLOOKUP($A115,Filtro!$A$4:$AY$1887,7,FALSE),0) -> 0 | J115: =IFERROR(VLOOKUP($A115,Filtro!$A$4:$AY$1887,8,FALSE),0) -> 0 | K115: =IFERROR(VLOOKUP($A115,Filtro!$A$4:$AY$1887,9,FALSE),0) -> 0 | L115: =IFERROR(VLOOKUP($A115,Filtro!$A$4:$AY$1887,10,FALSE),0) -> 0 | M115: =IFERROR(VLOOKUP($A115,Filtro!$A$4:$AY$1887,11,FALSE),0) -> 1 | N115: =IFERROR(VLOOKUP($A115,Filtro!$A$4:$AY$1887,12,FALSE),0) -> 0 | O115: =IFERROR(VLOOKUP($A115,Filtro!$A$4:$AY$1887,13,FALSE),0) -> 0 | P115: =IFERROR(VLOOKUP($A115,Filtro!$A$4:$AY$1887,14,FALSE),0) -> 0 | Q115: =IFERROR(VLOOKUP($A115,Filtro!$A$4:$AY$1887,15,FALSE),0) -> 0 | R115: =IFERROR(VLOOKUP($A115,Filtro!$A$4:$AY$1887,16,FALSE),0) -> 1 | S115: =IFERROR(VLOOKUP($A115,Filtro!$A$4:$AY$1887,17,FALSE),0) -> 0 | T115: =IFERROR(VLOOKUP($A115,Filtro!$A$4:$AY$1887,18,FALSE),0) -> 0 | U115: =IFERROR(VLOOKUP($A115,Filtro!$A$4:$AY$1887,19,FALSE),0) -> 7 | V115: =IFERROR(VLOOKUP($A115,Filtro!$A$4:$AY$1887,20,FALSE),0) -> 5 | W115: =IFERROR(VLOOKUP($A115,Filtro!$A$4:$AY$1887,21,FALSE),0) -> 2 | X115: =IFERROR(VLOOKUP($A115,Filtro!$A$4:$AY$1887,22,FALSE),0) -> 1 | Y115: =IFERROR(VLOOKUP($A115,Filtro!$A$4:$AY$1887,23,FALSE),0) -> 3 | Z115: =IFERROR(VLOOKUP($A115,Filtro!$A$4:$AY$1887,24,FALSE),0) -> 0 | AA115: =IFERROR(VLOOKUP($A115,Filtro!$A$4:$AY$1887,25,FALSE),0) -> 1 | AB115: =IFERROR(VLOOKUP($A115,Filtro!$A$4:$AY$1887,26,FALSE),0) -> 0
A116: 03051800 | C116: DISCAPACIDAD SEVERA | D116: =IFERROR(VLOOKUP($A116,Filtro!$A$4:$AY$1887,2,FALSE),0) -> 16 | E116: =IFERROR(VLOOKUP($A116,Filtro!$A$4:$AY$1887,3,FALSE),0) -> 9 | F116: =IFERROR(VLOOKUP($A116,Filtro!$A$4:$AY$1887,4,FALSE),0) -> 7 | G116: =IFERROR(VLOOKUP($A116,Filtro!$A$4:$AY$1887,5,FALSE),0) -> 0 | H116: =IFERROR(VLOOKUP($A116,Filtro!$A$4:$AY$1887,6,FALSE),0) -> 0 | I116: =IFERROR(VLOOKUP($A116,Filtro!$A$4:$AY$1887,7,FALSE),0) -> 0 | J116: =IFERROR(VLOOKUP($A116,Filtro!$A$4:$AY$1887,8,FALSE),0) -> 0 | K116: =IFERROR(VLOOKUP($A116,Filtro!$A$4:$AY$1887,9,FALSE),0) -> 0 | L116: =IFERROR(VLOOKUP($A116,Filtro!$A$4:$AY$1887,10,FALSE),0) -> 0 | M116: =IFERROR(VLOOKUP($A116,Filtro!$A$4:$AY$1887,11,FALSE),0) -> 0 | N116: =IFERROR(VLOOKUP($A116,Filtro!$A$4:$AY$1887,12,FALSE),0) -> 0 | O116: =IFERROR(VLOOKUP($A116,Filtro!$A$4:$AY$1887,13,FALSE),0) -> 0 | P116: =IFERROR(VLOOKUP($A116,Filtro!$A$4:$AY$1887,14,FALSE),0) -> 0 | Q116: =IFERROR(VLOOKUP($A116,Filtro!$A$4:$AY$1887,15,FALSE),0) -> 1 | R116: =IFERROR(VLOOKUP($A116,Filtro!$A$4:$AY$1887,16,FALSE),0) -> 1 | S116: =IFERROR(VLOOKUP($A116,Filtro!$A$4:$AY$1887,17,FALSE),0) -> 0 | T116: =IFERROR(VLOOKUP($A116,Filtro!$A$4:$AY$1887,18,FALSE),0) -> 0 | U116: =IFERROR(VLOOKUP($A116,Filtro!$A$4:$AY$1887,19,FALSE),0) -> 2 | V116: =IFERROR(VLOOKUP($A116,Filtro!$A$4:$AY$1887,20,FALSE),0) -> 6 | W116: =IFERROR(VLOOKUP($A116,Filtro!$A$4:$AY$1887,21,FALSE),0) -> 2 | X116: =IFERROR(VLOOKUP($A116,Filtro!$A$4:$AY$1887,22,FALSE),0) -> 0 | Y116: =IFERROR(VLOOKUP($A116,Filtro!$A$4:$AY$1887,23,FALSE),0) -> 3 | Z116: =IFERROR(VLOOKUP($A116,Filtro!$A$4:$AY$1887,24,FALSE),0) -> 0 | AA116: =IFERROR(VLOOKUP($A116,Filtro!$A$4:$AY$1887,25,FALSE),0) -> 1 | AB116: =IFERROR(VLOOKUP($A116,Filtro!$A$4:$AY$1887,26,FALSE),0) -> 0
A117: 03051900 | C117: DISCAPACIDAD PROFUNDA | D117: =IFERROR(VLOOKUP($A117,Filtro!$A$4:$AY$1887,2,FALSE),0) -> 0 | E117: =IFERROR(VLOOKUP($A117,Filtro!$A$4:$AY$1887,3,FALSE),0) -> 0 | F117: =IFERROR(VLOOKUP($A117,Filtro!$A$4:$AY$1887,4,FALSE),0) -> 0 | G117: =IFERROR(VLOOKUP($A117,Filtro!$A$4:$AY$1887,5,FALSE),0) -> 0 | H117: =IFERROR(VLOOKUP($A117,Filtro!$A$4:$AY$1887,6,FALSE),0) -> 0 | I117: =IFERROR(VLOOKUP($A117,Filtro!$A$4:$AY$1887,7,FALSE),0) -> 0 | J117: =IFERROR(VLOOKUP($A117,Filtro!$A$4:$AY$1887,8,FALSE),0) -> 0 | K117: =IFERROR(VLOOKUP($A117,Filtro!$A$4:$AY$1887,9,FALSE),0) -> 0 | L117: =IFERROR(VLOOKUP($A117,Filtro!$A$4:$AY$1887,10,FALSE),0) -> 0 | M117: =IFERROR(VLOOKUP($A117,Filtro!$A$4:$AY$1887,11,FALSE),0) -> 0 | N117: =IFERROR(VLOOKUP($A117,Filtro!$A$4:$AY$1887,12,FALSE),0) -> 0 | O117: =IFERROR(VLOOKUP($A117,Filtro!$A$4:$AY$1887,13,FALSE),0) -> 0 | P117: =IFERROR(VLOOKUP($A117,Filtro!$A$4:$AY$1887,14,FALSE),0) -> 0 | Q117: =IFERROR(VLOOKUP($A117,Filtro!$A$4:$AY$1887,15,FALSE),0) -> 0 | R117: =IFERROR(VLOOKUP($A117,Filtro!$A$4:$AY$1887,16,FALSE),0) -> 0 | S117: =IFERROR(VLOOKUP($A117,Filtro!$A$4:$AY$1887,17,FALSE),0) -> 0 | T117: =IFERROR(VLOOKUP($A117,Filtro!$A$4:$AY$1887,18,FALSE),0) -> 0 | U117: =IFERROR(VLOOKUP($A117,Filtro!$A$4:$AY$1887,19,FALSE),0) -> 0 | V117: =IFERROR(VLOOKUP($A117,Filtro!$A$4:$AY$1887,20,FALSE),0) -> 0 | W117: =IFERROR(VLOOKUP($A117,Filtro!$A$4:$AY$1887,21,FALSE),0) -> 0 | X117: =IFERROR(VLOOKUP($A117,Filtro!$A$4:$AY$1887,22,FALSE),0) -> 0 | Y117: =IFERROR(VLOOKUP($A117,Filtro!$A$4:$AY$1887,23,FALSE),0) -> 0 | Z117: =IFERROR(VLOOKUP($A117,Filtro!$A$4:$AY$1887,24,FALSE),0) -> 0 | AA117: =IFERROR(VLOOKUP($A117,Filtro!$A$4:$AY$1887,25,FALSE),0) -> 0 | AB117: =IFERROR(VLOOKUP($A117,Filtro!$A$4:$AY$1887,26,FALSE),0) -> 0
A118: 03052000 | B118: ORIGEN SENSORIAL AUDITIVO | C118: SIN DISCAPACIDAD | D118: =IFERROR(VLOOKUP($A118,Filtro!$A$4:$AY$1887,2,FALSE),0) -> 0 | E118: =IFERROR(VLOOKUP($A118,Filtro!$A$4:$AY$1887,3,FALSE),0) -> 0 | F118: =IFERROR(VLOOKUP($A118,Filtro!$A$4:$AY$1887,4,FALSE),0) -> 0 | G118: =IFERROR(VLOOKUP($A118,Filtro!$A$4:$AY$1887,5,FALSE),0) -> 0 | H118: =IFERROR(VLOOKUP($A118,Filtro!$A$4:$AY$1887,6,FALSE),0) -> 0 | I118: =IFERROR(VLOOKUP($A118,Filtro!$A$4:$AY$1887,7,FALSE),0) -> 0 | J118: =IFERROR(VLOOKUP($A118,Filtro!$A$4:$AY$1887,8,FALSE),0) -> 0 | K118: =IFERROR(VLOOKUP($A118,Filtro!$A$4:$AY$1887,9,FALSE),0) -> 0 | L118: =IFERROR(VLOOKUP($A118,Filtro!$A$4:$AY$1887,10,FALSE),0) -> 0 | M118: =IFERROR(VLOOKUP($A118,Filtro!$A$4:$AY$1887,11,FALSE),0) -> 0 | N118: =IFERROR(VLOOKUP($A118,Filtro!$A$4:$AY$1887,12,FALSE),0) -> 0 | O118: =IFERROR(VLOOKUP($A118,Filtro!$A$4:$AY$1887,13,FALSE),0) -> 0 | P118: =IFERROR(VLOOKUP($A118,Filtro!$A$4:$AY$1887,14,FALSE),0) -> 0 | Q118: =IFERROR(VLOOKUP($A118,Filtro!$A$4:$AY$1887,15,FALSE),0) -> 0 | R118: =IFERROR(VLOOKUP($A118,Filtro!$A$4:$AY$1887,16,FALSE),0) -> 0 | S118: =IFERROR(VLOOKUP($A118,Filtro!$A$4:$AY$1887,17,FALSE),0) -> 0 | T118: =IFERROR(VLOOKUP($A118,Filtro!$A$4:$AY$1887,18,FALSE),0) -> 0 | U118: =IFERROR(VLOOKUP($A118,Filtro!$A$4:$AY$1887,19,FALSE),0) -> 0 | V118: =IFERROR(VLOOKUP($A118,Filtro!$A$4:$AY$1887,20,FALSE),0) -> 0 | W118: =IFERROR(VLOOKUP($A118,Filtro!$A$4:$AY$1887,21,FALSE),0) -> 0 | X118: =IFERROR(VLOOKUP($A118,Filtro!$A$4:$AY$1887,22,FALSE),0) -> 0 | Y118: =IFERROR(VLOOKUP($A118,Filtro!$A$4:$AY$1887,23,FALSE),0) -> 0 | Z118: =IFERROR(VLOOKUP($A118,Filtro!$A$4:$AY$1887,24,FALSE),0) -> 0 | AA118: =IFERROR(VLOOKUP($A118,Filtro!$A$4:$AY$1887,25,FALSE),0) -> 0 | AB118: =IFERROR(VLOOKUP($A118,Filtro!$A$4:$AY$1887,26,FALSE),0) -> 0
A119: 03052100 | C119: DISCAPACIDAD LEVE | D119: =IFERROR(VLOOKUP($A119,Filtro!$A$4:$AY$1887,2,FALSE),0) -> 15 | E119: =IFERROR(VLOOKUP($A119,Filtro!$A$4:$AY$1887,3,FALSE),0) -> 7 | F119: =IFERROR(VLOOKUP($A119,Filtro!$A$4:$AY$1887,4,FALSE),0) -> 8 | G119: =IFERROR(VLOOKUP($A119,Filtro!$A$4:$AY$1887,5,FALSE),0) -> 0 | H119: =IFERROR(VLOOKUP($A119,Filtro!$A$4:$AY$1887,6,FALSE),0) -> 0 | I119: =IFERROR(VLOOKUP($A119,Filtro!$A$4:$AY$1887,7,FALSE),0) -> 0 | J119: =IFERROR(VLOOKUP($A119,Filtro!$A$4:$AY$1887,8,FALSE),0) -> 0 | K119: =IFERROR(VLOOKUP($A119,Filtro!$A$4:$AY$1887,9,FALSE),0) -> 0 | L119: =IFERROR(VLOOKUP($A119,Filtro!$A$4:$AY$1887,10,FALSE),0) -> 0 | M119: =IFERROR(VLOOKUP($A119,Filtro!$A$4:$AY$1887,11,FALSE),0) -> 0 | N119: =IFERROR(VLOOKUP($A119,Filtro!$A$4:$AY$1887,12,FALSE),0) -> 0 | O119: =IFERROR(VLOOKUP($A119,Filtro!$A$4:$AY$1887,13,FALSE),0) -> 0 | P119: =IFERROR(VLOOKUP($A119,Filtro!$A$4:$AY$1887,14,FALSE),0) -> 0 | Q119: =IFERROR(VLOOKUP($A119,Filtro!$A$4:$AY$1887,15,FALSE),0) -> 1 | R119: =IFERROR(VLOOKUP($A119,Filtro!$A$4:$AY$1887,16,FALSE),0) -> 0 | S119: =IFERROR(VLOOKUP($A119,Filtro!$A$4:$AY$1887,17,FALSE),0) -> 1 | T119: =IFERROR(VLOOKUP($A119,Filtro!$A$4:$AY$1887,18,FALSE),0) -> 1 | U119: =IFERROR(VLOOKUP($A119,Filtro!$A$4:$AY$1887,19,FALSE),0) -> 0 | V119: =IFERROR(VLOOKUP($A119,Filtro!$A$4:$AY$1887,20,FALSE),0) -> 6 | W119: =IFERROR(VLOOKUP($A119,Filtro!$A$4:$AY$1887,21,FALSE),0) -> 1 | X119: =IFERROR(VLOOKUP($A119,Filtro!$A$4:$AY$1887,22,FALSE),0) -> 1 | Y119: =IFERROR(VLOOKUP($A119,Filtro!$A$4:$AY$1887,23,FALSE),0) -> 4 | Z119: =IFERROR(VLOOKUP($A119,Filtro!$A$4:$AY$1887,24,FALSE),0) -> 0 | AA119: =IFERROR(VLOOKUP($A119,Filtro!$A$4:$AY$1887,25,FALSE),0) -> 0 | AB119: =IFERROR(VLOOKUP($A119,Filtro!$A$4:$AY$1887,26,FALSE),0) -> 0
A120: 03052200 | C120: DISCAPACIDAD MODERADA | D120: =IFERROR(VLOOKUP($A120,Filtro!$A$4:$AY$1887,2,FALSE),0) -> 12 | E120: =IFERROR(VLOOKUP($A120,Filtro!$A$4:$AY$1887,3,FALSE),0) -> 8 | F120: =IFERROR(VLOOKUP($A120,Filtro!$A$4:$AY$1887,4,FALSE),0) -> 4 | G120: =IFERROR(VLOOKUP($A120,Filtro!$A$4:$AY$1887,5,FALSE),0) -> 0 | H120: =IFERROR(VLOOKUP($A120,Filtro!$A$4:$AY$1887,6,FALSE),0) -> 0 | I120: =IFERROR(VLOOKUP($A120,Filtro!$A$4:$AY$1887,7,FALSE),0) -> 0 | J120: =IFERROR(VLOOKUP($A120,Filtro!$A$4:$AY$1887,8,FALSE),0) -> 0 | K120: =IFERROR(VLOOKUP($A120,Filtro!$A$4:$AY$1887,9,FALSE),0) -> 0 | L120: =IFERROR(VLOOKUP($A120,Filtro!$A$4:$AY$1887,10,FALSE),0) -> 0 | M120: =IFERROR(VLOOKUP($A120,Filtro!$A$4:$AY$1887,11,FALSE),0) -> 0 | N120: =IFERROR(VLOOKUP($A120,Filtro!$A$4:$AY$1887,12,FALSE),0) -> 0 | O120: =IFERROR(VLOOKUP($A120,Filtro!$A$4:$AY$1887,13,FALSE),0) -> 1 | P120: =IFERROR(VLOOKUP($A120,Filtro!$A$4:$AY$1887,14,FALSE),0) -> 0 | Q120: =IFERROR(VLOOKUP($A120,Filtro!$A$4:$AY$1887,15,FALSE),0) -> 0 | R120: =IFERROR(VLOOKUP($A120,Filtro!$A$4:$AY$1887,16,FALSE),0) -> 0 | S120: =IFERROR(VLOOKUP($A120,Filtro!$A$4:$AY$1887,17,FALSE),0) -> 0 | T120: =IFERROR(VLOOKUP($A120,Filtro!$A$4:$AY$1887,18,FALSE),0) -> 0 | U120: =IFERROR(VLOOKUP($A120,Filtro!$A$4:$AY$1887,19,FALSE),0) -> 5 | V120: =IFERROR(VLOOKUP($A120,Filtro!$A$4:$AY$1887,20,FALSE),0) -> 3 | W120: =IFERROR(VLOOKUP($A120,Filtro!$A$4:$AY$1887,21,FALSE),0) -> 1 | X120: =IFERROR(VLOOKUP($A120,Filtro!$A$4:$AY$1887,22,FALSE),0) -> 1 | Y120: =IFERROR(VLOOKUP($A120,Filtro!$A$4:$AY$1887,23,FALSE),0) -> 1 | Z120: =IFERROR(VLOOKUP($A120,Filtro!$A$4:$AY$1887,24,FALSE),0) -> 0 | AA120: =IFERROR(VLOOKUP($A120,Filtro!$A$4:$AY$1887,25,FALSE),0) -> 0 | AB120: =IFERROR(VLOOKUP($A120,Filtro!$A$4:$AY$1887,26,FALSE),0) -> 0
A121: 03052300 | C121: DISCAPACIDAD SEVERA | D121: =IFERROR(VLOOKUP($A121,Filtro!$A$4:$AY$1887,2,FALSE),0) -> 11 | E121: =IFERROR(VLOOKUP($A121,Filtro!$A$4:$AY$1887,3,FALSE),0) -> 6 | F121: =IFERROR(VLOOKUP($A121,Filtro!$A$4:$AY$1887,4,FALSE),0) -> 5 | G121: =IFERROR(VLOOKUP($A121,Filtro!$A$4:$AY$1887,5,FALSE),0) -> 0 | H121: =IFERROR(VLOOKUP($A121,Filtro!$A$4:$AY$1887,6,FALSE),0) -> 0 | I121: =IFERROR(VLOOKUP($A121,Filtro!$A$4:$AY$1887,7,FALSE),0) -> 0 | J121: =IFERROR(VLOOKUP($A121,Filtro!$A$4:$AY$1887,8,FALSE),0) -> 0 | K121: =IFERROR(VLOOKUP($A121,Filtro!$A$4:$AY$1887,9,FALSE),0) -> 1 | L121: =IFERROR(VLOOKUP($A121,Filtro!$A$4:$AY$1887,10,FALSE),0) -> 0 | M121: =IFERROR(VLOOKUP($A121,Filtro!$A$4:$AY$1887,11,FALSE),0) -> 0 | N121: =IFERROR(VLOOKUP($A121,Filtro!$A$4:$AY$1887,12,FALSE),0) -> 1 | O121: =IFERROR(VLOOKUP($A121,Filtro!$A$4:$AY$1887,13,FALSE),0) -> 0 | P121: =IFERROR(VLOOKUP($A121,Filtro!$A$4:$AY$1887,14,FALSE),0) -> 0 | Q121: =IFERROR(VLOOKUP($A121,Filtro!$A$4:$AY$1887,15,FALSE),0) -> 1 | R121: =IFERROR(VLOOKUP($A121,Filtro!$A$4:$AY$1887,16,FALSE),0) -> 0 | S121: =IFERROR(VLOOKUP($A121,Filtro!$A$4:$AY$1887,17,FALSE),0) -> 0 | T121: =IFERROR(VLOOKUP($A121,Filtro!$A$4:$AY$1887,18,FALSE),0) -> 0 | U121: =IFERROR(VLOOKUP($A121,Filtro!$A$4:$AY$1887,19,FALSE),0) -> 2 | V121: =IFERROR(VLOOKUP($A121,Filtro!$A$4:$AY$1887,20,FALSE),0) -> 3 | W121: =IFERROR(VLOOKUP($A121,Filtro!$A$4:$AY$1887,21,FALSE),0) -> 1 | X121: =IFERROR(VLOOKUP($A121,Filtro!$A$4:$AY$1887,22,FALSE),0) -> 1 | Y121: =IFERROR(VLOOKUP($A121,Filtro!$A$4:$AY$1887,23,FALSE),0) -> 0 | Z121: =IFERROR(VLOOKUP($A121,Filtro!$A$4:$AY$1887,24,FALSE),0) -> 0 | AA121: =IFERROR(VLOOKUP($A121,Filtro!$A$4:$AY$1887,25,FALSE),0) -> 1 | AB121: =IFERROR(VLOOKUP($A121,Filtro!$A$4:$AY$1887,26,FALSE),0) -> 0
A122: 03052400 | C122: DISCAPACIDAD PROFUNDA | D122: =IFERROR(VLOOKUP($A122,Filtro!$A$4:$AY$1887,2,FALSE),0) -> 0 | E122: =IFERROR(VLOOKUP($A122,Filtro!$A$4:$AY$1887,3,FALSE),0) -> 0 | F122: =IFERROR(VLOOKUP($A122,Filtro!$A$4:$AY$1887,4,FALSE),0) -> 0 | G122: =IFERROR(VLOOKUP($A122,Filtro!$A$4:$AY$1887,5,FALSE),0) -> 0 | H122: =IFERROR(VLOOKUP($A122,Filtro!$A$4:$AY$1887,6,FALSE),0) -> 0 | I122: =IFERROR(VLOOKUP($A122,Filtro!$A$4:$AY$1887,7,FALSE),0) -> 0 | J122: =IFERROR(VLOOKUP($A122,Filtro!$A$4:$AY$1887,8,FALSE),0) -> 0 | K122: =IFERROR(VLOOKUP($A122,Filtro!$A$4:$AY$1887,9,FALSE),0) -> 0 | L122: =IFERROR(VLOOKUP($A122,Filtro!$A$4:$AY$1887,10,FALSE),0) -> 0 | M122: =IFERROR(VLOOKUP($A122,Filtro!$A$4:$AY$1887,11,FALSE),0) -> 0 | N122: =IFERROR(VLOOKUP($A122,Filtro!$A$4:$AY$1887,12,FALSE),0) -> 0 | O122: =IFERROR(VLOOKUP($A122,Filtro!$A$4:$AY$1887,13,FALSE),0) -> 0 | P122: =IFERROR(VLOOKUP($A122,Filtro!$A$4:$AY$1887,14,FALSE),0) -> 0 | Q122: =IFERROR(VLOOKUP($A122,Filtro!$A$4:$AY$1887,15,FALSE),0) -> 0 | R122: =IFERROR(VLOOKUP($A122,Filtro!$A$4:$AY$1887,16,FALSE),0) -> 0 | S122: =IFERROR(VLOOKUP($A122,Filtro!$A$4:$AY$1887,17,FALSE),0) -> 0 | T122: =IFERROR(VLOOKUP($A122,Filtro!$A$4:$AY$1887,18,FALSE),0) -> 0 | U122: =IFERROR(VLOOKUP($A122,Filtro!$A$4:$AY$1887,19,FALSE),0) -> 0 | V122: =IFERROR(VLOOKUP($A122,Filtro!$A$4:$AY$1887,20,FALSE),0) -> 0 | W122: =IFERROR(VLOOKUP($A122,Filtro!$A$4:$AY$1887,21,FALSE),0) -> 0 | X122: =IFERROR(VLOOKUP($A122,Filtro!$A$4:$AY$1887,22,FALSE),0) -> 0 | Y122: =IFERROR(VLOOKUP($A122,Filtro!$A$4:$AY$1887,23,FALSE),0) -> 0 | Z122: =IFERROR(VLOOKUP($A122,Filtro!$A$4:$AY$1887,24,FALSE),0) -> 0 | AA122: =IFERROR(VLOOKUP($A122,Filtro!$A$4:$AY$1887,25,FALSE),0) -> 0 | AB122: =IFERROR(VLOOKUP($A122,Filtro!$A$4:$AY$1887,26,FALSE),0) -> 0
A123: 03052500 | B123: ORIGEN MENTAL PSÍQUICO | C123: SIN DISCAPACIDAD | D123: =IFERROR(VLOOKUP($A123,Filtro!$A$4:$AY$1887,2,FALSE),0) -> 2 | E123: =IFERROR(VLOOKUP($A123,Filtro!$A$4:$AY$1887,3,FALSE),0) -> 2 | F123: =IFERROR(VLOOKUP($A123,Filtro!$A$4:$AY$1887,4,FALSE),0) -> 0 | G123: =IFERROR(VLOOKUP($A123,Filtro!$A$4:$AY$1887,5,FALSE),0) -> 0 | H123: =IFERROR(VLOOKUP($A123,Filtro!$A$4:$AY$1887,6,FALSE),0) -> 0 | I123: =IFERROR(VLOOKUP($A123,Filtro!$A$4:$AY$1887,7,FALSE),0) -> 0 | J123: =IFERROR(VLOOKUP($A123,Filtro!$A$4:$AY$1887,8,FALSE),0) -> 0 | K123: =IFERROR(VLOOKUP($A123,Filtro!$A$4:$AY$1887,9,FALSE),0) -> 0 | L123: =IFERROR(VLOOKUP($A123,Filtro!$A$4:$AY$1887,10,FALSE),0) -> 0 | M123: =IFERROR(VLOOKUP($A123,Filtro!$A$4:$AY$1887,11,FALSE),0) -> 0 | N123: =IFERROR(VLOOKUP($A123,Filtro!$A$4:$AY$1887,12,FALSE),0) -> 0 | O123: =IFERROR(VLOOKUP($A123,Filtro!$A$4:$AY$1887,13,FALSE),0) -> 0 | P123: =IFERROR(VLOOKUP($A123,Filtro!$A$4:$AY$1887,14,FALSE),0) -> 0 | Q123: =IFERROR(VLOOKUP($A123,Filtro!$A$4:$AY$1887,15,FALSE),0) -> 1 | R123: =IFERROR(VLOOKUP($A123,Filtro!$A$4:$AY$1887,16,FALSE),0) -> 0 | S123: =IFERROR(VLOOKUP($A123,Filtro!$A$4:$AY$1887,17,FALSE),0) -> 0 | T123: =IFERROR(VLOOKUP($A123,Filtro!$A$4:$AY$1887,18,FALSE),0) -> 0 | U123: =IFERROR(VLOOKUP($A123,Filtro!$A$4:$AY$1887,19,FALSE),0) -> 1 | V123: =IFERROR(VLOOKUP($A123,Filtro!$A$4:$AY$1887,20,FALSE),0) -> 0 | W123: =IFERROR(VLOOKUP($A123,Filtro!$A$4:$AY$1887,21,FALSE),0) -> 0 | X123: =IFERROR(VLOOKUP($A123,Filtro!$A$4:$AY$1887,22,FALSE),0) -> 0 | Y123: =IFERROR(VLOOKUP($A123,Filtro!$A$4:$AY$1887,23,FALSE),0) -> 0 | Z123: =IFERROR(VLOOKUP($A123,Filtro!$A$4:$AY$1887,24,FALSE),0) -> 0 | AA123: =IFERROR(VLOOKUP($A123,Filtro!$A$4:$AY$1887,25,FALSE),0) -> 0 | AB123: =IFERROR(VLOOKUP($A123,Filtro!$A$4:$AY$1887,26,FALSE),0) -> 0
A124: 03052600 | C124: DISCAPACIDAD LEVE | D124: =IFERROR(VLOOKUP($A124,Filtro!$A$4:$AY$1887,2,FALSE),0) -> 22 | E124: =IFERROR(VLOOKUP($A124,Filtro!$A$4:$AY$1887,3,FALSE),0) -> 14 | F124: =IFERROR(VLOOKUP($A124,Filtro!$A$4:$AY$1887,4,FALSE),0) -> 8 | G124: =IFERROR(VLOOKUP($A124,Filtro!$A$4:$AY$1887,5,FALSE),0) -> 0 | H124: =IFERROR(VLOOKUP($A124,Filtro!$A$4:$AY$1887,6,FALSE),0) -> 0 | I124: =IFERROR(VLOOKUP($A124,Filtro!$A$4:$AY$1887,7,FALSE),0) -> 0 | J124: =IFERROR(VLOOKUP($A124,Filtro!$A$4:$AY$1887,8,FALSE),0) -> 0 | K124: =IFERROR(VLOOKUP($A124,Filtro!$A$4:$AY$1887,9,FALSE),0) -> 1 | L124: =IFERROR(VLOOKUP($A124,Filtro!$A$4:$AY$1887,10,FALSE),0) -> 0 | M124: =IFERROR(VLOOKUP($A124,Filtro!$A$4:$AY$1887,11,FALSE),0) -> 1 | N124: =IFERROR(VLOOKUP($A124,Filtro!$A$4:$AY$1887,12,FALSE),0) -> 0 | O124: =IFERROR(VLOOKUP($A124,Filtro!$A$4:$AY$1887,13,FALSE),0) -> 1 | P124: =IFERROR(VLOOKUP($A124,Filtro!$A$4:$AY$1887,14,FALSE),0) -> 1 | Q124: =IFERROR(VLOOKUP($A124,Filtro!$A$4:$AY$1887,15,FALSE),0) -> 1 | R124: =IFERROR(VLOOKUP($A124,Filtro!$A$4:$AY$1887,16,FALSE),0) -> 0 | S124: =IFERROR(VLOOKUP($A124,Filtro!$A$4:$AY$1887,17,FALSE),0) -> 2 | T124: =IFERROR(VLOOKUP($A124,Filtro!$A$4:$AY$1887,18,FALSE),0) -> 0 | U124: =IFERROR(VLOOKUP($A124,Filtro!$A$4:$AY$1887,19,FALSE),0) -> 7 | V124: =IFERROR(VLOOKUP($A124,Filtro!$A$4:$AY$1887,20,FALSE),0) -> 5 | W124: =IFERROR(VLOOKUP($A124,Filtro!$A$4:$AY$1887,21,FALSE),0) -> 0 | X124: =IFERROR(VLOOKUP($A124,Filtro!$A$4:$AY$1887,22,FALSE),0) -> 0 | Y124: =IFERROR(VLOOKUP($A124,Filtro!$A$4:$AY$1887,23,FALSE),0) -> 0 | Z124: =IFERROR(VLOOKUP($A124,Filtro!$A$4:$AY$1887,24,FALSE),0) -> 2 | AA124: =IFERROR(VLOOKUP($A124,Filtro!$A$4:$AY$1887,25,FALSE),0) -> 1 | AB124: =IFERROR(VLOOKUP($A124,Filtro!$A$4:$AY$1887,26,FALSE),0) -> 0
A125: 03052700 | C125: DISCAPACIDAD MODERADA | D125: =IFERROR(VLOOKUP($A125,Filtro!$A$4:$AY$1887,2,FALSE),0) -> 29 | E125: =IFERROR(VLOOKUP($A125,Filtro!$A$4:$AY$1887,3,FALSE),0) -> 19 | F125: =IFERROR(VLOOKUP($A125,Filtro!$A$4:$AY$1887,4,FALSE),0) -> 10 | G125: =IFERROR(VLOOKUP($A125,Filtro!$A$4:$AY$1887,5,FALSE),0) -> 0 | H125: =IFERROR(VLOOKUP($A125,Filtro!$A$4:$AY$1887,6,FALSE),0) -> 0 | I125: =IFERROR(VLOOKUP($A125,Filtro!$A$4:$AY$1887,7,FALSE),0) -> 0 | J125: =IFERROR(VLOOKUP($A125,Filtro!$A$4:$AY$1887,8,FALSE),0) -> 0 | K125: =IFERROR(VLOOKUP($A125,Filtro!$A$4:$AY$1887,9,FALSE),0) -> 0 | L125: =IFERROR(VLOOKUP($A125,Filtro!$A$4:$AY$1887,10,FALSE),0) -> 1 | M125: =IFERROR(VLOOKUP($A125,Filtro!$A$4:$AY$1887,11,FALSE),0) -> 2 | N125: =IFERROR(VLOOKUP($A125,Filtro!$A$4:$AY$1887,12,FALSE),0) -> 2 | O125: =IFERROR(VLOOKUP($A125,Filtro!$A$4:$AY$1887,13,FALSE),0) -> 1 | P125: =IFERROR(VLOOKUP($A125,Filtro!$A$4:$AY$1887,14,FALSE),0) -> 0 | Q125: =IFERROR(VLOOKUP($A125,Filtro!$A$4:$AY$1887,15,FALSE),0) -> 0 | R125: =IFERROR(VLOOKUP($A125,Filtro!$A$4:$AY$1887,16,FALSE),0) -> 0 | S125: =IFERROR(VLOOKUP($A125,Filtro!$A$4:$AY$1887,17,FALSE),0) -> 2 | T125: =IFERROR(VLOOKUP($A125,Filtro!$A$4:$AY$1887,18,FALSE),0) -> 0 | U125: =IFERROR(VLOOKUP($A125,Filtro!$A$4:$AY$1887,19,FALSE),0) -> 10 | V125: =IFERROR(VLOOKUP($A125,Filtro!$A$4:$AY$1887,20,FALSE),0) -> 6 | W125: =IFERROR(VLOOKUP($A125,Filtro!$A$4:$AY$1887,21,FALSE),0) -> 1 | X125: =IFERROR(VLOOKUP($A125,Filtro!$A$4:$AY$1887,22,FALSE),0) -> 0 | Y125: =IFERROR(VLOOKUP($A125,Filtro!$A$4:$AY$1887,23,FALSE),0) -> 2 | Z125: =IFERROR(VLOOKUP($A125,Filtro!$A$4:$AY$1887,24,FALSE),0) -> 0 | AA125: =IFERROR(VLOOKUP($A125,Filtro!$A$4:$AY$1887,25,FALSE),0) -> 1 | AB125: =IFERROR(VLOOKUP($A125,Filtro!$A$4:$AY$1887,26,FALSE),0) -> 1
A126: 03052800 | C126: DISCAPACIDAD SEVERA | D126: =IFERROR(VLOOKUP($A126,Filtro!$A$4:$AY$1887,2,FALSE),0) -> 74 | E126: =IFERROR(VLOOKUP($A126,Filtro!$A$4:$AY$1887,3,FALSE),0) -> 34 | F126: =IFERROR(VLOOKUP($A126,Filtro!$A$4:$AY$1887,4,FALSE),0) -> 40 | G126: =IFERROR(VLOOKUP($A126,Filtro!$A$4:$AY$1887,5,FALSE),0) -> 0 | H126: =IFERROR(VLOOKUP($A126,Filtro!$A$4:$AY$1887,6,FALSE),0) -> 2 | I126: =IFERROR(VLOOKUP($A126,Filtro!$A$4:$AY$1887,7,FALSE),0) -> 0 | J126: =IFERROR(VLOOKUP($A126,Filtro!$A$4:$AY$1887,8,FALSE),0) -> 0 | K126: =IFERROR(VLOOKUP($A126,Filtro!$A$4:$AY$1887,9,FALSE),0) -> 4 | L126: =IFERROR(VLOOKUP($A126,Filtro!$A$4:$AY$1887,10,FALSE),0) -> 3 | M126: =IFERROR(VLOOKUP($A126,Filtro!$A$4:$AY$1887,11,FALSE),0) -> 3 | N126: =IFERROR(VLOOKUP($A126,Filtro!$A$4:$AY$1887,12,FALSE),0) -> 2 | O126: =IFERROR(VLOOKUP($A126,Filtro!$A$4:$AY$1887,13,FALSE),0) -> 3 | P126: =IFERROR(VLOOKUP($A126,Filtro!$A$4:$AY$1887,14,FALSE),0) -> 2 | Q126: =IFERROR(VLOOKUP($A126,Filtro!$A$4:$AY$1887,15,FALSE),0) -> 2 | R126: =IFERROR(VLOOKUP($A126,Filtro!$A$4:$AY$1887,16,FALSE),0) -> 0 | S126: =IFERROR(VLOOKUP($A126,Filtro!$A$4:$AY$1887,17,FALSE),0) -> 0 | T126: =IFERROR(VLOOKUP($A126,Filtro!$A$4:$AY$1887,18,FALSE),0) -> 0 | U126: =IFERROR(VLOOKUP($A126,Filtro!$A$4:$AY$1887,19,FALSE),0) -> 12 | V126: =IFERROR(VLOOKUP($A126,Filtro!$A$4:$AY$1887,20,FALSE),0) -> 12 | W126: =IFERROR(VLOOKUP($A126,Filtro!$A$4:$AY$1887,21,FALSE),0) -> 2 | X126: =IFERROR(VLOOKUP($A126,Filtro!$A$4:$AY$1887,22,FALSE),0) -> 0 | Y126: =IFERROR(VLOOKUP($A126,Filtro!$A$4:$AY$1887,23,FALSE),0) -> 1 | Z126: =IFERROR(VLOOKUP($A126,Filtro!$A$4:$AY$1887,24,FALSE),0) -> 2 | AA126: =IFERROR(VLOOKUP($A126,Filtro!$A$4:$AY$1887,25,FALSE),0) -> 7 | AB126: =IFERROR(VLOOKUP($A126,Filtro!$A$4:$AY$1887,26,FALSE),0) -> 17
A127: 03052900 | C127: DISCAPACIDAD PROFUNDA | D127: =IFERROR(VLOOKUP($A127,Filtro!$A$4:$AY$1887,2,FALSE),0) -> 8 | E127: =IFERROR(VLOOKUP($A127,Filtro!$A$4:$AY$1887,3,FALSE),0) -> 3 | F127: =IFERROR(VLOOKUP($A127,Filtro!$A$4:$AY$1887,4,FALSE),0) -> 5 | G127: =IFERROR(VLOOKUP($A127,Filtro!$A$4:$AY$1887,5,FALSE),0) -> 0 | H127: =IFERROR(VLOOKUP($A127,Filtro!$A$4:$AY$1887,6,FALSE),0) -> 0 | I127: =IFERROR(VLOOKUP($A127,Filtro!$A$4:$AY$1887,7,FALSE),0) -> 0 | J127: =IFERROR(VLOOKUP($A127,Filtro!$A$4:$AY$1887,8,FALSE),0) -> 0 | K127: =IFERROR(VLOOKUP($A127,Filtro!$A$4:$AY$1887,9,FALSE),0) -> 0 | L127: =IFERROR(VLOOKUP($A127,Filtro!$A$4:$AY$1887,10,FALSE),0) -> 0 | M127: =IFERROR(VLOOKUP($A127,Filtro!$A$4:$AY$1887,11,FALSE),0) -> 1 | N127: =IFERROR(VLOOKUP($A127,Filtro!$A$4:$AY$1887,12,FALSE),0) -> 0 | O127: =IFERROR(VLOOKUP($A127,Filtro!$A$4:$AY$1887,13,FALSE),0) -> 0 | P127: =IFERROR(VLOOKUP($A127,Filtro!$A$4:$AY$1887,14,FALSE),0) -> 0 | Q127: =IFERROR(VLOOKUP($A127,Filtro!$A$4:$AY$1887,15,FALSE),0) -> 0 | R127: =IFERROR(VLOOKUP($A127,Filtro!$A$4:$AY$1887,16,FALSE),0) -> 0 | S127: =IFERROR(VLOOKUP($A127,Filtro!$A$4:$AY$1887,17,FALSE),0) -> 0 | T127: =IFERROR(VLOOKUP($A127,Filtro!$A$4:$AY$1887,18,FALSE),0) -> 0 | U127: =IFERROR(VLOOKUP($A127,Filtro!$A$4:$AY$1887,19,FALSE),0) -> 1 | V127: =IFERROR(VLOOKUP($A127,Filtro!$A$4:$AY$1887,20,FALSE),0) -> 0 | W127: =IFERROR(VLOOKUP($A127,Filtro!$A$4:$AY$1887,21,FALSE),0) -> 0 | X127: =IFERROR(VLOOKUP($A127,Filtro!$A$4:$AY$1887,22,FALSE),0) -> 0 | Y127: =IFERROR(VLOOKUP($A127,Filtro!$A$4:$AY$1887,23,FALSE),0) -> 1 | Z127: =IFERROR(VLOOKUP($A127,Filtro!$A$4:$AY$1887,24,FALSE),0) -> 0 | AA127: =IFERROR(VLOOKUP($A127,Filtro!$A$4:$AY$1887,25,FALSE),0) -> 0 | AB127: =IFERROR(VLOOKUP($A127,Filtro!$A$4:$AY$1887,26,FALSE),0) -> 5
A128: 03053000 | B128: ORIGEN MENTAL INTELECTUAL | C128: SIN DISCAPACIDAD | D128: =IFERROR(VLOOKUP($A128,Filtro!$A$4:$AY$1887,2,FALSE),0) -> 0 | E128: =IFERROR(VLOOKUP($A128,Filtro!$A$4:$AY$1887,3,FALSE),0) -> 0 | F128: =IFERROR(VLOOKUP($A128,Filtro!$A$4:$AY$1887,4,FALSE),0) -> 0 | G128: =IFERROR(VLOOKUP($A128,Filtro!$A$4:$AY$1887,5,FALSE),0) -> 0 | H128: =IFERROR(VLOOKUP($A128,Filtro!$A$4:$AY$1887,6,FALSE),0) -> 0 | I128: =IFERROR(VLOOKUP($A128,Filtro!$A$4:$AY$1887,7,FALSE),0) -> 0 | J128: =IFERROR(VLOOKUP($A128,Filtro!$A$4:$AY$1887,8,FALSE),0) -> 0 | K128: =IFERROR(VLOOKUP($A128,Filtro!$A$4:$AY$1887,9,FALSE),0) -> 0 | L128: =IFERROR(VLOOKUP($A128,Filtro!$A$4:$AY$1887,10,FALSE),0) -> 0 | M128: =IFERROR(VLOOKUP($A128,Filtro!$A$4:$AY$1887,11,FALSE),0) -> 0 | N128: =IFERROR(VLOOKUP($A128,Filtro!$A$4:$AY$1887,12,FALSE),0) -> 0 | O128: =IFERROR(VLOOKUP($A128,Filtro!$A$4:$AY$1887,13,FALSE),0) -> 0 | P128: =IFERROR(VLOOKUP($A128,Filtro!$A$4:$AY$1887,14,FALSE),0) -> 0 | Q128: =IFERROR(VLOOKUP($A128,Filtro!$A$4:$AY$1887,15,FALSE),0) -> 0 | R128: =IFERROR(VLOOKUP($A128,Filtro!$A$4:$AY$1887,16,FALSE),0) -> 0 | S128: =IFERROR(VLOOKUP($A128,Filtro!$A$4:$AY$1887,17,FALSE),0) -> 0 | T128: =IFERROR(VLOOKUP($A128,Filtro!$A$4:$AY$1887,18,FALSE),0) -> 0 | U128: =IFERROR(VLOOKUP($A128,Filtro!$A$4:$AY$1887,19,FALSE),0) -> 0 | V128: =IFERROR(VLOOKUP($A128,Filtro!$A$4:$AY$1887,20,FALSE),0) -> 0 | W128: =IFERROR(VLOOKUP($A128,Filtro!$A$4:$AY$1887,21,FALSE),0) -> 0 | X128: =IFERROR(VLOOKUP($A128,Filtro!$A$4:$AY$1887,22,FALSE),0) -> 0 | Y128: =IFERROR(VLOOKUP($A128,Filtro!$A$4:$AY$1887,23,FALSE),0) -> 0 | Z128: =IFERROR(VLOOKUP($A128,Filtro!$A$4:$AY$1887,24,FALSE),0) -> 0 | AA128: =IFERROR(VLOOKUP($A128,Filtro!$A$4:$AY$1887,25,FALSE),0) -> 0 | AB128: =IFERROR(VLOOKUP($A128,Filtro!$A$4:$AY$1887,26,FALSE),0) -> 0
A129: 03053100 | C129: DISCAPACIDAD LEVE | D129: =IFERROR(VLOOKUP($A129,Filtro!$A$4:$AY$1887,2,FALSE),0) -> 17 | E129: =IFERROR(VLOOKUP($A129,Filtro!$A$4:$AY$1887,3,FALSE),0) -> 9 | F129: =IFERROR(VLOOKUP($A129,Filtro!$A$4:$AY$1887,4,FALSE),0) -> 8 | G129: =IFERROR(VLOOKUP($A129,Filtro!$A$4:$AY$1887,5,FALSE),0) -> 1 | H129: =IFERROR(VLOOKUP($A129,Filtro!$A$4:$AY$1887,6,FALSE),0) -> 0 | I129: =IFERROR(VLOOKUP($A129,Filtro!$A$4:$AY$1887,7,FALSE),0) -> 0 | J129: =IFERROR(VLOOKUP($A129,Filtro!$A$4:$AY$1887,8,FALSE),0) -> 0 | K129: =IFERROR(VLOOKUP($A129,Filtro!$A$4:$AY$1887,9,FALSE),0) -> 0 | L129: =IFERROR(VLOOKUP($A129,Filtro!$A$4:$AY$1887,10,FALSE),0) -> 1 | M129: =IFERROR(VLOOKUP($A129,Filtro!$A$4:$AY$1887,11,FALSE),0) -> 0 | N129: =IFERROR(VLOOKUP($A129,Filtro!$A$4:$AY$1887,12,FALSE),0) -> 0 | O129: =IFERROR(VLOOKUP($A129,Filtro!$A$4:$AY$1887,13,FALSE),0) -> 0 | P129: =IFERROR(VLOOKUP($A129,Filtro!$A$4:$AY$1887,14,FALSE),0) -> 1 | Q129: =IFERROR(VLOOKUP($A129,Filtro!$A$4:$AY$1887,15,FALSE),0) -> 2 | R129: =IFERROR(VLOOKUP($A129,Filtro!$A$4:$AY$1887,16,FALSE),0) -> 1 | S129: =IFERROR(VLOOKUP($A129,Filtro!$A$4:$AY$1887,17,FALSE),0) -> 2 | T129: =IFERROR(VLOOKUP($A129,Filtro!$A$4:$AY$1887,18,FALSE),0) -> 2 | U129: =IFERROR(VLOOKUP($A129,Filtro!$A$4:$AY$1887,19,FALSE),0) -> 4 | V129: =IFERROR(VLOOKUP($A129,Filtro!$A$4:$AY$1887,20,FALSE),0) -> 3 | W129: =IFERROR(VLOOKUP($A129,Filtro!$A$4:$AY$1887,21,FALSE),0) -> 0 | X129: =IFERROR(VLOOKUP($A129,Filtro!$A$4:$AY$1887,22,FALSE),0) -> 0 | Y129: =IFERROR(VLOOKUP($A129,Filtro!$A$4:$AY$1887,23,FALSE),0) -> 0 | Z129: =IFERROR(VLOOKUP($A129,Filtro!$A$4:$AY$1887,24,FALSE),0) -> 0 | AA129: =IFERROR(VLOOKUP($A129,Filtro!$A$4:$AY$1887,25,FALSE),0) -> 0 | AB129: =IFERROR(VLOOKUP($A129,Filtro!$A$4:$AY$1887,26,FALSE),0) -> 0
A130: 03053200 | C130: DISCAPACIDAD MODERADA | D130: =IFERROR(VLOOKUP($A130,Filtro!$A$4:$AY$1887,2,FALSE),0) -> 19 | E130: =IFERROR(VLOOKUP($A130,Filtro!$A$4:$AY$1887,3,FALSE),0) -> 11 | F130: =IFERROR(VLOOKUP($A130,Filtro!$A$4:$AY$1887,4,FALSE),0) -> 8 | G130: =IFERROR(VLOOKUP($A130,Filtro!$A$4:$AY$1887,5,FALSE),0) -> 0 | H130: =IFERROR(VLOOKUP($A130,Filtro!$A$4:$AY$1887,6,FALSE),0) -> 0 | I130: =IFERROR(VLOOKUP($A130,Filtro!$A$4:$AY$1887,7,FALSE),0) -> 0 | J130: =IFERROR(VLOOKUP($A130,Filtro!$A$4:$AY$1887,8,FALSE),0) -> 0 | K130: =IFERROR(VLOOKUP($A130,Filtro!$A$4:$AY$1887,9,FALSE),0) -> 0 | L130: =IFERROR(VLOOKUP($A130,Filtro!$A$4:$AY$1887,10,FALSE),0) -> 1 | M130: =IFERROR(VLOOKUP($A130,Filtro!$A$4:$AY$1887,11,FALSE),0) -> 0 | N130: =IFERROR(VLOOKUP($A130,Filtro!$A$4:$AY$1887,12,FALSE),0) -> 1 | O130: =IFERROR(VLOOKUP($A130,Filtro!$A$4:$AY$1887,13,FALSE),0) -> 0 | P130: =IFERROR(VLOOKUP($A130,Filtro!$A$4:$AY$1887,14,FALSE),0) -> 3 | Q130: =IFERROR(VLOOKUP($A130,Filtro!$A$4:$AY$1887,15,FALSE),0) -> 3 | R130: =IFERROR(VLOOKUP($A130,Filtro!$A$4:$AY$1887,16,FALSE),0) -> 1 | S130: =IFERROR(VLOOKUP($A130,Filtro!$A$4:$AY$1887,17,FALSE),0) -> 1 | T130: =IFERROR(VLOOKUP($A130,Filtro!$A$4:$AY$1887,18,FALSE),0) -> 0 | U130: =IFERROR(VLOOKUP($A130,Filtro!$A$4:$AY$1887,19,FALSE),0) -> 6 | V130: =IFERROR(VLOOKUP($A130,Filtro!$A$4:$AY$1887,20,FALSE),0) -> 2 | W130: =IFERROR(VLOOKUP($A130,Filtro!$A$4:$AY$1887,21,FALSE),0) -> 0 | X130: =IFERROR(VLOOKUP($A130,Filtro!$A$4:$AY$1887,22,FALSE),0) -> 0 | Y130: =IFERROR(VLOOKUP($A130,Filtro!$A$4:$AY$1887,23,FALSE),0) -> 1 | Z130: =IFERROR(VLOOKUP($A130,Filtro!$A$4:$AY$1887,24,FALSE),0) -> 0 | AA130: =IFERROR(VLOOKUP($A130,Filtro!$A$4:$AY$1887,25,FALSE),0) -> 0 | AB130: =IFERROR(VLOOKUP($A130,Filtro!$A$4:$AY$1887,26,FALSE),0) -> 0
A131: 03053300 | C131: DISCAPACIDAD SEVERA | D131: =IFERROR(VLOOKUP($A131,Filtro!$A$4:$AY$1887,2,FALSE),0) -> 33 | E131: =IFERROR(VLOOKUP($A131,Filtro!$A$4:$AY$1887,3,FALSE),0) -> 17 | F131: =IFERROR(VLOOKUP($A131,Filtro!$A$4:$AY$1887,4,FALSE),0) -> 16 | G131: =IFERROR(VLOOKUP($A131,Filtro!$A$4:$AY$1887,5,FALSE),0) -> 1 | H131: =IFERROR(VLOOKUP($A131,Filtro!$A$4:$AY$1887,6,FALSE),0) -> 0 | I131: =IFERROR(VLOOKUP($A131,Filtro!$A$4:$AY$1887,7,FALSE),0) -> 0 | J131: =IFERROR(VLOOKUP($A131,Filtro!$A$4:$AY$1887,8,FALSE),0) -> 0 | K131: =IFERROR(VLOOKUP($A131,Filtro!$A$4:$AY$1887,9,FALSE),0) -> 2 | L131: =IFERROR(VLOOKUP($A131,Filtro!$A$4:$AY$1887,10,FALSE),0) -> 1 | M131: =IFERROR(VLOOKUP($A131,Filtro!$A$4:$AY$1887,11,FALSE),0) -> 3 | N131: =IFERROR(VLOOKUP($A131,Filtro!$A$4:$AY$1887,12,FALSE),0) -> 1 | O131: =IFERROR(VLOOKUP($A131,Filtro!$A$4:$AY$1887,13,FALSE),0) -> 3 | P131: =IFERROR(VLOOKUP($A131,Filtro!$A$4:$AY$1887,14,FALSE),0) -> 1 | Q131: =IFERROR(VLOOKUP($A131,Filtro!$A$4:$AY$1887,15,FALSE),0) -> 2 | R131: =IFERROR(VLOOKUP($A131,Filtro!$A$4:$AY$1887,16,FALSE),0) -> 4 | S131: =IFERROR(VLOOKUP($A131,Filtro!$A$4:$AY$1887,17,FALSE),0) -> 0 | T131: =IFERROR(VLOOKUP($A131,Filtro!$A$4:$AY$1887,18,FALSE),0) -> 2 | U131: =IFERROR(VLOOKUP($A131,Filtro!$A$4:$AY$1887,19,FALSE),0) -> 3 | V131: =IFERROR(VLOOKUP($A131,Filtro!$A$4:$AY$1887,20,FALSE),0) -> 4 | W131: =IFERROR(VLOOKUP($A131,Filtro!$A$4:$AY$1887,21,FALSE),0) -> 1 | X131: =IFERROR(VLOOKUP($A131,Filtro!$A$4:$AY$1887,22,FALSE),0) -> 0 | Y131: =IFERROR(VLOOKUP($A131,Filtro!$A$4:$AY$1887,23,FALSE),0) -> 2 | Z131: =IFERROR(VLOOKUP($A131,Filtro!$A$4:$AY$1887,24,FALSE),0) -> 3 | AA131: =IFERROR(VLOOKUP($A131,Filtro!$A$4:$AY$1887,25,FALSE),0) -> 0 | AB131: =IFERROR(VLOOKUP($A131,Filtro!$A$4:$AY$1887,26,FALSE),0) -> 0
A132: 03053400 | C132: DISCAPACIDAD PROFUNDA | D132: =IFERROR(VLOOKUP($A132,Filtro!$A$4:$AY$1887,2,FALSE),0) -> 11 | E132: =IFERROR(VLOOKUP($A132,Filtro!$A$4:$AY$1887,3,FALSE),0) -> 5 | F132: =IFERROR(VLOOKUP($A132,Filtro!$A$4:$AY$1887,4,FALSE),0) -> 6 | G132: =IFERROR(VLOOKUP($A132,Filtro!$A$4:$AY$1887,5,FALSE),0) -> 0 | H132: =IFERROR(VLOOKUP($A132,Filtro!$A$4:$AY$1887,6,FALSE),0) -> 0 | I132: =IFERROR(VLOOKUP($A132,Filtro!$A$4:$AY$1887,7,FALSE),0) -> 0 | J132: =IFERROR(VLOOKUP($A132,Filtro!$A$4:$AY$1887,8,FALSE),0) -> 0 | K132: =IFERROR(VLOOKUP($A132,Filtro!$A$4:$AY$1887,9,FALSE),0) -> 1 | L132: =IFERROR(VLOOKUP($A132,Filtro!$A$4:$AY$1887,10,FALSE),0) -> 1 | M132: =IFERROR(VLOOKUP($A132,Filtro!$A$4:$AY$1887,11,FALSE),0) -> 2 | N132: =IFERROR(VLOOKUP($A132,Filtro!$A$4:$AY$1887,12,FALSE),0) -> 0 | O132: =IFERROR(VLOOKUP($A132,Filtro!$A$4:$AY$1887,13,FALSE),0) -> 0 | P132: =IFERROR(VLOOKUP($A132,Filtro!$A$4:$AY$1887,14,FALSE),0) -> 0 | Q132: =IFERROR(VLOOKUP($A132,Filtro!$A$4:$AY$1887,15,FALSE),0) -> 0 | R132: =IFERROR(VLOOKUP($A132,Filtro!$A$4:$AY$1887,16,FALSE),0) -> 0 | S132: =IFERROR(VLOOKUP($A132,Filtro!$A$4:$AY$1887,17,FALSE),0) -> 0 | T132: =IFERROR(VLOOKUP($A132,Filtro!$A$4:$AY$1887,18,FALSE),0) -> 0 | U132: =IFERROR(VLOOKUP($A132,Filtro!$A$4:$AY$1887,19,FALSE),0) -> 0 | V132: =IFERROR(VLOOKUP($A132,Filtro!$A$4:$AY$1887,20,FALSE),0) -> 2 | W132: =IFERROR(VLOOKUP($A132,Filtro!$A$4:$AY$1887,21,FALSE),0) -> 1 | X132: =IFERROR(VLOOKUP($A132,Filtro!$A$4:$AY$1887,22,FALSE),0) -> 0 | Y132: =IFERROR(VLOOKUP($A132,Filtro!$A$4:$AY$1887,23,FALSE),0) -> 0 | Z132: =IFERROR(VLOOKUP($A132,Filtro!$A$4:$AY$1887,24,FALSE),0) -> 1 | AA132: =IFERROR(VLOOKUP($A132,Filtro!$A$4:$AY$1887,25,FALSE),0) -> 1 | AB132: =IFERROR(VLOOKUP($A132,Filtro!$A$4:$AY$1887,26,FALSE),0) -> 2
A133: 03053500 | B133: ORIGEN MÚLTIPLE | C133: SIN DISCAPACIDAD | D133: =IFERROR(VLOOKUP($A133,Filtro!$A$4:$AY$1887,2,FALSE),0) -> 0 | E133: =IFERROR(VLOOKUP($A133,Filtro!$A$4:$AY$1887,3,FALSE),0) -> 0 | F133: =IFERROR(VLOOKUP($A133,Filtro!$A$4:$AY$1887,4,FALSE),0) -> 0 | G133: =IFERROR(VLOOKUP($A133,Filtro!$A$4:$AY$1887,5,FALSE),0) -> 0 | H133: =IFERROR(VLOOKUP($A133,Filtro!$A$4:$AY$1887,6,FALSE),0) -> 0 | I133: =IFERROR(VLOOKUP($A133,Filtro!$A$4:$AY$1887,7,FALSE),0) -> 0 | J133: =IFERROR(VLOOKUP($A133,Filtro!$A$4:$AY$1887,8,FALSE),0) -> 0 | K133: =IFERROR(VLOOKUP($A133,Filtro!$A$4:$AY$1887,9,FALSE),0) -> 0 | L133: =IFERROR(VLOOKUP($A133,Filtro!$A$4:$AY$1887,10,FALSE),0) -> 0 | M133: =IFERROR(VLOOKUP($A133,Filtro!$A$4:$AY$1887,11,FALSE),0) -> 0 | N133: =IFERROR(VLOOKUP($A133,Filtro!$A$4:$AY$1887,12,FALSE),0) -> 0 | O133: =IFERROR(VLOOKUP($A133,Filtro!$A$4:$AY$1887,13,FALSE),0) -> 0 | P133: =IFERROR(VLOOKUP($A133,Filtro!$A$4:$AY$1887,14,FALSE),0) -> 0 | Q133: =IFERROR(VLOOKUP($A133,Filtro!$A$4:$AY$1887,15,FALSE),0) -> 0 | R133: =IFERROR(VLOOKUP($A133,Filtro!$A$4:$AY$1887,16,FALSE),0) -> 0 | S133: =IFERROR(VLOOKUP($A133,Filtro!$A$4:$AY$1887,17,FALSE),0) -> 0 | T133: =IFERROR(VLOOKUP($A133,Filtro!$A$4:$AY$1887,18,FALSE),0) -> 0 | U133: =IFERROR(VLOOKUP($A133,Filtro!$A$4:$AY$1887,19,FALSE),0) -> 0 | V133: =IFERROR(VLOOKUP($A133,Filtro!$A$4:$AY$1887,20,FALSE),0) -> 0 | W133: =IFERROR(VLOOKUP($A133,Filtro!$A$4:$AY$1887,21,FALSE),0) -> 0 | X133: =IFERROR(VLOOKUP($A133,Filtro!$A$4:$AY$1887,22,FALSE),0) -> 0 | Y133: =IFERROR(VLOOKUP($A133,Filtro!$A$4:$AY$1887,23,FALSE),0) -> 0 | Z133: =IFERROR(VLOOKUP($A133,Filtro!$A$4:$AY$1887,24,FALSE),0) -> 0 | AA133: =IFERROR(VLOOKUP($A133,Filtro!$A$4:$AY$1887,25,FALSE),0) -> 0 | AB133: =IFERROR(VLOOKUP($A133,Filtro!$A$4:$AY$1887,26,FALSE),0) -> 0
A134: 03053600 | C134: DISCAPACIDAD LEVE | D134: =IFERROR(VLOOKUP($A134,Filtro!$A$4:$AY$1887,2,FALSE),0) -> 11 | E134: =IFERROR(VLOOKUP($A134,Filtro!$A$4:$AY$1887,3,FALSE),0) -> 6 | F134: =IFERROR(VLOOKUP($A134,Filtro!$A$4:$AY$1887,4,FALSE),0) -> 5 | G134: =IFERROR(VLOOKUP($A134,Filtro!$A$4:$AY$1887,5,FALSE),0) -> 0 | H134: =IFERROR(VLOOKUP($A134,Filtro!$A$4:$AY$1887,6,FALSE),0) -> 0 | I134: =IFERROR(VLOOKUP($A134,Filtro!$A$4:$AY$1887,7,FALSE),0) -> 0 | J134: =IFERROR(VLOOKUP($A134,Filtro!$A$4:$AY$1887,8,FALSE),0) -> 0 | K134: =IFERROR(VLOOKUP($A134,Filtro!$A$4:$AY$1887,9,FALSE),0) -> 0 | L134: =IFERROR(VLOOKUP($A134,Filtro!$A$4:$AY$1887,10,FALSE),0) -> 0 | M134: =IFERROR(VLOOKUP($A134,Filtro!$A$4:$AY$1887,11,FALSE),0) -> 0 | N134: =IFERROR(VLOOKUP($A134,Filtro!$A$4:$AY$1887,12,FALSE),0) -> 0 | O134: =IFERROR(VLOOKUP($A134,Filtro!$A$4:$AY$1887,13,FALSE),0) -> 0 | P134: =IFERROR(VLOOKUP($A134,Filtro!$A$4:$AY$1887,14,FALSE),0) -> 0 | Q134: =IFERROR(VLOOKUP($A134,Filtro!$A$4:$AY$1887,15,FALSE),0) -> 0 | R134: =IFERROR(VLOOKUP($A134,Filtro!$A$4:$AY$1887,16,FALSE),0) -> 0 | S134: =IFERROR(VLOOKUP($A134,Filtro!$A$4:$AY$1887,17,FALSE),0) -> 0 | T134: =IFERROR(VLOOKUP($A134,Filtro!$A$4:$AY$1887,18,FALSE),0) -> 0 | U134: =IFERROR(VLOOKUP($A134,Filtro!$A$4:$AY$1887,19,FALSE),0) -> 5 | V134: =IFERROR(VLOOKUP($A134,Filtro!$A$4:$AY$1887,20,FALSE),0) -> 2 | W134: =IFERROR(VLOOKUP($A134,Filtro!$A$4:$AY$1887,21,FALSE),0) -> 1 | X134: =IFERROR(VLOOKUP($A134,Filtro!$A$4:$AY$1887,22,FALSE),0) -> 1 | Y134: =IFERROR(VLOOKUP($A134,Filtro!$A$4:$AY$1887,23,FALSE),0) -> 0 | Z134: =IFERROR(VLOOKUP($A134,Filtro!$A$4:$AY$1887,24,FALSE),0) -> 2 | AA134: =IFERROR(VLOOKUP($A134,Filtro!$A$4:$AY$1887,25,FALSE),0) -> 0 | AB134: =IFERROR(VLOOKUP($A134,Filtro!$A$4:$AY$1887,26,FALSE),0) -> 0
A135: 03053700 | C135: DISCAPACIDAD MODERADA | D135: =IFERROR(VLOOKUP($A135,Filtro!$A$4:$AY$1887,2,FALSE),0) -> 37 | E135: =IFERROR(VLOOKUP($A135,Filtro!$A$4:$AY$1887,3,FALSE),0) -> 23 | F135: =IFERROR(VLOOKUP($A135,Filtro!$A$4:$AY$1887,4,FALSE),0) -> 14 | G135: =IFERROR(VLOOKUP($A135,Filtro!$A$4:$AY$1887,5,FALSE),0) -> 0 | H135: =IFERROR(VLOOKUP($A135,Filtro!$A$4:$AY$1887,6,FALSE),0) -> 0 | I135: =IFERROR(VLOOKUP($A135,Filtro!$A$4:$AY$1887,7,FALSE),0) -> 0 | J135: =IFERROR(VLOOKUP($A135,Filtro!$A$4:$AY$1887,8,FALSE),0) -> 0 | K135: =IFERROR(VLOOKUP($A135,Filtro!$A$4:$AY$1887,9,FALSE),0) -> 0 | L135: =IFERROR(VLOOKUP($A135,Filtro!$A$4:$AY$1887,10,FALSE),0) -> 0 | M135: =IFERROR(VLOOKUP($A135,Filtro!$A$4:$AY$1887,11,FALSE),0) -> 0 | N135: =IFERROR(VLOOKUP($A135,Filtro!$A$4:$AY$1887,12,FALSE),0) -> 1 | O135: =IFERROR(VLOOKUP($A135,Filtro!$A$4:$AY$1887,13,FALSE),0) -> 0 | P135: =IFERROR(VLOOKUP($A135,Filtro!$A$4:$AY$1887,14,FALSE),0) -> 1 | Q135: =IFERROR(VLOOKUP($A135,Filtro!$A$4:$AY$1887,15,FALSE),0) -> 1 | R135: =IFERROR(VLOOKUP($A135,Filtro!$A$4:$AY$1887,16,FALSE),0) -> 0 | S135: =IFERROR(VLOOKUP($A135,Filtro!$A$4:$AY$1887,17,FALSE),0) -> 1 | T135: =IFERROR(VLOOKUP($A135,Filtro!$A$4:$AY$1887,18,FALSE),0) -> 0 | U135: =IFERROR(VLOOKUP($A135,Filtro!$A$4:$AY$1887,19,FALSE),0) -> 14 | V135: =IFERROR(VLOOKUP($A135,Filtro!$A$4:$AY$1887,20,FALSE),0) -> 6 | W135: =IFERROR(VLOOKUP($A135,Filtro!$A$4:$AY$1887,21,FALSE),0) -> 2 | X135: =IFERROR(VLOOKUP($A135,Filtro!$A$4:$AY$1887,22,FALSE),0) -> 2 | Y135: =IFERROR(VLOOKUP($A135,Filtro!$A$4:$AY$1887,23,FALSE),0) -> 4 | Z135: =IFERROR(VLOOKUP($A135,Filtro!$A$4:$AY$1887,24,FALSE),0) -> 4 | AA135: =IFERROR(VLOOKUP($A135,Filtro!$A$4:$AY$1887,25,FALSE),0) -> 1 | AB135: =IFERROR(VLOOKUP($A135,Filtro!$A$4:$AY$1887,26,FALSE),0) -> 0
A136: 03053800 | C136: DISCAPACIDAD SEVERA | D136: =IFERROR(VLOOKUP($A136,Filtro!$A$4:$AY$1887,2,FALSE),0) -> 156 | E136: =IFERROR(VLOOKUP($A136,Filtro!$A$4:$AY$1887,3,FALSE),0) -> 65 | F136: =IFERROR(VLOOKUP($A136,Filtro!$A$4:$AY$1887,4,FALSE),0) -> 91 | G136: =IFERROR(VLOOKUP($A136,Filtro!$A$4:$AY$1887,5,FALSE),0) -> 0 | H136: =IFERROR(VLOOKUP($A136,Filtro!$A$4:$AY$1887,6,FALSE),0) -> 0 | I136: =IFERROR(VLOOKUP($A136,Filtro!$A$4:$AY$1887,7,FALSE),0) -> 1 | J136: =IFERROR(VLOOKUP($A136,Filtro!$A$4:$AY$1887,8,FALSE),0) -> 0 | K136: =IFERROR(VLOOKUP($A136,Filtro!$A$4:$AY$1887,9,FALSE),0) -> 3 | L136: =IFERROR(VLOOKUP($A136,Filtro!$A$4:$AY$1887,10,FALSE),0) -> 4 | M136: =IFERROR(VLOOKUP($A136,Filtro!$A$4:$AY$1887,11,FALSE),0) -> 8 | N136: =IFERROR(VLOOKUP($A136,Filtro!$A$4:$AY$1887,12,FALSE),0) -> 5 | O136: =IFERROR(VLOOKUP($A136,Filtro!$A$4:$AY$1887,13,FALSE),0) -> 4 | P136: =IFERROR(VLOOKUP($A136,Filtro!$A$4:$AY$1887,14,FALSE),0) -> 0 | Q136: =IFERROR(VLOOKUP($A136,Filtro!$A$4:$AY$1887,15,FALSE),0) -> 2 | R136: =IFERROR(VLOOKUP($A136,Filtro!$A$4:$AY$1887,16,FALSE),0) -> 1 | S136: =IFERROR(VLOOKUP($A136,Filtro!$A$4:$AY$1887,17,FALSE),0) -> 3 | T136: =IFERROR(VLOOKUP($A136,Filtro!$A$4:$AY$1887,18,FALSE),0) -> 0 | U136: =IFERROR(VLOOKUP($A136,Filtro!$A$4:$AY$1887,19,FALSE),0) -> 25 | V136: =IFERROR(VLOOKUP($A136,Filtro!$A$4:$AY$1887,20,FALSE),0) -> 51 | W136: =IFERROR(VLOOKUP($A136,Filtro!$A$4:$AY$1887,21,FALSE),0) -> 4 | X136: =IFERROR(VLOOKUP($A136,Filtro!$A$4:$AY$1887,22,FALSE),0) -> 5 | Y136: =IFERROR(VLOOKUP($A136,Filtro!$A$4:$AY$1887,23,FALSE),0) -> 7 | Z136: =IFERROR(VLOOKUP($A136,Filtro!$A$4:$AY$1887,24,FALSE),0) -> 11 | AA136: =IFERROR(VLOOKUP($A136,Filtro!$A$4:$AY$1887,25,FALSE),0) -> 8 | AB136: =IFERROR(VLOOKUP($A136,Filtro!$A$4:$AY$1887,26,FALSE),0) -> 14
A137: 03053900 | C137: DISCAPACIDAD PROFUNDA | D137: =IFERROR(VLOOKUP($A137,Filtro!$A$4:$AY$1887,2,FALSE),0) -> 39 | E137: =IFERROR(VLOOKUP($A137,Filtro!$A$4:$AY$1887,3,FALSE),0) -> 18 | F137: =IFERROR(VLOOKUP($A137,Filtro!$A$4:$AY$1887,4,FALSE),0) -> 21 | G137: =IFERROR(VLOOKUP($A137,Filtro!$A$4:$AY$1887,5,FALSE),0) -> 0 | H137: =IFERROR(VLOOKUP($A137,Filtro!$A$4:$AY$1887,6,FALSE),0) -> 1 | I137: =IFERROR(VLOOKUP($A137,Filtro!$A$4:$AY$1887,7,FALSE),0) -> 0 | J137: =IFERROR(VLOOKUP($A137,Filtro!$A$4:$AY$1887,8,FALSE),0) -> 0 | K137: =IFERROR(VLOOKUP($A137,Filtro!$A$4:$AY$1887,9,FALSE),0) -> 0 | L137: =IFERROR(VLOOKUP($A137,Filtro!$A$4:$AY$1887,10,FALSE),0) -> 0 | M137: =IFERROR(VLOOKUP($A137,Filtro!$A$4:$AY$1887,11,FALSE),0) -> 5 | N137: =IFERROR(VLOOKUP($A137,Filtro!$A$4:$AY$1887,12,FALSE),0) -> 0 | O137: =IFERROR(VLOOKUP($A137,Filtro!$A$4:$AY$1887,13,FALSE),0) -> 0 | P137: =IFERROR(VLOOKUP($A137,Filtro!$A$4:$AY$1887,14,FALSE),0) -> 0 | Q137: =IFERROR(VLOOKUP($A137,Filtro!$A$4:$AY$1887,15,FALSE),0) -> 1 | R137: =IFERROR(VLOOKUP($A137,Filtro!$A$4:$AY$1887,16,FALSE),0) -> 2 | S137: =IFERROR(VLOOKUP($A137,Filtro!$A$4:$AY$1887,17,FALSE),0) -> 0 | T137: =IFERROR(VLOOKUP($A137,Filtro!$A$4:$AY$1887,18,FALSE),0) -> 2 | U137: =IFERROR(VLOOKUP($A137,Filtro!$A$4:$AY$1887,19,FALSE),0) -> 5 | V137: =IFERROR(VLOOKUP($A137,Filtro!$A$4:$AY$1887,20,FALSE),0) -> 1 | W137: =IFERROR(VLOOKUP($A137,Filtro!$A$4:$AY$1887,21,FALSE),0) -> 1 | X137: =IFERROR(VLOOKUP($A137,Filtro!$A$4:$AY$1887,22,FALSE),0) -> 3 | Y137: =IFERROR(VLOOKUP($A137,Filtro!$A$4:$AY$1887,23,FALSE),0) -> 2 | Z137: =IFERROR(VLOOKUP($A137,Filtro!$A$4:$AY$1887,24,FALSE),0) -> 5 | AA137: =IFERROR(VLOOKUP($A137,Filtro!$A$4:$AY$1887,25,FALSE),0) -> 4 | AB137: =IFERROR(VLOOKUP($A137,Filtro!$A$4:$AY$1887,26,FALSE),0) -> 7
B138: TOTAL DE EVALUACIONES | D138: =SUM(D108:D137) -> 1055 | E138: 526 | F138: 529 | G138: 3 | H138: 3 | I138: 2 | J138: 0 | K138: 16 | L138: 13 | M138: 29 | N138: 14 | O138: 16 | P138: 10 | Q138: 20 | R138: 14 | S138: 19 | T138: 15 | U138: 260 | V138: 283 | W138: 48 | X138: 33 | Y138: 74 | Z138: 73 | AA138: 39 | AB138: 71
A139: 03500336 | B139: EVALUACIÓN INGRESO | C139: SIN DISCAPACIDAD | D139: =IFERROR(VLOOKUP($A139,Filtro!$A$4:$AY$1887,2,FALSE),0) -> 4 | E139: =IFERROR(VLOOKUP($A139,Filtro!$A$4:$AY$1887,3,FALSE),0) -> 2 | F139: =IFERROR(VLOOKUP($A139,Filtro!$A$4:$AY$1887,4,FALSE),0) -> 2 | G139: =IFERROR(VLOOKUP($A139,Filtro!$A$4:$AY$1887,5,FALSE),0) -> 0 | H139: =IFERROR(VLOOKUP($A139,Filtro!$A$4:$AY$1887,6,FALSE),0) -> 0 | I139: =IFERROR(VLOOKUP($A139,Filtro!$A$4:$AY$1887,7,FALSE),0) -> 0 | J139: =IFERROR(VLOOKUP($A139,Filtro!$A$4:$AY$1887,8,FALSE),0) -> 0 | K139: =IFERROR(VLOOKUP($A139,Filtro!$A$4:$AY$1887,9,FALSE),0) -> 0 | L139: =IFERROR(VLOOKUP($A139,Filtro!$A$4:$AY$1887,10,FALSE),0) -> 0 | M139: =IFERROR(VLOOKUP($A139,Filtro!$A$4:$AY$1887,11,FALSE),0) -> 0 | N139: =IFERROR(VLOOKUP($A139,Filtro!$A$4:$AY$1887,12,FALSE),0) -> 0 | O139: =IFERROR(VLOOKUP($A139,Filtro!$A$4:$AY$1887,13,FALSE),0) -> 1 | P139: =IFERROR(VLOOKUP($A139,Filtro!$A$4:$AY$1887,14,FALSE),0) -> 0 | Q139: =IFERROR(VLOOKUP($A139,Filtro!$A$4:$AY$1887,15,FALSE),0) -> 0 | R139: =IFERROR(VLOOKUP($A139,Filtro!$A$4:$AY$1887,16,FALSE),0) -> 0 | S139: =IFERROR(VLOOKUP($A139,Filtro!$A$4:$AY$1887,17,FALSE),0) -> 0 | T139: =IFERROR(VLOOKUP($A139,Filtro!$A$4:$AY$1887,18,FALSE),0) -> 0 | U139: =IFERROR(VLOOKUP($A139,Filtro!$A$4:$AY$1887,19,FALSE),0) -> 0 | V139: =IFERROR(VLOOKUP($A139,Filtro!$A$4:$AY$1887,20,FALSE),0) -> 2 | W139: =IFERROR(VLOOKUP($A139,Filtro!$A$4:$AY$1887,21,FALSE),0) -> 0 | X139: =IFERROR(VLOOKUP($A139,Filtro!$A$4:$AY$1887,22,FALSE),0) -> 0 | Y139: =IFERROR(VLOOKUP($A139,Filtro!$A$4:$AY$1887,23,FALSE),0) -> 1 | Z139: =IFERROR(VLOOKUP($A139,Filtro!$A$4:$AY$1887,24,FALSE),0) -> 0 | AA139: =IFERROR(VLOOKUP($A139,Filtro!$A$4:$AY$1887,25,FALSE),0) -> 0 | AB139: =IFERROR(VLOOKUP($A139,Filtro!$A$4:$AY$1887,26,FALSE),0) -> 0
A140: 03500337 | C140: DISCAPACIDAD LEVE | D140: =IFERROR(VLOOKUP($A140,Filtro!$A$4:$AY$1887,2,FALSE),0) -> 101 | E140: =IFERROR(VLOOKUP($A140,Filtro!$A$4:$AY$1887,3,FALSE),0) -> 54 | F140: =IFERROR(VLOOKUP($A140,Filtro!$A$4:$AY$1887,4,FALSE),0) -> 47 | G140: =IFERROR(VLOOKUP($A140,Filtro!$A$4:$AY$1887,5,FALSE),0) -> 2 | H140: =IFERROR(VLOOKUP($A140,Filtro!$A$4:$AY$1887,6,FALSE),0) -> 0 | I140: =IFERROR(VLOOKUP($A140,Filtro!$A$4:$AY$1887,7,FALSE),0) -> 0 | J140: =IFERROR(VLOOKUP($A140,Filtro!$A$4:$AY$1887,8,FALSE),0) -> 0 | K140: =IFERROR(VLOOKUP($A140,Filtro!$A$4:$AY$1887,9,FALSE),0) -> 1 | L140: =IFERROR(VLOOKUP($A140,Filtro!$A$4:$AY$1887,10,FALSE),0) -> 1 | M140: =IFERROR(VLOOKUP($A140,Filtro!$A$4:$AY$1887,11,FALSE),0) -> 1 | N140: =IFERROR(VLOOKUP($A140,Filtro!$A$4:$AY$1887,12,FALSE),0) -> 0 | O140: =IFERROR(VLOOKUP($A140,Filtro!$A$4:$AY$1887,13,FALSE),0) -> 0 | P140: =IFERROR(VLOOKUP($A140,Filtro!$A$4:$AY$1887,14,FALSE),0) -> 2 | Q140: =IFERROR(VLOOKUP($A140,Filtro!$A$4:$AY$1887,15,FALSE),0) -> 3 | R140: =IFERROR(VLOOKUP($A140,Filtro!$A$4:$AY$1887,16,FALSE),0) -> 0 | S140: =IFERROR(VLOOKUP($A140,Filtro!$A$4:$AY$1887,17,FALSE),0) -> 2 | T140: =IFERROR(VLOOKUP($A140,Filtro!$A$4:$AY$1887,18,FALSE),0) -> 6 | U140: =IFERROR(VLOOKUP($A140,Filtro!$A$4:$AY$1887,19,FALSE),0) -> 33 | V140: =IFERROR(VLOOKUP($A140,Filtro!$A$4:$AY$1887,20,FALSE),0) -> 32 | W140: =IFERROR(VLOOKUP($A140,Filtro!$A$4:$AY$1887,21,FALSE),0) -> 3 | X140: =IFERROR(VLOOKUP($A140,Filtro!$A$4:$AY$1887,22,FALSE),0) -> 0 | Y140: =IFERROR(VLOOKUP($A140,Filtro!$A$4:$AY$1887,23,FALSE),0) -> 8 | Z140: =IFERROR(VLOOKUP($A140,Filtro!$A$4:$AY$1887,24,FALSE),0) -> 4 | AA140: =IFERROR(VLOOKUP($A140,Filtro!$A$4:$AY$1887,25,FALSE),0) -> 1 | AB140: =IFERROR(VLOOKUP($A140,Filtro!$A$4:$AY$1887,26,FALSE),0) -> 2
A141: 03500338 | C141: DISCAPACIDAD MODERADA | D141: =IFERROR(VLOOKUP($A141,Filtro!$A$4:$AY$1887,2,FALSE),0) -> 142 | E141: =IFERROR(VLOOKUP($A141,Filtro!$A$4:$AY$1887,3,FALSE),0) -> 74 | F141: =IFERROR(VLOOKUP($A141,Filtro!$A$4:$AY$1887,4,FALSE),0) -> 68 | G141: =IFERROR(VLOOKUP($A141,Filtro!$A$4:$AY$1887,5,FALSE),0) -> 0 | H141: =IFERROR(VLOOKUP($A141,Filtro!$A$4:$AY$1887,6,FALSE),0) -> 0 | I141: =IFERROR(VLOOKUP($A141,Filtro!$A$4:$AY$1887,7,FALSE),0) -> 0 | J141: =IFERROR(VLOOKUP($A141,Filtro!$A$4:$AY$1887,8,FALSE),0) -> 0 | K141: =IFERROR(VLOOKUP($A141,Filtro!$A$4:$AY$1887,9,FALSE),0) -> 0 | L141: =IFERROR(VLOOKUP($A141,Filtro!$A$4:$AY$1887,10,FALSE),0) -> 2 | M141: =IFERROR(VLOOKUP($A141,Filtro!$A$4:$AY$1887,11,FALSE),0) -> 0 | N141: =IFERROR(VLOOKUP($A141,Filtro!$A$4:$AY$1887,12,FALSE),0) -> 2 | O141: =IFERROR(VLOOKUP($A141,Filtro!$A$4:$AY$1887,13,FALSE),0) -> 0 | P141: =IFERROR(VLOOKUP($A141,Filtro!$A$4:$AY$1887,14,FALSE),0) -> 0 | Q141: =IFERROR(VLOOKUP($A141,Filtro!$A$4:$AY$1887,15,FALSE),0) -> 4 | R141: =IFERROR(VLOOKUP($A141,Filtro!$A$4:$AY$1887,16,FALSE),0) -> 2 | S141: =IFERROR(VLOOKUP($A141,Filtro!$A$4:$AY$1887,17,FALSE),0) -> 2 | T141: =IFERROR(VLOOKUP($A141,Filtro!$A$4:$AY$1887,18,FALSE),0) -> 0 | U141: =IFERROR(VLOOKUP($A141,Filtro!$A$4:$AY$1887,19,FALSE),0) -> 39 | V141: =IFERROR(VLOOKUP($A141,Filtro!$A$4:$AY$1887,20,FALSE),0) -> 44 | W141: =IFERROR(VLOOKUP($A141,Filtro!$A$4:$AY$1887,21,FALSE),0) -> 10 | X141: =IFERROR(VLOOKUP($A141,Filtro!$A$4:$AY$1887,22,FALSE),0) -> 3 | Y141: =IFERROR(VLOOKUP($A141,Filtro!$A$4:$AY$1887,23,FALSE),0) -> 17 | Z141: =IFERROR(VLOOKUP($A141,Filtro!$A$4:$AY$1887,24,FALSE),0) -> 12 | AA141: =IFERROR(VLOOKUP($A141,Filtro!$A$4:$AY$1887,25,FALSE),0) -> 2 | AB141: =IFERROR(VLOOKUP($A141,Filtro!$A$4:$AY$1887,26,FALSE),0) -> 3
A142: 03500339 | C142: DISCAPACIDAD SEVERA | D142: =IFERROR(VLOOKUP($A142,Filtro!$A$4:$AY$1887,2,FALSE),0) -> 219 | E142: =IFERROR(VLOOKUP($A142,Filtro!$A$4:$AY$1887,3,FALSE),0) -> 92 | F142: =IFERROR(VLOOKUP($A142,Filtro!$A$4:$AY$1887,4,FALSE),0) -> 127 | G142: =IFERROR(VLOOKUP($A142,Filtro!$A$4:$AY$1887,5,FALSE),0) -> 0 | H142: =IFERROR(VLOOKUP($A142,Filtro!$A$4:$AY$1887,6,FALSE),0) -> 0 | I142: =IFERROR(VLOOKUP($A142,Filtro!$A$4:$AY$1887,7,FALSE),0) -> 0 | J142: =IFERROR(VLOOKUP($A142,Filtro!$A$4:$AY$1887,8,FALSE),0) -> 0 | K142: =IFERROR(VLOOKUP($A142,Filtro!$A$4:$AY$1887,9,FALSE),0) -> 5 | L142: =IFERROR(VLOOKUP($A142,Filtro!$A$4:$AY$1887,10,FALSE),0) -> 5 | M142: =IFERROR(VLOOKUP($A142,Filtro!$A$4:$AY$1887,11,FALSE),0) -> 5 | N142: =IFERROR(VLOOKUP($A142,Filtro!$A$4:$AY$1887,12,FALSE),0) -> 7 | O142: =IFERROR(VLOOKUP($A142,Filtro!$A$4:$AY$1887,13,FALSE),0) -> 3 | P142: =IFERROR(VLOOKUP($A142,Filtro!$A$4:$AY$1887,14,FALSE),0) -> 0 | Q142: =IFERROR(VLOOKUP($A142,Filtro!$A$4:$AY$1887,15,FALSE),0) -> 4 | R142: =IFERROR(VLOOKUP($A142,Filtro!$A$4:$AY$1887,16,FALSE),0) -> 3 | S142: =IFERROR(VLOOKUP($A142,Filtro!$A$4:$AY$1887,17,FALSE),0) -> 2 | T142: =IFERROR(VLOOKUP($A142,Filtro!$A$4:$AY$1887,18,FALSE),0) -> 2 | U142: =IFERROR(VLOOKUP($A142,Filtro!$A$4:$AY$1887,19,FALSE),0) -> 45 | V142: =IFERROR(VLOOKUP($A142,Filtro!$A$4:$AY$1887,20,FALSE),0) -> 51 | W142: =IFERROR(VLOOKUP($A142,Filtro!$A$4:$AY$1887,21,FALSE),0) -> 6 | X142: =IFERROR(VLOOKUP($A142,Filtro!$A$4:$AY$1887,22,FALSE),0) -> 10 | Y142: =IFERROR(VLOOKUP($A142,Filtro!$A$4:$AY$1887,23,FALSE),0) -> 11 | Z142: =IFERROR(VLOOKUP($A142,Filtro!$A$4:$AY$1887,24,FALSE),0) -> 15 | AA142: =IFERROR(VLOOKUP($A142,Filtro!$A$4:$AY$1887,25,FALSE),0) -> 11 | AB142: =IFERROR(VLOOKUP($A142,Filtro!$A$4:$AY$1887,26,FALSE),0) -> 34
